Workbook

Sheet Intro
F2: Exploratory Software for Confidence Intervals
F3: ESCI Chapters 10-13 | L3: www.thenewstatistics.com
G5: Geoff Cumming | N5: Copyright © Geoff Cumming 2011
H6: School of Psychological Science | N6: ESCI is free software: you can redistribute it and/or modify it under the terms of the GNU General Public License
H7: La Trobe University, Melbourne | N7: as published by the Free Software Foundation, either version 3 of the License, or (at your option) any later version.
H8: Australia 3086 | N8: This program is distributed in the hope that it will be useful, but WITHOUT ANY WARRANTY; without even the implied warranty of
H9: esci@latrobe.edu.au | N9: MERCHANTABILITY or FITNESS FOR A PARTICULAR PURPOSE. Scroll down to see the GNU General Public License for more details.
B12: ► ESCI Chapters 10-13 accompanies the book Understanding The New Statistics: Effect Sizes, Confidence Intervals, and Meta-analysis (Routledge, 2012)
B13: ► For help, see the book's Appendix A.
B14: ► Use the tabs below to go to your page of choice.
B15: ► At any page, explore--with guidance from the relevant chapters of the book.
B19: Click the tabs at the bottom of the screen to go to these pages:
C21: Sampling See Chapter 10. Take samples from the H0 or H1 population, see the s pile, the rubber ruler, and normal, central t, and noncentral t distributions.
C23: Noncentral t See Chapter 10. Explore noncentral t distributions, and compare with central t. Find areas under the noncentral t curve.
C25: d picture See Chapter 11. See how two populations relate for a chosen value of d.
C27: d heap See Chapter 11. Take samples, see distributions of sample means and SDs, the s pile, the rubber ruler, and the noncentral t distribution of d.
C29: CI for d See Chapter 11. Enter a chosen value of d for the two independent groups design, then use noncentral t to find the CI for d.
C31: Power picture See Chapter 12. Explore statistical power for a single group experiment, using z for normal distributions, or t for central and noncentral t distributions.
C33: Power two See Chapter 12. See power curves, and values of power, for two independent groups, using z or t.
C35: Power paired See Chapter 12. See power curves, and values of power, for paired data, using z or t.
C37: Precision one See Chapter 13. See precision curves for the single sample design, using z or t. Calculate N for original units, and for d.
C39: Precision two See Chapter 13. See precision curves for two independent groups, using z or t. Calculate N for original units, and for d.
C41: Precision paired See Chapter 13. See precision curves for paired data, using z or t. Calculate N for original units, and for d.
B45: Please scroll down to see the GNU General Public License below
B62: GNU GENERAL PUBLIC LICENSE
B63: Version 3, 29 June 2007
B65: Copyright (C) 2007 Free Software Foundation, Inc. <http://fsf.org/>
B66: Everyone is permitted to copy and distribute verbatim copies
B67: of this license document, but changing it is not allowed.
B69: Preamble
B71: The GNU General Public License is a free, copyleft license for
B72: software and other kinds of works.
B74: The licenses for most software and other practical works are designed
B75: to take away your freedom to share and change the works. By contrast,
B76: the GNU General Public License is intended to guarantee your freedom to
B77: share and change all versions of a program--to make sure it remains free
B78: software for all its users. We, the Free Software Foundation, use the
B79: GNU General Public License for most of our software; it applies also to
B80: any other work released this way by its authors. You can apply it to
B81: your programs, too.
B83: When we speak of free software, we are referring to freedom, not
B84: price. Our General Public Licenses are designed to make sure that you
B85: have the freedom to distribute copies of free software (and charge for
B86: them if you wish), that you receive source code or can get it if you
B87: want it, that you can change the software or use pieces of it in new
B88: free programs, and that you know you can do these things.
B90: To protect your rights, we need to prevent others from denying you
B91: these rights or asking you to surrender the rights. Therefore, you have
B92: certain responsibilities if you distribute copies of the software, or if
B93: you modify it: responsibilities to respect the freedom of others.
B95: For example, if you distribute copies of such a program, whether
B96: gratis or for a fee, you must pass on to the recipients the same
B97: freedoms that you received. You must make sure that they, too, receive
B98: or can get the source code. And you must show them these terms so they
B99: know their rights.
B101: Developers that use the GNU GPL protect your rights with two steps:
B102: (1) assert copyright on the software, and (2) offer you this License
B103: giving you legal permission to copy, distribute and/or modify it.
B105: For the developers' and authors' protection, the GPL clearly explains
B106: that there is no warranty for this free software. For both users' and
B107: authors' sake, the GPL requires that modified versions be marked as
B108: changed, so that their problems will not be attributed erroneously to
B109: authors of previous versions.
B111: Some devices are designed to deny users access to install or run
B112: modified versions of the software inside them, although the manufacturer
B113: can do so. This is fundamentally incompatible with the aim of
B114: protecting users' freedom to change the software. The systematic
B115: pattern of such abuse occurs in the area of products for individuals to
B116: use, which is precisely where it is most unacceptable. Therefore, we
B117: have designed this version of the GPL to prohibit the practice for those
B118: products. If such problems arise substantially in other domains, we
B119: stand ready to extend this provision to those domains in future versions
B120: of the GPL, as needed to protect the freedom of users.
B122: Finally, every program is threatened constantly by software patents.
B123: States should not allow patents to restrict development and use of
B124: software on general-purpose computers, but in those that do, we wish to
B125: avoid the special danger that patents applied to a free program could
B126: make it effectively proprietary. To prevent this, the GPL assures that
B127: patents cannot be used to render the program non-free.
B129: The precise terms and conditions for copying, distribution and
B130: modification follow.
B132: TERMS AND CONDITIONS
B134: 0. Definitions.
B136: "This License" refers to version 3 of the GNU General Public License.
B138: "Copyright" also means copyright-like laws that apply to other kinds of
B139: works, such as semiconductor masks.
B141: "The Program" refers to any copyrightable work licensed under this
B142: License. Each licensee is addressed as "you". "Licensees" and
B143: "recipients" may be individuals or organizations.
B145: To "modify" a work means to copy from or adapt all or part of the work
B146: in a fashion requiring copyright permission, other than the making of an
B147: exact copy. The resulting work is called a "modified version" of the
B148: earlier work or a work "based on" the earlier work.
B150: A "covered work" means either the unmodified Program or a work based
B151: on the Program.
B153: To "propagate" a work means to do anything with it that, without
B154: permission, would make you directly or secondarily liable for
B155: infringement under applicable copyright law, except executing it on a
B156: computer or modifying a private copy. Propagation includes copying,
B157: distribution (with or without modification), making available to the
B158: public, and in some countries other activities as well.
B160: To "convey" a work means any kind of propagation that enables other
B161: parties to make or receive copies. Mere interaction with a user through
B162: a computer network, with no transfer of a copy, is not conveying.
B164: An interactive user interface displays "Appropriate Legal Notices"
B165: to the extent that it includes a convenient and prominently visible
B166: feature that (1) displays an appropriate copyright notice, and (2)
B167: tells the user that there is no warranty for the work (except to the
B168: extent that warranties are provided), that licensees may convey the
B169: work under this License, and how to view a copy of this License. If
B170: the interface presents a list of user commands or options, such as a
B171: menu, a prominent item in the list meets this criterion.
B173: 1. Source Code.
B175: The "source code" for a work means the preferred form of the work
B176: for making modifications to it. "Object code" means any non-source
B177: form of a work.
B179: A "Standard Interface" means an interface that either is an official
B180: standard defined by a recognized standards body, or, in the case of
B181: interfaces specified for a particular programming language, one that
B182: is widely used among developers working in that language.
B184: The "System Libraries" of an executable work include anything, other
B185: than the work as a whole, that (a) is included in the normal form of
B186: packaging a Major Component, but which is not part of that Major
B187: Component, and (b) serves only to enable use of the work with that
B188: Major Component, or to implement a Standard Interface for which an
B189: implementation is available to the public in source code form. A
B190: "Major Component", in this context, means a major essential component
B191: (kernel, window system, and so on) of the specific operating system
B192: (if any) on which the executable work runs, or a compiler used to
B193: produce the work, or an object code interpreter used to run it.
B195: The "Corresponding Source" for a work in object code form means all
B196: the source code needed to generate, install, and (for an executable
B197: work) run the object code and to modify the work, including scripts to
B198: control those activities. However, it does not include the work's
B199: System Libraries, or general-purpose tools or generally available free
B200: programs which are used unmodified in performing those activities but
B201: which are not part of the work. For example, Corresponding Source
B202: includes interface definition files associated with source files for
B203: the work, and the source code for shared libraries and dynamically
B204: linked subprograms that the work is specifically designed to require,
B205: such as by intimate data communication or control flow between those
B206: subprograms and other parts of the work.
B208: The Corresponding Source need not include anything that users
B209: can regenerate automatically from other parts of the Corresponding
B210: Source.
B212: The Corresponding Source for a work in source code form is that
B213: same work.
B215: 2. Basic Permissions.
B217: All rights granted under this License are granted for the term of
B218: copyright on the Program, and are irrevocable provided the stated
B219: conditions are met. This License explicitly affirms your unlimited
B220: permission to run the unmodified Program. The output from running a
B221: covered work is covered by this License only if the output, given its
B222: content, constitutes a covered work. This License acknowledges your
B223: rights of fair use or other equivalent, as provided by copyright law.
B225: You may make, run and propagate covered works that you do not
B226: convey, without conditions so long as your license otherwise remains
B227: in force. You may convey covered works to others for the sole purpose
B228: of having them make modifications exclusively for you, or provide you
B229: with facilities for running those works, provided that you comply with
B230: the terms of this License in conveying all material for which you do
B231: not control copyright. Those thus making or running the covered works
B232: for you must do so exclusively on your behalf, under your direction
B233: and control, on terms that prohibit them from making any copies of
B234: your copyrighted material outside their relationship with you.
B236: Conveying under any other circumstances is permitted solely under
B237: the conditions stated below. Sublicensing is not allowed; section 10
B238: makes it unnecessary.
B240: 3. Protecting Users' Legal Rights From Anti-Circumvention Law.
B242: No covered work shall be deemed part of an effective technological
B243: measure under any applicable law fulfilling obligations under article
B244: 11 of the WIPO copyright treaty adopted on 20 December 1996, or
B245: similar laws prohibiting or restricting circumvention of such
B246: measures.
B248: When you convey a covered work, you waive any legal power to forbid
B249: circumvention of technological measures to the extent such circumvention
B250: is effected by exercising rights under this License with respect to
B251: the covered work, and you disclaim any intention to limit operation or
B252: modification of the work as a means of enforcing, against the work's
B253: users, your or third parties' legal rights to forbid circumvention of
B254: technological measures.
B256: 4. Conveying Verbatim Copies.
B258: You may convey verbatim copies of the Program's source code as you
B259: receive it, in any medium, provided that you conspicuously and
B260: appropriately publish on each copy an appropriate copyright notice;
B261: keep intact all notices stating that this License and any
B262: non-permissive terms added in accord with section 7 apply to the code;
B263: keep intact all notices of the absence of any warranty; and give all
B264: recipients a copy of this License along with the Program.
B266: You may charge any price or no price for each copy that you convey,
B267: and you may offer support or warranty protection for a fee.
B269: 5. Conveying Modified Source Versions.
B271: You may convey a work based on the Program, or the modifications to
B272: produce it from the Program, in the form of source code under the
B273: terms of section 4, provided that you also meet all of these conditions:
B275: a) The work must carry prominent notices stating that you modified
B276: it, and giving a relevant date.
B278: b) The work must carry prominent notices stating that it is
B279: released under this License and any conditions added under section
B280: 7. This requirement modifies the requirement in section 4 to
... 377 more rows

Sheet Sampling
L1: Distributions from sampling | X1: =$W$1 -> 0 | Y1: 0 | Z1: 0 | AA1: 0 | AB1: 0 | AC1: 0 | AD1: 0 | AE1: 0 | AF1: 0 | AG1: 0 | AH1: 0 | AI1: 0 | AJ1: 0 | AX1: low | AY1: high | AZ1: majXunit | BA1: X step size | BB1: 0.5 | BC1: DispRubberRuler | BD1: FALSE | BF1: H0 sample | BJ1: 0.3
A2: means | B2: SDs | C2: t or z | D2: means | E2: SDs | F2: t or z | G2: calcswitch | H2: FALSE | M2: Take samples, see normal and (central) t distributions | W2: =$W$1 -> 0 | AJ2: =$W$1 -> 0 | AW2: Y axis | AX2: =AX15-AX16 -> -52 | AY2: =AX6+AX5+AX4 -> 45 | BA2: Max no samps | BB2: 300 | BC2: Show data pts | BD2: TRUE | BE2: 1 | BF2: rand no. | BG2: data point z | BH2: data point | BJ2: New Sample, for display | BK2: Grey | BL2: Display mean heap 0 | BN2: =BN4 -> 45.186 | BO2: =IF(AND(NOT($BB$12),$BD$3,$BD$2),$AX$9-$BA$33/2+BM4*$BA$33,NA()) -> 4.83975 | BP2: =IF(AND($BB$12,$BD$3,$BD$2),$AX$9-$BA$33/2+BM4*$BA$33,NA()) ->  | BQ2: Display t-z heap 0 | BS2: =BS4 -> 45.186 | BT2: =IF(AND(NOT($BB$12),$BD$3,$BD$2,BD10),$AX$15-$BA$33/2+BR4*$BA$33,NA()) -> -45.16025 | BU2: =IF(AND($BB$12,$BD$3,$BD$2,BD10),$AX$15-$BA$33/2+BR4*$BA$33,NA()) ->  | BV2: Display mean heap 1 | BX2: =BX4 -> 54.932 | BY2: =IF(AND(NOT($BB$13),$BD$4,$BD$2),$AX$9-$BA$33/2+BW4*$BA$33,NA()) ->  | BZ2: =IF(AND($BB$4,$BB$13,$BD$4,$BD$2),$AX$9-$BA$33/2+BW4*$BA$33,NA()) ->  | CA2: Display t-z heap 1 | CC2: =CC4 -> 54.932 | CD2: =IF(AND(NOT($BB$13),$BD$4,$BD$2,BD10),$AX$15-$BA$33/2+CB4*$BA$33,NA()) ->  | CE2: =IF(AND($BB$4,$BB$13,$BD$4,$BD$2,BD10),$AX$15-$BA$33/2+CB4*$BA$33,NA()) ->  | CF2: Display s pile | CJ2: =CJ4 ->  | CK2: =IF(AND(NOT($BD$12),$BD$5,$BD$4,$BD$2),$AX$12-$BA$36/2+IF($BB$5=1,CG4,CI4)*$BA$36,NA()) ->  | CL2: =IF(AND($BD$12,$BD$5,$BD$4,$BD$2),$AX$12-$BA$36/2+IF($BB$5=1,CG4,CI4)*$BA$36,NA()) -> 
A3: =BB30 -> 0.3550023142 | B3: =BC30 -> 0.8951785051 | D3: =BB31 -> -0.6540844094 | E3: =BC31 -> 0.6722313532 | M3: See the rubber ruler, and the noncentral t distribution | W3: 0 | AJ3: 0 | AW3: X axis | AX3: 0 | AY3: 100 | AZ3: 10 | BA3: Max height | BB3: =MAX(L65:L265,Q65:Q265)*1.1 -> 47.07792573 | BC3: Don'tClearDisp | BD3: =($G$11=$H$11) -> TRUE | BE3: 2 | BF3: =$G$9 -> 0.2251001774 | BG3: =IF(AND($BD$3,$BE2<=$K$14),NORMSINV(BF3),"") -> -0.7550810465 | BH3: =IF(BG3="","",$O$9+$R$11*BG3) -> 28.6737843 | BI3: =IF(AND(NOT($BB$12),$BD$2,BH3<>"",$A$4<>""),BH3,-999) -> 28.6737843 | BJ3: =$AX$8+$BJ$1 -> 25.3 | BK3: =IF(AND($BB$12,$BD$2,BH3<>"",$A$4<>""),BH3,-999) -> -999 | BL3: xticks | BM3: yticks | BN3: x for display | BO3: y for display | BP3: Grey | BQ3: xticks | BR3: yticks | BS3: x for display | BT3: y for display | BU3: Grey | BV3: xticks | BW3: yticks | BX3: x for display | BY3: y for display | BZ3: Grey | CA3: xticks | CB3: yticks | CC3: x for display | CD3: y for display | CE3: Grey | CF3: xticks 0 | CG3: yticks 0 | CH3: xticks 1 | CI3: yticks 1 | CJ3: x for display | CK3: y for display | CL3: y grey
A4: 0.3550023142 | B4: 0.8951785051 | C4: =IF(AND(A4<>"",$K$14>1),(($O$9+$R$11*A4)-$O$9)/IF($BD$12,$BB$9,$R$11*B4/SQRT($K$14)),"") -> 0.8695745272 | D4: -0.6540844094 | E4: 0.6722313532 | F4: =IF(AND(D4<>"",$K$14>1),(($V$9+$R$11*D4)-$O$9)/IF($BD$12,$BB$9,$R$11*E4/SQRT($K$14)),"") -> 2.480309853 | W4: 0 | AJ4: 0 | AW4: top gap | AX4: 0 | AZ4: minXunit | BA4: Show m1 also | BB4: FALSE | BC4: Don'tClearDisp1 | BD4: =($G$11=$H$11) -> TRUE | BE4: 3 | BF4: =MOD(BF3*10000013,1) -> 0.6999486475 | BG4: =IF(AND($BD$3,$BE3<=$K$14),NORMSINV(BF4),"") -> 0.5242528234 | BH4: =IF(BG4="","",$O$9+$R$11*BG4) -> 47.86379235 | BI4: =IF(AND(NOT($BB$12),$BD$2,BH4<>"",$A$4<>""),BH4,-999) -> 47.86379235 | BJ4: =$AX$8+$BJ$1 -> 25.3 | BK4: =IF(AND($BB$12,$BD$2,BH4<>"",$A$4<>""),BH4,-999) -> -999 | BL4: =IF(A4="","",ROUND(($O$9+$R$11*A4)/$BA$34,0)) -> 51 | BM4: =IF(BL4="",NA(),COUNTIF(BL4:$BL$303,BL4)) -> 5 | BN4: =BL4*$BA$34 -> 45.186 | BO4: =IF(AND(NOT($BB$12),$BB$6,$BD$3,$BD$8),$AX$9-$BA$33/2+BM4*$BA$33,NA()) -> 4.83975 | BP4: =IF(AND($BB$12,$BB$6,$BD$3,$BD$8),$AX$9-$BA$33/2+BM4*$BA$33,NA()) ->  | BQ4: =IF(C4="","",ROUND(($O$9+C4*$BB$9)/$BA$34,0)) -> 51 | BR4: =IF(BQ4="",NA(),COUNTIF(BQ4:$BQ$303,BQ4)) -> 5 | BS4: =BQ4*$BA$34 -> 45.186 | BT4: =IF(AND(NOT($BB$12),$BD$10,$BD$3,$BD$8),$AX$15-$BA$33/2+BR4*$BA$33,NA()) -> -45.16025 | BU4: =IF(AND($BB$12,$BD$10,$BD$3,$BD$8),$AX$15-$BA$33/2+BR4*$BA$33,NA()) ->  | BV4: =IF(D4="","",ROUND(($V$9+$R$11*D4)/$BA$34,0)) -> 62 | BW4: =IF(BV4="",NA(),COUNTIF(BV4:$BV$303,BV4)) -> 1 | BX4: =BV4*$BA$34 -> 54.932 | BY4: =IF(AND(NOT($BB$13),$BD$6,$BD$4,$BD$8),$AX$9-$BA$33/2+BW4*$BA$33,NA()) ->  | BZ4: =IF(AND($BB$4,$BD$6,$BB$13,$BD$4,$BD$8),$AX$9-$BA$33/2+BW4*$BA$33,NA()) ->  | CA4: =IF(F4="","",ROUND(($O$9+F4*$BB$9)/$BA$34,0)) -> 62 | CB4: =IF(CA4="",NA(),COUNTIF(CA4:$CA$303,CA4)) -> 1 | CC4: =CA4*$BA$34 -> 54.932 | CD4: =IF(AND(NOT($BB$13),$BD$10,$BD$4,$BD$8),$AX$15-$BA$33/2+CB4*$BA$33,NA()) ->  | CE4: =IF(AND($BB$4,$BD$10,$BB$13,$BD$4,$BD$8),$AX$15-$BA$33/2+CB4*$BA$33,NA()) ->  | CF4: =IF(B4="","",ROUND(($R$11*B4)/$BA$37,0)) -> 23 | CG4: =IF(CF4="",NA(),COUNTIF($CF4:CF$303,CF4)) -> 7 | CH4: =IF(E4="","",ROUND(($R$11*E4)/$BA$37,0)) -> 17 | CI4: =IF(CH4="",NA(),COUNTIF($CH4:CH$303,CH4)) -> 1 | CJ4: =$AX$35+IF($BB$5=1,CF4,CH4)*$BA$37 ->  | CK4: =IF(AND(NOT($BD$12),$BD$5,$BD$4,$BD$8),$AX$12-$BA$36/2+IF($BB$5=1,CG4,CI4)*$BA$36,NA()) ->  | CL4: =IF(AND($BD$12,$BD$5,$BD$4,$BD$8),$AX$12-$BA$36/2+IF($BB$5=1,CG4,CI4)*$BA$36,NA()) -> 
A5: -0.5885352104 | B5: 0.4953804201 | C5: =IF(AND(A5<>"",$K$14>1),(($O$9+$R$11*A5)-$O$9)/IF($BD$12,$BB$9,$R$11*B5/SQRT($K$14)),"") -> -1.441610961 | D5: 0.1820704237 | E5: 1.184249588 | F5: =IF(AND(D5<>"",$K$14>1),(($V$9+$R$11*D5)-$O$9)/IF($BD$12,$BB$9,$R$11*E5/SQRT($K$14)),"") -> 4.52846254 | J5: 1 | K5: Populations | Q5: 2.. | R5: Hypotheses | W5: 0 | AJ5: 0 | AW5: panel 1 height | AX5: 18 | AZ5: 2 | BA5: m0 or m1 true | BB5: 1 | BC5: Disp s pile | BD5: FALSE | BE5: 4 | BF5: 0.5745840333 | BG5: =IF(AND($BD$3,$BE4<=$K$14),NORMSINV(BF5),"") -> 0.1880570451 | BH5: 42.82085568 | BI5: 42.82085568 | BJ5: 25.3 | BK5: -999 | BL5: 35 | BM5: =IF(BL5="",NA(),COUNTIF(BL5:$BL$303,BL5)) -> 3 | BN5: 31.01 | BO5: 2.68875 | BQ5: 35 | BR5: =IF(BQ5="",NA(),COUNTIF(BQ5:$BQ$303,BQ5)) -> 3 | BS5: 31.01 | BT5: =IF(AND(NOT($BB$12),$BD$10,$BD$3,$BD$8),$AX$15-$BA$33/2+BR5*$BA$33,NA()) -> -47.31125 | BU5: =IF(AND($BB$12,$BD$10,$BD$3,$BD$8),$AX$15-$BA$33/2+BR5*$BA$33,NA()) ->  | BV5: 76 | BW5: =IF(BV5="",NA(),COUNTIF(BV5:$BV$303,BV5)) -> 2 | BX5: 67.336 | CA5: 76 | CB5: =IF(CA5="",NA(),COUNTIF(CA5:$CA$303,CA5)) -> 2 | CC5: 67.336 | CD5: =IF(AND(NOT($BB$13),$BD$10,$BD$4,$BD$8),$AX$15-$BA$33/2+CB5*$BA$33,NA()) ->  | CE5: =IF(AND($BB$4,$BD$10,$BB$13,$BD$4,$BD$8),$AX$15-$BA$33/2+CB5*$BA$33,NA()) ->  | CF5: =IF(B5="","",ROUND(($R$11*B5)/$BA$37,0)) -> 13 | CG5: =IF(CF5="",NA(),COUNTIF($CF5:CF$303,CF5)) -> 6 | CH5: =IF(E5="","",ROUND(($R$11*E5)/$BA$37,0)) -> 30 | CI5: =IF(CH5="",NA(),COUNTIF($CH5:CH$303,CH5)) -> 2 | CJ5: =$AX$35+IF($BB$5=1,CF5,CH5)*$BA$37 ->  | CK5: =IF(AND(NOT($BD$12),$BD$5,$BD$4,$BD$8),$AX$12-$BA$36/2+IF($BB$5=1,CG5,CI5)*$BA$36,NA()) ->  | CL5: =IF(AND($BD$12,$BD$5,$BD$4,$BD$8),$AX$12-$BA$36/2+IF($BB$5=1,CG5,CI5)*$BA$36,NA()) -> 
A6: 0.02078797455 | B6: 1.843068047 | C6: 0.05091993043 | D6: 0.3669107526 | E6: 0.865693998 | F6: 4.98122703 | G6: Copy here | H6: Copy from | L6: Display both populations | S6: Assume true | W6: 0 | AJ6: 0 | AW6: panel 1 bottom | AX6: =AX9+AX8+AX7 -> 27 | AZ6: stepXsize | BA6: Disp H0 Middle | BB6: TRUE | BC6: Disp H1 Middle | BD6: TRUE | BE6: 5 | BF6: 0.8029945903 | BG6: 0.852366298 | BH6: 52.78549447 | BI6: 52.78549447 | BJ6: 25.3 | BK6: -999 | BL6: 45 | BM6: =IF(BL6="",NA(),COUNTIF(BL6:$BL$303,BL6)) -> 6 | BN6: 39.87 | BO6: 5.91525 | BQ6: 45 | BR6: =IF(BQ6="",NA(),COUNTIF(BQ6:$BQ$303,BQ6)) -> 6 | BS6: 39.87 | BT6: -44.08475 | BV6: 80 | BW6: =IF(BV6="",NA(),COUNTIF(BV6:$BV$303,BV6)) -> 1 | BX6: 70.88 | CA6: 80 | CB6: =IF(CA6="",NA(),COUNTIF(CA6:$CA$303,CA6)) -> 1 | CC6: 70.88 | CF6: 47 | CG6: =IF(CF6="",NA(),COUNTIF($CF6:CF$303,CF6)) -> 1 | CH6: 22 | CI6: =IF(CH6="",NA(),COUNTIF($CH6:CH$303,CH6)) -> 4
A7: 0.2803681385 | B7: 0.9769286569 | C7: 0.6867588795 | D7: 0.2774036568 | E7: 1.275938387 | F7: 4.761980317 | G7: from right | H7: red 2, 3 | R7: H0 | S7: H1 | W7: 0 | AJ7: 0 | AW7: 1 to 2 gap | AX7: 2 | AZ7: 0.5 | BA7: Disp H0 Lower | BB7: TRUE | BC7: Disp H1 Lower | BD7: TRUE | BE7: 6 | BF7: 0.3414560519 | BG7: -0.4084925434 | BH7: 33.87261185 | BI7: 33.87261185 | BJ7: 25.3 | BK7: -999 | BL7: 50 | BM7: =IF(BL7="",NA(),COUNTIF(BL7:$BL$303,BL7)) -> 8 | BN7: 44.3 | BO7: 8.06625 | BQ7: 50 | BR7: =IF(BQ7="",NA(),COUNTIF(BQ7:$BQ$303,BQ7)) -> 8 | BS7: 44.3 | BT7: -41.93375 | BV7: 78 | BW7: =IF(BV7="",NA(),COUNTIF(BV7:$BV$303,BV7)) -> 2 | BX7: 69.108 | CA7: 78 | CB7: =IF(CA7="",NA(),COUNTIF(CA7:$CA$303,CA7)) -> 2 | CC7: 69.108 | CF7: 25 | CG7: =IF(CF7="",NA(),COUNTIF($CF7:CF$303,CF7)) -> 8 | CH7: 32 | CI7: =IF(CH7="",NA(),COUNTIF($CH7:CH$303,CH7)) -> 2
A8: -0.3093506671 | B8: 1.022355162 | C8: -0.7577512861 | D8: 0.2156857726 | E8: 0.8712959888 | F8: 4.610802992 | G8: 40 | H8: =O9 -> 40 | O8: For H0 | V8: For H1 | W8: 0 | AJ8: 0 | AW8: panel 2 height | AX8: 25 | BA8: For a | BB8: 26 | BC8: Disp Heaps | BD8: TRUE | BE8: 7 | BF8: 0.9580875151 | BG8: 1.728911308 | BH8: 65.93366963 | BI8: 65.93366963 | BJ8: 25.3 | BK8: -999 | BL8: 40 | BM8: =IF(BL8="",NA(),COUNTIF(BL8:$BL$303,BL8)) -> 9 | BN8: 35.44 | BO8: 9.14175 | BQ8: 40 | BR8: =IF(BQ8="",NA(),COUNTIF(BQ8:$BQ$303,BQ8)) -> 9 | BS8: 35.44 | BT8: -40.85825 | BV8: 77 | BW8: =IF(BV8="",NA(),COUNTIF(BV8:$BV$303,BV8)) -> 2 | BX8: 68.222 | CA8: 77 | CB8: =IF(CA8="",NA(),COUNTIF(CA8:$CA$303,CA8)) -> 2 | CC8: 68.222 | CF8: 26 | CG8: =IF(CF8="",NA(),COUNTIF($CF8:CF$303,CF8)) -> 1 | CH8: 22 | CI8: =IF(CH8="",NA(),COUNTIF($CH8:CH$303,CH8)) -> 3
A9: 0.8865367474 | B9: 1.116015089 | C9: 2.171562669 | D9: -0.1128658385 | E9: 0.4178102066 | F9: 3.806019191 | G9: 0.2251001774 | H9: =RAND() -> 0.7990668861 | M9: SLIDER | N9: m0 | O9: =AV19 -> 40 | S9: SLIDER | U9: m1 | V9: =AV21 -> 65 | W9: 0 | AJ9: 0 | AO9: Mean heap & (z or t) heap | AW9: panel 2 bottom | AX9: 0 | BA9: Population SE | BB9: =$R$11/SQRT($K$14) -> 6.123724357 | BC9: DispSampDist | BD9: TRUE | BE9: 8 | BF9: 0.605997052 | BI9: -999 | BJ9: 25.3 | BK9: -999 | BL9: 60 | BM9: =IF(BL9="",NA(),COUNTIF(BL9:$BL$303,BL9)) -> 1 | BN9: 53.16 | BO9: 0.53775 | BQ9: 60 | BR9: =IF(BQ9="",NA(),COUNTIF(BQ9:$BQ$303,BQ9)) -> 1 | BS9: 53.16 | BT9: -49.46225 | BV9: 71 | BW9: =IF(BV9="",NA(),COUNTIF(BV9:$BV$303,BV9)) -> 1 | BX9: 62.906 | CA9: 71 | CB9: =IF(CA9="",NA(),COUNTIF(CA9:$CA$303,CA9)) -> 1 | CC9: 62.906 | CF9: 28 | CG9: =IF(CF9="",NA(),COUNTIF($CF9:CF$303,CF9)) -> 3 | CH9: 11 | CI9: =IF(CH9="",NA(),COUNTIF($CH9:CH$303,CH9)) -> 3
A10: 0.3908558101 | B10: 0.9922357191 | C10: 0.9573972977 | D10: -0.7380651197 | E10: 0.8659356141 | F10: 2.274599964 | G10: 15 | H10: =R11 -> 15 | W10: 0 | AJ10: 0 | AO10: appearance | AW10: 2 to 3 gap | AX10: 2 | BA10: format M SD values | BB10: =IF(BB5=2,-999999999,999999999) -> 999999999 | BC10: Disp z t panel | BD10: TRUE | BE10: 9 | BF10: 0.3983984403 | BI10: -999 | BJ10: 25.3 | BK10: -999 | BL10: 52 | BM10: =IF(BL10="",NA(),COUNTIF(BL10:$BL$303,BL10)) -> 5 | BN10: 46.072 | BO10: 4.83975 | BQ10: 52 | BR10: =IF(BQ10="",NA(),COUNTIF(BQ10:$BQ$303,BQ10)) -> 5 | BS10: 46.072 | BT10: -45.16025 | BV10: 61 | BW10: =IF(BV10="",NA(),COUNTIF(BV10:$BV$303,BV10)) -> 2 | BX10: 54.046 | CA10: 61 | CB10: =IF(CA10="",NA(),COUNTIF(CA10:$CA$303,CA10)) -> 2 | CC10: 54.046 | CF10: 25 | CG10: =IF(CF10="",NA(),COUNTIF($CF10:CF$303,CF10)) -> 7 | CH10: 22 | CI10: =IF(CH10="",NA(),COUNTIF($CH10:CH$303,CH10)) -> 2
A11: 0.2933445637 | B11: 1.270508288 | C11: 0.7185445 | D11: -0.4280807987 | E11: 0.3495604345 | F11: 3.033903379 | G11: 6 | H11: =K14 -> 6 | K11: Population SD | O11: SLIDER | Q11: s | R11: =AV23 -> 15 | U11: d | V11: =(V9-O9)/R11 -> 1.666666667 | W11: 0 | AJ11: 0 | AO11: y | AW11: panel 3 height | AX11: 17 | BA11: SD of nct dist | BB11: =SQRT(($K$14-1)*(1+$AW$136*$AW$136)/(($K$14-1)-2)-BD11*BD11) -> 2.421969107 | BC11: mean of nct dist | BD11: =SQRT(($K$14-1)/2)*(EXP(GAMMALN(($K$14-1)/2-0.5))/EXP(GAMMALN(($K$14-1)/2)))*$AW$136 -> 4.855770803 | BE11: 10 | BF11: 0.5824919306 | BI11: -999 | BJ11: 25.3 | BK11: -999 | BL11: 50 | BM11: =IF(BL11="",NA(),COUNTIF(BL11:$BL$303,BL11)) -> 7 | BN11: 44.3 | BO11: 6.99075 | BQ11: 50 | BR11: =IF(BQ11="",NA(),COUNTIF(BQ11:$BQ$303,BQ11)) -> 7 | BS11: 44.3 | BT11: -43.00925 | BV11: 66 | BW11: =IF(BV11="",NA(),COUNTIF(BV11:$BV$303,BV11)) -> 1 | BX11: 58.476 | CA11: 66 | CB11: =IF(CA11="",NA(),COUNTIF(CA11:$CA$303,CA11)) -> 1 | CC11: 58.476 | CF11: 32 | CG11: =IF(CF11="",NA(),COUNTIF($CF11:CF$303,CF11)) -> 4 | CH11: 9 | CI11: =IF(CH11="",NA(),COUNTIF($CH11:CH$303,CH11)) -> 1
A12: -0.4779406184 | B12: 1.074372418 | C12: -1.170710642 | D12: -0.01217840734 | E12: 0.4433987234 | F12: 4.052652021 | G12: 0.1935997158 | H12: =RAND() -> 0.8759432202 | W12: 0 | AJ12: 0 | AO12: 2151 | AW12: panel 3 bottom | AX12: =AX9-AX10-AX11 -> -19 | BA12: m0 grey | BB12: =AND(BB5=2) -> FALSE | BC12: Assume s known | BD12: TRUE | BE12: 11 | BF12: 0.8781368844 | BI12: -999 | BJ12: 25.3 | BK12: -999 | BL12: 37 | BM12: =IF(BL12="",NA(),COUNTIF(BL12:$BL$303,BL12)) -> 6 | BN12: 32.782 | BO12: 5.91525 | BQ12: 37 | BR12: =IF(BQ12="",NA(),COUNTIF(BQ12:$BQ$303,BQ12)) -> 6 | BS12: 32.782 | BT12: -44.08475 | BV12: 73 | BW12: =IF(BV12="",NA(),COUNTIF(BV12:$BV$303,BV12)) -> 1 | BX12: 64.678 | CA12: 73 | CB12: =IF(CA12="",NA(),COUNTIF(CA12:$CA$303,CA12)) -> 1 | CC12: 64.678 | CF12: 27 | CG12: =IF(CF12="",NA(),COUNTIF($CF12:CF$303,CF12)) -> 8 | CH12: 11 | CI12: =IF(CH12="",NA(),COUNTIF($CH12:CH$303,CH12)) -> 2
A13: 0.2215163885 | B13: 1.442383658 | C13: 0.5426021215 | D13: 0.9260571527 | E13: 0.932078472 | F13: 6.350850401 | G13: 65 | H13: =V9 -> 65 | J13: 3 | M13: 4 | W13: 0 | AJ13: 0 | AW13: 3 to 4 gap | AX13: 7 | BA13: m1 grey | BB13: =AND(BB5=1) -> TRUE | BC13: Show rej region | BD13: FALSE | BE13: 12 | BF13: 0.259990599 | BI13: -999 | BJ13: 25.3 | BK13: -999 | BL13: 49 | BM13: =IF(BL13="",NA(),COUNTIF(BL13:$BL$303,BL13)) -> 5 | BN13: 43.414 | BO13: 4.83975 | BQ13: 49 | BR13: =IF(BQ13="",NA(),COUNTIF(BQ13:$BQ$303,BQ13)) -> 5 | BS13: 43.414 | BT13: -45.16025 | BV13: 89 | BW13: =IF(BV13="",NA(),COUNTIF(BV13:$BV$303,BV13)) -> 1 | BX13: 78.854 | CA13: 89 | CB13: =IF(CA13="",NA(),COUNTIF(CA13:$CA$303,CA13)) -> 1 | CC13: 78.854 | CF13: 37 | CG13: =IF(CF13="",NA(),COUNTIF($CF13:CF$303,CF13)) -> 3 | CH13: 24 | CI13: =IF(CH13="",NA(),COUNTIF($CH13:CH$303,CH13)) -> 1
A14: -0.4874946127 | B14: 0.8812184898 | C14: -1.194113053 | D14: -0.06992314159 | E14: 1.457298064 | F14: 3.911206887 | H14: In order | J14: N | K14: =AV25 -> 6 | W14: 0 | AJ14: 0 | AO14: x | AW14: panel 4 height | AX14: 24 | BA14: For top m0 line | BB14: =IF(NOT(BB12),O9,NA()) -> 40 | BC14: =AX6 -> 27 | BE14: 13 | BF14: 0.3699419312 | BI14: -999 | BJ14: 25.3 | BK14: -999 | BL14: 37 | BM14: =IF(BL14="",NA(),COUNTIF(BL14:$BL$303,BL14)) -> 5 | BN14: 32.782 | BO14: 4.83975 | BQ14: 37 | BR14: =IF(BQ14="",NA(),COUNTIF(BQ14:$BQ$303,BQ14)) -> 5 | BS14: 32.782 | BT14: -45.16025 | BV14: 72 | BW14: =IF(BV14="",NA(),COUNTIF(BV14:$BV$303,BV14)) -> 1 | BX14: 63.792 | CA14: 72 | CB14: =IF(CA14="",NA(),COUNTIF(CA14:$CA$303,CA14)) -> 1 | CC14: 63.792 | CF14: 22 | CG14: =IF(CF14="",NA(),COUNTIF($CF14:CF$303,CF14)) -> 8 | CH14: 37 | CI14: =IF(CH14="",NA(),COUNTIF($CH14:CH$303,CH14)) -> 1
A15: -1.038858804 | B15: 0.8109493254 | C15: -2.544673986 | D15: -0.8650642177 | E15: 0.7706703296 | F15: 1.963516977 | H15: from top | W15: 0 | AJ15: 0 | AO15: 1772 | AW15: panel 4 bottom | AX15: =AX12-AX13-AX14 -> -50 | BA15: grey | BB15: =IF($BB$12,O9,NA()) ->  | BC15: =BC14 -> 27 | BE15: 14 | BF15: 0.1214241944 | BI15: -999 | BJ15: 25.3 | BK15: -999 | BL15: 28 | BM15: =IF(BL15="",NA(),COUNTIF(BL15:$BL$303,BL15)) -> 1 | BN15: 24.808 | BO15: 0.53775 | BQ15: 28 | BR15: =IF(BQ15="",NA(),COUNTIF(BQ15:$BQ$303,BQ15)) -> 1 | BS15: 24.808 | BT15: -49.46225 | BV15: 59 | BW15: =IF(BV15="",NA(),COUNTIF(BV15:$BV$303,BV15)) -> 1 | BX15: 52.274 | CA15: 59 | CB15: =IF(CA15="",NA(),COUNTIF(CA15:$CA$303,CA15)) -> 1 | CC15: 52.274 | CF15: 21 | CG15: =IF(CF15="",NA(),COUNTIF($CF15:CF$303,CF15)) -> 7 | CH15: 20 | CI15: =IF(CH15="",NA(),COUNTIF($CH15:CH$303,CH15)) -> 2
A16: -0.05432180805 | B16: 1.054666857 | C16: -0.1330607116 | D16: 0.3207693984 | E16: 0.8332833333 | F16: 4.868204256 | H16: H0 m0 | J16: df | K16: =K14-1 -> 5 | T16: Number of samples | W16: 0 | AJ16: 0 | AW16: bottom gap | AX16: 2 | BA16: Middle m0 line | BB16: =IF(NOT(BB12),O9,NA()) -> 40 | BC16: =AX9 -> 0 | BE16: 15 | BF16: 0.5227679722 | BI16: -999 | BJ16: 25.3 | BK16: -999 | BL16: 44 | BM16: =IF(BL16="",NA(),COUNTIF(BL16:$BL$303,BL16)) -> 11 | BN16: 38.984 | BO16: 11.29275 | BQ16: 44 | BR16: =IF(BQ16="",NA(),COUNTIF(BQ16:$BQ$303,BQ16)) -> 11 | BS16: 38.984 | BT16: -38.70725 | BV16: 79 | BW16: =IF(BV16="",NA(),COUNTIF(BV16:$BV$303,BV16)) -> 2 | BX16: 69.994 | CA16: 79 | CB16: =IF(CA16="",NA(),COUNTIF(CA16:$CA$303,CA16)) -> 2 | CC16: 69.994 | CF16: 27 | CG16: =IF(CF16="",NA(),COUNTIF($CF16:CF$303,CF16)) -> 7 | CH16: 21 | CI16: =IF(CH16="",NA(),COUNTIF($CH16:CH$303,CH16)) -> 1
A17: 0.2773496093 | B17: 1.14746622 | C17: 0.6793650232 | D17: -0.3821722383 | E17: 0.8612978985 | F17: 3.146355927 | H17: rand H0 | L17: SE | M17: =R11/SQRT(K14) -> 6.123724357 | Q17: H0 | R17: =IF($BD$3,COUNT(A4:A303),0) -> 126 | S17: H1 | T17: =IF($BD$4,COUNT(D4:D303),0) -> 23 | W17: 0 | AJ17: 0 | AV17: Panel 1 | AW17: Label pop | AX17: =AX3 -> 0 | AY17: =AX6+AX5-5 -> 40 | BA17: grey | BB17: =IF($BB$12,O9,NA()) ->  | BC17: =BC16 -> 0 | BE17: 16 | BF17: 0.5179947279 | BI17: -999 | BJ17: 25.3 | BK17: -999 | BL17: 50 | BM17: =IF(BL17="",NA(),COUNTIF(BL17:$BL$303,BL17)) -> 6 | BN17: 44.3 | BO17: 5.91525 | BQ17: 50 | BR17: =IF(BQ17="",NA(),COUNTIF(BQ17:$BQ$303,BQ17)) -> 6 | BS17: 44.3 | BT17: -44.08475 | BV17: 67 | BW17: =IF(BV17="",NA(),COUNTIF(BV17:$BV$303,BV17)) -> 1 | BX17: 59.362 | CA17: 67 | CB17: =IF(CA17="",NA(),COUNTIF(CA17:$CA$303,CA17)) -> 1 | CC17: 59.362 | CF17: 29 | CG17: =IF(CF17="",NA(),COUNTIF($CF17:CF$303,CF17)) -> 3 | CH17: 22 | CI17: =IF(CH17="",NA(),COUNTIF($CH17:CH$303,CH17)) -> 1
A18: -0.07148941001 | B18: 1.230761063 | C18: -0.1751125765 | D18: 0.2203138867 | E18: 0.9854893167 | F18: 4.62213951 | H18: sigma | W18: 0 | AJ18: 0 | AO18: s pile | AV18: mu0 | AW18: Label H0 true | AX18: =IF(BB5=1,O9-AZ18,NA()) -> 28 | AY18: =AY2-AZ19 -> 45 | AZ18: 12 | BA18: Lower m0 line | BB18: =IF($BD$10,$AX$15,NA()) -> -50 | BC18: =IF(AND($BB$7,NOT($BB$12)),$O$9,NA()) -> 40 | BD18: =IF(AND($BB$7,$BB$12),$O$9,NA()) ->  | BE18: 17 | BF18: 0.01332513615 | BI18: -999 | BJ18: 25.3 | BK18: -999 | BL18: 44 | BM18: =IF(BL18="",NA(),COUNTIF(BL18:$BL$303,BL18)) -> 10 | BN18: 38.984 | BO18: 10.21725 | BQ18: 44 | BR18: =IF(BQ18="",NA(),COUNTIF(BQ18:$BQ$303,BQ18)) -> 10 | BS18: 38.984 | BT18: -39.78275 | BV18: 77 | BW18: =IF(BV18="",NA(),COUNTIF(BV18:$BV$303,BV18)) -> 1 | BX18: 68.222 | CA18: 77 | CB18: =IF(CA18="",NA(),COUNTIF(CA18:$CA$303,CA18)) -> 1 | CC18: 68.222 | CF18: 31 | CG18: =IF(CF18="",NA(),COUNTIF($CF18:CF$303,CF18)) -> 2 | CH18: 25 | CI18: =IF(CH18="",NA(),COUNTIF($CH18:CH$303,CH18)) -> 1
A19: -0.3326325861 | B19: 1.313021007 | C19: -0.8147801079 | D19: 0.3481357888 | E19: 0.4392255384 | F19: 4.935237948 | H19: N | J19: 5 | K19: Latest sample | N19: Mean | O19: =IF(AND(BD3,BB5=1,nsamps>0),O9+R11*BB30,IF(AND(BD4,BB5=2,nsampso>0),V9+R11*BB31,"")) -> 45.32503471 | R19: Display data points | W19: 0 | AJ19: 0 | AO19: appearance | AV19: 40 | AW19: Label H1 true | AX19: =IF(BB5=2,V9+AZ18,NA()) ->  | AY19: =AY18 -> 45 | AZ19: 0 | BA19: m0, m1 line bar | BB19: =AX14-1 -> 23 | BE19: 18 | BF19: 0.5347756706 | BI19: -999 | BJ19: 25.3 | BK19: -999 | BL19: 40 | BM19: =IF(BL19="",NA(),COUNTIF(BL19:$BL$303,BL19)) -> 8 | BN19: 35.44 | BO19: 8.06625 | BQ19: 40 | BR19: =IF(BQ19="",NA(),COUNTIF(BQ19:$BQ$303,BQ19)) -> 8 | BS19: 35.44 | BT19: -41.93375 | BV19: 79 | BW19: =IF(BV19="",NA(),COUNTIF(BV19:$BV$303,BV19)) -> 1 | BX19: 69.994 | CA19: 79 | CB19: =IF(CA19="",NA(),COUNTIF(CA19:$CA$303,CA19)) -> 1 | CC19: 69.994 | CF19: 33 | CG19: =IF(CF19="",NA(),COUNTIF($CF19:CF$303,CF19)) -> 3 | CH19: 11 | CI19: =IF(CH19="",NA(),COUNTIF($CH19:CH$303,CH19)) -> 1
A20: 0.3897595284 | B20: 0.7660864492 | C20: 0.954711967 | D20: -0.7421083193 | E20: 1.160173911 | F20: 2.264696188 | H20: rand H1 | N20: SD | O20: =IF(AND(BD3,BB5=1,$K$14>1,nsamps>0),R11*BC30,IF(AND(BD4,BB5=2,$K$14>1,nsampso>0),R11*BC31,"")) -> 13.42767758 | S20: Display heaps | W20: 0 | AJ20: 0 | AO20: y | AV20: mu1 | AW20: for Y axis line | AX20: =AX3 -> 0 | AY20: =AX6 -> 27 | BA20: For top m1 line | BB20: =IF(NOT(BB13),V9,NA()) ->  | BC20: =AX6 -> 27 | BE20: 19 | BF20: 0.6582619064 | BI20: -999 | BJ20: 25.3 | BK20: -999 | BL20: 52 | BM20: =IF(BL20="",NA(),COUNTIF(BL20:$BL$303,BL20)) -> 4 | BN20: 46.072 | BO20: 3.76425 | BQ20: 52 | BR20: =IF(BQ20="",NA(),COUNTIF(BQ20:$BQ$303,BQ20)) -> 4 | BS20: 46.072 | BT20: -46.23575 | BV20: 61 | BW20: =IF(BV20="",NA(),COUNTIF(BV20:$BV$303,BV20)) -> 1 | BX20: 54.046 | CA20: 61 | CB20: =IF(CA20="",NA(),COUNTIF(CA20:$CA$303,CA20)) -> 1 | CC20: 54.046 | CF20: 20 | CG20: =IF(CF20="",NA(),COUNTIF($CF20:CF$303,CF20)) -> 5 | CH20: 30 | CI20: =IF(CH20="",NA(),COUNTIF($CH20:CH$303,CH20)) -> 1
A21: -0.1170484758 | B21: 0.7756739847 | C21: -0.2867090409 | D21: 0.1464940603 | E21: 1.048432071 | F21: 4.441318603 | H21: H1 m1 | N21: SE | O21: =IF(AND(BD3,BB5=1,nsamps>0),R11*BD30,IF(AND(BD4,BB5=2,nsampso>0),R11*BD31,"")) -> 5.481826415 | R21: Display sampling distributions | W21: 0 | AJ21: 0 | AO21: 1431 | AV21: 65 | AW21: label val mu0 | AX21: =IF(BB5=1,O9-1.4,NA()) -> 38.6 | AY21: =AX6+12 -> 39 | BA21: grey | BB21: =IF(AND($BB$4,$BB$13),V9,NA()) ->  | BC21: =BC20 -> 27 | BE21: 20 | BF21: 0.6209609769 | BI21: -999 | BJ21: 25.3 | BK21: -999 | BL21: 43 | BM21: =IF(BL21="",NA(),COUNTIF(BL21:$BL$303,BL21)) -> 2 | BN21: 38.098 | BO21: 1.61325 | BQ21: 43 | BR21: =IF(BQ21="",NA(),COUNTIF(BQ21:$BQ$303,BQ21)) -> 2 | BS21: 38.098 | BT21: -48.38675 | BV21: 76 | BW21: =IF(BV21="",NA(),COUNTIF(BV21:$BV$303,BV21)) -> 1 | BX21: 67.336 | CA21: 76 | CB21: =IF(CA21="",NA(),COUNTIF(CA21:$CA$303,CA21)) -> 1 | CC21: 67.336 | CF21: 20 | CG21: =IF(CF21="",NA(),COUNTIF($CF21:CF$303,CF21)) -> 4 | CH21: 27 | CI21: =IF(CH21="",NA(),COUNTIF($CH21:CH$303,CH21)) -> 1
A22: -0.1588230684 | B22: 1.578751322 | C22: -0.389035477 | D22: 0.6281925274 | E22: 1.257799912 | F22: 5.621234057 | N22: =IF($BD$12,"z","t") -> z | O22: =IF(AND(BD3,BB5=1,nsamps>0),(O9+R11*BB30-O9)/IF($BD$12,$BB$9,R11*BD30),IF(AND(BD4,BB5=2,nsampso>0),(V9+R11*BB31-O9)/IF($BD$12,$BB$9,R11*BD31),"")) -> 0.8695745272 | W22: 0 | AJ22: 0 | AV22: sigma | AW22: grey | AX22: =IF(BB5=2,O9-1.4,NA()) ->  | AY22: =AY21 -> 39 | AZ22: =AX5 -> 18 | BA22: Middle m1 line | BB22: =IF(NOT(BB13),V9,NA()) ->  | BC22: =BC16 -> 0 | BE22: 21 | BF22: 0.8417774253 | BI22: -999 | BJ22: 25.3 | BK22: -999 | BL22: 42 | BM22: =IF(BL22="",NA(),COUNTIF(BL22:$BL$303,BL22)) -> 7 | BN22: 37.212 | BO22: 6.99075 | BQ22: 42 | BR22: =IF(BQ22="",NA(),COUNTIF(BQ22:$BQ$303,BQ22)) -> 7 | BS22: 37.212 | BT22: -43.00925 | BV22: 84 | BW22: =IF(BV22="",NA(),COUNTIF(BV22:$BV$303,BV22)) -> 1 | BX22: 74.424 | CA22: 84 | CB22: =IF(CA22="",NA(),COUNTIF(CA22:$CA$303,CA22)) -> 1 | CC22: 74.424 | CF22: 40 | CG22: =IF(CF22="",NA(),COUNTIF($CF22:CF$303,CF22)) -> 3 | CH22: 32 | CI22: =IF(CH22="",NA(),COUNTIF($CH22:CH$303,CH22)) -> 1
A23: -0.3343604682 | B23: 0.5281454361 | C23: -0.8190125373 | D23: -0.2117799906 | E23: 0.776934608 | F23: 3.56372999 | K23: Assume s known | N23: p | O23: =IF(O22<>"",IF($BD$12,2*(1-NORMSDIST(ABS(O22))),TDIST(ABS(O22),K14-1,2)),"") -> 0.3845329634 | S23: Display s pile | W23: =$W$1 -> 0 | AJ23: 0 | AO23: x | AV23: 15 | AW23: label val mu1 | AX23: =IF(BB5=2,V9-1.4,NA()) ->  | AY23: =AY24 -> 39 | BA23: grey | BB23: =IF(AND($BB$4,$BB$13),V9,NA()) ->  | BC23: =BC22 -> 0 | BE23: 22 | BF23: 0.1957000457 | BI23: -999 | BJ23: 25.3 | BK23: -999 | BL23: 39 | BM23: =IF(BL23="",NA(),COUNTIF(BL23:$BL$303,BL23)) -> 5 | BN23: 34.554 | BO23: 4.83975 | BQ23: 39 | BR23: =IF(BQ23="",NA(),COUNTIF(BQ23:$BQ$303,BQ23)) -> 5 | BS23: 34.554 | BT23: -45.16025 | BV23: 70 | BW23: =IF(BV23="",NA(),COUNTIF(BV23:$BV$303,BV23)) -> 1 | BX23: 62.02 | CA23: 70 | CB23: =IF(CA23="",NA(),COUNTIF(CA23:$CA$303,CA23)) -> 1 | CC23: 62.02 | CF23: 13 | CG23: =IF(CF23="",NA(),COUNTIF($CF23:CF$303,CF23)) -> 5 | CH23: 20 | CI23: =IF(CH23="",NA(),COUNTIF($CH23:CH$303,CH23)) -> 1
A24: -0.235417016 | B24: 1.817587531 | C24: -0.5766515659 | D24: 0.1222850317 | E24: 0.6914104464 | F24: 4.382018835 | W24: 0 | AJ24: 0 | AO24: 1178 | AV24: N | AW24: grey | AX24: =IF(AND(BB5=1,BB4),V9-1.4,NA()) ->  | AY24: =AX6+12 -> 39 | AZ24: 6 | BA24: Lower m1 line | BB24: =IF($BD$10,$AX$15,NA()) -> -50 | BC24: =IF(AND($BD$7,NOT($BB$13)),$V$9,NA()) ->  | BD24: =IF(AND($BD$7,$BB$4,$BB$13),$V$9,NA()) ->  | BE24: 23 | BF24: 0.0008509866893 | BI24: -999 | BJ24: 25.3 | BK24: -999 | BL24: 41 | BM24: =IF(BL24="",NA(),COUNTIF(BL24:$BL$303,BL24)) -> 8 | BN24: 36.326 | BO24: 8.06625 | BQ24: 41 | BR24: =IF(BQ24="",NA(),COUNTIF(BQ24:$BQ$303,BQ24)) -> 8 | BS24: 36.326 | BT24: -41.93375 | BV24: 75 | BW24: =IF(BV24="",NA(),COUNTIF(BV24:$BV$303,BV24)) -> 1 | BX24: 66.45 | CA24: 75 | CB24: =IF(CA24="",NA(),COUNTIF(CA24:$CA$303,CA24)) -> 1 | CC24: 66.45 | CF24: 46 | CG24: =IF(CF24="",NA(),COUNTIF($CF24:CF$303,CF24)) -> 1 | CH24: 18 | CI24: =IF(CH24="",NA(),COUNTIF($CH24:CH$303,CH24)) -> 1
A25: 0.2266985762 | B25: 1.049179672 | C25: 0.555295837 | D25: -0.2334304898 | E25: 1.130335699 | F25: 3.510697314 | J25: 6 | K25: Bottom panel | W25: 0 | AJ25: 0 | AV25: 6 | AW25: X axis label | AX25: =AX3+5 -> 5 | AY25: =AX6-2 -> 25 | BA25: Disp nct curve? | BB25: =OR(AND(K16>5,AW136<=20),AND(K16>2,AW136<=14),AW136<=10) -> TRUE | BE25: 24 | BF25: 0.8779561184 | BI25: -999 | BJ25: 25.3 | BK25: -999 | BL25: 49 | BM25: =IF(BL25="",NA(),COUNTIF(BL25:$BL$303,BL25)) -> 4 | BN25: 43.414 | BO25: 3.76425 | BQ25: 49 | BR25: =IF(BQ25="",NA(),COUNTIF(BQ25:$BQ$303,BQ25)) -> 4 | BS25: 43.414 | BT25: -46.23575 | BV25: 69 | BW25: =IF(BV25="",NA(),COUNTIF(BV25:$BV$303,BV25)) -> 1 | BX25: 61.134 | CA25: 69 | CB25: =IF(CA25="",NA(),COUNTIF(CA25:$CA$303,CA25)) -> 1 | CC25: 61.134 | CF25: 27 | CG25: =IF(CF25="",NA(),COUNTIF($CF25:CF$303,CF25)) -> 6 | CH25: 29 | CI25: =IF(CH25="",NA(),COUNTIF($CH25:CH$303,CH25)) -> 1
A26: 0.006706593887 | B26: 1.236736828 | C26: 0.01642773294 | D26: 0.2592829811 | E26: 1.57918983 | F26: 4.717593907 | K26: Display rubber ruler | S26: Noncentrality parameter D. | T26: =IF(AND(BD10,NOT(BD12)),AW136,"") ->  | W26: 0 | AJ26: 0 | AV26: Panel 2 | AW26: Lbl Samp Ms | AX26: =AX3 -> 0 | AY26: 15 | AZ26: =AX5 -> 18 | BE26: 25 | BF26: 0.5977762155 | BI26: -999 | BJ26: 25.3 | BK26: -999 | BL26: 45 | BM26: =IF(BL26="",NA(),COUNTIF(BL26:$BL$303,BL26)) -> 5 | BN26: 39.87 | BO26: 4.83975 | BQ26: 45 | BR26: =IF(BQ26="",NA(),COUNTIF(BQ26:$BQ$303,BQ26)) -> 5 | BS26: 39.87 | BT26: -45.16025 | BV26: 78 | BW26: =IF(BV26="",NA(),COUNTIF(BV26:$BV$303,BV26)) -> 1 | BX26: 69.108 | CA26: 78 | CB26: =IF(CA26="",NA(),COUNTIF(CA26:$CA$303,CA26)) -> 1 | CC26: 69.108 | CF26: 31 | CG26: =IF(CF26="",NA(),COUNTIF($CF26:CF$303,CF26)) -> 1 | CH26: 40 | CI26: =IF(CH26="",NA(),COUNTIF($CH26:CH$303,CH26)) -> 1
A27: 0.09526979187 | B27: 0.4750709081 | C27: 0.233362378 | L27: Display z or t heap | U27: Display noncentral t curve? | V27: =IF(BD10,IF(OR(NOT(BD7),BD12),"",IF(BB25,"Yes","No")),"") ->  | W27: 0 | AJ27: 0 | AW27: for Y axis line | AX27: =AX3 -> 0 | AY27: =AX9 -> 0 | AZ27: =AX8 -> 25 | BB27: format | BC27: popSE | BD27: sampSE | BE27: 26 | BF27: 0.9263256155 | BI27: -999 | BJ27: 25.3 | BK27: -999 | BL27: 47 | BM27: =IF(BL27="",NA(),COUNTIF(BL27:$BL$303,BL27)) -> 7 | BN27: 41.642 | BO27: 6.99075 | BQ27: 47 | BR27: =IF(BQ27="",NA(),COUNTIF(BQ27:$BQ$303,BQ27)) -> 7 | BS27: 41.642 | BT27: -43.00925 | BW27: =IF(BV27="",NA(),COUNTIF(BV27:$BV$303,BV27)) ->  | CB27: =IF(CA27="",NA(),COUNTIF(CA27:$CA$303,CA27)) ->  | CF27: 12 | CG27: =IF(CF27="",NA(),COUNTIF($CF27:CF$303,CF27)) -> 4 | CI27: =IF(CH27="",NA(),COUNTIF($CH27:CH$303,CH27)) -> 
A28: -0.5607014547 | B28: 0.569255914 | C28: -1.373432462 | W28: 0 | AJ28: 0 | AW28: label val mu0 | AX28: =L8 -> 0 | AY28: 10 | BB28: red | BC28: =IF(AND(AR70,BD12),-1,99) -> 99 | BD28: =IF(AND(BD1,NOT(BD12)),99,-1) -> -1 | BE28: 27 | BF28: 0.1971874349 | BI28: -999 | BJ28: 25.3 | BK28: -999 | BL28: 36 | BM28: =IF(BL28="",NA(),COUNTIF(BL28:$BL$303,BL28)) -> 3 | BN28: 31.896 | BO28: 2.68875 | BQ28: 36 | BR28: =IF(BQ28="",NA(),COUNTIF(BQ28:$BQ$303,BQ28)) -> 3 | BS28: 31.896 | BT28: -47.31125 | BW28: =IF(BV28="",NA(),COUNTIF(BV28:$BV$303,BV28)) ->  | CB28: =IF(CA28="",NA(),COUNTIF(CA28:$CA$303,CA28)) ->  | CF28: 14 | CG28: =IF(CF28="",NA(),COUNTIF($CF28:CF$303,CF28)) -> 3 | CI28: =IF(CH28="",NA(),COUNTIF($CH28:CH$303,CH28)) -> 
A29: -0.08118387519 | B29: 1.569977538 | C29: -0.1988590696 | J29: 7 | K29: Sampling distributions | Q29: H0 | V29: H1 | W29: 0 | AJ29: 0 | AW29: mu0 line | AX29: =L8 -> 0 | AY29: =AX9 -> 0 | BB29: Samp means | BC29: SD | BD29: SE | BE29: 28 | BF29: 0.9122559093 | BI29: -999 | BJ29: 25.3 | BK29: -999 | BL29: 44 | BM29: =IF(BL29="",NA(),COUNTIF(BL29:$BL$303,BL29)) -> 9 | BN29: 38.984 | BO29: 9.14175 | BQ29: 44 | BR29: =IF(BQ29="",NA(),COUNTIF(BQ29:$BQ$303,BQ29)) -> 9 | BS29: 38.984 | BT29: -40.85825 | BW29: =IF(BV29="",NA(),COUNTIF(BV29:$BV$303,BV29)) ->  | CB29: =IF(CA29="",NA(),COUNTIF(CA29:$CA$303,CA29)) ->  | CF29: 40 | CG29: =IF(CF29="",NA(),COUNTIF($CF29:CF$303,CF29)) -> 2 | CI29: =IF(CH29="",NA(),COUNTIF($CH29:CH$303,CH29)) -> 
A30: 0.01066161397 | B30: 1.329895 | C30: 0.02611551405 | M30: Sample means | O30: Mean of | P30: M | Q30: =IF(AND(BB6,BD9),O9,"") -> 40 | T30: Mean of | U30: M | V30: =IF(AND(BD6,BD9,BB4),V9,"") ->  | W30: =$W$1 -> 0 | AJ30: 0 | AW30: mu1 line | AX30: =O10 -> 0 | AY30: =AX9 -> 0 | AZ30: 8 | BA30: 0 | BB30: =IF($BD$3,AVERAGE(BG3:BG102),-999) -> 0.3550023142 | BC30: =IF(AND($BD$3,$K$14>1),STDEV(BG3:BG102),-999) -> 0.8951785051 | BD30: =IF(AND($BD$3,$K$14>1,BC30>-999),BC30/SQRT($K$14),"") -> 0.3654550944 | BE30: 29 | BF30: 0.9522657208 | BI30: -999 | BJ30: 25.3 | BK30: -999 | BL30: 45 | BM30: =IF(BL30="",NA(),COUNTIF(BL30:$BL$303,BL30)) -> 4 | BN30: 39.87 | BO30: 3.76425 | BQ30: 45 | BR30: =IF(BQ30="",NA(),COUNTIF(BQ30:$BQ$303,BQ30)) -> 4 | BS30: 39.87 | BT30: -46.23575 | BW30: =IF(BV30="",NA(),COUNTIF(BV30:$BV$303,BV30)) ->  | CB30: =IF(CA30="",NA(),COUNTIF(CA30:$CA$303,CA30)) ->  | CF30: 34 | CG30: =IF(CF30="",NA(),COUNTIF($CF30:CF$303,CF30)) -> 3 | CI30: =IF(CH30="",NA(),COUNTIF($CH30:CH$303,CH30)) -> 
A31: 0.3422961621 | B31: 1.089512929 | C31: 0.838450938 | M31: panel | O31: SD of | P31: M | Q31: =IF(AND(BB6,BD9),M17,"") -> 6.123724357 | T31: SD of | U31: M | V31: =IF(AND(BD6,BD9,BB4),M17,"") ->  | W31: 0 | AJ31: 0 | AW31: highlighted point | AX31: =AX62 ->  | AY31: =AX9-BA33/2 -> -0.53775 | AZ31: =AX8-1 -> 24 | BA31: 1 | BB31: =IF($BD$4,AVERAGE(BG107:BG206),-999) -> -0.6540844094 | BC31: =IF(AND($BD$4,$K$14>1),STDEV(BG107:BG206),-999) -> 0.6722313532 | BD31: =IF(AND($BD$4,$K$14>1,BC31>-999),BC31/SQRT($K$14),"") -> 0.2744373007 | BE31: 30 | BF31: 0.5875990354 | BI31: -999 | BJ31: 25.3 | BK31: -999 | BL31: 51 | BM31: =IF(BL31="",NA(),COUNTIF(BL31:$BL$303,BL31)) -> 4 | BN31: 45.186 | BO31: 3.76425 | BQ31: 51 | BR31: =IF(BQ31="",NA(),COUNTIF(BQ31:$BQ$303,BQ31)) -> 4 | BS31: 45.186 | BT31: -46.23575 | BW31: =IF(BV31="",NA(),COUNTIF(BV31:$BV$303,BV31)) ->  | CB31: =IF(CA31="",NA(),COUNTIF(CA31:$CA$303,CA31)) ->  | CF31: 28 | CG31: =IF(CF31="",NA(),COUNTIF($CF31:CF$303,CF31)) -> 2 | CI31: =IF(CH31="",NA(),COUNTIF($CH31:CH$303,CH31)) -> 
A32: 0.2409273686 | B32: 0.814578263 | C32: 0.5901491182 | W32: 0 | AJ32: 0 | AW32: X axis label | AX32: =AX3+17 -> 17 | AY32: -4 | BA32: increments, z or t | BE32: 31 | BF32: 0.9923121445 | BI32: -999 | BJ32: 25.3 | BK32: -999 | BL32: 49 | BM32: =IF(BL32="",NA(),COUNTIF(BL32:$BL$303,BL32)) -> 3 | BN32: 43.414 | BO32: 2.68875 | BQ32: 49 | BR32: =IF(BQ32="",NA(),COUNTIF(BQ32:$BQ$303,BQ32)) -> 3 | BS32: 43.414 | BT32: -47.31125 | BW32: =IF(BV32="",NA(),COUNTIF(BV32:$BV$303,BV32)) ->  | CB32: =IF(CA32="",NA(),COUNTIF(CA32:$CA$303,CA32)) ->  | CF32: 21 | CG32: =IF(CF32="",NA(),COUNTIF($CF32:CF$303,CF32)) -> 6 | CI32: =IF(CH32="",NA(),COUNTIF($CH32:CH$303,CH32)) -> 
A33: 0.1365270294 | B33: 1.187588404 | C33: 0.3344215582 | M33: Bottom | O33: Mean of | P33: =IF($BD$12,"z ","t ") -> z | Q33: =IF(AND(BB7,BD9,BD10),0,"") -> 0 | T33: Mean of | U33: =IF($BD$12,"z ","t ") -> z | V33: =IF(AND(BD7,BD9,BB4,BD10),IF(BD12,(V9-O9)/M17,IF(K14>2,BD11,"")),"") ->  | W33: =$W$1 -> 0 | AJ33: 0 | AV33: Panel 3 | BA33: =AO12/2000 -> 1.0755 | BB33: y | BE33: 32 | BF33: 0.3449388407 | BI33: -999 | BJ33: 25.3 | BK33: -999 | BL33: 47 | BM33: =IF(BL33="",NA(),COUNTIF(BL33:$BL$303,BL33)) -> 6 | BN33: 41.642 | BO33: 5.91525 | BQ33: 47 | BR33: =IF(BQ33="",NA(),COUNTIF(BQ33:$BQ$303,BQ33)) -> 6 | BS33: 41.642 | BT33: -44.08475 | BW33: =IF(BV33="",NA(),COUNTIF(BV33:$BV$303,BV33)) ->  | CB33: =IF(CA33="",NA(),COUNTIF(CA33:$CA$303,CA33)) ->  | CF33: 30 | CG33: =IF(CF33="",NA(),COUNTIF($CF33:CF$303,CF33)) -> 3 | CI33: =IF(CH33="",NA(),COUNTIF($CH33:CH$303,CH33)) -> 
A34: -0.5805777995 | B34: 0.5258198588 | C34: -1.422119365 | M34: panel | O34: SD of | P34: =IF($BD$12,"z ","t ") -> z | Q34: =IF(AND(BB7,BD9,BD10),IF(BD12,1,IF(K14>2,SQRT(K14/(K14-2)),"")),"") -> 1 | T34: SD of | U34: =IF($BD$12,"z ","t ") -> z | V34: =IF(AND(BD7,BD9,BB4,BD10),IF(BD12,1,IF(K14>3,BB11,"")),"") ->  | W34: 0 | AJ34: 0 | AW34: Lbl Samp SDs | AX34: =IF(BD5,AX3,NA()) ->  | AY34: =AX12+8 -> -11 | BA34: =AO15/2000 -> 0.886 | BB34: x | BE34: 33 | BF34: 0.8913757019 | BI34: -999 | BJ34: 25.3 | BK34: -999 | BL34: 35 | BM34: =IF(BL34="",NA(),COUNTIF(BL34:$BL$303,BL34)) -> 2 | BN34: 31.01 | BO34: 1.61325 | BQ34: 35 | BR34: =IF(BQ34="",NA(),COUNTIF(BQ34:$BQ$303,BQ34)) -> 2 | BS34: 31.01 | BT34: -48.38675 | BW34: =IF(BV34="",NA(),COUNTIF(BV34:$BV$303,BV34)) ->  | CB34: =IF(CA34="",NA(),COUNTIF(CA34:$CA$303,CA34)) ->  | CF34: 13 | CG34: =IF(CF34="",NA(),COUNTIF($CF34:CF$303,CF34)) -> 4 | CI34: =IF(CH34="",NA(),COUNTIF($CH34:CH$303,CH34)) -> 
A35: 0.9523483853 | B35: 0.6181552401 | C35: 2.332767601 | J35: 8 | K35: Rejection region | W35: 0 | AW35: L end X axis | AX35: =IF(OR(NOT(BD5),OR(NOT(BD3)),IF(BB5=1,A4="",D4="")),NA(),ROUND((IF(BB5=1,O9,V9)+$R$11*IF(BB5=1,A4,D4))/$BA$34,0)*$BA$34) ->  | AY35: =AX12 -> -19 | AZ35: =AX11-3 -> 14 | BA35: increments, s pile | BE35: 34 | BF35: 0.6066290699 | BI35: -999 | BJ35: 25.3 | BK35: -999 | BL35: 61 | BM35: =IF(BL35="",NA(),COUNTIF(BL35:$BL$303,BL35)) -> 1 | BN35: 54.046 | BO35: 0.53775 | BQ35: 61 | BR35: =IF(BQ35="",NA(),COUNTIF(BQ35:$BQ$303,BQ35)) -> 1 | BS35: 54.046 | BT35: -49.46225 | BW35: =IF(BV35="",NA(),COUNTIF(BV35:$BV$303,BV35)) ->  | CB35: =IF(CA35="",NA(),COUNTIF(CA35:$CA$303,CA35)) ->  | CF35: 16 | CG35: =IF(CF35="",NA(),COUNTIF($CF35:CF$303,CF35)) -> 4 | CI35: =IF(CH35="",NA(),COUNTIF($CH35:CH$303,CH35)) -> 
A36: 0.2647485741 | B36: 1.062054768 | C36: 0.6484989166 | K36: Display rejection region | T36: Critical value of | U36: =IF($BD$12,"z ","t ") -> z | V36: =AR116 -> 1.959963985 | W36: =$W$1 -> 0 | AW36: L end X axis | AX36: =IF(BD5,AX35,NA()) ->  | AY36: =AY35 -> -19 | AZ36: 101 | BA36: =AO21/2000 -> 0.7155 | BB36: y | BE36: 35 | BF36: =MOD(BF35*10000013,1) -> 0.5851234309 | BI36: -999 | BJ36: 25.3 | BK36: -999 | BL36: 50 | BM36: =IF(BL36="",NA(),COUNTIF(BL36:$BL$303,BL36)) -> 5 | BN36: 44.3 | BO36: 4.83975 | BQ36: 50 | BR36: =IF(BQ36="",NA(),COUNTIF(BQ36:$BQ$303,BQ36)) -> 5 | BS36: 44.3 | BT36: -45.16025 | BW36: =IF(BV36="",NA(),COUNTIF(BV36:$BV$303,BV36)) ->  | CB36: =IF(CA36="",NA(),COUNTIF(CA36:$CA$303,CA36)) ->  | CF36: 27 | CG36: =IF(CF36="",NA(),COUNTIF($CF36:CF$303,CF36)) -> 5 | CI36: =IF(CH36="",NA(),COUNTIF($CH36:CH$303,CH36)) -> 
A37: 0.1696042763 | B37: 0.9244317128 | C37: 0.4154439351 | W37: 0 | AW37: for Y axis line | AX37: =IF(BD10,AX3,NA()) -> 0 | AY37: =AX12-5 -> -24 | AZ37: 18 | BA37: =AO24/2000 -> 0.589 | BB37: x | BE37: 36 | BF37: 0.9159798883 | BI37: -999 | BJ37: 25.3 | BK37: -999 | BL37: 48 | BM37: =IF(BL37="",NA(),COUNTIF(BL37:$BL$303,BL37)) -> 8 | BN37: 42.528 | BO37: 8.06625 | BQ37: 48 | BR37: =IF(BQ37="",NA(),COUNTIF(BQ37:$BQ$303,BQ37)) -> 8 | BS37: 42.528 | BT37: -41.93375 | BW37: =IF(BV37="",NA(),COUNTIF(BV37:$BV$303,BV37)) ->  | CB37: =IF(CA37="",NA(),COUNTIF(CA37:$CA$303,CA37)) ->  | CF37: 24 | CG37: =IF(CF37="",NA(),COUNTIF($CF37:CF$303,CF37)) -> 6 | CI37: =IF(CH37="",NA(),COUNTIF($CH37:CH$303,CH37)) -> 
A38: 0.005164352845 | B38: 1.067023023 | C38: 0.01265002932 | L38: a | M38: =IF(BB8<21,BB8/1000,IF(BB8<37,(BB8-16)/200,(BB8-26)/100)) -> 0.05 | Q38: Rejection region, units of X | W38: 0 | AW38: X axis values | AX38: =AX35 ->  | AY38: =AY35+0.5 -> -18.5 | BE38: 37 | BF38: 0.7906402163 | BI38: -999 | BJ38: 25.3 | BK38: -999 | BL38: 45 | BM38: =IF(BL38="",NA(),COUNTIF(BL38:$BL$303,BL38)) -> 3 | BN38: 39.87 | BO38: 2.68875 | BQ38: 45 | BR38: =IF(BQ38="",NA(),COUNTIF(BQ38:$BQ$303,BQ38)) -> 3 | BS38: 39.87 | BT38: -47.31125 | BW38: =IF(BV38="",NA(),COUNTIF(BV38:$BV$303,BV38)) ->  | CB38: =IF(CA38="",NA(),COUNTIF(CA38:$CA$303,CA38)) ->  | CF38: 27 | CG38: =IF(CF38="",NA(),COUNTIF($CF38:CF$303,CF38)) -> 4 | CI38: =IF(CH38="",NA(),COUNTIF($CH38:CH$303,CH38)) -> 
A39: -0.1837428531 | B39: 0.7780776328 | C39: -0.4500762339 | P39: L cutoff | Q39: =IF(ISNUMBER(AR117),AR117,"") ->  | S39: R cutoff | T39: =IF(ISNUMBER(AR118),AR118,"") ->  | W39: 0 | AW39: X axis values | AX39: =AX35+R11 ->  | AY39: =AY38+1 -> -17.5 | AZ39: 1.3 | BE39: 38 | BF39: 0.4415303431 | BI39: -999 | BJ39: 25.3 | BK39: -999 | BL39: 42 | BM39: =IF(BL39="",NA(),COUNTIF(BL39:$BL$303,BL39)) -> 6 | BN39: 37.212 | BO39: 5.91525 | BQ39: 42 | BR39: =IF(BQ39="",NA(),COUNTIF(BQ39:$BQ$303,BQ39)) -> 6 | BS39: 37.212 | BT39: -44.08475 | BW39: =IF(BV39="",NA(),COUNTIF(BV39:$BV$303,BV39)) ->  | CB39: =IF(CA39="",NA(),COUNTIF(CA39:$CA$303,CA39)) ->  | CF39: 20 | CG39: =IF(CF39="",NA(),COUNTIF($CF39:CF$303,CF39)) -> 3 | CI39: =IF(CH39="",NA(),COUNTIF($CH39:CH$303,CH39)) -> 
A40: -0.2601682002 | B40: 0.9336194134 | C40: -0.6372793379 | AW40: X axis values | AX40: =AX39 ->  | AY40: =AY35 -> -19 | AZ40: =AX11-2 -> 15 | BE40: 39 | BF40: 0.1713457815 | BI40: -999 | BJ40: 25.3 | BK40: -999 | BL40: 41 | BM40: =IF(BL40="",NA(),COUNTIF(BL40:$BL$303,BL40)) -> 7 | BN40: 36.326 | BO40: 6.99075 | BQ40: 41 | BR40: =IF(BQ40="",NA(),COUNTIF(BQ40:$BQ$303,BQ40)) -> 7 | BS40: 36.326 | BT40: -43.00925 | BW40: =IF(BV40="",NA(),COUNTIF(BV40:$BV$303,BV40)) ->  | CB40: =IF(CA40="",NA(),COUNTIF(CA40:$CA$303,CA40)) ->  | CF40: 24 | CG40: =IF(CF40="",NA(),COUNTIF($CF40:CF$303,CF40)) -> 5 | CI40: =IF(CH40="",NA(),COUNTIF($CH40:CH$303,CH40)) -> 
A41: 0.1588443109 | B41: 0.9579600986 | C41: 0.3890875102 | AX41: =BU1 -> 0 | AY41: =BV1 -> 0 | BE41: 40 | BF41: 0.04284426197 | BI41: -999 | BJ41: 25.3 | BK41: -999 | BL41: 48 | BM41: =IF(BL41="",NA(),COUNTIF(BL41:$BL$303,BL41)) -> 7 | BN41: 42.528 | BO41: 6.99075 | BQ41: 48 | BR41: =IF(BQ41="",NA(),COUNTIF(BQ41:$BQ$303,BQ41)) -> 7 | BS41: 42.528 | BT41: -43.00925 | BW41: =IF(BV41="",NA(),COUNTIF(BV41:$BV$303,BV41)) ->  | CB41: =IF(CA41="",NA(),COUNTIF(CA41:$CA$303,CA41)) ->  | CF41: 24 | CG41: =IF(CF41="",NA(),COUNTIF($CF41:CF$303,CF41)) -> 4 | CI41: =IF(CH41="",NA(),COUNTIF($CH41:CH$303,CH41)) -> 
A42: 0.1252661985 | B42: 1.166545262 | C42: 0.3068382683 | AW42: grey highlight point | AX42: =IF(ISNA(AX41),NA(),IF(AND(BD2,$BD$12),AX41,NA())) -> 0 | AY42: =IF(ISNA(AY41),NA(),IF($BD$12,AY41,NA())) -> 0 | BE42: 41 | BF42: 0.1767163686 | BI42: -999 | BJ42: 25.3 | BK42: -999 | BL42: 47 | BM42: =IF(BL42="",NA(),COUNTIF(BL42:$BL$303,BL42)) -> 5 | BN42: 41.642 | BO42: 4.83975 | BQ42: 47 | BR42: =IF(BQ42="",NA(),COUNTIF(BQ42:$BQ$303,BQ42)) -> 5 | BS42: 41.642 | BT42: -45.16025 | BW42: =IF(BV42="",NA(),COUNTIF(BV42:$BV$303,BV42)) ->  | CB42: =IF(CA42="",NA(),COUNTIF(CA42:$CA$303,CA42)) ->  | CF42: 30 | CG42: =IF(CF42="",NA(),COUNTIF($CF42:CF$303,CF42)) -> 2 | CI42: =IF(CH42="",NA(),COUNTIF($CH42:CH$303,CH42)) -> 
A43: -0.303501301 | B43: 0.5723913024 | C43: -0.7434233236 | AW43: s extent line | AX43: =IF(BD12,NA(),AX35) ->  | AY43: =IF(ISNA(AY41),NA(),IF(BD12,NA(),AY41+AZ43)) ->  | AZ43: 1.5 | BE43: 42 | BF43: 0.9837670885 | BI43: -999 | BJ43: 25.3 | BK43: -999 | BL43: 40 | BM43: =IF(BL43="",NA(),COUNTIF(BL43:$BL$303,BL43)) -> 7 | BN43: 35.44 | BO43: 6.99075 | BQ43: 40 | BR43: =IF(BQ43="",NA(),COUNTIF(BQ43:$BQ$303,BQ43)) -> 7 | BS43: 35.44 | BT43: -43.00925 | BW43: =IF(BV43="",NA(),COUNTIF(BV43:$BV$303,BV43)) ->  | CB43: =IF(CA43="",NA(),COUNTIF(CA43:$CA$303,CA43)) ->  | CF43: 15 | CG43: =IF(CF43="",NA(),COUNTIF($CF43:CF$303,CF43)) -> 4 | CI43: =IF(CH43="",NA(),COUNTIF($CH43:CH$303,CH43)) -> 
A44: 0.2629200837 | B44: 1.050714712 | C44: 0.6440200481 | AX44: =BU2 ->  | AY44: =BV2+AZ43 ->  | AZ44: 1 | BE44: 43 | BF44: 0.6739986055 | BI44: -999 | BJ44: 25.3 | BK44: -999 | BL44: 50 | BM44: =IF(BL44="",NA(),COUNTIF(BL44:$BL$303,BL44)) -> 4 | BN44: 44.3 | BO44: 3.76425 | BQ44: 50 | BR44: =IF(BQ44="",NA(),COUNTIF(BQ44:$BQ$303,BQ44)) -> 4 | BS44: 44.3 | BT44: -46.23575 | BW44: =IF(BV44="",NA(),COUNTIF(BV44:$BV$303,BV44)) ->  | CB44: =IF(CA44="",NA(),COUNTIF(CA44:$CA$303,CA44)) ->  | CF44: 27 | CG44: =IF(CF44="",NA(),COUNTIF($CF44:CF$303,CF44)) -> 3 | CI44: =IF(CH44="",NA(),COUNTIF($CH44:CH$303,CH44)) -> 
A45: 0.4435940911 | B45: 1.076717785 | C45: 1.086579176 | AW45: s label | AX45: =IF(OR(NOT(BD2),BD12),NA(),AX35+3) ->  | AY45: =IF(BD12,NA(),AY41+1.5+AZ43) ->  | BE45: 44 | BF45: 0.8165811561 | BI45: -999 | BJ45: 25.3 | BK45: -999 | BL45: 53 | BM45: =IF(BL45="",NA(),COUNTIF(BL45:$BL$303,BL45)) -> 3 | BN45: 46.958 | BO45: 2.68875 | BQ45: 53 | BR45: =IF(BQ45="",NA(),COUNTIF(BQ45:$BQ$303,BQ45)) -> 3 | BS45: 46.958 | BT45: -47.31125 | BW45: =IF(BV45="",NA(),COUNTIF(BV45:$BV$303,BV45)) ->  | CB45: =IF(CA45="",NA(),COUNTIF(CA45:$CA$303,CA45)) ->  | CF45: 27 | CG45: =IF(CF45="",NA(),COUNTIF($CF45:CF$303,CF45)) -> 2 | CI45: =IF(CH45="",NA(),COUNTIF($CH45:CH$303,CH45)) -> 
A46: -0.2592233776 | B46: 0.9051293825 | C46: -0.6349650046 | AW46: s extent line | AX46: =IF(BD12,AX35,NA()) ->  | AY46: =IF(ISNA(AY35),NA(),IF(BD12,AY35-0.7,NA())) -> -19.7 | BE46: 45 | BF46: 0.1766030602 | BI46: -999 | BJ46: 25.3 | BK46: -999 | BL46: 41 | BM46: =IF(BL46="",NA(),COUNTIF(BL46:$BL$303,BL46)) -> 6 | BN46: 36.326 | BO46: 5.91525 | BQ46: 41 | BR46: =IF(BQ46="",NA(),COUNTIF(BQ46:$BQ$303,BQ46)) -> 6 | BS46: 36.326 | BT46: -44.08475 | BW46: =IF(BV46="",NA(),COUNTIF(BV46:$BV$303,BV46)) ->  | CB46: =IF(CA46="",NA(),COUNTIF(CA46:$CA$303,CA46)) ->  | CF46: 23 | CG46: =IF(CF46="",NA(),COUNTIF($CF46:CF$303,CF46)) -> 6 | CI46: =IF(CH46="",NA(),COUNTIF($CH46:CH$303,CH46)) -> 
A47: -0.7575075363 | B47: 1.130121343 | C47: -1.85550694 | AX47: =IF(ISNA(AX46),NA(),AX46+O12) ->  | AY47: =AY46 -> -19.7 | BE47: 46 | BF47: 0.8979968987 | BI47: -999 | BJ47: 25.3 | BK47: -999 | BL47: 32 | BM47: =IF(BL47="",NA(),COUNTIF(BL47:$BL$303,BL47)) -> 2 | BN47: 28.352 | BO47: 1.61325 | BQ47: 32 | BR47: =IF(BQ47="",NA(),COUNTIF(BQ47:$BQ$303,BQ47)) -> 2 | BS47: 28.352 | BT47: -48.38675 | BW47: =IF(BV47="",NA(),COUNTIF(BV47:$BV$303,BV47)) ->  | CB47: =IF(CA47="",NA(),COUNTIF(CA47:$CA$303,CA47)) ->  | CF47: 29 | CG47: =IF(CF47="",NA(),COUNTIF($CF47:CF$303,CF47)) -> 2 | CI47: =IF(CH47="",NA(),COUNTIF($CH47:CH$303,CH47)) -> 
A48: 0.072287377 | B48: 0.7084627369 | C48: 0.1770671885 | AX48: =IF(BD12,AX40,NA()) ->  | AY48: =IF(BD12,AY39,NA()) -> -17.5 | BE48: 47 | BF48: 0.6613649838 | BI48: -999 | BJ48: 25.3 | BK48: -999 | BL48: 46 | BM48: =IF(BL48="",NA(),COUNTIF(BL48:$BL$303,BL48)) -> 3 | BN48: 40.756 | BO48: 2.68875 | BQ48: 46 | BR48: =IF(BQ48="",NA(),COUNTIF(BQ48:$BQ$303,BQ48)) -> 3 | BS48: 40.756 | BT48: -47.31125 | BW48: =IF(BV48="",NA(),COUNTIF(BV48:$BV$303,BV48)) ->  | CB48: =IF(CA48="",NA(),COUNTIF(CA48:$CA$303,CA48)) ->  | CF48: 18 | CG48: =IF(CF48="",NA(),COUNTIF($CF48:CF$303,CF48)) -> 4 | CI48: =IF(CH48="",NA(),COUNTIF($CH48:CH$303,CH48)) -> 
A49: 0.5336844781 | B49: 0.7451815163 | C49: 1.307254655 | AW49: s label | AX49: =IF(BD2,AX35+3,NA()) ->  | AY49: =IF(BD12,AY39+0.9,NA()) -> -16.6 | BE49: 48 | BF49: 0.4354174994 | BI49: -999 | BJ49: 25.3 | BK49: -999 | BL49: 54 | BM49: =IF(BL49="",NA(),COUNTIF(BL49:$BL$303,BL49)) -> 3 | BN49: 47.844 | BO49: 2.68875 | BQ49: 54 | BR49: =IF(BQ49="",NA(),COUNTIF(BQ49:$BQ$303,BQ49)) -> 3 | BS49: 47.844 | BT49: -47.31125 | BW49: =IF(BV49="",NA(),COUNTIF(BV49:$BV$303,BV49)) ->  | CB49: =IF(CA49="",NA(),COUNTIF(CA49:$CA$303,CA49)) ->  | CF49: 19 | CG49: =IF(CF49="",NA(),COUNTIF($CF49:CF$303,CF49)) -> 4 | CI49: =IF(CH49="",NA(),COUNTIF($CH49:CH$303,CH49)) -> 
A50: 0.1851067943 | B50: 1.142359936 | C50: 0.4534171938 | AW50: dotted vertical | AX50: =AX35 ->  | AY50: =BN2 -> 45.186 | BE50: 49 | BF50: 0.6543597393 | BI50: -999 | BJ50: 25.3 | BK50: -999 | BL50: 48 | BM50: =IF(BL50="",NA(),COUNTIF(BL50:$BL$303,BL50)) -> 6 | BN50: 42.528 | BO50: 5.91525 | BQ50: 48 | BR50: =IF(BQ50="",NA(),COUNTIF(BQ50:$BQ$303,BQ50)) -> 6 | BS50: 42.528 | BT50: -44.08475 | BW50: =IF(BV50="",NA(),COUNTIF(BV50:$BV$303,BV50)) ->  | CB50: =IF(CA50="",NA(),COUNTIF(CA50:$CA$303,CA50)) ->  | CF50: 29 | CG50: =IF(CF50="",NA(),COUNTIF($CF50:CF$303,CF50)) -> 1 | CI50: =IF(CH50="",NA(),COUNTIF($CH50:CH$303,CH50)) -> 
A51: 0.2508752358 | B51: 1.423827047 | C51: 0.6145163168 | AW51: to latest mean | AX51: =AX50 ->  | AY51: =AY35 -> -19 | BE51: 50 | BF51: 0.899414476 | BI51: -999 | BJ51: 25.3 | BK51: -999 | BL51: 49 | BM51: =IF(BL51="",NA(),COUNTIF(BL51:$BL$303,BL51)) -> 2 | BN51: 43.414 | BO51: 1.61325 | BQ51: 49 | BR51: =IF(BQ51="",NA(),COUNTIF(BQ51:$BQ$303,BQ51)) -> 2 | BS51: 43.414 | BT51: -48.38675 | BW51: =IF(BV51="",NA(),COUNTIF(BV51:$BV$303,BV51)) ->  | CB51: =IF(CA51="",NA(),COUNTIF(CA51:$CA$303,CA51)) ->  | CF51: 36 | CG51: =IF(CF51="",NA(),COUNTIF($CF51:CF$303,CF51)) -> 3 | CI51: =IF(CH51="",NA(),COUNTIF($CH51:CH$303,CH51)) -> 
A52: 0.7275772319 | B52: 0.5973647552 | C52: 1.782192967 | AV52: Panel 4 | BE52: 51 | BF52: 0.4524604194 | BI52: -999 | BJ52: 25.3 | BK52: -999 | BL52: 57 | BM52: =IF(BL52="",NA(),COUNTIF(BL52:$BL$303,BL52)) -> 2 | BN52: 50.502 | BO52: 1.61325 | BQ52: 57 | BR52: =IF(BQ52="",NA(),COUNTIF(BQ52:$BQ$303,BQ52)) -> 2 | BS52: 50.502 | BT52: -48.38675 | BW52: =IF(BV52="",NA(),COUNTIF(BV52:$BV$303,BV52)) ->  | CB52: =IF(CA52="",NA(),COUNTIF(CA52:$CA$303,CA52)) ->  | CF52: 15 | CG52: =IF(CF52="",NA(),COUNTIF($CF52:CF$303,CF52)) -> 3 | CI52: =IF(CH52="",NA(),COUNTIF($CH52:CH$303,CH52)) -> 
A53: -0.214493808 | B53: 0.8928917663 | C53: -0.5254003825 | AW53: Label d | AX53: =IF(BD10,AX3,NA()) -> 0 | AY53: =AX15+14 -> -36 | BE53: 52 | BF53: 0.07585170493 | BI53: -999 | BJ53: 25.3 | BK53: -999 | BL53: 42 | BM53: =IF(BL53="",NA(),COUNTIF(BL53:$BL$303,BL53)) -> 5 | BN53: 37.212 | BO53: 4.83975 | BQ53: 42 | BR53: =IF(BQ53="",NA(),COUNTIF(BQ53:$BQ$303,BQ53)) -> 5 | BS53: 37.212 | BT53: -45.16025 | BW53: =IF(BV53="",NA(),COUNTIF(BV53:$BV$303,BV53)) ->  | CB53: =IF(CA53="",NA(),COUNTIF(CA53:$CA$303,CA53)) ->  | CF53: 23 | CG53: =IF(CF53="",NA(),COUNTIF($CF53:CF$303,CF53)) -> 5 | CI53: =IF(CH53="",NA(),COUNTIF($CH53:CH$303,CH53)) -> 
A54: 0.1553078131 | B54: 0.7881568316 | C54: 0.3804248951 | AW54: Label values | AX54: =IF(BD10,AX3,NA()) -> 0 | AY54: =AY53 -> -36 | BE54: 53 | BF54: 0.03532515094 | BI54: -999 | BJ54: 25.3 | BK54: -999 | BL54: 48 | BM54: =IF(BL54="",NA(),COUNTIF(BL54:$BL$303,BL54)) -> 5 | BN54: 42.528 | BO54: 4.83975 | BQ54: 48 | BR54: =IF(BQ54="",NA(),COUNTIF(BQ54:$BQ$303,BQ54)) -> 5 | BS54: 42.528 | BT54: -45.16025 | BW54: =IF(BV54="",NA(),COUNTIF(BV54:$BV$303,BV54)) ->  | CB54: =IF(CA54="",NA(),COUNTIF(CA54:$CA$303,CA54)) ->  | CF54: 20 | CG54: =IF(CF54="",NA(),COUNTIF($CF54:CF$303,CF54)) -> 2 | CI54: =IF(CH54="",NA(),COUNTIF($CH54:CH$303,CH54)) -> 
A55: -0.08326612944 | B55: 0.9960317089 | C55: -0.20395953 | AW55: for Y axis line | AX55: =IF(BD10,AX3,NA()) -> 0 | AY55: =AX15 -> -50 | AZ55: =AX14-2 -> 22 | BE55: 54 | BF55: 0.9685953818 | BI55: -999 | BJ55: 25.3 | BK55: -999 | BL55: 44 | BM55: =IF(BL55="",NA(),COUNTIF(BL55:$BL$303,BL55)) -> 8 | BN55: 38.984 | BO55: 8.06625 | BQ55: 44 | BR55: =IF(BQ55="",NA(),COUNTIF(BQ55:$BQ$303,BQ55)) -> 8 | BS55: 38.984 | BT55: -41.93375 | BW55: =IF(BV55="",NA(),COUNTIF(BV55:$BV$303,BV55)) ->  | CB55: =IF(CA55="",NA(),COUNTIF(CA55:$CA$303,CA55)) ->  | CF55: 25 | CG55: =IF(CF55="",NA(),COUNTIF($CF55:CF$303,CF55)) -> 6 | CI55: =IF(CH55="",NA(),COUNTIF($CH55:CH$303,CH55)) -> 
A56: 0.09790174994 | B56: 1.350823909 | C56: 0.2398093323 | AW56: for d axis line | AX56: =IF(BD10,AX3,NA()) -> 0 | AY56: =AX15 -> -50 | AZ56: 100 | BE56: 55 | BF56: 0.4100015871 | BI56: -999 | BJ56: 25.3 | BK56: -999 | BL56: 47 | BM56: =IF(BL56="",NA(),COUNTIF(BL56:$BL$303,BL56)) -> 4 | BN56: 41.642 | BO56: 3.76425 | BQ56: 47 | BR56: =IF(BQ56="",NA(),COUNTIF(BQ56:$BQ$303,BQ56)) -> 4 | BS56: 41.642 | BT56: -46.23575 | BW56: =IF(BV56="",NA(),COUNTIF(BV56:$BV$303,BV56)) ->  | CB56: =IF(CA56="",NA(),COUNTIF(CA56:$CA$303,CA56)) ->  | CF56: 34 | CG56: =IF(CF56="",NA(),COUNTIF($CF56:CF$303,CF56)) -> 2 | CI56: =IF(CH56="",NA(),COUNTIF($CH56:CH$303,CH56)) -> 
A57: 0.2804541555 | B57: 0.4118886329 | C57: 0.6869695771 | AW57: label val mu0 | AX57: =IF(BD10,L8,NA()) -> 0 | AY57: =AX15+10 -> -40 | BE57: 56 | BF57: 0.2012474202 | BI57: -999 | BJ57: 25.3 | BK57: -999 | BL57: 50 | BM57: =IF(BL57="",NA(),COUNTIF(BL57:$BL$303,BL57)) -> 3 | BN57: 44.3 | BO57: 2.68875 | BQ57: 50 | BR57: =IF(BQ57="",NA(),COUNTIF(BQ57:$BQ$303,BQ57)) -> 3 | BS57: 44.3 | BT57: -47.31125 | BW57: =IF(BV57="",NA(),COUNTIF(BV57:$BV$303,BV57)) ->  | CB57: =IF(CA57="",NA(),COUNTIF(CA57:$CA$303,CA57)) ->  | CF57: 10 | CG57: =IF(CF57="",NA(),COUNTIF($CF57:CF$303,CF57)) -> 1 | CI57: =IF(CH57="",NA(),COUNTIF($CH57:CH$303,CH57)) -> 
A58: -0.5531626761 | B58: 0.8053609941 | C58: -1.354966301 | AW58: mu0 line | AX58: =IF(BD10,L8,NA()) -> 0 | AY58: =AX15 -> -50 | AZ58: 8 | BE58: 57 | BF58: 0.8178360872 | BI58: -999 | BJ58: 25.3 | BK58: -999 | BL58: 36 | BM58: =IF(BL58="",NA(),COUNTIF(BL58:$BL$303,BL58)) -> 2 | BN58: 31.896 | BO58: 1.61325 | BQ58: 36 | BR58: =IF(BQ58="",NA(),COUNTIF(BQ58:$BQ$303,BQ58)) -> 2 | BS58: 31.896 | BT58: -48.38675 | BW58: =IF(BV58="",NA(),COUNTIF(BV58:$BV$303,BV58)) ->  | CB58: =IF(CA58="",NA(),COUNTIF(CA58:$CA$303,CA58)) ->  | CF58: 21 | CG58: =IF(CF58="",NA(),COUNTIF($CF58:CF$303,CF58)) -> 5 | CI58: =IF(CH58="",NA(),COUNTIF($CH58:CH$303,CH58)) -> 
A59: 0.6228229498 | B59: 0.8831453905 | C59: 1.525598427 | AW59: mu1 line | AX59: =IF(BD10,O10,NA()) -> 0 | AY59: =AX15 -> -50 | AZ59: =AX14 -> 24 | BE59: 58 | BF59: 0.5038397871 | BI59: -999 | BJ59: 25.3 | BK59: -999 | BL59: 56 | BM59: =IF(BL59="",NA(),COUNTIF(BL59:$BL$303,BL59)) -> 3 | BN59: 49.616 | BO59: 2.68875 | BQ59: 56 | BR59: =IF(BQ59="",NA(),COUNTIF(BQ59:$BQ$303,BQ59)) -> 3 | BS59: 49.616 | BT59: -47.31125 | BW59: =IF(BV59="",NA(),COUNTIF(BV59:$BV$303,BV59)) ->  | CB59: =IF(CA59="",NA(),COUNTIF(CA59:$CA$303,CA59)) ->  | CF59: 22 | CG59: =IF(CF59="",NA(),COUNTIF($CF59:CF$303,CF59)) -> 7 | CI59: =IF(CH59="",NA(),COUNTIF($CH59:CH$303,CH59)) -> 
A60: -0.3261120209 | B60: 0.4616077937 | C60: -0.7988080502 | AW60: z or t axis label | AX60: =IF(BD10,AX3+18,NA()) -> 18 | AY60: =AX15-AX16 -> -52 | AZ60: =IF(BD12,"z","t") -> z | BE60: 59 | BF60: 0.4208750837 | BI60: -999 | BJ60: 25.3 | BK60: -999 | BL60: 40 | BM60: =IF(BL60="",NA(),COUNTIF(BL60:$BL$303,BL60)) -> 6 | BN60: 35.44 | BO60: 5.91525 | BQ60: 40 | BR60: =IF(BQ60="",NA(),COUNTIF(BQ60:$BQ$303,BQ60)) -> 6 | BS60: 35.44 | BT60: -44.08475 | BW60: =IF(BV60="",NA(),COUNTIF(BV60:$BV$303,BV60)) ->  | CB60: =IF(CA60="",NA(),COUNTIF(CA60:$CA$303,CA60)) ->  | CF60: 12 | CG60: =IF(CF60="",NA(),COUNTIF($CF60:CF$303,CF60)) -> 3 | CI60: =IF(CH60="",NA(),COUNTIF($CH60:CH$303,CH60)) -> 
A61: -0.2014315502 | B61: 0.999727625 | C61: -0.4934045162 | AW61: highlighted point | AX61: =IF(AND(BD1,BD2,BD10), IF(BB5=1,BS2,CC2),NA()) ->  | AY61: =AX15 -> -50 | BE61: 60 | BF61: 0.3079272769 | BI61: -999 | BJ61: 25.3 | BK61: -999 | BL61: 42 | BM61: =IF(BL61="",NA(),COUNTIF(BL61:$BL$303,BL61)) -> 4 | BN61: 37.212 | BO61: 3.76425 | BQ61: 42 | BR61: =IF(BQ61="",NA(),COUNTIF(BQ61:$BQ$303,BQ61)) -> 4 | BS61: 37.212 | BT61: -46.23575 | BW61: =IF(BV61="",NA(),COUNTIF(BV61:$BV$303,BV61)) ->  | CB61: =IF(CA61="",NA(),COUNTIF(CA61:$CA$303,CA61)) ->  | CF61: 25 | CG61: =IF(CF61="",NA(),COUNTIF($CF61:CF$303,CF61)) -> 5 | CI61: =IF(CH61="",NA(),COUNTIF($CH61:CH$303,CH61)) -> 
A62: 0.2987532111 | B62: 0.7219637276 | C62: 0.7317929262 | N62: SampDistMult | O62: =COUNT(A4:A303)*$BA$33*$BA$34 -> 120.064518 | Q62: grey | R62: grey | S62: grey | W62: Panel 1 scale | X62: 33 | AB62: For s pile curve | AL62: SampDistMult | AM62: =COUNT(D4:D303)*$BA$33*$BA$34 -> 21.916539 | AN62: grey | AO62: grey | AP62: grey | AR62: Label rubber ruler | AT62: -2.5 | AU62: 0 | AW62: mean on r ruler | AX62: =IF(AND(BD1,AR70), IF(BB5=1,BN2,BX2),NA()) ->  | AY62: =AX15+AX14+1 -> -25 | BE62: 61 | BF62: 0.7724461369 | BI62: -999 | BJ62: 25.3 | BK62: -999 | BL62: 50 | BM62: =IF(BL62="",NA(),COUNTIF(BL62:$BL$303,BL62)) -> 2 | BN62: 44.3 | BO62: 1.61325 | BQ62: 50 | BR62: =IF(BQ62="",NA(),COUNTIF(BQ62:$BQ$303,BQ62)) -> 2 | BS62: 44.3 | BT62: -48.38675 | BW62: =IF(BV62="",NA(),COUNTIF(BV62:$BV$303,BV62)) ->  | CB62: =IF(CA62="",NA(),COUNTIF(CA62:$CA$303,CA62)) ->  | CF62: 18 | CG62: =IF(CF62="",NA(),COUNTIF($CF62:CF$303,CF62)) -> 3 | CI62: =IF(CH62="",NA(),COUNTIF($CH62:CH$303,CH62)) -> 
A63: -0.01071781766 | B63: 1.551991028 | C63: -0.02625318442 | K63: x | L63: H0Pop | M63: SampDist | N63: cum t | O63: t or z | Q63: H0 | R63: sampdist | S63: t or z | V63: SampDist | X63: t | Y63: nct | Z63: L end | AA63: =ROUND((IF(BB5=1,O9,V9)+$R$11*IF(BB5=1,A4,D4))/$BA$34,0)*$BA$34 -> 45.186 | AB63: X | AC63: s | AD63: s2/( ) | AE63: Rcum | AF63: ord | AG63: grey | AI63: H1Pop | AJ63: SampDist | AK63: SampDist | AL63: cum t | AM63: t or z | AN63: H1 | AO63: sampdist | AP63: t or z | AR63: Unit: | AS63: =IF(AR70,AU62,NA()) ->  | AT63: =AX15+AX14-AU63 -> -27 | AU63: 1 | AW63: for vert dotted line | AX63: =AX62 ->  | AY63: =IF(BB5=1,BO2,BY2) -> 4.83975 | BE63: 62 | BF63: 0.4110162221 | BI63: -999 | BJ63: 25.3 | BK63: -999 | BL63: 45 | BM63: =IF(BL63="",NA(),COUNTIF(BL63:$BL$303,BL63)) -> 2 | BN63: 39.87 | BO63: 1.61325 | BQ63: 45 | BR63: =IF(BQ63="",NA(),COUNTIF(BQ63:$BQ$303,BQ63)) -> 2 | BS63: 39.87 | BT63: -48.38675 | BW63: =IF(BV63="",NA(),COUNTIF(BV63:$BV$303,BV63)) ->  | CB63: =IF(CA63="",NA(),COUNTIF(CA63:$CA$303,CA63)) ->  | CF63: 40 | CG63: =IF(CF63="",NA(),COUNTIF($CF63:CF$303,CF63)) -> 1 | CI63: =IF(CH63="",NA(),COUNTIF($CH63:CH$303,CH63)) -> 
A64: 0.4338839996 | B64: 0.6013903782 | C64: 1.062794407 | K64: =K65-$BB$1 -> -0.5 | N64: =IF(K64>$O$9,1-TDIST((K64-$O$9)/$BB$9,$K$14-1,1),TDIST(($O$9-K64)/$BB$9,$K$14-1,1)) -> 0.0005945302156 | X64: =AW138-$AW$140 -> -6.613622306 | Y64: =nct(X64,$AW$136,$AW$137) -> 2.175935061e-10 | Z64: R end | AA64: =AY3 -> 100 | AL64: =Y64 -> 2.175935061e-10 | AR64: s | AS64: =IF(AND(AR70,BD12),AS63+4,NA()) ->  | AT64: =AT63 -> -27 | AW64: black dotted | AX64: =AX35 ->  | AY64: =AY63 -> 4.83975 | BE64: 63 | BF64: 0.5641061775 | BI64: -999 | BJ64: 25.3 | BK64: -999 | BL64: 52 | BM64: =IF(BL64="",NA(),COUNTIF(BL64:$BL$303,BL64)) -> 3 | BN64: 46.072 | BO64: 2.68875 | BQ64: 52 | BR64: =IF(BQ64="",NA(),COUNTIF(BQ64:$BQ$303,BQ64)) -> 3 | BS64: 46.072 | BT64: -47.31125 | BW64: =IF(BV64="",NA(),COUNTIF(BV64:$BV$303,BV64)) ->  | CB64: =IF(CA64="",NA(),COUNTIF(CA64:$CA$303,CA64)) ->  | CF64: 15 | CG64: =IF(CF64="",NA(),COUNTIF($CF64:CF$303,CF64)) -> 2 | CI64: =IF(CH64="",NA(),COUNTIF($CH64:CH$303,CH64)) -> 
A65: 0.6322665467 | B65: 1.489413107 | C65: 1.548730421 | K65: 0 | L65: =IF(NOT($BB$12),$AX$6+$AX$5*$X$62*NORMDIST(K65,$O$9,$R$11,FALSE),-999) -> 27.45128105 | M65: =IF(AND(NOT($BB$12),$BB$6,$BD$3,$BD$9),$AX$9+$O$62*NORMDIST(K65,$O$9,$R$11/SQRT($K$14),FALSE),NA()) -> 4.249718529e-09 | N65: =IF(K65>$O$9,1-TDIST((K65-$O$9)/$BB$9,$K$14-1,1),TDIST(($O$9-K65)/$BB$9,$K$14-1,1)) -> 0.0006291324967 | O65: =IF(AND(NOT($BB$12),$BD$10,$BD$3,$BD$9),IF($BD$12,V65,$AX$15+$O$62*(N66-N64)/(2*$BB$1)),NA()) -> -50 | Q65: =IF($BB$12,$AX$6+$AX$5*$X$62*NORMDIST(K65,$O$9,$R$11,FALSE),-999) -> -999 | R65: =IF(AND($BB$12,$BB$6,$BD$3,$BD$9),$AX$9+$O$62*NORMDIST(K65,$O$9,$R$11/SQRT($K$14),FALSE),NA()) ->  | S65: =IF(AND($BB$12,$BD$10,$BD$3,$BD$9),IF($BD$12,$AX$15+$O$62*NORMDIST(K65,$O$9,$R$11/SQRT($K$14),FALSE),$AX$15+$O$62*(N66-N64)/(2*$BB$1)),NA()) ->  | V65: =IF(AND(NOT($BB$12),$BD$3,$BD$9),$AX$15+$O$62*NORMDIST(K65,$O$9,$R$11/SQRT($K$14),FALSE),NA()) -> -50 | X65: =X64+$AW$140 -> -6.531972647 | Y65: 2.312782429e-10 | Z65: inc | AA65: =(AA64-AA63)/200 -> 0.27407 | AB65: =AA63 -> 45.186 | AC65: =AB65-$AA$63 -> 0 | AD65: =AC65^2/$AA$66 -> 0 | AE65: =CHIDIST(AD65,$K$16) -> 1 | AI65: =IF(NOT($BB$13),$AX$6+$AX$5*$X$62*NORMDIST(K65,$V$9,$R$11,FALSE),-999) -> -999 | AJ65: =IF(AND(NOT($BB$13),$BD$4,$BD$9),$AX$9+$AM$62*NORMDIST(K65,$V$9,$R$11/SQRT($K$14),FALSE),NA()) ->  | AK65: =IF($BD$6,AJ65,NA()) ->  | AL65: 2.312782429e-10 | AM65: =IF(AND(NOT($BB$13),$BD$10,$BD$4,$BD$9,$BB$25),IF($BD$12,$AX$15+$AM$62*NORMDIST(K65,$V$9,$R$11/SQRT($K$14),FALSE),$AX$15+$AM$62*(AL66-AL64)/(2*$BB$1)),NA()) ->  | AN65: =IF(AND($BB$4,$BB$13),$AX$6+$AX$5*$X$62*NORMDIST(K65,$V$9,$R$11,FALSE),-999) -> -999 | AO65: =IF(AND($BB$4,$BD$6,$BB$13,$BD$4,$BD$9),$AX$9+$AM$62*NORMDIST(K65,$V$9,$R$11/SQRT($K$14),FALSE),NA()) ->  | AP65: =IF(AND($BB$4,$BD$10,$BB$13,$BD$4,$BD$9,$BB$25),IF($BD$12,$AX$15+$AM$62*NORMDIST(K65,$V$9,$R$11/SQRT($K$14),FALSE),$AX$15+$AM$62*(AL66-AL64)/(2*$BB$1)),NA()) ->  | AR65: s | AS65: =IF(AND(AR70,NOT(BD12)),AS63+4,NA()) ->  | AT65: =AT64 -> -27 | AW65: line | AX65: =AX64 ->  | AY65: =AX12+AZ35 -> -5 | BE65: 64 | BF65: 0.1087666415 | BI65: -999 | BJ65: 25.3 | BK65: -999 | BL65: 56 | BM65: =IF(BL65="",NA(),COUNTIF(BL65:$BL$303,BL65)) -> 2 | BN65: 49.616 | BO65: 1.61325 | BQ65: 56 | BR65: =IF(BQ65="",NA(),COUNTIF(BQ65:$BQ$303,BQ65)) -> 2 | BS65: 49.616 | BT65: -48.38675 | BW65: =IF(BV65="",NA(),COUNTIF(BV65:$BV$303,BV65)) ->  | CB65: =IF(CA65="",NA(),COUNTIF(CA65:$CA$303,CA65)) ->  | CF65: 38 | CG65: =IF(CF65="",NA(),COUNTIF($CF65:CF$303,CF65)) -> 5 | CI65: =IF(CH65="",NA(),COUNTIF($CH65:CH$303,CH65)) -> 
A66: 0.2377181808 | B66: 0.8455015392 | C66: 0.5822882455 | K66: =K65+$BB$1 -> 0.5 | L66: 27.49295783 | M66: =IF(AND(NOT($BB$12),$BB$6,$BD$3,$BD$9),$AX$9+$O$62*NORMDIST(K66,$O$9,$R$11/SQRT($K$14),FALSE),NA()) -> 7.219984111e-09 | N66: 0.0006661376467 | O66: =IF(AND(NOT($BB$12),$BD$10,$BD$3,$BD$9),IF($BD$12,V66,$AX$15+$O$62*(N67-N65)/(2*$BB$1)),NA()) -> -49.99999999 | Q66: -999 | R66: =IF(AND($BB$12,$BB$6,$BD$3,$BD$9),$AX$9+$O$62*NORMDIST(K66,$O$9,$R$11/SQRT($K$14),FALSE),NA()) ->  | S66: =IF(AND($BB$12,$BD$10,$BD$3,$BD$9),IF($BD$12,$AX$15+$O$62*NORMDIST(K66,$O$9,$R$11/SQRT($K$14),FALSE),$AX$15+$O$62*(N67-N65)/(2*$BB$1)),NA()) ->  | V66: =IF(AND(NOT($BB$12),$BD$3,$BD$9),$AX$15+$O$62*NORMDIST(K66,$O$9,$R$11/SQRT($K$14),FALSE),NA()) -> -49.99999999 | X66: -6.450322989 | Y66: 2.460018189e-10 | Z66: s2/(N-1) | AA66: =R11^2/K16 -> 45 | AB66: =AB65+$AA$65 -> 45.46007 | AC66: =AB66-$AA$63 -> 0.27407 | AD66: =AC66^2/$AA$66 -> 0.001669208109 | AE66: =CHIDIST(AD66,$K$16) -> 0.9999999939 | AF66: =IF(AND(IF($BB$5=1,$A$4<>"",$D$4<>""),NOT($BD$12),$BD$5,$BD$4,$BD$9),$AX$12+$AA$67*(AE65-AE67)/(2*$AA$65),NA()) ->  | AG66: =IF(AND(IF($BB$5=1,$A$4<>"",$D$4<>""),$BD$12,$BD$5,$BD$4,$BD$9),$AX$12+$AA$67*(AE65-AE67)/(2*$AA$65),NA()) ->  | AI66: -999 | AK66: =IF($BD$6,AJ66,NA()) ->  | AL66: 2.460018189e-10 | AN66: -999 | AR66: /√ N | AS66: =IF(AR70,AS63+7.3,NA()) ->  | AT66: =AT65 -> -27 | AW66: vert down | AX66: =IF(OR(BD10,AR70),O9,NA()) -> 40 | AY66: =AX12+AX11-3 -> -5 | BE66: 65 | BF66: 0.8286444359 | BI66: -999 | BJ66: 25.3 | BK66: -999 | BL66: 49 | BM66: =IF(BL66="",NA(),COUNTIF(BL66:$BL$303,BL66)) -> 1 | BN66: 43.414 | BO66: 0.53775 | BQ66: 49 | BR66: =IF(BQ66="",NA(),COUNTIF(BQ66:$BQ$303,BQ66)) -> 1 | BS66: 43.414 | BT66: -49.46225 | BW66: =IF(BV66="",NA(),COUNTIF(BV66:$BV$303,BV66)) ->  | CB66: =IF(CA66="",NA(),COUNTIF(CA66:$CA$303,CA66)) ->  | CF66: 22 | CG66: =IF(CF66="",NA(),COUNTIF($CF66:CF$303,CF66)) -> 6 | CI66: =IF(CH66="",NA(),COUNTIF($CH66:CH$303,CH66)) -> 
A67: -0.1861710882 | B67: 0.5585034248 | C67: -0.4560241709 | K67: 1 | L67: 27.53788558 | M67: 1.218476116e-08 | N67: 0.0007057389997 | O67: -49.99999999 | Q67: -999 | V67: -49.99999999 | X67: -6.368673331 | Y67: 2.618567767e-10 | Z67: multiplier | AA67: =IF(BB5=1,COUNT(A4:A303),COUNT(D4:D303))*$BA$36*$BA$37 -> 53.100117 | AB67: =AB66+$AA$65 -> 45.73414 | AC67: 0.54814 | AD67: 0.006676832436 | AE67: 0.9999998067 | AF67: =IF(AND(IF($BB$5=1,$A$4<>"",$D$4<>""),NOT($BD$12),$BD$5,$BD$4,$BD$9),$AX$12+$AA$67*(AE66-AE68)/(2*$AA$65),NA()) ->  | AG67: =IF(AND(IF($BB$5=1,$A$4<>"",$D$4<>""),$BD$12,$BD$5,$BD$4,$BD$9),$AX$12+$AA$67*(AE66-AE68)/(2*$AA$65),NA()) ->  | AI67: -999 | AL67: 2.618567767e-10 | AN67: -999 | AR67: r r label | AS67: =IF(AR70,0,NA()) ->  | AT67: =AT63+AU67 -> -24 | AU67: 3 | AW67: to zero | AX67: =AX66 -> 40 | AY67: =AX12-AX13+5 -> -21 | BE67: 66 | BF67: 0.1309053265 | BI67: -999 | BJ67: 25.3 | BK67: -999 | BL67: 42 | BM67: =IF(BL67="",NA(),COUNTIF(BL67:$BL$303,BL67)) -> 3 | BN67: 37.212 | BO67: 2.68875 | BQ67: 42 | BR67: =IF(BQ67="",NA(),COUNTIF(BQ67:$BQ$303,BQ67)) -> 3 | BS67: 37.212 | BT67: -47.31125 | BW67: =IF(BV67="",NA(),COUNTIF(BV67:$BV$303,BV67)) ->  | CB67: =IF(CA67="",NA(),COUNTIF(CA67:$CA$303,CA67)) ->  | CF67: 14 | CG67: =IF(CF67="",NA(),COUNTIF($CF67:CF$303,CF67)) -> 2 | CI67: =IF(CH67="",NA(),COUNTIF($CH67:CH$303,CH67)) -> 
A68: 0.09435018111 | B68: 1.2438186 | C68: 0.2311098009 | K68: 1.5 | L68: 27.58625625 | M68: 2.042690189e-08 | N68: 0.0007481475184 | O68: -49.99999998 | Q68: -999 | V68: -49.99999998 | X68: -6.287023673 | Y68: 2.789451613e-10 | AB68: 46.00821 | AC68: 0.82221 | AD68: 0.01502287298 | AE68: 0.9999985365 | AI68: -999 | AL68: 2.789451613e-10 | AN68: -999 | BE68: 67 | BF68: =MOD(BF67*10000013,1) -> 0.9663275592 | BH68: =IF(BG68="","",$O$9+$R$11*BG68) ->  | BI68: =IF(AND(NOT($BB$12),$BD$2,BH68<>"",$A$4<>""),BH68,-999) -> -999 | BJ68: =$AX$8+$BJ$1 -> 25.3 | BK68: =IF(AND($BB$12,$BD$2,BH68<>"",$A$4<>""),BH68,-999) -> -999 | BL68: =IF(A68="","",ROUND(($O$9+$R$11*A68)/$BA$34,0)) -> 47 | BM68: =IF(BL68="",NA(),COUNTIF(BL68:$BL$303,BL68)) -> 3 | BN68: =BL68*$BA$34 -> 41.642 | BO68: =IF(AND(NOT($BB$12),$BB$6,$BD$3,$BD$8),$AX$9-$BA$33/2+BM68*$BA$33,NA()) -> 2.68875 | BP68: =IF(AND($BB$12,$BB$6,$BD$3,$BD$8),$AX$9-$BA$33/2+BM68*$BA$33,NA()) ->  | BQ68: =IF(C68="","",ROUND(($O$9+C68*$BB$9)/$BA$34,0)) -> 47 | BR68: =IF(BQ68="",NA(),COUNTIF(BQ68:$BQ$303,BQ68)) -> 3 | BS68: =BQ68*$BA$34 -> 41.642 | BT68: -47.31125 | BV68: =IF(D68="","",ROUND(($V$9+$R$11*D68)/$BA$34,0)) ->  | BW68: =IF(BV68="",NA(),COUNTIF(BV68:$BV$303,BV68)) ->  | BX68: =BV68*$BA$34 ->  | BY68: =IF(AND(NOT($BB$13),$BD$6,$BD$4,$BD$8),$AX$9-$BA$33/2+BW68*$BA$33,NA()) ->  | BZ68: =IF(AND($BB$4,$BD$6,$BB$13,$BD$4,$BD$8),$AX$9-$BA$33/2+BW68*$BA$33,NA()) ->  | CA68: =IF(F68="","",ROUND(($O$9+F68*$BB$9)/$BA$34,0)) ->  | CB68: =IF(CA68="",NA(),COUNTIF(CA68:$CA$303,CA68)) ->  | CC68: =CA68*$BA$34 ->  | CF68: 32 | CG68: =IF(CF68="",NA(),COUNTIF($CF68:CF$303,CF68)) -> 3 | CI68: =IF(CH68="",NA(),COUNTIF($CH68:CH$303,CH68)) -> 
A69: 0.3438196847 | B69: 0.8177119438 | C69: =IF(AND(A69<>"",$K$14>1),(($O$9+$R$11*A69)-$O$9)/IF($BD$12,$BB$9,$R$11*B69/SQRT($K$14)),"") -> 0.842182791 | F69: =IF(AND(D69<>"",$K$14>1),(($V$9+$R$11*D69)-$O$9)/IF($BD$12,$BB$9,$R$11*E69/SQRT($K$14)),"") ->  | K69: 2 | L69: 27.63826718 | M69: 3.401673986e-08 | N69: 0.000793593584 | O69: -49.99999997 | Q69: -999 | V69: -49.99999997 | X69: -6.205374015 | Y69: 2.973796272e-10 | AB69: 46.28228 | AC69: 1.09628 | AD69: 0.02670732974 | AE69: 0.9999938584 | AI69: -999 | AL69: 2.973796272e-10 | AN69: -999 | AQ69: Rubber ruler | AS69: L end | AT69: 11 | AV69: For slants | BE69: 68 | BF69: 0.1542873643 | BG69: =IF(AND($BD$3,$BE68<=$K$14),NORMSINV(BF69),"") ->  | BI69: -999 | BJ69: 25.3 | BK69: -999 | BL69: 51 | BM69: =IF(BL69="",NA(),COUNTIF(BL69:$BL$303,BL69)) -> 3 | BN69: 45.186 | BO69: 2.68875 | BQ69: 51 | BR69: =IF(BQ69="",NA(),COUNTIF(BQ69:$BQ$303,BQ69)) -> 3 | BS69: 45.186 | BT69: =IF(AND(NOT($BB$12),$BD$10,$BD$3,$BD$8),$AX$15-$BA$33/2+BR69*$BA$33,NA()) -> -47.31125 | BU69: =IF(AND($BB$12,$BD$10,$BD$3,$BD$8),$AX$15-$BA$33/2+BR69*$BA$33,NA()) ->  | BW69: =IF(BV69="",NA(),COUNTIF(BV69:$BV$303,BV69)) ->  | CB69: =IF(CA69="",NA(),COUNTIF(CA69:$CA$303,CA69)) ->  | CD69: =IF(AND(NOT($BB$13),$BD$10,$BD$4,$BD$8),$AX$15-$BA$33/2+CB69*$BA$33,NA()) ->  | CE69: =IF(AND($BB$4,$BD$10,$BB$13,$BD$4,$BD$8),$AX$15-$BA$33/2+CB69*$BA$33,NA()) ->  | CF69: =IF(B69="","",ROUND(($R$11*B69)/$BA$37,0)) -> 21 | CG69: =IF(CF69="",NA(),COUNTIF($CF69:CF$303,CF69)) -> 4 | CH69: =IF(E69="","",ROUND(($R$11*E69)/$BA$37,0)) ->  | CI69: =IF(CH69="",NA(),COUNTIF($CH69:CH$303,CH69)) ->  | CJ69: =$AX$35+IF($BB$5=1,CF69,CH69)*$BA$37 ->  | CK69: =IF(AND(NOT($BD$12),$BD$5,$BD$4,$BD$8),$AX$12-$BA$36/2+IF($BB$5=1,CG69,CI69)*$BA$36,NA()) ->  | CL69: =IF(AND($BD$12,$BD$5,$BD$4,$BD$8),$AX$12-$BA$36/2+IF($BB$5=1,CG69,CI69)*$BA$36,NA()) -> 
A70: -0.134554361 | B70: 1.276181184 | C70: -0.3295895271 | K70: 2.5 | L70: 27.6941207 | M70: 5.627138156e-08 | N70: 0.0008423289851 | O70: -49.99999994 | Q70: -999 | V70: -49.99999994 | X70: -6.123724357 | Y70: 3.172846906e-10 | AB70: 46.55635 | AC70: 1.37035 | AD70: 0.04173020272 | AE70: 0.9999813574 | AI70: -999 | AL70: 3.172846906e-10 | AN70: -999 | AQ70: Display? | AR70: =AND(BD1,OR(AND(BB5=1,nsamps>0),AND(BB5=2,nsampso>0))) -> FALSE | AS70: SE | AT70: =IF(BD12,M17,IF(O21<>"",O21,NA())) -> 6.123724357 | AV70: 12 | AW70: =AS72 ->  | AX70: =$AT$72 -> -26 | BE70: 69 | BF70: 0.6490744166 | BI70: -999 | BJ70: 25.3 | BK70: -999 | BL70: 43 | BM70: =IF(BL70="",NA(),COUNTIF(BL70:$BL$303,BL70)) -> 1 | BN70: 38.098 | BO70: 0.53775 | BQ70: 43 | BR70: =IF(BQ70="",NA(),COUNTIF(BQ70:$BQ$303,BQ70)) -> 1 | BS70: 38.098 | BT70: -49.46225 | BW70: =IF(BV70="",NA(),COUNTIF(BV70:$BV$303,BV70)) ->  | CB70: =IF(CA70="",NA(),COUNTIF(CA70:$CA$303,CA70)) ->  | CF70: 33 | CG70: =IF(CF70="",NA(),COUNTIF($CF70:CF$303,CF70)) -> 2 | CI70: =IF(CH70="",NA(),COUNTIF($CH70:CH$303,CH70)) -> 
A71: -0.319048046 | B71: 0.8694204033 | C71: -0.7815049162 | K71: 3 | L71: 27.75402358 | M71: 9.246708582e-08 | N71: 0.0008946291297 | O71: -49.99999991 | Q71: -999 | V71: -49.99999991 | X71: -6.042074699 | Y71: 3.38798147e-10 | AB71: 46.83042 | AC71: 1.64442 | AD71: 0.06009149192 | AE71: 0.9999539139 | AI71: -999 | AL71: 3.38798147e-10 | AN71: -999 | AQ71: z or t | AR71: For axis | AS71: x | AT71: y | AU71: y numbers | AW71: =BB86 ->  | AX71: =$BC$86 -> -50 | BE71: 70 | BF71: 0.6040435992 | BI71: -999 | BJ71: 25.3 | BK71: -999 | BL71: 40 | BM71: =IF(BL71="",NA(),COUNTIF(BL71:$BL$303,BL71)) -> 5 | BN71: 35.44 | BO71: 4.83975 | BQ71: 40 | BR71: =IF(BQ71="",NA(),COUNTIF(BQ71:$BQ$303,BQ71)) -> 5 | BS71: 35.44 | BT71: -45.16025 | BW71: =IF(BV71="",NA(),COUNTIF(BV71:$BV$303,BV71)) ->  | CB71: =IF(CA71="",NA(),COUNTIF(CA71:$CA$303,CA71)) ->  | CF71: 22 | CG71: =IF(CF71="",NA(),COUNTIF($CF71:CF$303,CF71)) -> 5 | CI71: =IF(CH71="",NA(),COUNTIF($CH71:CH$303,CH71)) -> 
A72: 0.09701734802 | B72: 0.5184397595 | C72: 0.2376429988 | K72: 3.5 | L72: 27.8181865 | M72: 1.50935524e-07 | N72: 0.0009507955073 | O72: -49.99999985 | Q72: -999 | V72: -49.99999985 | X72: -5.960425041 | Y72: 3.620726789e-10 | AB72: 47.10449 | AC72: 1.91849 | AD72: 0.08179119734 | AE72: 0.9999011571 | AI72: -999 | AL72: 3.620726789e-10 | AN72: -999 | AQ72: 12 | AR72: =$O$9+AQ72*$AT$70 -> 113.4846923 | AS72: =IF(AND($AR$70,100>=AR72,$AT$69<=AR72),AR72,NA()) ->  | AT72: =AX15+AX14 -> -26 | AU72: =AT72 -> -26 | AV72: 11 | AW72: =AS73 ->  | AX72: =$AT$72 -> -26 | BE72: 71 | BF72: 0.844748091 | BI72: -999 | BJ72: 25.3 | BK72: -999 | BL72: 47 | BM72: =IF(BL72="",NA(),COUNTIF(BL72:$BL$303,BL72)) -> 2 | BN72: 41.642 | BO72: 1.61325 | BQ72: 47 | BR72: =IF(BQ72="",NA(),COUNTIF(BQ72:$BQ$303,BQ72)) -> 2 | BS72: 41.642 | BT72: -48.38675 | BW72: =IF(BV72="",NA(),COUNTIF(BV72:$BV$303,BV72)) ->  | CB72: =IF(CA72="",NA(),COUNTIF(CA72:$CA$303,CA72)) ->  | CF72: 13 | CG72: =IF(CF72="",NA(),COUNTIF($CF72:CF$303,CF72)) -> 3 | CI72: =IF(CH72="",NA(),COUNTIF($CH72:CH$303,CH72)) -> 
A73: -0.3492171877 | B73: 0.9941284072 | C73: -0.8554039192 | K73: 4 | L73: 27.8868234 | M73: 2.447374701e-07 | N73: 0.001011158433 | O73: -49.99999976 | Q73: -999 | V73: -49.99999976 | X73: -5.878775383 | Y73: 3.87277681e-10 | AB73: 47.37856 | AC73: 2.19256 | AD73: 0.106829319 | AE73: 0.999809 | AI73: -999 | AL73: 3.87277681e-10 | AN73: -999 | AQ73: 11 | AR73: 107.3609679 | AS73: =IF(AND($AR$70,100>=AR73,$AT$69<=AR73),AR73,NA()) ->  | AT73: =AT72 -> -26 | AU73: =AT73 -> -26 | AW73: =BB87 ->  | AX73: =$BC$86 -> -50 | BE73: 72 | BF73: 0.8912515305 | BI73: -999 | BJ73: 25.3 | BK73: -999 | BL73: 39 | BM73: =IF(BL73="",NA(),COUNTIF(BL73:$BL$303,BL73)) -> 4 | BN73: 34.554 | BO73: 3.76425 | BQ73: 39 | BR73: =IF(BQ73="",NA(),COUNTIF(BQ73:$BQ$303,BQ73)) -> 4 | BS73: 34.554 | BT73: -46.23575 | BW73: =IF(BV73="",NA(),COUNTIF(BV73:$BV$303,BV73)) ->  | CB73: =IF(CA73="",NA(),COUNTIF(CA73:$CA$303,CA73)) ->  | CF73: 25 | CG73: =IF(CF73="",NA(),COUNTIF($CF73:CF$303,CF73)) -> 4 | CI73: =IF(CH73="",NA(),COUNTIF($CH73:CH$303,CH73)) -> 
A74: 0.1870139553 | B74: 1.439963774 | C74: 0.4580887654 | K74: 4.5 | L74: 27.96015075 | M74: 3.941977757e-07 | N74: 0.001076080106 | O74: -49.99999961 | Q74: -999 | V74: -49.99999961 | X74: -5.797125725 | Y74: 4.146013369e-10 | AB74: 47.65263 | AC74: 2.46663 | AD74: 0.1352058568 | AE74: 0.999659269 | AI74: -999 | AL74: 4.146013369e-10 | AN74: -999 | AQ74: 10 | AR74: 101.2372436 | AT74: =AT73 -> -26 | AU74: -26 | AV74: 10 | AW74: =AS74 ->  | AX74: =$AT$72 -> -26 | BE74: 73 | BF74: 0.8912525587 | BI74: -999 | BJ74: 25.3 | BK74: -999 | BL74: 48 | BM74: =IF(BL74="",NA(),COUNTIF(BL74:$BL$303,BL74)) -> 4 | BN74: 42.528 | BO74: 3.76425 | BQ74: 48 | BR74: =IF(BQ74="",NA(),COUNTIF(BQ74:$BQ$303,BQ74)) -> 4 | BS74: 42.528 | BT74: -46.23575 | BW74: =IF(BV74="",NA(),COUNTIF(BV74:$BV$303,BV74)) ->  | CB74: =IF(CA74="",NA(),COUNTIF(CA74:$CA$303,CA74)) ->  | CF74: 37 | CG74: =IF(CF74="",NA(),COUNTIF($CF74:CF$303,CF74)) -> 2 | CI74: =IF(CH74="",NA(),COUNTIF($CH74:CH$303,CH74)) -> 
A75: -0.2893614994 | B75: 0.7550060412 | C75: -0.7087880248 | K75: 5 | L75: 28.03838681 | M75: 6.307141522e-07 | N75: 0.001145958022 | O75: -49.99999937 | Q75: -999 | V75: -49.99999937 | X75: -5.715476066 | Y75: 4.442529851e-10 | AB75: 47.9267 | AC75: 2.7407 | AD75: 0.1669208109 | AE75: 0.999429437 | AI75: -999 | AL75: 4.442529851e-10 | AN75: -999 | AQ75: 9 | AR75: 95.11351921 | AT75: -26 | AU75: -26 | AW75: =BB88 ->  | AX75: =$BC$86 -> -50 | BE75: 74 | BF75: 0.1730671488 | BI75: -999 | BJ75: 25.3 | BK75: -999 | BL75: 40 | BM75: =IF(BL75="",NA(),COUNTIF(BL75:$BL$303,BL75)) -> 4 | BN75: 35.44 | BO75: 3.76425 | BQ75: 40 | BR75: =IF(BQ75="",NA(),COUNTIF(BQ75:$BQ$303,BQ75)) -> 4 | BS75: 35.44 | BT75: -46.23575 | BW75: =IF(BV75="",NA(),COUNTIF(BV75:$BV$303,BV75)) ->  | CB75: =IF(CA75="",NA(),COUNTIF(CA75:$CA$303,CA75)) ->  | CF75: 19 | CG75: =IF(CF75="",NA(),COUNTIF($CF75:CF$303,CF75)) -> 3 | CI75: =IF(CH75="",NA(),COUNTIF($CH75:CH$303,CH75)) -> 
A76: 0.4584910013 | B76: 1.380972453 | C76: 1.123069005 | K76: 5.5 | L76: 28.12175069 | M76: 1.002433763e-06 | N76: 0.001221228786 | O76: -49.999999 | Q76: -999 | V76: -49.999999 | X76: -5.633826408 | Y76: 4.764658178e-10 | AB76: 48.20077 | AC76: 3.01477 | AD76: 0.2019741812 | AE76: 0.9990924676 | AI76: -999 | AL76: 4.764658178e-10 | AN76: -999 | AQ76: 8 | AR76: 88.98979486 | AT76: -26 | AU76: -26 | AV76: 9 | AW76: =AS75 ->  | AX76: =$AT$72 -> -26 | BE76: 75 | BF76: 0.737621557 | BI76: -999 | BJ76: 25.3 | BK76: -999 | BL76: 53 | BM76: =IF(BL76="",NA(),COUNTIF(BL76:$BL$303,BL76)) -> 2 | BN76: 46.958 | BO76: 1.61325 | BQ76: 53 | BR76: =IF(BQ76="",NA(),COUNTIF(BQ76:$BQ$303,BQ76)) -> 2 | BS76: 46.958 | BT76: -48.38675 | BW76: =IF(BV76="",NA(),COUNTIF(BV76:$BV$303,BV76)) ->  | CB76: =IF(CA76="",NA(),COUNTIF(CA76:$CA$303,CA76)) ->  | CF76: 35 | CG76: =IF(CF76="",NA(),COUNTIF($CF76:CF$303,CF76)) -> 2 | CI76: =IF(CH76="",NA(),COUNTIF($CH76:CH$303,CH76)) -> 
A77: 0.3618816893 | B77: 0.7720813241 | C77: 0.8864254861 | K77: 6 | L77: 28.21046151 | M77: 1.582644961e-06 | N77: 0.001302372374 | O77: -49.99999842 | Q77: -999 | V77: -49.99999842 | X77: -5.55217675 | Y77: 5.114999673e-10 | AB77: 48.47484 | AC77: 3.28884 | AD77: 0.2403659677 | AE77: 0.9986167765 | AI77: -999 | AL77: 5.114999673e-10 | AN77: -999 | AQ77: 7 | AR77: 82.8660705 | AT77: -26 | AU77: -26 | AW77: =BB89 -> 95.11351921 | AX77: =$BC$86 -> -50 | BE77: 76 | BF77: 0.1587552093 | BI77: -999 | BJ77: 25.3 | BK77: -999 | BL77: 51 | BM77: =IF(BL77="",NA(),COUNTIF(BL77:$BL$303,BL77)) -> 2 | BN77: 45.186 | BO77: 1.61325 | BQ77: 51 | BR77: =IF(BQ77="",NA(),COUNTIF(BQ77:$BQ$303,BQ77)) -> 2 | BS77: 45.186 | BT77: -48.38675 | BW77: =IF(BV77="",NA(),COUNTIF(BV77:$BV$303,BV77)) ->  | CB77: =IF(CA77="",NA(),COUNTIF(CA77:$CA$303,CA77)) ->  | CF77: 20 | CG77: =IF(CF77="",NA(),COUNTIF($CF77:CF$303,CF77)) -> 1 | CI77: =IF(CH77="",NA(),COUNTIF($CH77:CH$303,CH77)) -> 
A78: 0.1433742017 | B78: 1.113132933 | C78: 0.3511936366 | K78: 6.5 | L78: 28.30473727 | M78: 2.482081377e-06 | N78: 0.001389916899 | O78: -49.99999752 | Q78: -999 | V78: -49.99999752 | X78: -5.470527092 | Y78: 5.496460384e-10 | AB78: 48.74891 | AC78: 3.56291 | AD78: 0.2820961704 | AE78: 0.9979663109 | AI78: -999 | AL78: 5.496460384e-10 | AN78: -999 | AQ78: 6 | AR78: 76.74234614 | AT78: -26 | AU78: -26 | AV78: 8 | AW78: =AS76 ->  | AX78: =$AT$72 -> -26 | BE78: 77 | BF78: 0.1567871384 | BI78: -999 | BJ78: 25.3 | BK78: -999 | BL78: 48 | BM78: =IF(BL78="",NA(),COUNTIF(BL78:$BL$303,BL78)) -> 3 | BN78: 42.528 | BO78: 2.68875 | BQ78: 48 | BR78: =IF(BQ78="",NA(),COUNTIF(BQ78:$BQ$303,BQ78)) -> 3 | BS78: 42.528 | BT78: -47.31125 | BW78: =IF(BV78="",NA(),COUNTIF(BV78:$BV$303,BV78)) ->  | CB78: =IF(CA78="",NA(),COUNTIF(CA78:$CA$303,CA78)) ->  | CF78: 28 | CG78: =IF(CF78="",NA(),COUNTIF($CF78:CF$303,CF78)) -> 1 | CI78: =IF(CH78="",NA(),COUNTIF($CH78:CH$303,CH78)) -> 
A79: -0.1675187853 | B79: 0.5967427305 | C79: -0.4103355464 | K79: 7 | L79: 28.40479388 | M79: 3.866813592e-06 | N79: 0.001484443944 | O79: -49.99999613 | Q79: -999 | V79: -49.99999613 | X79: -5.388877434 | Y79: 5.912291618e-10 | AB79: 49.02298 | AC79: 3.83698 | AD79: 0.3271647893 | AE79: 0.9971007478 | AI79: -999 | AL79: 5.912291618e-10 | AN79: -999 | AQ79: 5 | AR79: 70.61862178 | AT79: -26 | AU79: -26 | AW79: =BB90 -> 88.98979486 | AX79: =$BC$86 -> -50 | BE79: 78 | BF79: 0.4225554429 | BI79: -999 | BJ79: 25.3 | BK79: -999 | BL79: 42 | BM79: =IF(BL79="",NA(),COUNTIF(BL79:$BL$303,BL79)) -> 2 | BN79: 37.212 | BO79: 1.61325 | BQ79: 42 | BR79: =IF(BQ79="",NA(),COUNTIF(BQ79:$BQ$303,BQ79)) -> 2 | BS79: 37.212 | BT79: -48.38675 | BW79: =IF(BV79="",NA(),COUNTIF(BV79:$BV$303,BV79)) ->  | CB79: =IF(CA79="",NA(),COUNTIF(CA79:$CA$303,CA79)) ->  | CF79: 15 | CG79: =IF(CF79="",NA(),COUNTIF($CF79:CF$303,CF79)) -> 1 | CI79: =IF(CH79="",NA(),COUNTIF($CH79:CH$303,CH79)) -> 
A80: 0.1726124633 | B80: 0.5298408492 | C80: 0.4228124583 | K80: 7.5 | L80: 28.51084389 | M80: 5.984049264e-06 | N80: 0.001586594545 | O80: -49.99999402 | Q80: -999 | V80: -49.99999402 | X80: -5.307227776 | Y80: 6.366136499e-10 | AB80: 49.29705 | AC80: 4.11105 | AD80: 0.3755718245 | AE80: 0.9959758067 | AI80: -999 | AL80: 6.366136499e-10 | AN80: -999 | AQ80: 4 | AR80: 64.49489743 | AT80: -26 | AU80: -26 | AV80: 7 | AW80: =AS77 ->  | AX80: =$AT$72 -> -26 | BE80: 79 | BF80: 0.9222154133 | BI80: -999 | BJ80: 25.3 | BK80: -999 | BL80: 48 | BM80: =IF(BL80="",NA(),COUNTIF(BL80:$BL$303,BL80)) -> 2 | BN80: 42.528 | BO80: 1.61325 | BQ80: 48 | BR80: =IF(BQ80="",NA(),COUNTIF(BQ80:$BQ$303,BQ80)) -> 2 | BS80: 42.528 | BT80: -48.38675 | BW80: =IF(BV80="",NA(),COUNTIF(BV80:$BV$303,BV80)) ->  | CB80: =IF(CA80="",NA(),COUNTIF(CA80:$CA$303,CA80)) ->  | CF80: 13 | CG80: =IF(CF80="",NA(),COUNTIF($CF80:CF$303,CF80)) -> 2 | CI80: =IF(CH80="",NA(),COUNTIF($CH80:CH$303,CH80)) -> 
A81: 0.2963141022 | B81: 0.9752804406 | C81: 0.725818354 | K81: 8 | L81: 28.62309534 | M81: 9.199024752e-06 | N81: 0.001697075893 | O81: -49.9999908 | Q81: -999 | V81: -49.9999908 | X81: -5.225578118 | Y81: 6.862083581e-10 | AB81: 49.57112 | AC81: 4.38512 | AD81: 0.4273172759 | AE81: 0.9945436736 | AI81: -999 | AL81: 6.862083581e-10 | AN81: -999 | AQ81: 3 | AR81: 58.37117307 | AT81: -26 | AU81: -26 | AW81: =BB91 -> 82.8660705 | AX81: =$BC$86 -> -50 | BE81: 80 | BF81: 0.1218222044 | BI81: -999 | BJ81: 25.3 | BK81: -999 | BL81: 50 | BM81: =IF(BL81="",NA(),COUNTIF(BL81:$BL$303,BL81)) -> 1 | BN81: 44.3 | BO81: 0.53775 | BQ81: 50 | BR81: =IF(BQ81="",NA(),COUNTIF(BQ81:$BQ$303,BQ81)) -> 1 | BS81: 44.3 | BT81: -49.46225 | BW81: =IF(BV81="",NA(),COUNTIF(BV81:$BV$303,BV81)) ->  | CB81: =IF(CA81="",NA(),COUNTIF(CA81:$CA$303,CA81)) ->  | CF81: 25 | CG81: =IF(CF81="",NA(),COUNTIF($CF81:CF$303,CF81)) -> 3 | CI81: =IF(CH81="",NA(),COUNTIF($CH81:CH$303,CH81)) -> 
A82: 0.5467431198 | B82: 1.401540471 | C82: 1.339241664 | K82: 8.5 | L82: 28.7417504 | M82: 1.404730843e-05 | N82: 0.001816668857 | O82: -49.99998595 | Q82: -999 | V82: -49.99998595 | X82: -5.14392846 | Y82: 7.404728678e-10 | AB82: 49.84519 | AC82: 4.65919 | AD82: 0.4824011435 | AE82: 0.9927535252 | AI82: -999 | AL82: 7.404728678e-10 | AN82: -999 | AQ82: 2 | AR82: 52.24744871 | AT82: -26 | AU82: -26 | AV82: 6 | AW82: =AS78 ->  | AX82: =$AT$72 -> -26 | BE82: 81 | BF82: 0.6280969791 | BI82: -999 | BJ82: 25.3 | BK82: -999 | BL82: 54 | BM82: =IF(BL82="",NA(),COUNTIF(BL82:$BL$303,BL82)) -> 2 | BN82: 47.844 | BO82: 1.61325 | BQ82: 54 | BR82: =IF(BQ82="",NA(),COUNTIF(BQ82:$BQ$303,BQ82)) -> 2 | BS82: 47.844 | BT82: -48.38675 | BW82: =IF(BV82="",NA(),COUNTIF(BV82:$BV$303,BV82)) ->  | CB82: =IF(CA82="",NA(),COUNTIF(CA82:$CA$303,CA82)) ->  | CF82: 36 | CG82: =IF(CF82="",NA(),COUNTIF($CF82:CF$303,CF82)) -> 2 | CI82: =IF(CH82="",NA(),COUNTIF($CH82:CH$303,CH82)) -> 
A83: -0.2926637651 | B83: 0.5137920489 | C83: -0.7168768907 | K83: 9 | L83: 28.86700404 | M83: 2.130831715e-05 | N83: 0.00194623643 | O83: -49.99997869 | Q83: -999 | V83: -49.99997869 | X83: -5.062278802 | Y83: 7.999246318e-10 | AB83: 50.11926 | AC83: 4.93326 | AD83: 0.5408234273 | AE83: 0.9905521454 | AI83: -999 | AL83: 7.999246318e-10 | AN83: -999 | AQ83: 1 | AR83: 46.12372436 | AT83: -26 | AU83: -26 | AW83: =BB92 -> 76.74234614 | AX83: =$BC$86 -> -50 | BE83: 82 | BF83: 0.9563750587 | BI83: -999 | BJ83: 25.3 | BK83: -999 | BL83: 40 | BM83: =IF(BL83="",NA(),COUNTIF(BL83:$BL$303,BL83)) -> 3 | BN83: 35.44 | BO83: 2.68875 | BQ83: 40 | BR83: =IF(BQ83="",NA(),COUNTIF(BQ83:$BQ$303,BQ83)) -> 3 | BS83: 35.44 | BT83: -47.31125 | BW83: =IF(BV83="",NA(),COUNTIF(BV83:$BV$303,BV83)) ->  | CB83: =IF(CA83="",NA(),COUNTIF(CA83:$CA$303,CA83)) ->  | CF83: 13 | CG83: =IF(CF83="",NA(),COUNTIF($CF83:CF$303,CF83)) -> 1 | CI83: =IF(CH83="",NA(),COUNTIF($CH83:CH$303,CH83)) -> 
A84: 0.7303785722 | B84: 0.6219860608 | C84: 1.789054821 | K84: 9.5 | L84: 28.99904259 | M84: 3.210775126e-05 | N84: 0.002086733226 | O84: -49.99996789 | Q84: -999 | V84: -49.99996789 | X84: -4.980629144 | Y84: 8.651472479e-10 | AB84: 50.39333 | AC84: 5.20733 | AD84: 0.6025841273 | AE84: 0.9878846217 | AI84: -999 | AL84: 8.651472479e-10 | AN84: -999 | AQ84: 0 | AR84: 40 | AT84: -26 | AU84: -26 | AV84: 5 | AW84: =AS79 ->  | AX84: =$AT$72 -> -26 | BD84: 1 | BE84: 83 | BF84: 0.02027953789 | BI84: -999 | BJ84: 25.3 | BK84: -999 | BL84: 58 | BM84: =IF(BL84="",NA(),COUNTIF(BL84:$BL$303,BL84)) -> 2 | BN84: 51.388 | BO84: 1.61325 | BQ84: 58 | BR84: =IF(BQ84="",NA(),COUNTIF(BQ84:$BQ$303,BQ84)) -> 2 | BS84: 51.388 | BT84: -48.38675 | BW84: =IF(BV84="",NA(),COUNTIF(BV84:$BV$303,BV84)) ->  | CB84: =IF(CA84="",NA(),COUNTIF(CA84:$CA$303,CA84)) ->  | CF84: 16 | CG84: =IF(CF84="",NA(),COUNTIF($CF84:CF$303,CF84)) -> 3 | CI84: =IF(CH84="",NA(),COUNTIF($CH84:CH$303,CH84)) -> 
A85: -0.07475816837 | B85: 0.8743987108 | C85: -0.1831193666 | K85: 10 | L85: 29.13804227 | M85: 4.80590665e-05 | N85: 0.002239216155 | O85: -49.99995194 | Q85: -999 | V85: -49.99995194 | X85: -4.898979486 | Y85: 9.368000594e-10 | AB85: 50.6674 | AC85: 5.4814 | AD85: 0.6676832436 | AE85: 0.9846951058 | AI85: -999 | AL85: 9.368000594e-10 | AN85: -999 | AQ85: -1 | AR85: 33.87627564 | AT85: -26 | AU85: -26 | AW85: =BB93 -> 70.61862178 | AX85: =$BC$86 -> -50 | AZ85: t | BA85: For t axis | BB85: x | BC85: y | BD85: y nos | BE85: 84 | BF85: 0.642497804 | BI85: -999 | BJ85: 25.3 | BK85: -999 | BL85: 44 | BM85: =IF(BL85="",NA(),COUNTIF(BL85:$BL$303,BL85)) -> 7 | BN85: 38.984 | BO85: 6.99075 | BQ85: 44 | BR85: =IF(BQ85="",NA(),COUNTIF(BQ85:$BQ$303,BQ85)) -> 7 | BS85: 38.984 | BT85: -43.00925 | BW85: =IF(BV85="",NA(),COUNTIF(BV85:$BV$303,BV85)) ->  | CB85: =IF(CA85="",NA(),COUNTIF(CA85:$CA$303,CA85)) ->  | CF85: 22 | CG85: =IF(CF85="",NA(),COUNTIF($CF85:CF$303,CF85)) -> 4 | CI85: =IF(CH85="",NA(),COUNTIF($CH85:CH$303,CH85)) -> 
A86: -0.3894001754 | B86: 0.8949653562 | C86: -0.9538317354 | K86: 10.5 | L86: 29.28416766 | M86: 7.145711455e-05 | N86: 0.002404856442 | O86: -49.99992854 | Q86: -999 | V86: -49.99992854 | X86: -4.817329827 | Y86: 1.015629317e-09 | AB86: 50.94147 | AC86: 5.75547 | AD86: 0.736120776 | AE86: 0.9809276262 | AI86: -999 | AL86: 1.015629317e-09 | AN86: -999 | AQ86: -2 | AR86: 27.75255129 | AT86: -26 | AU86: -26 | AV86: 4 | AW86: =AS80 ->  | AX86: =$AT$72 -> -26 | AZ86: 12 | BA86: =IF($BD$10,$O$9+AZ86*$BB$9,NA()) -> 113.4846923 | BB86: =IF(AND(100>=BA86,0<=BA86),BA86,NA()) ->  | BC86: =AX15 -> -50 | BD86: =BC86-$BD$84 -> -51 | BE86: 85 | BF86: 0.3926302008 | BI86: -999 | BJ86: 25.3 | BK86: -999 | BL86: 39 | BM86: =IF(BL86="",NA(),COUNTIF(BL86:$BL$303,BL86)) -> 3 | BN86: 34.554 | BO86: 2.68875 | BQ86: 39 | BR86: =IF(BQ86="",NA(),COUNTIF(BQ86:$BQ$303,BQ86)) -> 3 | BS86: 34.554 | BT86: -47.31125 | BW86: =IF(BV86="",NA(),COUNTIF(BV86:$BV$303,BV86)) ->  | CB86: =IF(CA86="",NA(),COUNTIF(CA86:$CA$303,CA86)) ->  | CF86: 23 | CG86: =IF(CF86="",NA(),COUNTIF($CF86:CF$303,CF86)) -> 4 | CI86: =IF(CH86="",NA(),COUNTIF($CH86:CH$303,CH86)) -> 
A87: 0.3676212904 | B87: 0.7648327289 | C87: 0.9004845801 | K87: 11 | L87: 29.43757013 | M87: 0.0001055407858 | N87: 0.002584953153 | O87: -49.99989446 | Q87: -999 | V87: -49.99989446 | X87: -4.735680169 | Y87: 1.102481185e-09 | AB87: 51.21554 | AC87: 6.02954 | AD87: 0.8078967247 | AE87: 0.9765269337 | AI87: -999 | AL87: 1.102481185e-09 | AN87: -999 | AQ87: -3 | AR87: 21.62882693 | AT87: -26 | AU87: -26 | AW87: =BB94 -> 64.49489743 | AX87: =$BC$86 -> -50 | AZ87: 11 | BA87: =IF($BD$10,$O$9+AZ87*$BB$9,NA()) -> 107.3609679 | BC87: =BC86 -> -50 | BD87: =BC87-$BD$84 -> -51 | BE87: 86 | BF87: 0.1125234328 | BI87: -999 | BJ87: 25.3 | BK87: -999 | BL87: 51 | BM87: =IF(BL87="",NA(),COUNTIF(BL87:$BL$303,BL87)) -> 1 | BN87: 45.186 | BO87: 0.53775 | BQ87: 51 | BR87: =IF(BQ87="",NA(),COUNTIF(BQ87:$BQ$303,BQ87)) -> 1 | BS87: 45.186 | BT87: -49.46225 | BW87: =IF(BV87="",NA(),COUNTIF(BV87:$BV$303,BV87)) ->  | CB87: =IF(CA87="",NA(),COUNTIF(CA87:$CA$303,CA87)) ->  | CF87: 19 | CG87: =IF(CF87="",NA(),COUNTIF($CF87:CF$303,CF87)) -> 2 | CI87: =IF(CH87="",NA(),COUNTIF($CH87:CH$303,CH87)) -> 
A88: -0.2678412971 | B88: 0.4754540281 | C88: -0.6560745099 | K88: 11.5 | L88: 29.59838627 | M88: 0.0001548459585 | N88: 0.002780948449 | O88: -49.99984515 | Q88: -999 | V88: -49.99984515 | X88: -4.654030511 | Y88: 1.198316933e-09 | AB88: 51.48961 | AC88: 6.30361 | AD88: 0.8830110896 | AE88: 0.9714393653 | AI88: -999 | AL88: 1.198316933e-09 | AN88: -999 | AQ88: -4 | AR88: 15.50510257 | AT88: -26 | AU88: -26 | AV88: 3 | AW88: =AS81 ->  | AX88: =$AT$72 -> -26 | AZ88: 10 | BA88: 101.2372436 | BC88: =BC87 -> -50 | BD88: -51 | BE88: 87 | BF88: 0.7910149805 | BI88: -999 | BJ88: 25.3 | BK88: -999 | BL88: 41 | BM88: =IF(BL88="",NA(),COUNTIF(BL88:$BL$303,BL88)) -> 5 | BN88: 36.326 | BO88: 4.83975 | BQ88: 41 | BR88: =IF(BQ88="",NA(),COUNTIF(BQ88:$BQ$303,BQ88)) -> 5 | BS88: 36.326 | BT88: -45.16025 | BW88: =IF(BV88="",NA(),COUNTIF(BV88:$BV$303,BV88)) ->  | CB88: =IF(CA88="",NA(),COUNTIF(CA88:$CA$303,CA88)) ->  | CF88: 12 | CG88: =IF(CF88="",NA(),COUNTIF($CF88:CF$303,CF88)) -> 2 | CI88: =IF(CH88="",NA(),COUNTIF($CH88:CH$303,CH88)) -> 
A89: -0.05568952453 | B89: 1.05615771 | C89: -0.1364109191 | K89: 12 | L89: 29.76673621 | M89: 0.0002256753525 | N89: 0.002994444772 | O89: -49.99977432 | Q89: -999 | V89: -49.99977432 | X89: -4.572380853 | Y89: 1.304230711e-09 | AB89: 51.76368 | AC89: 6.57768 | AD89: 0.9614638707 | AE89: 0.9656137084 | AI89: -999 | AL89: 1.304230711e-09 | AN89: -999 | AQ89: -5 | AR89: 9.381378215 | AT89: -26 | AU89: -26 | AW89: =BB95 -> 58.37117307 | AX89: =$BC$86 -> -50 | AZ89: 9 | BA89: 95.11351921 | BB89: 95.11351921 | BC89: -50 | BD89: -51 | BE89: 88 | BF89: 0.08844253048 | BI89: -999 | BJ89: 25.3 | BK89: -999 | BL89: 44 | BM89: =IF(BL89="",NA(),COUNTIF(BL89:$BL$303,BL89)) -> 6 | BN89: 38.984 | BO89: 5.91525 | BQ89: 44 | BR89: =IF(BQ89="",NA(),COUNTIF(BQ89:$BQ$303,BQ89)) -> 6 | BS89: 38.984 | BT89: -44.08475 | BW89: =IF(BV89="",NA(),COUNTIF(BV89:$BV$303,BV89)) ->  | CB89: =IF(CA89="",NA(),COUNTIF(CA89:$CA$303,CA89)) ->  | CF89: 27 | CG89: =IF(CF89="",NA(),COUNTIF($CF89:CF$303,CF89)) -> 1 | CI89: =IF(CH89="",NA(),COUNTIF($CH89:CH$303,CH89)) -> 
A90: -0.3803664571 | B90: 0.8409173546 | C90: -0.9317037352 | K90: 12.5 | L90: 29.94272208 | M90: 0.0003267180195 | N90: 0.00322722424 | O90: -49.99967328 | Q90: -999 | V90: -49.99967328 | X90: -4.490731195 | Y90: 1.421470409e-09 | AB90: 52.03775 | AC90: 6.85175 | AD90: 1.043255068 | AE90: 0.9590020483 | AI90: -999 | AL90: 1.421470409e-09 | AN90: -999 | AQ90: -6 | AR90: 3.257653858 | AT90: -26 | AU90: -26 | AV90: 2 | AW90: =AS82 ->  | AX90: =$AT$72 -> -26 | AZ90: 8 | BA90: 88.98979486 | BB90: 88.98979486 | BC90: -50 | BD90: -51 | BE90: 89 | BF90: 0.4545829706 | BI90: -999 | BJ90: 25.3 | BK90: -999 | BL90: 39 | BM90: =IF(BL90="",NA(),COUNTIF(BL90:$BL$303,BL90)) -> 2 | BN90: 34.554 | BO90: 1.61325 | BQ90: 39 | BR90: =IF(BQ90="",NA(),COUNTIF(BQ90:$BQ$303,BQ90)) -> 2 | BS90: 34.554 | BT90: -48.38675 | BW90: =IF(BV90="",NA(),COUNTIF(BV90:$BV$303,BV90)) ->  | CB90: =IF(CA90="",NA(),COUNTIF(CA90:$CA$303,CA90)) ->  | CF90: 21 | CG90: =IF(CF90="",NA(),COUNTIF($CF90:CF$303,CF90)) -> 3 | CI90: =IF(CH90="",NA(),COUNTIF($CH90:CH$303,CH90)) -> 
A91: 0.6550726162 | B91: 0.6639156347 | C91: 1.604593654 | K91: 13 | L91: 30.12642627 | M91: 0.000469858134 | N91: 0.003481270533 | O91: -49.99953014 | Q91: -999 | V91: -49.99953014 | X91: -4.409081537 | Y91: 1.551462186e-09 | AB91: 52.31182 | AC91: 7.12582 | AD91: 1.128384682 | AE91: 0.9515605837 | AI91: -999 | AL91: 1.551462186e-09 | AN91: -999 | AQ91: -7 | AR91: -2.866070499 | AT91: -26 | AU91: -26 | AW91: =BB96 -> 52.24744871 | AX91: =$BC$86 -> -50 | AZ91: 7 | BA91: 82.8660705 | BB91: 82.8660705 | BC91: -50 | BD91: -51 | BE91: 90 | BF91: 0.615472611 | BI91: -999 | BJ91: 25.3 | BK91: -999 | BL91: 56 | BM91: =IF(BL91="",NA(),COUNTIF(BL91:$BL$303,BL91)) -> 1 | BN91: 49.616 | BO91: 0.53775 | BQ91: 56 | BR91: =IF(BQ91="",NA(),COUNTIF(BQ91:$BQ$303,BQ91)) -> 1 | BS91: 49.616 | BT91: -49.46225 | BW91: =IF(BV91="",NA(),COUNTIF(BV91:$BV$303,BV91)) ->  | CB91: =IF(CA91="",NA(),COUNTIF(CA91:$CA$303,CA91)) ->  | CF91: 17 | CG91: =IF(CF91="",NA(),COUNTIF($CF91:CF$303,CF91)) -> 3 | CI91: =IF(CH91="",NA(),COUNTIF($CH91:CH$303,CH91)) -> 
A92: 0.05193436848 | B92: 1.310176966 | C92: 0.1272127029 | K92: 13.5 | L92: 30.31790988 | M92: 0.0006712203498 | N92: 0.003758793601 | O92: -49.99932878 | Q92: -999 | V92: -49.99932878 | X92: -4.327431879 | Y92: 1.695839384e-09 | AB92: 52.58589 | AC92: 7.39989 | AD92: 1.216852711 | AE92: 0.9432503934 | AI92: -999 | AL92: 1.695839384e-09 | AN92: -999 | AQ92: -8 | AR92: -8.989794856 | AT92: -26 | AU92: -26 | AV92: 1 | AW92: =AS83 ->  | AX92: =$AT$72 -> -26 | AZ92: 6 | BA92: 76.74234614 | BB92: 76.74234614 | BC92: -50 | BD92: -51 | BE92: 91 | BF92: 0.1115427129 | BI92: -999 | BJ92: 25.3 | BK92: -999 | BL92: 46 | BM92: =IF(BL92="",NA(),COUNTIF(BL92:$BL$303,BL92)) -> 2 | BN92: 40.756 | BO92: 1.61325 | BQ92: 46 | BR92: =IF(BQ92="",NA(),COUNTIF(BQ92:$BQ$303,BQ92)) -> 2 | BS92: 40.756 | BT92: -48.38675 | BW92: =IF(BV92="",NA(),COUNTIF(BV92:$BV$303,BV92)) ->  | CB92: =IF(CA92="",NA(),COUNTIF(CA92:$CA$303,CA92)) ->  | CF92: 33 | CG92: =IF(CF92="",NA(),COUNTIF($CF92:CF$303,CF92)) -> 1 | CI92: =IF(CH92="",NA(),COUNTIF($CH92:CH$303,CH92)) -> 
A93: 0.07547326406 | B93: 1.513529173 | C93: 0.1848709862 | K93: 14 | L93: 30.51721106 | M93: 0.0009525070164 | N93: 0.004062257581 | O93: -49.99904749 | Q93: -999 | V93: -49.99904749 | X93: -4.245782221 | Y93: 1.856476707e-09 | AB93: 52.85996 | AC93: 7.67396 | AD93: 1.308659157 | AE93: 0.9340381406 | AI93: -999 | AL93: 1.856476707e-09 | AN93: -999 | AQ93: -9 | AR93: -15.11351921 | AT93: -26 | AU93: -26 | AW93: =BB97 -> 46.12372436 | AX93: =$BC$86 -> -50 | AZ93: 5 | BA93: 70.61862178 | BB93: 70.61862178 | BC93: -50 | BD93: -51 | BE93: 92 | BF93: 0.5790258907 | BI93: -999 | BJ93: 25.3 | BK93: -999 | BL93: 46 | BM93: =IF(BL93="",NA(),COUNTIF(BL93:$BL$303,BL93)) -> 1 | BN93: 40.756 | BO93: 0.53775 | BQ93: 46 | BR93: =IF(BQ93="",NA(),COUNTIF(BQ93:$BQ$303,BQ93)) -> 1 | BS93: 40.756 | BT93: -49.46225 | BW93: =IF(BV93="",NA(),COUNTIF(BV93:$BV$303,BV93)) ->  | CB93: =IF(CA93="",NA(),COUNTIF(CA93:$CA$303,CA93)) ->  | CF93: 39 | CG93: =IF(CF93="",NA(),COUNTIF($CF93:CF$303,CF93)) -> 2 | CI93: =IF(CH93="",NA(),COUNTIF($CH93:CH$303,CH93)) -> 
A94: -0.4737981873 | B94: 1.440037641 | C94: -1.1605638 | K94: 14.5 | L94: 30.72434346 | M94: 0.001342690622 | N94: 0.004394412319 | O94: -49.99865731 | Q94: -999 | V94: -49.99865731 | X94: -4.164132563 | Y94: 2.035530712e-09 | AB94: 53.13403 | AC94: 7.94803 | AD94: 1.40380402 | AE94: 0.9238967021 | AI94: -999 | AL94: 2.035530712e-09 | AN94: -999 | AQ94: -10 | AR94: -21.23724357 | AT94: -26 | AU94: -26 | AV94: 0 | AW94: =AS84 ->  | AX94: =$AT$72 -> -26 | AZ94: 4 | BA94: 64.49489743 | BB94: 64.49489743 | BC94: -50 | BD94: -51 | BE94: 93 | BF94: 0.4341182522 | BI94: -999 | BJ94: 25.3 | BK94: -999 | BL94: 37 | BM94: =IF(BL94="",NA(),COUNTIF(BL94:$BL$303,BL94)) -> 4 | BN94: 32.782 | BO94: 3.76425 | BQ94: 37 | BR94: =IF(BQ94="",NA(),COUNTIF(BQ94:$BQ$303,BQ94)) -> 4 | BS94: 32.782 | BT94: -46.23575 | BW94: =IF(BV94="",NA(),COUNTIF(BV94:$BV$303,BV94)) ->  | CB94: =IF(CA94="",NA(),COUNTIF(CA94:$CA$303,CA94)) ->  | CF94: 37 | CG94: =IF(CF94="",NA(),COUNTIF($CF94:CF$303,CF94)) -> 1 | CI94: =IF(CH94="",NA(),COUNTIF($CH94:CH$303,CH94)) -> 
A95: -0.2584946426 | B95: 0.6275840409 | C95: -0.6331799757 | K95: 15 | L95: 30.9392947 | M95: 0.001880132389 | N95: 0.004758329008 | O95: -49.99811987 | Q95: -999 | V95: -49.99811987 | X95: -4.082482905 | Y95: 2.23548793e-09 | AB95: 53.4081 | AC95: 8.2221 | AD95: 1.502287298 | AE95: 0.9128057101 | AI95: -999 | AL95: 2.23548793e-09 | AN95: -999 | AQ95: -11 | AR95: -27.36096793 | AT95: -26 | AU95: -26 | AW95: =BB98 -> 40 | AX95: =$BC$86 -> -50 | AZ95: 3 | BA95: 58.37117307 | BB95: 58.37117307 | BC95: -50 | BD95: -51 | BE95: 94 | BF95: 0.1660129987 | BI95: -999 | BJ95: 25.3 | BK95: -999 | BL95: 41 | BM95: =IF(BL95="",NA(),COUNTIF(BL95:$BL$303,BL95)) -> 4 | BN95: 36.326 | BO95: 3.76425 | BQ95: 41 | BR95: =IF(BQ95="",NA(),COUNTIF(BQ95:$BQ$303,BQ95)) -> 4 | BS95: 36.326 | BT95: -46.23575 | BW95: =IF(BV95="",NA(),COUNTIF(BV95:$BV$303,BV95)) ->  | CB95: =IF(CA95="",NA(),COUNTIF(CA95:$CA$303,CA95)) ->  | CF95: 16 | CG95: =IF(CF95="",NA(),COUNTIF($CF95:CF$303,CF95)) -> 2 | CI95: =IF(CH95="",NA(),COUNTIF($CH95:CH$303,CH95)) -> 
A96: 0.5453041426 | B96: 0.8951280954 | C96: 1.335716904 | K96: 15.5 | L96: 31.16202484 | M96: 0.002615204231 | N96: 0.005157440445 | O96: -49.9973848 | Q96: -999 | V96: -49.9973848 | X96: -4.000833247 | Y96: 2.459222183e-09 | AB96: 53.68217 | AC96: 8.49617 | AD96: 1.604108993 | AE96: 0.9007519989 | AI96: -999 | AL96: 2.459222183e-09 | AN96: -999 | AQ96: -12 | AR96: -33.48469228 | AT96: -26 | AU96: -26 | AV96: -1 | AW96: =AS85 ->  | AX96: =$AT$72 -> -26 | AZ96: 2 | BA96: 52.24744871 | BB96: 52.24744871 | BC96: -50 | BD96: -51 | BE96: 95 | BF96: 0.1448723786 | BI96: -999 | BJ96: 25.3 | BK96: -999 | BL96: 54 | BM96: =IF(BL96="",NA(),COUNTIF(BL96:$BL$303,BL96)) -> 1 | BN96: 47.844 | BO96: 0.53775 | BQ96: 54 | BR96: =IF(BQ96="",NA(),COUNTIF(BQ96:$BQ$303,BQ96)) -> 1 | BS96: 47.844 | BT96: -49.46225 | BW96: =IF(BV96="",NA(),COUNTIF(BV96:$BV$303,BV96)) ->  | CB96: =IF(CA96="",NA(),COUNTIF(CA96:$CA$303,CA96)) ->  | CF96: 23 | CG96: =IF(CF96="",NA(),COUNTIF($CF96:CF$303,CF96)) -> 3 | CI96: =IF(CH96="",NA(),COUNTIF($CH96:CH$303,CH96)) -> 
A97: -0.660619443 | B97: 1.238175666 | C97: -1.618180549 | K97: 16 | L97: 31.39246505 | M97: 0.003613495287 | N97: 0.005595586525 | O97: -49.9963865 | Q97: -999 | V97: -49.9963865 | X97: -3.919183588 | Y97: 2.710063076e-09 | AB97: 53.95624 | AC97: 8.77024 | AD97: 1.709269104 | AE97: 0.8877299471 | AI97: -999 | AL97: 2.710063076e-09 | AN97: -999 | AW97: =BB99 -> 33.87627564 | AX97: =$BC$86 -> -50 | AZ97: 1 | BA97: 46.12372436 | BB97: 46.12372436 | BC97: -50 | BD97: -51 | BE97: 96 | BF97: 0.6689201258 | BI97: -999 | BJ97: 25.3 | BK97: -999 | BL97: 34 | BM97: =IF(BL97="",NA(),COUNTIF(BL97:$BL$303,BL97)) -> 2 | BN97: 30.124 | BO97: 1.61325 | BQ97: 34 | BR97: =IF(BQ97="",NA(),COUNTIF(BQ97:$BQ$303,BQ97)) -> 2 | BS97: 30.124 | BT97: -48.38675 | BW97: =IF(BV97="",NA(),COUNTIF(BV97:$BV$303,BV97)) ->  | CB97: =IF(CA97="",NA(),COUNTIF(CA97:$CA$303,CA97)) ->  | CF97: 32 | CG97: =IF(CF97="",NA(),COUNTIF($CF97:CF$303,CF97)) -> 2 | CI97: =IF(CH97="",NA(),COUNTIF($CH97:CH$303,CH97)) -> 
A98: -0.3980795929 | B98: 0.6550943652 | C98: -0.9750918796 | K98: 16.5 | L98: 31.63051625 | M98: 0.004959684819 | N98: 0.006077065647 | O98: -49.99504032 | Q98: -999 | V98: -49.99504032 | X98: -3.83753393 | Y98: 2.991878058e-09 | AB98: 54.23031 | AC98: 9.04431 | AD98: 1.817767631 | AE98: 0.873741712 | AI98: -999 | AL98: 2.991878058e-09 | AN98: -999 | AR98: Label s pile X axis | AU98: 1.4 | AV98: -2 | AW98: =AS86 ->  | AX98: =$AT$72 -> -26 | AZ98: 0 | BA98: 40 | BB98: 40 | BC98: -50 | BD98: -51 | BE98: 97 | BF98: 0.9540845565 | BI98: -999 | BJ98: 25.3 | BK98: -999 | BL98: 38 | BM98: =IF(BL98="",NA(),COUNTIF(BL98:$BL$303,BL98)) -> 4 | BN98: 33.668 | BO98: 3.76425 | BQ98: 38 | BR98: =IF(BQ98="",NA(),COUNTIF(BQ98:$BQ$303,BQ98)) -> 4 | BS98: 33.668 | BT98: -46.23575 | BW98: =IF(BV98="",NA(),COUNTIF(BV98:$BV$303,BV98)) ->  | CB98: =IF(CA98="",NA(),COUNTIF(CA98:$CA$303,CA98)) ->  | CF98: 17 | CG98: =IF(CF98="",NA(),COUNTIF($CF98:CF$303,CF98)) -> 2 | CI98: =IF(CH98="",NA(),COUNTIF($CH98:CH$303,CH98)) -> 
A99: -0.3940104278 | B99: 1.427613705 | C99: -0.9651245015 | K99: 17 | L99: 31.87604787 | M99: 0.006762158841 | N99: 0.006606692761 | O99: -49.99323784 | Q99: -999 | V99: -49.99323784 | X99: -3.755884272 | Y99: 3.309171048e-09 | AB99: 54.50438 | AC99: 9.31838 | AD99: 1.929604574 | AE99: 0.8587973518 | AI99: -999 | AL99: 3.309171048e-09 | AN99: -999 | AR99: 0 | AS99: =$AX$35+AR99*$AZ$3 ->  | AT99: =$AY$35 -> -19 | AU99: =AT99+$AU$98 -> -17.6 | AW99: =BB100 -> 27.75255129 | AX99: =$BC$86 -> -50 | AZ99: -1 | BA99: 33.87627564 | BB99: 33.87627564 | BC99: -50 | BD99: -51 | BE99: 98 | BF99: 0.9685971104 | BI99: -999 | BJ99: 25.3 | BK99: -999 | BL99: 38 | BM99: =IF(BL99="",NA(),COUNTIF(BL99:$BL$303,BL99)) -> 3 | BN99: 33.668 | BO99: 2.68875 | BQ99: 38 | BR99: =IF(BQ99="",NA(),COUNTIF(BQ99:$BQ$303,BQ99)) -> 3 | BS99: 33.668 | BT99: -47.31125 | BW99: =IF(BV99="",NA(),COUNTIF(BV99:$BV$303,BV99)) ->  | CB99: =IF(CA99="",NA(),COUNTIF(CA99:$CA$303,CA99)) ->  | CF99: 36 | CG99: =IF(CF99="",NA(),COUNTIF($CF99:CF$303,CF99)) -> 1 | CI99: =IF(CH99="",NA(),COUNTIF($CH99:CH$303,CH99)) -> 
A100: -0.5068208337 | B100: 1.351253004 | C100: -1.241452434 | K100: 17.5 | L100: 32.12889679 | M100: 0.009158436969 | N100: 0.007189864901 | O100: -49.99084156 | Q100: -999 | V100: -49.99084156 | X100: -3.674234614 | Y100: 3.667201339e-09 | AB100: 54.77845 | AC100: 9.59245 | AD100: 2.044779933 | AE100: 0.8429148357 | AI100: -999 | AL100: 3.667201339e-09 | AN100: -999 | AQ100: =AR100*$AZ$3 -> 10 | AR100: 1 | AT100: -19 | AU100: =AT100+$AU$98 -> -17.6 | AV100: -3 | AW100: =AS87 ->  | AX100: =$AT$72 -> -26 | AZ100: -2 | BA100: 27.75255129 | BB100: 27.75255129 | BC100: -50 | BD100: -51 | BE100: 99 | BF100: 0.6953710429 | BI100: -999 | BJ100: 25.3 | BK100: -999 | BL100: 37 | BM100: =IF(BL100="",NA(),COUNTIF(BL100:$BL$303,BL100)) -> 3 | BN100: 32.782 | BO100: 2.68875 | BQ100: 37 | BR100: =IF(BQ100="",NA(),COUNTIF(BQ100:$BQ$303,BQ100)) -> 3 | BS100: 32.782 | BT100: -47.31125 | BW100: =IF(BV100="",NA(),COUNTIF(BV100:$BV$303,BV100)) ->  | CB100: =IF(CA100="",NA(),COUNTIF(CA100:$CA$303,CA100)) ->  | CF100: 34 | CG100: =IF(CF100="",NA(),COUNTIF($CF100:CF$303,CF100)) -> 1 | CI100: =IF(CH100="",NA(),COUNTIF($CH100:CH$303,CH100)) -> 
A101: 0.6999513025 | B101: 0.9279781811 | C101: 1.714523536 | K101: 18 | L101: 32.3888663 | M101: 0.01232145676 | N101: 0.007832635108 | O101: -49.98767854 | Q101: -999 | V101: -49.98767854 | X101: -3.592584956 | Y101: 4.072127385e-09 | AB101: 55.05252 | AC101: 9.86652 | AD101: 2.163293709 | AE101: 0.826119942 | AI101: -999 | AL101: 4.072127385e-09 | AN101: -999 | AQ101: =AR101*$AZ$3 -> 20 | AR101: 2 | AT101: -19 | AU101: -17.6 | AW101: =BB101 -> 21.62882693 | AX101: =$BC$86 -> -50 | AZ101: -3 | BA101: 21.62882693 | BB101: 21.62882693 | BC101: -50 | BD101: -51 | BE101: 100 | BF101: 0.4691939615 | BI101: -999 | BJ101: 25.3 | BK101: -999 | BL101: 57 | BM101: =IF(BL101="",NA(),COUNTIF(BL101:$BL$303,BL101)) -> 1 | BN101: 50.502 | BO101: 0.53775 | BQ101: 57 | BR101: =IF(BQ101="",NA(),COUNTIF(BQ101:$BQ$303,BQ101)) -> 1 | BS101: 50.502 | BT101: -49.46225 | BW101: =IF(BV101="",NA(),COUNTIF(BV101:$BV$303,BV101)) ->  | CB101: =IF(CA101="",NA(),COUNTIF(CA101:$CA$303,CA101)) ->  | CF101: 24 | CG101: =IF(CF101="",NA(),COUNTIF($CF101:CF$303,CF101)) -> 3 | CI101: =IF(CH101="",NA(),COUNTIF($CH101:CH$303,CH101)) -> 
A102: 0.1303080541 | B102: 0.8156475604 | C102: 0.319188242 | K102: 18.5 | L102: 32.65572532 | M102: 0.0164667335 | N102: 0.008541795739 | O102: -49.98353327 | Q102: -999 | V102: -49.98353327 | X102: -3.510935298 | Y102: 4.531181275e-09 | AB102: 55.32659 | AC102: 10.14059 | AD102: 2.285145901 | AE102: 0.808446049 | AI102: -999 | AL102: 4.531181275e-09 | AN102: -999 | AQ102: 30 | AR102: 3 | AT102: -19 | AU102: -17.6 | AV102: -4 | AW102: =AS88 ->  | AX102: =$AT$72 -> -26 | AZ102: -4 | BA102: 15.50510257 | BB102: 15.50510257 | BC102: -50 | BD102: -51 | BF102: 0.7142346911 | BI102: -999 | BJ102: 25.3 | BK102: -999 | BL102: 47 | BM102: =IF(BL102="",NA(),COUNTIF(BL102:$BL$303,BL102)) -> 1 | BN102: 41.642 | BO102: 0.53775 | BQ102: 47 | BR102: =IF(BQ102="",NA(),COUNTIF(BQ102:$BQ$303,BQ102)) -> 1 | BS102: 41.642 | BT102: -49.46225 | BW102: =IF(BV102="",NA(),COUNTIF(BV102:$BV$303,BV102)) ->  | CB102: =IF(CA102="",NA(),COUNTIF(CA102:$CA$303,CA102)) ->  | CF102: 21 | CG102: =IF(CF102="",NA(),COUNTIF($CF102:CF$303,CF102)) -> 2 | CI102: =IF(CH102="",NA(),COUNTIF($CH102:CH$303,CH102)) -> 
A103: -0.04368606775 | B103: 0.6171817393 | C103: -0.1070085749 | K103: 19 | L103: 32.92920764 | M103: 0.0218603726 | N103: 0.00932497225 | O103: -49.97813963 | Q103: -999 | V103: -49.97813963 | X103: -3.42928564 | Y103: 5.052881127e-09 | AB103: 55.60066 | AC103: 10.41466 | AD103: 2.410336509 | AE103: 0.7899338225 | AI103: -999 | AL103: 5.052881127e-09 | AN103: -999 | AQ103: 40 | AR103: 4 | AT103: -19 | AU103: -17.6 | AW103: =BB102 -> 15.50510257 | AX103: =$BC$86 -> -50 | AZ103: -5 | BA103: 9.381378215 | BB103: 9.381378215 | BC103: -50 | BD103: -51 | BL103: 44 | BM103: =IF(BL103="",NA(),COUNTIF(BL103:$BL$303,BL103)) -> 5 | BN103: 38.984 | BO103: 4.83975 | BQ103: 44 | BR103: =IF(BQ103="",NA(),COUNTIF(BQ103:$BQ$303,BQ103)) -> 5 | BS103: 38.984 | BT103: -45.16025 | BW103: =IF(BV103="",NA(),COUNTIF(BV103:$BV$303,BV103)) ->  | CB103: =IF(CA103="",NA(),COUNTIF(CA103:$CA$303,CA103)) ->  | CF103: 16 | CG103: =IF(CF103="",NA(),COUNTIF($CF103:CF$303,CF103)) -> 1 | CI103: =IF(CH103="",NA(),COUNTIF($CH103:CH$303,CH103)) -> 
A104: -0.06412152439 | B104: 0.7188424534 | C104: -0.1570650163 | K104: 19.5 | L104: 33.20901145 | M104: 0.02882785751 | N104: 0.0101907286 | O104: -49.97117214 | Q104: -999 | V104: -49.97117214 | X104: -3.347635982 | Y104: 5.647290568e-09 | AB104: 55.87473 | AC104: 10.68873 | AD104: 2.538865534 | AE104: 0.770630807 | AI104: -999 | AL104: 5.647290568e-09 | AN104: -999 | AQ104: 50 | AR104: 5 | AT104: -19 | AU104: -17.6 | AV104: -5 | AW104: =AS89 ->  | AX104: =$AT$72 -> -26 | AZ104: -6 | BA104: 3.257653858 | BB104: 3.257653858 | BC104: -50 | BD104: -51 | BL104: 44 | BM104: =IF(BL104="",NA(),COUNTIF(BL104:$BL$303,BL104)) -> 4 | BN104: 38.984 | BO104: 3.76425 | BQ104: 44 | BR104: =IF(BQ104="",NA(),COUNTIF(BQ104:$BQ$303,BQ104)) -> 4 | BS104: 38.984 | BT104: -46.23575 | BW104: =IF(BV104="",NA(),COUNTIF(BV104:$BV$303,BV104)) ->  | CB104: =IF(CA104="",NA(),COUNTIF(CA104:$CA$303,CA104)) ->  | CF104: 18 | CG104: =IF(CF104="",NA(),COUNTIF($CF104:CF$303,CF104)) -> 2 | CI104: =IF(CH104="",NA(),COUNTIF($CH104:CH$303,CH104)) -> 
A105: 0.4328921637 | B105: 0.6851070476 | C105: 1.060364915 | K105: 20 | L105: 33.49479896 | M105: 0.03776346853 | N105: 0.01114868549 | O105: -49.96223653 | Q105: -999 | V105: -49.96223653 | X105: -3.265986324 | Y105: 6.326336852e-09 | AB105: 56.1488 | AC105: 10.9628 | AD105: 2.670732974 | AE105: 0.7505909303 | AI105: -999 | AL105: 6.326336852e-09 | AN105: -999 | AQ105: 60 | AR105: 6 | AT105: -19 | AU105: -17.6 | AW105: =BB103 -> 9.381378215 | AX105: =$BC$86 -> -50 | AZ105: -7 | BA105: -2.866070499 | BC105: -50 | BD105: -51 | BF105: H1 sample | BJ105: 0.8 | BL105: 52 | BM105: =IF(BL105="",NA(),COUNTIF(BL105:$BL$303,BL105)) -> 2 | BN105: 46.072 | BO105: 1.61325 | BQ105: 52 | BR105: =IF(BQ105="",NA(),COUNTIF(BQ105:$BQ$303,BQ105)) -> 2 | BS105: 46.072 | BT105: -48.38675 | BW105: =IF(BV105="",NA(),COUNTIF(BV105:$BV$303,BV105)) ->  | CB105: =IF(CA105="",NA(),COUNTIF(CA105:$CA$303,CA105)) ->  | CF105: 17 | CG105: =IF(CF105="",NA(),COUNTIF($CF105:CF$303,CF105)) -> 1 | CI105: =IF(CH105="",NA(),COUNTIF($CH105:CH$303,CH105)) -> 
A106: -0.7695811626 | B106: 0.8386000595 | C106: -1.885081164 | K106: 20.5 | L106: 33.78619625 | M106: 0.04914010617 | N106: 0.01220965276 | O106: -49.95085989 | Q106: -999 | V106: -49.95085989 | X106: -3.184336666 | Y106: 7.104202313e-09 | AB106: 56.42287 | AC106: 11.23687 | AD106: 2.805938831 | AE106: 0.7298739293 | AI106: -999 | AL106: 7.104202313e-09 | AN106: -999 | AQ106: 70 | AR106: 7 | AT106: -19 | AU106: -17.6 | AV106: -6 | AW106: =AS90 ->  | AX106: =$AT$72 -> -26 | AZ106: -8 | BA106: -8.989794856 | BC106: -50 | BD106: -51 | BE106: 1 | BF106: rand no. | BG106: data point z | BH106: data point | BI106: Grey | BK106: New Sample, for display | BL106: 32 | BM106: =IF(BL106="",NA(),COUNTIF(BL106:$BL$303,BL106)) -> 1 | BN106: 28.352 | BO106: 0.53775 | BQ106: 32 | BR106: =IF(BQ106="",NA(),COUNTIF(BQ106:$BQ$303,BQ106)) -> 1 | BS106: 28.352 | BT106: -49.46225 | BW106: =IF(BV106="",NA(),COUNTIF(BV106:$BV$303,BV106)) ->  | CB106: =IF(CA106="",NA(),COUNTIF(CA106:$CA$303,CA106)) ->  | CF106: 21 | CG106: =IF(CF106="",NA(),COUNTIF($CF106:CF$303,CF106)) -> 1 | CI106: =IF(CH106="",NA(),COUNTIF($CH106:CH$303,CH106)) -> 
A107: -0.2381580151 | B107: 0.1759696637 | C107: -0.583365615 | K107: 21 | L107: 34.08279329 | M107: 0.06351919821 | N107: 0.01338577712 | O107: -49.9364808 | Q107: -999 | V107: -49.9364808 | X107: -3.102687008 | Y107: 7.997807887e-09 | AB107: 56.69694 | AC107: 11.51094 | AD107: 2.944483104 | AE107: 0.7085447096 | AI107: -999 | AL107: 7.997807887e-09 | AN107: -999 | AQ107: 80 | AR107: 8 | AT107: -19 | AU107: -17.6 | AW107: =BB104 -> 3.257653858 | AX107: =$BC$86 -> -50 | AZ107: -9 | BA107: -15.11351921 | BC107: -50 | BD107: -51 | BE107: 2 | BF107: =$G$12 -> 0.1935997158 | BG107: =IF(AND($BD$4,$BE106<=$K$14),NORMSINV(BF107),"") -> -0.8647073548 | BH107: =IF(BG107="","",$V$9+$R$11*BG107) -> 52.02938968 | BI107: =IF(AND(NOT($BB$12),$BB$4,$BD$2,BH107<>"",$D$4<>""),BH107,-999) -> -999 | BJ107: =$AX$8-$BJ$105 -> 24.2 | BK107: =IF(AND($BB$12,$BD$2,BH107<>"",$D$4<>""),BH107,-999) -> -999 | BL107: 41 | BM107: =IF(BL107="",NA(),COUNTIF(BL107:$BL$303,BL107)) -> 3 | BN107: 36.326 | BO107: 2.68875 | BQ107: 41 | BR107: =IF(BQ107="",NA(),COUNTIF(BQ107:$BQ$303,BQ107)) -> 3 | BS107: 36.326 | BT107: -47.31125 | BW107: =IF(BV107="",NA(),COUNTIF(BV107:$BV$303,BV107)) ->  | CB107: =IF(CA107="",NA(),COUNTIF(CA107:$CA$303,CA107)) ->  | CF107: 4 | CG107: =IF(CF107="",NA(),COUNTIF($CF107:CF$303,CF107)) -> 1 | CI107: =IF(CH107="",NA(),COUNTIF($CH107:CH$303,CH107)) -> 
A108: -0.5725609214 | B108: 0.4836880761 | C108: -1.402482104 | K108: 21.5 | L108: 34.38414423 | M108: 0.08156026495 | N108: 0.01469070654 | O108: -49.91843974 | Q108: -999 | V108: -49.91843974 | X108: -3.021037349 | Y108: 9.02741268e-09 | AB108: 56.97101 | AC108: 11.78501 | AD108: 3.086365793 | AE108: 0.6866726488 | AI108: -999 | AL108: 9.02741268e-09 | AN108: -999 | AQ108: 90 | AR108: 9 | AT108: -19 | AU108: -17.6 | AV108: -7 | AW108: =AS91 ->  | AX108: =$AT$72 -> -26 | AZ108: -10 | BA108: -21.23724357 | BC108: -50 | BD108: -51 | BE108: 3 | BF108: =MOD(BF107*10000013,1) -> 0.6750885632 | BG108: =IF(AND($BD$4,$BE107<=$K$14),NORMSINV(BF108),"") -> 0.4540082713 | BH108: =IF(BG108="","",$V$9+$R$11*BG108) -> 71.81012407 | BI108: =IF(AND(NOT($BB$12),$BB$4,$BD$2,BH108<>"",$D$4<>""),BH108,-999) -> -999 | BJ108: =$AX$8-$BJ$105 -> 24.2 | BK108: =IF(AND($BB$12,$BD$2,BH108<>"",$D$4<>""),BH108,-999) -> -999 | BL108: 35 | BM108: =IF(BL108="",NA(),COUNTIF(BL108:$BL$303,BL108)) -> 1 | BN108: 31.01 | BO108: 0.53775 | BQ108: 35 | BR108: =IF(BQ108="",NA(),COUNTIF(BQ108:$BQ$303,BQ108)) -> 1 | BS108: 31.01 | BT108: -49.46225 | BW108: =IF(BV108="",NA(),COUNTIF(BV108:$BV$303,BV108)) ->  | CB108: =IF(CA108="",NA(),COUNTIF(CA108:$CA$303,CA108)) ->  | CF108: 12 | CG108: =IF(CF108="",NA(),COUNTIF($CF108:CF$303,CF108)) -> 1 | CI108: =IF(CH108="",NA(),COUNTIF($CH108:CH$303,CH108)) -> 
A109: 0.1493872238 | B109: 0.8800701472 | C109: 0.3659224725 | K109: 22 | L109: 34.68976778 | M109: 0.1040296056 | N109: 0.01613977243 | O109: -49.89597039 | Q109: -999 | V109: -49.89597039 | X109: -2.939387691 | Y109: 1.021736045e-08 | AB109: 57.24508 | AC109: 12.05908 | AD109: 3.231586899 | AE109: 0.6643308579 | AI109: -999 | AL109: 1.021736045e-08 | AN109: -999 | AQ109: 100 | AR109: 10 | AT109: -19 | AU109: -17.6 | AW109: =BB105 ->  | AX109: =$BC$86 -> -50 | AZ109: -11 | BA109: -27.36096793 | BC109: -50 | BD109: -51 | BE109: 4 | BF109: 0.408506088 | BG109: -0.2313895589 | BH109: 61.52915662 | BI109: -999 | BJ109: 24.2 | BK109: -999 | BL109: 48 | BM109: =IF(BL109="",NA(),COUNTIF(BL109:$BL$303,BL109)) -> 1 | BN109: 42.528 | BO109: 0.53775 | BQ109: 48 | BR109: =IF(BQ109="",NA(),COUNTIF(BQ109:$BQ$303,BQ109)) -> 1 | BS109: 42.528 | BT109: -49.46225 | BW109: =IF(BV109="",NA(),COUNTIF(BV109:$BV$303,BV109)) ->  | CB109: =IF(CA109="",NA(),COUNTIF(CA109:$CA$303,CA109)) ->  | CF109: 22 | CG109: =IF(CF109="",NA(),COUNTIF($CF109:CF$303,CF109)) -> 3 | CI109: =IF(CH109="",NA(),COUNTIF($CH109:CH$303,CH109)) -> 
A110: 1.071731186 | B110: 1.373518374 | C110: 2.625194548 | K110: 22.5 | L110: 34.99914795 | M110: 0.1318074564 | N110: 0.01775019056 | O110: -49.86819254 | Q110: -999 | V110: -49.86819254 | X110: -2.857738033 | Y110: 1.159701281e-08 | AB110: 57.51915 | AC110: 12.33315 | AD110: 3.380146421 | AE110: 0.6415954101 | AI110: -999 | AL110: 1.159701281e-08 | AN110: -999 | AQ110: 110 | AR110: 11 | AT110: -19 | AU110: -17.6 | AV110: -8 | AW110: =AS92 ->  | AX110: =$AT$72 -> -26 | AZ110: -12 | BA110: -33.48469228 | BC110: -50 | BD110: -51 | BE110: 5 | BF110: 0.1901672706 | BG110: -0.8772800579 | BH110: 51.84079913 | BI110: -999 | BJ110: 24.2 | BK110: -999 | BL110: 63 | BM110: =IF(BL110="",NA(),COUNTIF(BL110:$BL$303,BL110)) -> 1 | BN110: 55.818 | BO110: 0.53775 | BQ110: 63 | BR110: =IF(BQ110="",NA(),COUNTIF(BQ110:$BQ$303,BQ110)) -> 1 | BS110: 55.818 | BT110: -49.46225 | BW110: =IF(BV110="",NA(),COUNTIF(BV110:$BV$303,BV110)) ->  | CB110: =IF(CA110="",NA(),COUNTIF(CA110:$CA$303,CA110)) ->  | CF110: 35 | CG110: =IF(CF110="",NA(),COUNTIF($CF110:CF$303,CF110)) -> 1 | CI110: =IF(CH110="",NA(),COUNTIF($CH110:CH$303,CH110)) -> 
A111: -0.09041874881 | B111: 0.9593288271 | C111: -0.2214797978 | K111: 23 | L111: 35.31173493 | M111: 0.165892866 | N111: 0.01954128129 | O111: -49.83410713 | Q111: -999 | V111: -49.83410713 | X111: -2.776088375 | Y111: 1.320192096e-08 | AB111: 57.79322 | AC111: 12.60722 | AD111: 3.532044358 | AE111: 0.6185445535 | AI111: -999 | AL111: 1.320192096e-08 | AN111: -999 | AQ111: 120 | AR111: 12 | AT111: -19 | AU111: -17.6 | AW111: =BB106 ->  | AX111: =$BC$86 -> -50 | BE111: 6 | BF111: 0.1781824753 | BG111: -0.9223137373 | BH111: 51.16529394 | BI111: -999 | BJ111: 24.2 | BK111: -999 | BL111: 44 | BM111: =IF(BL111="",NA(),COUNTIF(BL111:$BL$303,BL111)) -> 3 | BN111: 38.984 | BO111: 2.68875 | BQ111: 44 | BR111: =IF(BQ111="",NA(),COUNTIF(BQ111:$BQ$303,BQ111)) -> 3 | BS111: 38.984 | BT111: -47.31125 | BW111: =IF(BV111="",NA(),COUNTIF(BV111:$BV$303,BV111)) ->  | CB111: =IF(CA111="",NA(),COUNTIF(CA111:$CA$303,CA111)) ->  | CF111: 24 | CG111: =IF(CF111="",NA(),COUNTIF($CF111:CF$303,CF111)) -> 2 | CI111: =IF(CH111="",NA(),COUNTIF($CH111:CH$303,CH111)) -> 
A112: -0.4877991191 | B112: 0.5498823001 | C112: -1.194858939 | K112: 23.5 | L112: 35.62694621 | M112: 0.2074054405 | N112: 0.02153470935 | O112: -49.79259456 | Q112: -999 | V112: -49.79259456 | X112: -2.694438717 | Y112: 1.507530313e-08 | AB112: 58.06729 | AC112: 12.88129 | AD112: 3.687280713 | AE112: 0.5952579156 | AI112: -999 | AL112: 1.507530313e-08 | AN112: -999 | AV112: -9 | AW112: =AS93 ->  | AX112: =$AT$72 -> -26 | BE112: 7 | BF112: 0.06906058639 | BG112: -1.482824019 | BH112: 42.75763972 | BI112: -999 | BJ112: 24.2 | BK112: -999 | BL112: 37 | BM112: =IF(BL112="",NA(),COUNTIF(BL112:$BL$303,BL112)) -> 2 | BN112: 32.782 | BO112: 1.61325 | BQ112: 37 | BR112: =IF(BQ112="",NA(),COUNTIF(BQ112:$BQ$303,BQ112)) -> 2 | BS112: 32.782 | BT112: -48.38675 | BW112: =IF(BV112="",NA(),COUNTIF(BV112:$BV$303,BV112)) ->  | CB112: =IF(CA112="",NA(),COUNTIF(CA112:$CA$303,CA112)) ->  | CF112: 14 | CG112: =IF(CF112="",NA(),COUNTIF($CF112:CF$303,CF112)) -> 1 | CI112: =IF(CH112="",NA(),COUNTIF($CH112:CH$303,CH112)) -> 
A113: -0.02504457644 | B113: 1.510181163 | C113: -0.0613464331 | K113: 24 | L113: 35.94416797 | M113: 0.2575830505 | N113: 0.02375474275 | O113: -49.74241695 | Q113: -999 | V113: -49.74241695 | X113: -2.612789059 | Y113: 1.72699163e-08 | AB113: 58.34136 | AC113: 13.15536 | AD113: 3.845855483 | AE113: 0.571815716 | AI113: -999 | AL113: 1.72699163e-08 | AN113: -999 | AQ113: Rejection region | AS113: *se | AT113: x- | AU113: x+ | AW113: =BB107 ->  | AX113: =$BC$86 -> -50 | BE113: 8 | BF113: 0.761716418 | BI113: -999 | BJ113: 24.2 | BK113: -999 | BL113: 45 | BM113: =IF(BL113="",NA(),COUNTIF(BL113:$BL$303,BL113)) -> 1 | BN113: 39.87 | BO113: 0.53775 | BQ113: 45 | BR113: =IF(BQ113="",NA(),COUNTIF(BQ113:$BQ$303,BQ113)) -> 1 | BS113: 39.87 | BT113: -49.46225 | BW113: =IF(BV113="",NA(),COUNTIF(BV113:$BV$303,BV113)) ->  | CB113: =IF(CA113="",NA(),COUNTIF(CA113:$CA$303,CA113)) ->  | CF113: 38 | CG113: =IF(CF113="",NA(),COUNTIF($CF113:CF$303,CF113)) -> 4 | CI113: =IF(CH113="",NA(),COUNTIF($CH113:CH$303,CH113)) -> 
A114: -0.5137204904 | B114: 0.9075751595 | C114: -1.258353072 | K114: 24.5 | L114: 36.26275663 | M114: 0.317774558 | N114: 0.02622852907 | O114: -49.68222544 | Q114: -999 | V114: -49.68222544 | X114: -2.531139401 | Y114: 1.985043816e-08 | AB114: 58.61543 | AC114: 13.42943 | AD114: 4.007768669 | AE114: 0.5482979941 | AI114: -999 | AL114: 1.985043816e-08 | AN114: -999 | AQ114: crit z | AR114: =ABS(NORMSINV(M38/2)) -> 1.959963985 | AS114: =AR114*M17 -> 12.00227919 | AT114: =O9-AS114 -> 27.99772081 | AU114: =O9+AS114 -> 52.00227919 | AV114: -10 | AW114: =AS94 ->  | AX114: =$AT$72 -> -26 | BE114: 9 | BF114: 0.08199616522 | BI114: -999 | BJ114: 24.2 | BK114: -999 | BL114: 36 | BM114: =IF(BL114="",NA(),COUNTIF(BL114:$BL$303,BL114)) -> 1 | BN114: 31.896 | BO114: 0.53775 | BQ114: 36 | BR114: =IF(BQ114="",NA(),COUNTIF(BQ114:$BQ$303,BQ114)) -> 1 | BS114: 31.896 | BT114: -49.46225 | BW114: =IF(BV114="",NA(),COUNTIF(BV114:$BV$303,BV114)) ->  | CB114: =IF(CA114="",NA(),COUNTIF(CA114:$CA$303,CA114)) ->  | CF114: 23 | CG114: =IF(CF114="",NA(),COUNTIF($CF114:CF$303,CF114)) -> 2 | CI114: =IF(CH114="",NA(),COUNTIF($CH114:CH$303,CH114)) -> 
A115: -0.6830914871 | B115: 0.883022047 | C115: -1.673225591 | K115: 25 | L115: 36.58204069 | M115: 0.3894266494 | N115: 0.02898638678 | O115: -49.61057335 | Q115: -999 | V115: -49.61057335 | X115: -2.449489743 | Y115: 2.289651297e-08 | AB115: 58.8895 | AC115: 13.7035 | AD115: 4.173020272 | AE115: 0.5247838662 | AI115: -999 | AL115: 2.289651297e-08 | AN115: -999 | AQ115: crit t | AR115: =TINV(M38,K16) -> 2.570581836 | AS115: =AR115*O21 -> 14.09148341 | AT115: =O9-AS115 -> 25.90851659 | AU115: =O9+AS115 -> 54.09148341 | AW115: =BB108 ->  | AX115: =$BC$86 -> -50 | BE115: 10 | BF115: 0.7181098387 | BI115: -999 | BJ115: 24.2 | BK115: -999 | BL115: 34 | BM115: =IF(BL115="",NA(),COUNTIF(BL115:$BL$303,BL115)) -> 1 | BN115: 30.124 | BO115: 0.53775 | BQ115: 34 | BR115: =IF(BQ115="",NA(),COUNTIF(BQ115:$BQ$303,BQ115)) -> 1 | BS115: 30.124 | BT115: -49.46225 | BW115: =IF(BV115="",NA(),COUNTIF(BV115:$BV$303,BV115)) ->  | CB115: =IF(CA115="",NA(),COUNTIF(CA115:$CA$303,CA115)) ->  | CF115: 22 | CG115: =IF(CF115="",NA(),COUNTIF($CF115:CF$303,CF115)) -> 2 | CI115: =IF(CH115="",NA(),COUNTIF($CH115:CH$303,CH115)) -> 
A116: -0.3752809278 | B116: 0.980215209 | C116: -0.9192467834 | K116: 25.5 | L116: 36.90132278 | M116: 0.4740639339 | N116: 0.03206210693 | O116: -49.52593607 | Q116: -999 | V116: -49.52593607 | X116: -2.367840085 | Y116: 2.650666576e-08 | AB116: 59.16357 | AC116: 13.97757 | AD116: 4.341610291 | AE116: 0.5013508191 | AI116: -999 | AL116: 2.650666576e-08 | AN116: -999 | AQ116: use for crit | AR116: =IF($BD$12,AR114,AR115) -> 1.959963985 | AV116: -11 | AW116: =AS95 ->  | AX116: =$AT$72 -> -26 | BE116: 11 | BF116: 0.7220732197 | BI116: -999 | BJ116: 24.2 | BK116: -999 | BL116: 39 | BM116: =IF(BL116="",NA(),COUNTIF(BL116:$BL$303,BL116)) -> 1 | BN116: 34.554 | BO116: 0.53775 | BQ116: 39 | BR116: =IF(BQ116="",NA(),COUNTIF(BQ116:$BQ$303,BQ116)) -> 1 | BS116: 34.554 | BT116: -49.46225 | BW116: =IF(BV116="",NA(),COUNTIF(BV116:$BV$303,BV116)) ->  | CB116: =IF(CA116="",NA(),COUNTIF(CA116:$CA$303,CA116)) ->  | CF116: 25 | CG116: =IF(CF116="",NA(),COUNTIF($CF116:CF$303,CF116)) -> 2 | CI116: =IF(CH116="",NA(),COUNTIF($CH116:CH$303,CH116)) -> 
A117: -0.226710282 | B117: 1.964077163 | C117: -0.5553245104 | K117: 26 | L117: 37.21988191 | M117: 0.5732616213 | N117: 0.0354932589 | O117: -49.42673838 | Q117: -999 | V117: -49.42673838 | X117: -2.286190427 | Y117: 3.080335761e-08 | AB117: 59.43764 | AC117: 14.25164 | AD117: 4.513538726 | AE117: 0.4780740491 | AI117: -999 | AL117: 3.080335761e-08 | AN117: -999 | AQ117: use | AR117: =IF(AND($BD$9,$AR$70,$BD$13,NOT($BD$5),NOT($BD$10)),IF($BD$12,AT114,AT115),NA()) ->  | AS117: =AX12+AX11+AU117 -> -5.5 | AT117: =-(AR117-AU120) ->  | AU117: -3.5 | AW117: =BB109 ->  | AX117: =$BC$86 -> -50 | BE117: 12 | BF117: 0.5841173455 | BI117: -999 | BJ117: 24.2 | BK117: -999 | BL117: 41 | BM117: =IF(BL117="",NA(),COUNTIF(BL117:$BL$303,BL117)) -> 2 | BN117: 36.326 | BO117: 1.61325 | BQ117: 41 | BR117: =IF(BQ117="",NA(),COUNTIF(BQ117:$BQ$303,BQ117)) -> 2 | BS117: 36.326 | BT117: -48.38675 | BW117: =IF(BV117="",NA(),COUNTIF(BV117:$BV$303,BV117)) ->  | CB117: =IF(CA117="",NA(),COUNTIF(CA117:$CA$303,CA117)) ->  | CF117: 50 | CG117: =IF(CF117="",NA(),COUNTIF($CF117:CF$303,CF117)) -> 1 | CI117: =IF(CH117="",NA(),COUNTIF($CH117:CH$303,CH117)) -> 
A118: -0.4437594507 | B118: 1.49753441 | C118: -1.086984223 | K118: 26.5 | L118: 37.5369759 | M118: 0.688610313 | N118: 0.03932149083 | O118: -49.31138969 | Q118: -999 | V118: -49.31138969 | X118: -2.204540769 | Y118: 3.593954876e-08 | AB118: 59.71171 | AC118: 14.52571 | AD118: 4.688805578 | AE118: 0.4550258543 | AI118: -999 | AL118: 3.593954876e-08 | AN118: -999 | AQ118: for points | AR118: =IF(AND($BD$9,$AR$70,$BD$13,NOT($BD$5),NOT($BD$10)),IF($BD$12,AU114,AU115),NA()) ->  | AS118: =AS117 -> -5.5 | AT118: 100 | AU118: =AX10-AU117 -> 5.5 | AV118: -12 | AW118: =AS96 ->  | AX118: =$AT$72 -> -26 | BE118: 13 | BF118: 0.04864462465 | BI118: -999 | BJ118: 24.2 | BK118: -999 | BL118: 38 | BM118: =IF(BL118="",NA(),COUNTIF(BL118:$BL$303,BL118)) -> 2 | BN118: 33.668 | BO118: 1.61325 | BQ118: 38 | BR118: =IF(BQ118="",NA(),COUNTIF(BQ118:$BQ$303,BQ118)) -> 2 | BS118: 33.668 | BT118: -48.38675 | BW118: =IF(BV118="",NA(),COUNTIF(BV118:$BV$303,BV118)) ->  | CB118: =IF(CA118="",NA(),COUNTIF(CA118:$CA$303,CA118)) ->  | CF118: 38 | CG118: =IF(CF118="",NA(),COUNTIF($CF118:CF$303,CF118)) -> 3 | CI118: =IF(CH118="",NA(),COUNTIF($CH118:CH$303,CH118)) -> 
A119: 0.473072652 | B119: 1.532719945 | C119: 1.158786609 | K119: 27 | L119: 37.85184411 | M119: 0.8216727441 | N119: 0.04359281245 | O119: -49.17832726 | Q119: -999 | V119: -49.17832726 | X119: -2.12289111 | Y119: 4.210726443e-08 | AB119: 59.98578 | AC119: 14.79978 | AD119: 4.867410846 | AE119: 0.4322750853 | AI119: -999 | AL119: 4.210726443e-08 | AN119: -999 | AQ119: labels | AR119: =IF(AND($BD$9,$AR$70,$BD$13,NOT($BD$5),NOT($BD$10)),AVERAGE(AX3+AU120,AR117),NA()) ->  | AS119: =AS117-AQ120 -> -6.9 | AU119: =AX11+AX13+AU117 -> 20.5 | AW119: =BB110 ->  | AX119: =$BC$86 -> -50 | BE119: 14 | BF119: 0.8788849041 | BI119: -999 | BJ119: 24.2 | BK119: -999 | BL119: 53 | BM119: =IF(BL119="",NA(),COUNTIF(BL119:$BL$303,BL119)) -> 1 | BN119: 46.958 | BO119: 0.53775 | BQ119: 53 | BR119: =IF(BQ119="",NA(),COUNTIF(BQ119:$BQ$303,BQ119)) -> 1 | BS119: 46.958 | BT119: -49.46225 | BW119: =IF(BV119="",NA(),COUNTIF(BV119:$BV$303,BV119)) ->  | CB119: =IF(CA119="",NA(),COUNTIF(CA119:$CA$303,CA119)) ->  | CF119: 39 | CG119: =IF(CF119="",NA(),COUNTIF($CF119:CF$303,CF119)) -> 1 | CI119: =IF(CH119="",NA(),COUNTIF($CH119:CH$303,CH119)) -> 
A120: 0.3936174808 | B120: 1.491619379 | C120: 0.9641619818 | K120: 27.5 | L120: 38.16371027 | M120: 0.9739326898 | N120: 0.04835784367 | O120: -49.02606731 | Q120: -999 | V120: -49.02606731 | X120: -2.041241452 | Y120: 4.954883577e-08 | AB120: 60.25985 | AC120: 15.07385 | AD120: 5.049354529 | AE120: 0.4098866602 | AI120: -999 | AL120: 4.954883577e-08 | AN120: -999 | AQ120: 1.4 | AR120: =IF(AND($BD$9,$AR$70,$BD$13,NOT($BD$5),NOT($BD$10)),AR118+(AY3-AR118)/3,NA()) ->  | AS120: =AS119 -> -6.9 | AU120: 0 | BE120: 15 | BF120: 0.4663696513 | BI120: -999 | BJ120: 24.2 | BK120: -999 | BL120: 52 | BM120: =IF(BL120="",NA(),COUNTIF(BL120:$BL$303,BL120)) -> 1 | BN120: 46.072 | BO120: 0.53775 | BQ120: 52 | BR120: =IF(BQ120="",NA(),COUNTIF(BQ120:$BQ$303,BQ120)) -> 1 | BS120: 46.072 | BT120: -49.46225 | BW120: =IF(BV120="",NA(),COUNTIF(BV120:$BV$303,BV120)) ->  | CB120: =IF(CA120="",NA(),COUNTIF(CA120:$CA$303,CA120)) ->  | CF120: 38 | CG120: =IF(CF120="",NA(),COUNTIF($CF120:CF$303,CF120)) -> 2 | CI120: =IF(CH120="",NA(),COUNTIF($CH120:CH$303,CH120)) -> 
A121: -0.3128277705 | B121: 0.7209633717 | C121: -0.766268415 | K121: 28 | L121: 38.47178549 | M121: 1.146736691 | N121: 0.05367200788 | O121: -48.85326331 | Q121: -999 | V121: -48.85326331 | X121: -1.959591794 | Y121: 5.857173322e-08 | AB121: 60.53392 | AC121: 15.34792 | AD121: 5.234636629 | AE121: 0.3879211463 | AI121: -999 | AL121: 5.857173322e-08 | AN121: -999 | BE121: 16 | BF121: 0.5753853843 | BI121: -999 | BJ121: 24.2 | BK121: -999 | BL121: 40 | BM121: =IF(BL121="",NA(),COUNTIF(BL121:$BL$303,BL121)) -> 2 | BN121: 35.44 | BO121: 1.61325 | BQ121: 40 | BR121: =IF(BQ121="",NA(),COUNTIF(BQ121:$BQ$303,BQ121)) -> 2 | BS121: 35.44 | BT121: -48.38675 | BW121: =IF(BV121="",NA(),COUNTIF(BV121:$BV$303,BV121)) ->  | CB121: =IF(CA121="",NA(),COUNTIF(CA121:$CA$303,CA121)) ->  | CF121: 18 | CG121: =IF(CF121="",NA(),COUNTIF($CF121:CF$303,CF121)) -> 1 | CI121: =IF(CH121="",NA(),COUNTIF($CH121:CH$303,CH121)) -> 
A122: -0.242435952 | B122: 1.240466991 | C122: -0.5938443777 | K122: 28.5 | L122: 38.77527149 | M122: 1.341229748 | N122: 0.05959564366 | O122: -48.65877025 | Q122: -999 | V122: -48.65877025 | X122: -1.877942136 | Y122: 6.956825196e-08 | AB122: 60.80799 | AC122: 15.62199 | AD122: 5.423257146 | AE122: 0.3664344107 | AI122: -999 | AL122: 6.956825196e-08 | AN122: -999 | AR122: Panel 1 y axis | AT122: Highlighted points | BE122: 17 | BF122: 0.3226260766 | BI122: -999 | BJ122: 24.2 | BK122: -999 | BL122: 41 | BM122: =IF(BL122="",NA(),COUNTIF(BL122:$BL$303,BL122)) -> 1 | BN122: 36.326 | BO122: 0.53775 | BQ122: 41 | BR122: =IF(BQ122="",NA(),COUNTIF(BQ122:$BQ$303,BQ122)) -> 1 | BS122: 36.326 | BT122: -49.46225 | BW122: =IF(BV122="",NA(),COUNTIF(BV122:$BV$303,BV122)) ->  | CB122: =IF(CA122="",NA(),COUNTIF(CA122:$CA$303,CA122)) ->  | CF122: 32 | CG122: =IF(CF122="",NA(),COUNTIF($CF122:CF$303,CF122)) -> 1 | CI122: =IF(CH122="",NA(),COUNTIF($CH122:CH$303,CH122)) -> 
A123: -0.2759760231 | B123: 0.7292432552 | C123: -0.6760004378 | K123: 29 | L123: 39.07336391 | M123: 1.558286648 | N123: 0.06619400269 | O123: -48.44171335 | Q123: -999 | V123: -48.44171335 | X123: -1.796292478 | Y123: 8.304178791e-08 | AB123: 61.08206 | AC123: 15.89606 | AD123: 5.615216078 | AE123: 0.3454773418 | AI123: -999 | AL123: 8.304178791e-08 | AN123: -999 | AQ123: 0 | AR123: =$AX$3+$AZ$3*AQ123 -> 0 | AS123: =$AX$6 -> 27 | AT123: axis H0 | AU123: =AU125 ->  | AV123: 26 | BE123: 18 | BF123: 0.9605259821 | BI123: -999 | BJ123: 24.2 | BK123: -999 | BL123: 40 | BM123: =IF(BL123="",NA(),COUNTIF(BL123:$BL$303,BL123)) -> 1 | BN123: 35.44 | BO123: 0.53775 | BQ123: 40 | BR123: =IF(BQ123="",NA(),COUNTIF(BQ123:$BQ$303,BQ123)) -> 1 | BS123: 35.44 | BT123: -49.46225 | BW123: =IF(BV123="",NA(),COUNTIF(BV123:$BV$303,BV123)) ->  | CB123: =IF(CA123="",NA(),COUNTIF(CA123:$CA$303,CA123)) ->  | CF123: 19 | CG123: =IF(CF123="",NA(),COUNTIF($CF123:CF$303,CF123)) -> 1 | CI123: =IF(CH123="",NA(),COUNTIF($CH123:CH$303,CH123)) -> 
A124: -0.4727748261 | B124: 1.187127325 | C124: -1.158057087 | K124: 29.5 | L124: 39.36525576 | M124: 1.798441126 | N124: 0.07353709581 | O124: -48.20155887 | Q124: -999 | V124: -48.20155887 | X124: -1.71464282 | Y124: 9.964211717e-08 | AB124: 61.35613 | AC124: 16.17013 | AD124: 5.810513427 | AE124: 0.3250956405 | AI124: -999 | AL124: 9.964211717e-08 | AN124: -999 | AQ124: 1 | AR124: 10 | AS124: 27 | AT124: axis H1 | AU124: =AU126 ->  | AV124: =AV123 -> 26 | BE124: 19 | BF124: 0.3076566681 | BI124: -999 | BJ124: 24.2 | BK124: -999 | BL124: 37 | BM124: =IF(BL124="",NA(),COUNTIF(BL124:$BL$303,BL124)) -> 1 | BN124: 32.782 | BO124: 0.53775 | BQ124: 37 | BR124: =IF(BQ124="",NA(),COUNTIF(BQ124:$BQ$303,BQ124)) -> 1 | BS124: 32.782 | BT124: -49.46225 | BW124: =IF(BV124="",NA(),COUNTIF(BV124:$BV$303,BV124)) ->  | CB124: =IF(CA124="",NA(),COUNTIF(CA124:$CA$303,CA124)) ->  | CF124: 30 | CG124: =IF(CF124="",NA(),COUNTIF($CF124:CF$303,CF124)) -> 1 | CI124: =IF(CH124="",NA(),COUNTIF($CH124:CH$303,CH124)) -> 
A125: 0.742792816 | B125: 0.9812966869 | C125: 1.819463384 | K125: 30 | L125: 39.65014102 | M125: 2.06181552 | N125: 0.08169934356 | O125: -47.93818448 | Q125: -999 | V125: -47.93818448 | X125: -1.632993162 | Y125: 1.202130466e-07 | AB125: 61.6302 | AC125: 16.4442 | AD125: 6.009149192 | AE125: 0.3053296801 | AI125: -999 | AL125: 1.202130466e-07 | AN125: -999 | AQ125: 2 | AR125: 20 | AS125: 27 | AT125: mid H0 | AU125: =IF(AND(NOT($BB$12),$BD$3,$BD$2,AR70),BN2,NA()) ->  | AV125: =AX15+AX14+1 -> -25 | BE125: 20 | BF125: 0.6808025166 | BI125: -999 | BJ125: 24.2 | BK125: -999 | BL125: 58 | BM125: =IF(BL125="",NA(),COUNTIF(BL125:$BL$303,BL125)) -> 1 | BN125: 51.388 | BO125: 0.53775 | BQ125: 58 | BR125: =IF(BQ125="",NA(),COUNTIF(BQ125:$BQ$303,BQ125)) -> 1 | BS125: 51.388 | BT125: -49.46225 | BW125: =IF(BV125="",NA(),COUNTIF(BV125:$BV$303,BV125)) ->  | CB125: =IF(CA125="",NA(),COUNTIF(CA125:$CA$303,CA125)) ->  | CF125: 25 | CG125: =IF(CF125="",NA(),COUNTIF($CF125:CF$303,CF125)) -> 1 | CI125: =IF(CH125="",NA(),COUNTIF($CH125:CH$303,CH125)) -> 
A126: -0.1774881364 | B126: 0.8567243279 | C126: -0.4347553696 | K126: 30.5 | L126: 39.92721824 | M126: 2.348054036 | N126: 0.09075898255 | O126: -47.65194596 | Q126: -999 | V126: -47.65194596 | X126: -1.551343504 | Y126: 1.458571605e-07 | AB126: 61.90427 | AC126: 16.71827 | AD126: 6.211123373 | AE126: 0.2862144328 | AI126: -999 | AL126: 1.458571605e-07 | AN126: -999 | AQ126: 3 | AR126: 30 | AS126: 27 | AT126: mid H! | AU126: =IF(AND(NOT($BB$13),$BD$4,$BD$2,AR70),BX2,NA()) ->  | AV126: =AV125 -> -25 | BE126: 21 | BF126: 0.01682504267 | BI126: -999 | BJ126: 24.2 | BK126: -999 | BL126: 42 | BM126: =IF(BL126="",NA(),COUNTIF(BL126:$BL$303,BL126)) -> 1 | BN126: 37.212 | BO126: 0.53775 | BQ126: 42 | BR126: =IF(BQ126="",NA(),COUNTIF(BQ126:$BQ$303,BQ126)) -> 1 | BS126: 37.212 | BT126: -49.46225 | BW126: =IF(BV126="",NA(),COUNTIF(BV126:$BV$303,BV126)) ->  | CB126: =IF(CA126="",NA(),COUNTIF(CA126:$CA$303,CA126)) ->  | CF126: 22 | CG126: =IF(CF126="",NA(),COUNTIF($CF126:CF$303,CF126)) -> 1 | CI126: =IF(CH126="",NA(),COUNTIF($CH126:CH$303,CH126)) -> 
A127: -0.4375769549 | B127: 0.8836349785 | C127: -1.071840263 | K127: 31 | L127: 40.19569427 | M127: 2.656263002 | N127: 0.1007971763 | O127: -47.343737 | Q127: -999 | V127: -47.343737 | X127: -1.469693846 | Y127: 1.780243312e-07 | AB127: 62.17834 | AC127: 16.99234 | AD127: 6.416435971 | AE127: 0.267779459 | AI127: -999 | AL127: 1.780243312e-07 | AN127: -999 | AQ127: 4 | AR127: 40 | AS127: 27 | AT127: low H0 | AU127: =IF(AND(NOT($BB$12),$BD$3,$BD$2,AR70,BD10),BS2,NA()) ->  | AV127: =$AX$15 -> -50 | BE127: 22 | BF127: 0.6453756019 | BI127: -999 | BJ127: 24.2 | BK127: -999 | BL127: 38 | BM127: =IF(BL127="",NA(),COUNTIF(BL127:$BL$303,BL127)) -> 1 | BN127: 33.668 | BO127: 0.53775 | BQ127: 38 | BR127: =IF(BQ127="",NA(),COUNTIF(BQ127:$BQ$303,BQ127)) -> 1 | BS127: 33.668 | BT127: -49.46225 | BW127: =IF(BV127="",NA(),COUNTIF(BV127:$BV$303,BV127)) ->  | CB127: =IF(CA127="",NA(),COUNTIF(CA127:$CA$303,CA127)) ->  | CF127: 23 | CG127: =IF(CF127="",NA(),COUNTIF($CF127:CF$303,CF127)) -> 1 | CI127: =IF(CH127="",NA(),COUNTIF($CH127:CH$303,CH127)) -> 
A128: -0.04748252595 | B128: 0.9248393633 | C128: -0.1163079603 | K128: 31.5 | L128: 40.45478802 | M128: 2.984961698 | N128: =IF(K128>$O$9,1-TDIST((K128-$O$9)/$BB$9,$K$14-1,1),TDIST(($O$9-K128)/$BB$9,$K$14-1,1)) -> 0.1118967787 | O128: -47.0150383 | Q128: -999 | V128: -47.0150383 | X128: -1.388044188 | Y128: =nct(X128,$AW$136,$AW$137) -> 2.186334448e-07 | AB128: 62.45241 | AC128: 17.26641 | AD128: 6.625086984 | AE128: 0.250048957 | AI128: -999 | AL128: =Y128 -> 2.186334448e-07 | AN128: -999 | AQ128: 5 | AR128: 50 | AS128: 27 | AT128: low H1 | AU128: =IF(AND(NOT($BB$13),$BD$4,$BD$2,AR70,BD10),CC2,NA()) ->  | AV128: =AV127 -> -50 | BE128: 23 | BF128: 0.4093559012 | BI128: -999 | BJ128: 24.2 | BK128: -999 | BL128: 44 | BM128: =IF(BL128="",NA(),COUNTIF(BL128:$BL$303,BL128)) -> 2 | BN128: 38.984 | BO128: 1.61325 | BQ128: 44 | BR128: =IF(BQ128="",NA(),COUNTIF(BQ128:$BQ$303,BQ128)) -> 2 | BS128: 38.984 | BT128: -48.38675 | BW128: =IF(BV128="",NA(),COUNTIF(BV128:$BV$303,BV128)) ->  | CB128: =IF(CA128="",NA(),COUNTIF(CA128:$CA$303,CA128)) ->  | CF128: 24 | CG128: =IF(CF128="",NA(),COUNTIF($CF128:CF$303,CF128)) -> 1 | CI128: =IF(CH128="",NA(),COUNTIF($CH128:CH$303,CH128)) -> 
A129: -0.08087790099 | B129: 1.49954274 | C129: -0.1981095889 | K129: 32 | L129: =IF(NOT($BB$12),$AX$6+$AX$5*$X$62*NORMDIST(K129,$O$9,$R$11,FALSE),-999) -> 40.70373417 | M129: 3.332047285 | N129: 0.1241407042 | O129: -46.66795272 | Q129: =IF($BB$12,$AX$6+$AX$5*$X$62*NORMDIST(K129,$O$9,$R$11,FALSE),-999) -> -999 | V129: -46.66795272 | X129: =X128+$AW$140 -> -1.306394529 | Y129: 2.702408194e-07 | AB129: 62.72648 | AC129: 17.54048 | AD129: 6.837076414 | AE129: 0.2330418665 | AI129: =IF(NOT($BB$13),$AX$6+$AX$5*$X$62*NORMDIST(K129,$V$9,$R$11,FALSE),-999) -> -999 | AJ129: =IF(AND(NOT($BB$13),$BD$4,$BD$9),$AX$9+$AM$62*NORMDIST(K129,$V$9,$R$11/SQRT($K$14),FALSE),NA()) ->  | AL129: 2.702408194e-07 | AM129: =IF(AND(NOT($BB$13),$BD$10,$BD$4,$BD$9,$BB$25),IF($BD$12,$AX$15+$AM$62*NORMDIST(K129,$V$9,$R$11/SQRT($K$14),FALSE),$AX$15+$AM$62*(AL130-AL128)/(2*$BB$1)),NA()) ->  | AN129: =IF(AND($BB$4,$BB$13),$AX$6+$AX$5*$X$62*NORMDIST(K129,$V$9,$R$11,FALSE),-999) -> -999 | AO129: =IF(AND($BB$4,$BD$6,$BB$13,$BD$4,$BD$9),$AX$9+$AM$62*NORMDIST(K129,$V$9,$R$11/SQRT($K$14),FALSE),NA()) ->  | AP129: =IF(AND($BB$4,$BD$10,$BB$13,$BD$4,$BD$9,$BB$25),IF($BD$12,$AX$15+$AM$62*NORMDIST(K129,$V$9,$R$11/SQRT($K$14),FALSE),$AX$15+$AM$62*(AL130-AL128)/(2*$BB$1)),NA()) ->  | AQ129: 6 | AR129: 60 | AS129: 27 | BE129: 24 | BF129: 0.3334436938 | BI129: -999 | BJ129: 24.2 | BK129: -999 | BL129: 44 | BM129: =IF(BL129="",NA(),COUNTIF(BL129:$BL$303,BL129)) -> 1 | BN129: 38.984 | BO129: 0.53775 | BQ129: 44 | BR129: =IF(BQ129="",NA(),COUNTIF(BQ129:$BQ$303,BQ129)) -> 1 | BS129: 38.984 | BT129: -49.46225 | BW129: =IF(BV129="",NA(),COUNTIF(BV129:$BV$303,BV129)) ->  | CB129: =IF(CA129="",NA(),COUNTIF(CA129:$CA$303,CA129)) ->  | CF129: 38 | CG129: =IF(CF129="",NA(),COUNTIF($CF129:CF$303,CF129)) -> 1 | CI129: =IF(CH129="",NA(),COUNTIF($CH129:CH$303,CH129)) -> 
K130: =K129+$BB$1 -> 32.5 | L130: 40.94178694 | M130: =IF(AND(NOT($BB$12),$BB$6,$BD$3,$BD$9),$AX$9+$O$62*NORMDIST(K130,$O$9,$R$11/SQRT($K$14),FALSE),NA()) -> 3.694777177 | N130: 0.137609866 | O130: =IF(AND(NOT($BB$12),$BD$10,$BD$3,$BD$9),IF($BD$12,V130,$AX$15+$O$62*(N131-N129)/(2*$BB$1)),NA()) -> -46.30522282 | Q130: -999 | R130: =IF(AND($BB$12,$BB$6,$BD$3,$BD$9),$AX$9+$O$62*NORMDIST(K130,$O$9,$R$11/SQRT($K$14),FALSE),NA()) ->  | S130: =IF(AND($BB$12,$BD$10,$BD$3,$BD$9),IF($BD$12,$AX$15+$O$62*NORMDIST(K130,$O$9,$R$11/SQRT($K$14),FALSE),$AX$15+$O$62*(N131-N129)/(2*$BB$1)),NA()) ->  | V130: =IF(AND(NOT($BB$12),$BD$3,$BD$9),$AX$15+$O$62*NORMDIST(K130,$O$9,$R$11/SQRT($K$14),FALSE),NA()) -> -46.30522282 | X130: -1.224744871 | Y130: 3.362746062e-07 | AB130: 63.00055 | AC130: =AB130-$AA$63 -> 17.81455 | AD130: =AC130^2/$AA$66 -> 7.05240426 | AE130: =CHIDIST(AD130,$K$16) -> 0.2167720224 | AI130: -999 | AK130: =IF($BD$6,AJ130,NA()) ->  | AL130: 3.362746062e-07 | AN130: -999 | AQ130: 7 | AR130: 70 | AS130: 27 | AU130: Panel labels | BE130: 25 | BF130: 0.272934638 | BI130: -999 | BJ130: 24.2 | BK130: -999 | BM130: =IF(BL130="",NA(),COUNTIF(BL130:$BL$303,BL130)) ->  | BR130: =IF(BQ130="",NA(),COUNTIF(BQ130:$BQ$303,BQ130)) ->  | BW130: =IF(BV130="",NA(),COUNTIF(BV130:$BV$303,BV130)) ->  | CB130: =IF(CA130="",NA(),COUNTIF(CA130:$CA$303,CA130)) ->  | CG130: =IF(CF130="",NA(),COUNTIF($CF130:CF$303,CF130)) ->  | CI130: =IF(CH130="",NA(),COUNTIF($CH130:CH$303,CH130)) -> 
K131: 33 | L131: 41.1682238 | M131: 4.069771744 | N131: 0.1523806652 | O131: -45.93022826 | Q131: -999 | V131: -45.93022826 | X131: -1.143095213 | Y131: 4.213629241e-07 | AB131: =AB130+$AA$65 -> 63.27462 | AC131: 18.08862 | AD131: 7.271070522 | AE131: 0.2012483526 | AF131: =IF(AND(IF($BB$5=1,$A$4<>"",$D$4<>""),NOT($BD$12),$BD$5,$BD$4,$BD$9),$AX$12+$AA$67*(AE130-AE132)/(2*$AA$65),NA()) ->  | AG131: =IF(AND(IF($BB$5=1,$A$4<>"",$D$4<>""),$BD$12,$BD$5,$BD$4,$BD$9),$AX$12+$AA$67*(AE130-AE132)/(2*$AA$65),NA()) ->  | AI131: -999 | AL131: 4.213629241e-07 | AN131: -999 | AQ131: 8 | AR131: 80 | AS131: 27 | AU131: 8 | AV131: 0.0266 | BE131: 26 | BF131: 0.9277880117 | BI131: -999 | BJ131: 24.2 | BK131: -999 | BM131: =IF(BL131="",NA(),COUNTIF(BL131:$BL$303,BL131)) ->  | BR131: =IF(BQ131="",NA(),COUNTIF(BQ131:$BQ$303,BQ131)) ->  | BW131: =IF(BV131="",NA(),COUNTIF(BV131:$BV$303,BV131)) ->  | CB131: =IF(CA131="",NA(),COUNTIF(CA131:$CA$303,CA131)) ->  | CG131: =IF(CF131="",NA(),COUNTIF($CF131:CF$303,CF131)) ->  | CI131: =IF(CH131="",NA(),COUNTIF($CH131:CH$303,CH131)) -> 
K132: 33.5 | L132: 41.38234908 | M132: 4.453039583 | N132: 0.168522038 | O132: -45.54696042 | Q132: -999 | V132: -45.54696042 | X132: -1.061445555 | Y132: 5.317957957e-07 | AB132: 63.54869 | AC132: 18.36269 | AD132: 7.493075201 | AE132: 0.1864751151 | AI132: -999 | AL132: 5.317957957e-07 | AN132: -999 | AQ132: 9 | AR132: 90 | AS132: 27 | AU132: 8 | AV132: 12 | AW132: 0.3 | BE132: 27 | BF132: 0.178541325 | BI132: -999 | BJ132: 24.2 | BK132: -999 | BL132: =IF(A132="","",ROUND(($O$9+$R$11*A132)/$BA$34,0)) ->  | BM132: =IF(BL132="",NA(),COUNTIF(BL132:$BL$303,BL132)) ->  | BN132: =BL132*$BA$34 ->  | BO132: =IF(AND(NOT($BB$12),$BB$6,$BD$3,$BD$8),$AX$9-$BA$33/2+BM132*$BA$33,NA()) ->  | BP132: =IF(AND($BB$12,$BB$6,$BD$3,$BD$8),$AX$9-$BA$33/2+BM132*$BA$33,NA()) ->  | BQ132: =IF(C132="","",ROUND(($O$9+C132*$BB$9)/$BA$34,0)) ->  | BR132: =IF(BQ132="",NA(),COUNTIF(BQ132:$BQ$303,BQ132)) ->  | BS132: =BQ132*$BA$34 ->  | BV132: =IF(D132="","",ROUND(($V$9+$R$11*D132)/$BA$34,0)) ->  | BW132: =IF(BV132="",NA(),COUNTIF(BV132:$BV$303,BV132)) ->  | BX132: =BV132*$BA$34 ->  | BY132: =IF(AND(NOT($BB$13),$BD$6,$BD$4,$BD$8),$AX$9-$BA$33/2+BW132*$BA$33,NA()) ->  | BZ132: =IF(AND($BB$4,$BD$6,$BB$13,$BD$4,$BD$8),$AX$9-$BA$33/2+BW132*$BA$33,NA()) ->  | CA132: =IF(F132="","",ROUND(($O$9+F132*$BB$9)/$BA$34,0)) ->  | CB132: =IF(CA132="",NA(),COUNTIF(CA132:$CA$303,CA132)) ->  | CC132: =CA132*$BA$34 ->  | CG132: =IF(CF132="",NA(),COUNTIF($CF132:CF$303,CF132)) ->  | CI132: =IF(CH132="",NA(),COUNTIF($CH132:CH$303,CH132)) -> 
C133: =IF(AND(A133<>"",$K$14>1),(($O$9+$R$11*A133)-$O$9)/IF($BD$12,$BB$9,$R$11*B133/SQRT($K$14)),"") ->  | F133: =IF(AND(D133<>"",$K$14>1),(($V$9+$R$11*D133)-$O$9)/IF($BD$12,$BB$9,$R$11*E133/SQRT($K$14)),"") ->  | K133: 34 | L133: 41.58349756 | M133: 4.840026755 | N133: 0.1860921022 | O133: -45.15997324 | Q133: -999 | V133: -45.15997324 | X133: -0.9797958971 | Y133: 6.761789343e-07 | AB133: 63.82276 | AC133: 18.63676 | AD133: 7.718418296 | AE133: 0.1724521668 | AI133: -999 | AL133: 6.761789343e-07 | AN133: -999 | AQ133: 10 | AR133: 100 | AS133: 27 | AT133: z or t | AU133: 0 | AV133: =IF($BD$10, $AX$15+$AW$133+AW132,NA()) -> -39.7 | AW133: 10 | BE133: 28 | BF133: 0.5713643357 | BI133: -999 | BJ133: 24.2 | BK133: -999 | BM133: =IF(BL133="",NA(),COUNTIF(BL133:$BL$303,BL133)) ->  | BR133: =IF(BQ133="",NA(),COUNTIF(BQ133:$BQ$303,BQ133)) ->  | BT133: =IF(AND(NOT($BB$12),$BD$10,$BD$3,$BD$8),$AX$15-$BA$33/2+BR133*$BA$33,NA()) ->  | BU133: =IF(AND($BB$12,$BD$10,$BD$3,$BD$8),$AX$15-$BA$33/2+BR133*$BA$33,NA()) ->  | BW133: =IF(BV133="",NA(),COUNTIF(BV133:$BV$303,BV133)) ->  | CB133: =IF(CA133="",NA(),COUNTIF(CA133:$CA$303,CA133)) ->  | CD133: =IF(AND(NOT($BB$13),$BD$10,$BD$4,$BD$8),$AX$15-$BA$33/2+CB133*$BA$33,NA()) ->  | CE133: =IF(AND($BB$4,$BD$10,$BB$13,$BD$4,$BD$8),$AX$15-$BA$33/2+CB133*$BA$33,NA()) ->  | CF133: =IF(B133="","",ROUND(($R$11*B133)/$BA$37,0)) ->  | CG133: =IF(CF133="",NA(),COUNTIF($CF133:CF$303,CF133)) ->  | CH133: =IF(E133="","",ROUND(($R$11*E133)/$BA$37,0)) ->  | CI133: =IF(CH133="",NA(),COUNTIF($CH133:CH$303,CH133)) ->  | CJ133: =$AX$35+IF($BB$5=1,CF133,CH133)*$BA$37 ->  | CK133: =IF(AND(NOT($BD$12),$BD$5,$BD$4,$BD$8),$AX$12-$BA$36/2+IF($BB$5=1,CG133,CI133)*$BA$36,NA()) ->  | CL133: =IF(AND($BD$12,$BD$5,$BD$4,$BD$8),$AX$12-$BA$36/2+IF($BB$5=1,CG133,CI133)*$BA$36,NA()) -> 
K134: 34.5 | L134: 41.77103787 | M134: 5.225690359 | N134: 0.2051344936 | O134: -44.77430964 | Q134: -999 | V134: -44.77430964 | X134: -0.898146239 | Y134: 8.663637221e-07 | AB134: 64.09683 | AC134: 18.91083 | AD134: 7.947099806 | AE134: 0.1591752599 | AI134: -999 | AL134: 8.663637221e-07 | AN134: -999 | AT134: labels | AU134: 3.2 | AV134: =IF($BD$10, $AX$15+$AW$133,NA()) -> -40 | AW134: =IF(BD12,"z","t") -> z | BE134: 29 | BF134: 0.7848940715 | BI134: -999 | BJ134: 24.2 | BK134: -999 | BM134: =IF(BL134="",NA(),COUNTIF(BL134:$BL$303,BL134)) ->  | BR134: =IF(BQ134="",NA(),COUNTIF(BQ134:$BQ$303,BQ134)) ->  | BW134: =IF(BV134="",NA(),COUNTIF(BV134:$BV$303,BV134)) ->  | CB134: =IF(CA134="",NA(),COUNTIF(CA134:$CA$303,CA134)) ->  | CG134: =IF(CF134="",NA(),COUNTIF($CF134:CF$303,CF134)) ->  | CI134: =IF(CH134="",NA(),COUNTIF($CH134:CH$303,CH134)) -> 
K135: 35 | L135: 41.94437582 | M135: 5.604595663 | N135: 0.225674526 | O135: -44.39540434 | Q135: -999 | V135: -44.39540434 | X135: -0.8164965809 | Y135: 1.118776153e-06 | AB135: 64.3709 | AC135: 19.1849 | AD135: 8.179119734 | AE135: 0.1466363595 | AI135: -999 | AL135: 1.118776153e-06 | AN135: -999 | AQ135: Labels on pop means | BE135: 30 | BF135: 0.9188166782 | BI135: -999 | BJ135: 24.2 | BK135: -999 | BM135: =IF(BL135="",NA(),COUNTIF(BL135:$BL$303,BL135)) ->  | BR135: =IF(BQ135="",NA(),COUNTIF(BQ135:$BQ$303,BQ135)) ->  | BW135: =IF(BV135="",NA(),COUNTIF(BV135:$BV$303,BV135)) ->  | CB135: =IF(CA135="",NA(),COUNTIF(CA135:$CA$303,CA135)) ->  | CG135: =IF(CF135="",NA(),COUNTIF($CF135:CF$303,CF135)) ->  | CI135: =IF(CH135="",NA(),COUNTIF($CH135:CH$303,CH135)) -> 
K136: 35.5 | L136: 42.10295749 | M136: 5.971034817 | N136: 0.2477153709 | O136: -44.02896518 | Q136: -999 | V136: -44.02896518 | X136: -0.7348469228 | Y136: 1.45632365e-06 | AB136: 64.64497 | AC136: 19.45897 | AD136: 8.414478077 | AE136: 0.1348239759 | AI136: -999 | AL136: 1.45632365e-06 | AN136: -999 | AR136: 1.4 | AV136: NCP | AW136: =(V9-O9)/BB9 -> 4.082482905 | BE136: 31 | BF136: 0.726876758 | BI136: -999 | BJ136: 24.2 | BK136: -999 | BM136: =IF(BL136="",NA(),COUNTIF(BL136:$BL$303,BL136)) ->  | BR136: =IF(BQ136="",NA(),COUNTIF(BQ136:$BQ$303,BQ136)) ->  | BW136: =IF(BV136="",NA(),COUNTIF(BV136:$BV$303,BV136)) ->  | CB136: =IF(CA136="",NA(),COUNTIF(CA136:$CA$303,CA136)) ->  | CG136: =IF(CF136="",NA(),COUNTIF($CF136:CF$303,CF136)) ->  | CI136: =IF(CH136="",NA(),COUNTIF($CH136:CH$303,CH136)) -> 
K137: 36 | L137: 42.24627223 | M137: 6.319163964 | N137: 0.2712344939 | O137: -43.68083604 | Q137: -999 | V137: -43.68083604 | X137: -0.6531972647 | Y137: 1.911140444e-06 | AB137: 64.91904 | AC137: 19.73304 | AD137: 8.653174836 | AE137: 0.1237235074 | AI137: -999 | AL137: 1.911140444e-06 | AN137: -999 | AQ137: H0 pop | AR137: =O9-$AR$136 -> 38.6 | AS137: =MAX(L65:L265) -> 42.7981143 | AV137: Degrees of freedom | AW137: =$K$14-1 -> 5 | BE137: 32 | BF137: 0.02978783101 | BI137: -999 | BJ137: 24.2 | BK137: -999 | BM137: =IF(BL137="",NA(),COUNTIF(BL137:$BL$303,BL137)) ->  | BR137: =IF(BQ137="",NA(),COUNTIF(BQ137:$BQ$303,BQ137)) ->  | BW137: =IF(BV137="",NA(),COUNTIF(BV137:$BV$303,BV137)) ->  | CB137: =IF(CA137="",NA(),COUNTIF(CA137:$CA$303,CA137)) ->  | CG137: =IF(CF137="",NA(),COUNTIF($CF137:CF$303,CF137)) ->  | CI137: =IF(CH137="",NA(),COUNTIF($CH137:CH$303,CH137)) -> 
K138: 36.5 | L138: 42.37385536 | M138: 6.643154429 | N138: 0.2961806318 | O138: -43.35684557 | Q138: -999 | V138: -43.35684557 | X138: -0.5715476066 | Y138: 2.528550876e-06 | AB138: 65.19311 | AC138: 20.00711 | AD138: 8.895210012 | AE138: 0.113317588 | AI138: -999 | AL138: 2.528550876e-06 | AN138: -999 | AQ138: Ho grey | AR138: =O9-$AR$136 -> 38.6 | AS138: =MAX(Q65:Q265) -> -999 | AV138: LH end t axis | AW138: =(0-O9)/BB9 -> -6.531972647 | BE138: 33 | BF138: 0.6973261461 | BI138: -999 | BJ138: 24.2 | BK138: -999 | BM138: =IF(BL138="",NA(),COUNTIF(BL138:$BL$303,BL138)) ->  | BR138: =IF(BQ138="",NA(),COUNTIF(BQ138:$BQ$303,BQ138)) ->  | BW138: =IF(BV138="",NA(),COUNTIF(BV138:$BV$303,BV138)) ->  | CB138: =IF(CA138="",NA(),COUNTIF(CA138:$CA$303,CA138)) ->  | CG138: =IF(CF138="",NA(),COUNTIF($CF138:CF$303,CF138)) ->  | CI138: =IF(CH138="",NA(),COUNTIF($CH138:CH$303,CH138)) -> 
K139: 37 | L139: 42.48529068 | M139: 6.937352715 | N139: 0.3224716068 | O139: -43.06264728 | Q139: -999 | V139: -43.06264728 | X139: -0.4898979486 | Y139: 3.372801046e-06 | AB139: 65.46718 | AC139: 20.28118 | AD139: 9.140583604 | AE139: 0.1035864351 | AI139: -999 | AL139: 3.372801046e-06 | AN139: -999 | AQ139: H1 pop | AR139: =V9-$AR$136 -> 63.6 | AS139: =MAX(AI65:AI265) -> -999 | AV139: RH end t axis | AW139: =(100-O9)/BB9 -> 9.797958971 | BE139: 34 | BF139: 0.525901787 | BI139: -999 | BJ139: 24.2 | BK139: -999 | BM139: =IF(BL139="",NA(),COUNTIF(BL139:$BL$303,BL139)) ->  | BR139: =IF(BQ139="",NA(),COUNTIF(BQ139:$BQ$303,BQ139)) ->  | BW139: =IF(BV139="",NA(),COUNTIF(BV139:$BV$303,BV139)) ->  | CB139: =IF(CA139="",NA(),COUNTIF(CA139:$CA$303,CA139)) ->  | CG139: =IF(CF139="",NA(),COUNTIF($CF139:CF$303,CF139)) ->  | CI139: =IF(CH139="",NA(),COUNTIF($CH139:CH$303,CH139)) -> 
K140: 37.5 | L140: 42.58021276 | M140: 7.196443281 | N140: 0.3499932714 | O140: -42.80355672 | Q140: -999 | V140: -42.80355672 | X140: -0.4082482905 | Y140: 4.535353845e-06 | AB140: 65.74125 | AC140: 20.55525 | AD140: 9.389295613 | AE140: 0.09450819302 | AI140: -999 | AL140: 4.535353845e-06 | AN140: -999 | AQ140: H1 grey | AR140: =V9-$AR$136 -> 63.6 | AS140: =MAX(AN65:AN265) -> -999 | AV140: t increment | AW140: =(AW139-AW138)/200 -> 0.08164965809 | BE140: 35 | BF140: =MOD(BF139*10000013,1) -> 0.7065533623 | BI140: -999 | BJ140: 24.2 | BK140: -999 | BM140: =IF(BL140="",NA(),COUNTIF(BL140:$BL$303,BL140)) ->  | BR140: =IF(BQ140="",NA(),COUNTIF(BQ140:$BQ$303,BQ140)) ->  | BW140: =IF(BV140="",NA(),COUNTIF(BV140:$BV$303,BV140)) ->  | CB140: =IF(CA140="",NA(),COUNTIF(CA140:$CA$303,CA140)) ->  | CG140: =IF(CF140="",NA(),COUNTIF($CF140:CF$303,CF140)) ->  | CI140: =IF(CH140="",NA(),COUNTIF($CH140:CH$303,CH140)) -> 
K141: 38 | L141: 42.6583089 | M141: 7.415607608 | N141: 0.3785998289 | O141: -42.58439239 | Q141: -999 | V141: -42.58439239 | X141: -0.3265986324 | Y141: 6.146888047e-06 | AB141: 66.01532 | AC141: 20.82932 | AD141: 9.641346037 | AE141: 0.08605926879 | AI141: -999 | AL141: 6.146888047e-06 | AN141: -999 | BE141: 36 | BF141: 0.8082930371 | BI141: -999 | BJ141: 24.2 | BK141: -999 | BM141: =IF(BL141="",NA(),COUNTIF(BL141:$BL$303,BL141)) ->  | BR141: =IF(BQ141="",NA(),COUNTIF(BQ141:$BQ$303,BQ141)) ->  | BW141: =IF(BV141="",NA(),COUNTIF(BV141:$BV$303,BV141)) ->  | CB141: =IF(CA141="",NA(),COUNTIF(CA141:$CA$303,CA141)) ->  | CG141: =IF(CF141="",NA(),COUNTIF($CF141:CF$303,CF141)) ->  | CI141: =IF(CH141="",NA(),COUNTIF($CH141:CH$303,CH141)) -> 
K142: 38.5 | L142: 42.71932088 | M142: 7.590672938 | N142: 0.4081157006 | O142: -42.40932706 | Q142: -999 | V142: -42.40932706 | X142: -0.2449489743 | Y142: 8.394623529e-06 | AB142: 66.28939 | AC142: 21.10339 | AD142: 9.896734878 | AE142: 0.07821465613 | AI142: -999 | AL142: 8.394623529e-06 | AN142: -999 | BE142: 37 | BF142: 0.8789747581 | BI142: -999 | BJ142: 24.2 | BK142: -999 | BM142: =IF(BL142="",NA(),COUNTIF(BL142:$BL$303,BL142)) ->  | BR142: =IF(BQ142="",NA(),COUNTIF(BQ142:$BQ$303,BQ142)) ->  | BW142: =IF(BV142="",NA(),COUNTIF(BV142:$BV$303,BV142)) ->  | CB142: =IF(CA142="",NA(),COUNTIF(CA142:$CA$303,CA142)) ->  | CG142: =IF(CF142="",NA(),COUNTIF($CF142:CF$303,CF142)) ->  | CI142: =IF(CH142="",NA(),COUNTIF($CH142:CH$303,CH142)) -> 
K143: 39 | L143: 42.76304636 | M143: 7.718244295 | N143: 0.4383389953 | O143: -42.2817557 | Q143: -999 | V143: -42.2817557 | X143: -0.1632993162 | Y143: 1.154725249e-05 | AB143: 66.56346 | AC143: 21.37746 | AD143: 10.15546213 | AE143: 0.07094824544 | AI143: -999 | AL143: 1.154725249e-05 | AN143: -999 | BE143: 38 | BF143: 0.007557742298 | BI143: -999 | BJ143: 24.2 | BK143: -999 | BM143: =IF(BL143="",NA(),COUNTIF(BL143:$BL$303,BL143)) ->  | BR143: =IF(BQ143="",NA(),COUNTIF(BQ143:$BQ$303,BQ143)) ->  | BW143: =IF(BV143="",NA(),COUNTIF(BV143:$BV$303,BV143)) ->  | CB143: =IF(CA143="",NA(),COUNTIF(CA143:$CA$303,CA143)) ->  | CG143: =IF(CF143="",NA(),COUNTIF($CF143:CF$303,CF143)) ->  | CI143: =IF(CH143="",NA(),COUNTIF($CH143:CH$303,CH143)) -> 
K144: 39.5 | L144: 42.78934001 | M144: 7.79581394 | N144: 0.4690465039 | O144: -42.20418606 | Q144: -999 | V144: -42.20418606 | X144: -0.08164965809 | Y144: 1.599063408e-05 | AB144: 66.83753 | AC144: 21.65153 | AD144: 10.41752781 | AE144: 0.06423311687 | AI144: -999 | AL144: 1.599063408e-05 | AN144: -999 | BE144: 39 | BF144: 0.5212271437 | BI144: -999 | BJ144: 24.2 | BK144: -999 | BM144: =IF(BL144="",NA(),COUNTIF(BL144:$BL$303,BL144)) ->  | BR144: =IF(BQ144="",NA(),COUNTIF(BQ144:$BQ$303,BQ144)) ->  | BW144: =IF(BV144="",NA(),COUNTIF(BV144:$BV$303,BV144)) ->  | CB144: =IF(CA144="",NA(),COUNTIF(CA144:$CA$303,CA144)) ->  | CG144: =IF(CF144="",NA(),COUNTIF($CF144:CF$303,CF144)) ->  | CI144: =IF(CH144="",NA(),COUNTIF($CH144:CH$303,CH144)) -> 
K145: 40 | L145: 42.7981143 | M145: 7.821843345 | N145: 0.5 | O145: -42.17815666 | Q145: -999 | V145: -42.17815666 | X145: 1.135203043e-14 | Y145: 2.22785453e-05 | AB145: 67.1116 | AC145: 21.9256 | AD145: 10.6829319 | AE145: 0.05804181468 | AI145: -999 | AL145: 2.22785453e-05 | AN145: -999 | BE145: 40 | BF145: 0.2130017802 | BI145: -999 | BJ145: 24.2 | BK145: -999 | BM145: =IF(BL145="",NA(),COUNTIF(BL145:$BL$303,BL145)) ->  | BR145: =IF(BQ145="",NA(),COUNTIF(BQ145:$BQ$303,BQ145)) ->  | BW145: =IF(BV145="",NA(),COUNTIF(BV145:$BV$303,BV145)) ->  | CB145: =IF(CA145="",NA(),COUNTIF(CA145:$CA$303,CA145)) ->  | CG145: =IF(CF145="",NA(),COUNTIF($CF145:CF$303,CF145)) ->  | CI145: =IF(CH145="",NA(),COUNTIF($CH145:CH$303,CH145)) -> 
K146: 40.5 | L146: 42.78934001 | M146: 7.79581394 | N146: 0.5309534961 | O146: -42.20418606 | Q146: -999 | V146: -42.20418606 | X146: 0.08164965809 | Y146: 3.120419297e-05 | AB146: 67.38567 | AC146: 22.19967 | AD146: 10.9516744 | AE146: 0.05234660135 | AI146: -999 | AL146: 3.120419297e-05 | AN146: -999 | BE146: 41 | BF146: 0.5711423978 | BI146: -999 | BJ146: 24.2 | BK146: -999 | BM146: =IF(BL146="",NA(),COUNTIF(BL146:$BL$303,BL146)) ->  | BR146: =IF(BQ146="",NA(),COUNTIF(BQ146:$BQ$303,BQ146)) ->  | BW146: =IF(BV146="",NA(),COUNTIF(BV146:$BV$303,BV146)) ->  | CB146: =IF(CA146="",NA(),COUNTIF(CA146:$CA$303,CA146)) ->  | CG146: =IF(CF146="",NA(),COUNTIF($CF146:CF$303,CF146)) ->  | CI146: =IF(CH146="",NA(),COUNTIF($CH146:CH$303,CH146)) -> 
K147: 41 | L147: 42.76304636 | M147: 7.718244295 | N147: 0.5616610047 | O147: -42.2817557 | Q147: -999 | V147: -42.2817557 | X147: 0.1632993162 | Y147: 4.389985745e-05 | AB147: 67.65974 | AC147: 22.47374 | AD147: 11.22375532 | AE147: 0.04711969039 | AI147: -999 | AL147: 4.389985745e-05 | AN147: -999 | BE147: 42 | BF147: 0.4030606672 | BI147: -999 | BJ147: 24.2 | BK147: -999 | BM147: =IF(BL147="",NA(),COUNTIF(BL147:$BL$303,BL147)) ->  | BR147: =IF(BQ147="",NA(),COUNTIF(BQ147:$BQ$303,BQ147)) ->  | BW147: =IF(BV147="",NA(),COUNTIF(BV147:$BV$303,BV147)) ->  | CB147: =IF(CA147="",NA(),COUNTIF(CA147:$CA$303,CA147)) ->  | CG147: =IF(CF147="",NA(),COUNTIF($CF147:CF$303,CF147)) ->  | CI147: =IF(CH147="",NA(),COUNTIF($CH147:CH$303,CH147)) -> 
K148: 41.5 | L148: 42.71932088 | M148: 7.590672938 | N148: 0.5918842994 | O148: -42.40932706 | Q148: -999 | V148: -42.40932706 | X148: 0.2449489743 | Y148: 6.197386263e-05 | AB148: 67.93381 | AC148: 22.74781 | AD148: 11.49917466 | AE148: 0.04233345718 | AI148: -999 | AL148: 6.197386263e-05 | AN148: -999 | BE148: 43 | BF148: 0.9119564518 | BI148: -999 | BJ148: 24.2 | BK148: -999 | BM148: =IF(BL148="",NA(),COUNTIF(BL148:$BL$303,BL148)) ->  | BR148: =IF(BQ148="",NA(),COUNTIF(BQ148:$BQ$303,BQ148)) ->  | BW148: =IF(BV148="",NA(),COUNTIF(BV148:$BV$303,BV148)) ->  | CB148: =IF(CA148="",NA(),COUNTIF(CA148:$CA$303,CA148)) ->  | CG148: =IF(CF148="",NA(),COUNTIF($CF148:CF$303,CF148)) ->  | CI148: =IF(CH148="",NA(),COUNTIF($CH148:CH$303,CH148)) -> 
K149: 42 | L149: 42.6583089 | M149: 7.415607608 | N149: 0.6214001711 | O149: -42.58439239 | Q149: -999 | V149: -42.58439239 | X149: 0.3265986324 | Y149: 8.769584422e-05 | AB149: 68.20788 | AC149: 23.02188 | AD149: 11.77793242 | AE149: 0.03796062754 | AI149: -999 | AL149: 8.769584422e-05 | AN149: -999 | BE149: 44 | BF149: 0.3737663552 | BI149: -999 | BJ149: 24.2 | BK149: -999 | BM149: =IF(BL149="",NA(),COUNTIF(BL149:$BL$303,BL149)) ->  | BR149: =IF(BQ149="",NA(),COUNTIF(BQ149:$BQ$303,BQ149)) ->  | BW149: =IF(BV149="",NA(),COUNTIF(BV149:$BV$303,BV149)) ->  | CB149: =IF(CA149="",NA(),COUNTIF(CA149:$CA$303,CA149)) ->  | CG149: =IF(CF149="",NA(),COUNTIF($CF149:CF$303,CF149)) ->  | CI149: =IF(CH149="",NA(),COUNTIF($CH149:CH$303,CH149)) -> 
K150: 42.5 | L150: 42.58021276 | M150: 7.196443281 | N150: 0.6500067286 | O150: -42.80355672 | Q150: -999 | V150: -42.80355672 | X150: 0.4082482905 | Y150: 0.0001242426688 | AB150: 68.48195 | AC150: 23.29595 | AD150: 12.06002859 | AE150: 0.03397444405 | AI150: -999 | AL150: 0.0001242426688 | AN150: -999 | BE150: 45 | BF150: 0.4111276492 | BI150: -999 | BJ150: 24.2 | BK150: -999 | BM150: =IF(BL150="",NA(),COUNTIF(BL150:$BL$303,BL150)) ->  | BR150: =IF(BQ150="",NA(),COUNTIF(BQ150:$BQ$303,BQ150)) ->  | BW150: =IF(BV150="",NA(),COUNTIF(BV150:$BV$303,BV150)) ->  | CB150: =IF(CA150="",NA(),COUNTIF(CA150:$CA$303,CA150)) ->  | CG150: =IF(CF150="",NA(),COUNTIF($CF150:CF$303,CF150)) ->  | CI150: =IF(CH150="",NA(),COUNTIF($CH150:CH$303,CH150)) -> 
K151: 43 | L151: 42.48529068 | M151: 6.937352715 | N151: 0.6775283932 | O151: -43.06264728 | Q151: -999 | V151: -43.06264728 | X151: 0.4898979486 | Y151: 0.000176017823 | AB151: 68.75602 | AC151: 23.57002 | AD151: 12.34546317 | AE151: 0.03034881053 | AI151: -999 | AL151: 0.000176017823 | AN151: -999 | BE151: 46 | BF151: 0.8371359035 | BI151: -999 | BJ151: 24.2 | BK151: -999 | BM151: =IF(BL151="",NA(),COUNTIF(BL151:$BL$303,BL151)) ->  | BR151: =IF(BQ151="",NA(),COUNTIF(BQ151:$BQ$303,BQ151)) ->  | BW151: =IF(BV151="",NA(),COUNTIF(BV151:$BV$303,BV151)) ->  | CB151: =IF(CA151="",NA(),COUNTIF(CA151:$CA$303,CA151)) ->  | CG151: =IF(CF151="",NA(),COUNTIF($CF151:CF$303,CF151)) ->  | CI151: =IF(CH151="",NA(),COUNTIF($CH151:CH$303,CH151)) -> 
K152: 43.5 | L152: 42.37385536 | M152: 6.643154429 | N152: 0.7038193682 | O152: -43.35684557 | Q152: -999 | V152: -43.35684557 | X152: 0.5715476066 | Y152: 0.0002490559755 | AB152: 69.03009 | AC152: 23.84409 | AD152: 12.63423618 | AE152: 0.02705841531 | AI152: -999 | AL152: 0.0002490559755 | AN152: -999 | BE152: 47 | BF152: 0.9181394801 | BI152: -999 | BJ152: 24.2 | BK152: -999 | BM152: =IF(BL152="",NA(),COUNTIF(BL152:$BL$303,BL152)) ->  | BR152: =IF(BQ152="",NA(),COUNTIF(BQ152:$BQ$303,BQ152)) ->  | BW152: =IF(BV152="",NA(),COUNTIF(BV152:$BV$303,BV152)) ->  | CB152: =IF(CA152="",NA(),COUNTIF(CA152:$CA$303,CA152)) ->  | CG152: =IF(CF152="",NA(),COUNTIF($CF152:CF$303,CF152)) ->  | CI152: =IF(CH152="",NA(),COUNTIF($CH152:CH$303,CH152)) -> 
K153: 44 | L153: 42.24627223 | M153: 6.319163964 | N153: 0.7287655061 | O153: -43.68083604 | Q153: -999 | V153: -43.68083604 | X153: 0.6531972647 | Y153: 0.0003515209599 | AB153: 69.30416 | AC153: 24.11816 | AD153: 12.9263476 | AE153: 0.02407883405 | AI153: -999 | AL153: 0.0003515209599 | AN153: -999 | BE153: 48 | BF153: 0.7363570258 | BI153: -999 | BJ153: 24.2 | BK153: -999 | BM153: =IF(BL153="",NA(),COUNTIF(BL153:$BL$303,BL153)) ->  | BR153: =IF(BQ153="",NA(),COUNTIF(BQ153:$BQ$303,BQ153)) ->  | BW153: =IF(BV153="",NA(),COUNTIF(BV153:$BV$303,BV153)) ->  | CB153: =IF(CA153="",NA(),COUNTIF(CA153:$CA$303,CA153)) ->  | CG153: =IF(CF153="",NA(),COUNTIF($CF153:CF$303,CF153)) ->  | CI153: =IF(CH153="",NA(),COUNTIF($CH153:CH$303,CH153)) -> 
K154: 44.5 | L154: 42.10295749 | M154: 5.971034817 | N154: 0.7522846291 | O154: -44.02896518 | Q154: -999 | V154: -44.02896518 | X154: 0.7348469228 | Y154: 0.000494298937 | AB154: 69.57823 | AC154: 24.39223 | AD154: 13.22179743 | AE154: 0.02138661318 | AI154: -999 | AL154: 0.000494298937 | AN154: -999 | BE154: 49 | BF154: 0.8306626901 | BI154: -999 | BJ154: 24.2 | BK154: -999 | BM154: =IF(BL154="",NA(),COUNTIF(BL154:$BL$303,BL154)) ->  | BR154: =IF(BQ154="",NA(),COUNTIF(BQ154:$BQ$303,BQ154)) ->  | BW154: =IF(BV154="",NA(),COUNTIF(BV154:$BV$303,BV154)) ->  | CB154: =IF(CA154="",NA(),COUNTIF(CA154:$CA$303,CA154)) ->  | CG154: =IF(CF154="",NA(),COUNTIF($CF154:CF$303,CF154)) ->  | CI154: =IF(CH154="",NA(),COUNTIF($CH154:CH$303,CH154)) -> 
K155: 45 | L155: 41.94437582 | M155: 5.604595663 | N155: 0.774325474 | O155: -44.39540434 | Q155: -999 | V155: -44.39540434 | X155: 0.8164965809 | Y155: 0.0006916785365 | AB155: 69.8523 | AC155: 24.6663 | AD155: 13.52058568 | AE155: 0.01895933517 | AI155: -999 | AL155: 0.0006916785365 | AN155: -999 | BE155: 50 | BF155: 0.6996455118 | BI155: -999 | BJ155: 24.2 | BK155: -999 | BM155: =IF(BL155="",NA(),COUNTIF(BL155:$BL$303,BL155)) ->  | BR155: =IF(BQ155="",NA(),COUNTIF(BQ155:$BQ$303,BQ155)) ->  | BW155: =IF(BV155="",NA(),COUNTIF(BV155:$BV$303,BV155)) ->  | CB155: =IF(CA155="",NA(),COUNTIF(CA155:$CA$303,CA155)) ->  | CG155: =IF(CF155="",NA(),COUNTIF($CF155:CF$303,CF155)) ->  | CI155: =IF(CH155="",NA(),COUNTIF($CH155:CH$303,CH155)) -> 
K156: 45.5 | L156: 41.77103787 | M156: 5.225690359 | N156: 0.7948655064 | O156: -44.77430964 | Q156: -999 | V156: -44.77430964 | X156: 0.898146239 | Y156: 0.0009620964382 | AB156: 70.12637 | AC156: 24.94037 | AD156: 13.82271235 | AE156: 0.01677566689 | AI156: -999 | AL156: 0.0009620964382 | AN156: -999 | BE156: 51 | BF156: 0.2134517655 | BI156: -999 | BJ156: 24.2 | BK156: -999 | BM156: =IF(BL156="",NA(),COUNTIF(BL156:$BL$303,BL156)) ->  | BR156: =IF(BQ156="",NA(),COUNTIF(BQ156:$BQ$303,BQ156)) ->  | BW156: =IF(BV156="",NA(),COUNTIF(BV156:$BV$303,BV156)) ->  | CB156: =IF(CA156="",NA(),COUNTIF(CA156:$CA$303,CA156)) ->  | CG156: =IF(CF156="",NA(),COUNTIF($CF156:CF$303,CF156)) ->  | CI156: =IF(CH156="",NA(),COUNTIF($CH156:CH$303,CH156)) -> 
K157: 46 | L157: 41.58349756 | M157: 4.840026755 | N157: 0.8139078978 | O157: -45.15997324 | Q157: -999 | V157: -45.15997324 | X157: 0.9797958971 | Y157: 0.001328910952 | AB157: 70.40044 | AC157: 25.21444 | AD157: 14.12817743 | AE157: 0.01481539241 | AI157: -999 | AL157: 0.001328910952 | AN157: -999 | BE157: 52 | BF157: 0.4296495244 | BI157: -999 | BJ157: 24.2 | BK157: -999 | BM157: =IF(BL157="",NA(),COUNTIF(BL157:$BL$303,BL157)) ->  | BR157: =IF(BQ157="",NA(),COUNTIF(BQ157:$BQ$303,BQ157)) ->  | BW157: =IF(BV157="",NA(),COUNTIF(BV157:$BV$303,BV157)) ->  | CB157: =IF(CA157="",NA(),COUNTIF(CA157:$CA$303,CA157)) ->  | CG157: =IF(CF157="",NA(),COUNTIF($CF157:CF$303,CF157)) ->  | CI157: =IF(CH157="",NA(),COUNTIF($CH157:CH$303,CH157)) -> 
K158: 46.5 | L158: 41.38234908 | M158: 4.453039583 | N158: 0.831477962 | O158: -45.54696042 | Q158: -999 | V158: -45.54696042 | X158: 1.061445555 | Y158: 0.001821149389 | AB158: 70.67451 | AC158: 25.48851 | AD158: 14.43698093 | AE158: 0.0130594317 | AI158: -999 | AL158: 0.001821149389 | AN158: -999 | BE158: 53 | BF158: 0.8293507919 | BI158: -999 | BJ158: 24.2 | BK158: -999 | BM158: =IF(BL158="",NA(),COUNTIF(BL158:$BL$303,BL158)) ->  | BR158: =IF(BQ158="",NA(),COUNTIF(BQ158:$BQ$303,BQ158)) ->  | BW158: =IF(BV158="",NA(),COUNTIF(BV158:$BV$303,BV158)) ->  | CB158: =IF(CA158="",NA(),COUNTIF(CA158:$CA$303,CA158)) ->  | CG158: =IF(CF158="",NA(),COUNTIF($CF158:CF$303,CF158)) ->  | CI158: =IF(CH158="",NA(),COUNTIF($CH158:CH$303,CH158)) -> 
K159: 47 | L159: 41.1682238 | M159: 4.069771744 | N159: 0.8476193348 | O159: -45.93022826 | Q159: -999 | V159: -45.93022826 | X159: 1.143095213 | Y159: 0.002474159849 | AB159: 70.94858 | AC159: 25.76258 | AD159: 14.74912285 | AE159: 0.01148984666 | AI159: -999 | AL159: 0.002474159849 | AN159: -999 | BE159: 54 | BF159: 0.7002757713 | BI159: -999 | BJ159: 24.2 | BK159: -999 | BM159: =IF(BL159="",NA(),COUNTIF(BL159:$BL$303,BL159)) ->  | BR159: =IF(BQ159="",NA(),COUNTIF(BQ159:$BQ$303,BQ159)) ->  | BW159: =IF(BV159="",NA(),COUNTIF(BV159:$BV$303,BV159)) ->  | CB159: =IF(CA159="",NA(),COUNTIF(CA159:$CA$303,CA159)) ->  | CG159: =IF(CF159="",NA(),COUNTIF($CF159:CF$303,CF159)) ->  | CI159: =IF(CH159="",NA(),COUNTIF($CH159:CH$303,CH159)) -> 
K160: 47.5 | L160: 40.94178694 | M160: 3.694777177 | N160: 0.862390134 | O160: -46.30522282 | Q160: -999 | V160: -46.30522282 | X160: 1.224744871 | Y160: 0.003330087452 | AB160: 71.22265 | AC160: 26.03665 | AD160: 15.06460318 | AE160: 0.0100898359 | AI160: -999 | AL160: 0.003330087452 | AN160: -999 | BE160: 55 | BF160: 0.816783689 | BI160: -999 | BJ160: 24.2 | BK160: -999 | BM160: =IF(BL160="",NA(),COUNTIF(BL160:$BL$303,BL160)) ->  | BR160: =IF(BQ160="",NA(),COUNTIF(BQ160:$BQ$303,BQ160)) ->  | BW160: =IF(BV160="",NA(),COUNTIF(BV160:$BV$303,BV160)) ->  | CB160: =IF(CA160="",NA(),COUNTIF(CA160:$CA$303,CA160)) ->  | CG160: =IF(CF160="",NA(),COUNTIF($CF160:CF$303,CF160)) ->  | CI160: =IF(CH160="",NA(),COUNTIF($CH160:CH$303,CH160)) -> 
K161: 48 | L161: 40.70373417 | M161: 3.332047285 | N161: 0.8758592958 | O161: -46.66795272 | Q161: -999 | V161: -46.66795272 | X161: 1.306394529 | Y161: 0.004438091901 | AB161: 71.49672 | AC161: 26.31072 | AD161: 15.38342193 | AE161: 0.008843719674 | AI161: -999 | AL161: 0.004438091901 | AN161: -999 | BE161: 56 | BF161: 0.5078125522 | BI161: -999 | BJ161: 24.2 | BK161: -999 | BM161: =IF(BL161="",NA(),COUNTIF(BL161:$BL$303,BL161)) ->  | BR161: =IF(BQ161="",NA(),COUNTIF(BQ161:$BQ$303,BQ161)) ->  | BW161: =IF(BV161="",NA(),COUNTIF(BV161:$BV$303,BV161)) ->  | CB161: =IF(CA161="",NA(),COUNTIF(CA161:$CA$303,CA161)) ->  | CG161: =IF(CF161="",NA(),COUNTIF($CF161:CF$303,CF161)) ->  | CI161: =IF(CH161="",NA(),COUNTIF($CH161:CH$303,CH161)) -> 
K162: 48.5 | L162: 40.45478802 | M162: 2.984961698 | N162: 0.8881032213 | O162: -47.0150383 | Q162: -999 | V162: -47.0150383 | X162: 1.388044188 | Y162: 0.005854229781 | AB162: 71.77079 | AC162: 26.58479 | AD162: 15.7055791 | AE162: 0.007736916418 | AI162: -999 | AL162: 0.005854229781 | AN162: -999 | BE162: 57 | BF162: 0.1231038198 | BI162: -999 | BJ162: 24.2 | BK162: -999 | BM162: =IF(BL162="",NA(),COUNTIF(BL162:$BL$303,BL162)) ->  | BR162: =IF(BQ162="",NA(),COUNTIF(BQ162:$BQ$303,BQ162)) ->  | BW162: =IF(BV162="",NA(),COUNTIF(BV162:$BV$303,BV162)) ->  | CB162: =IF(CA162="",NA(),COUNTIF(CA162:$CA$303,CA162)) ->  | CG162: =IF(CF162="",NA(),COUNTIF($CF162:CF$303,CF162)) ->  | CI162: =IF(CH162="",NA(),COUNTIF($CH162:CH$303,CH162)) -> 
K163: 49 | L163: 40.19569427 | M163: 2.656263002 | N163: 0.8992028237 | O163: -47.343737 | Q163: -999 | V163: -47.343737 | X163: 1.469693846 | Y163: 0.007640942131 | AB163: 72.04486 | AC163: 26.85886 | AD163: 16.03107468 | AE163: 0.00675591206 | AI163: -999 | AL163: 0.007640942131 | AN163: -999 | BE163: 58 | BF163: 0.7982246801 | BI163: -999 | BJ163: 24.2 | BK163: -999 | BM163: =IF(BL163="",NA(),COUNTIF(BL163:$BL$303,BL163)) ->  | BR163: =IF(BQ163="",NA(),COUNTIF(BQ163:$BQ$303,BQ163)) ->  | BW163: =IF(BV163="",NA(),COUNTIF(BV163:$BV$303,BV163)) ->  | CB163: =IF(CA163="",NA(),COUNTIF(CA163:$CA$303,CA163)) ->  | CG163: =IF(CF163="",NA(),COUNTIF($CF163:CF$303,CF163)) ->  | CI163: =IF(CH163="",NA(),COUNTIF($CH163:CH$303,CH163)) -> 
K164: 49.5 | L164: 39.92721824 | M164: 2.348054036 | N164: 0.9092410174 | O164: -47.65194596 | Q164: -999 | V164: -47.65194596 | X164: 1.551343504 | Y164: 0.00986611463 | AB164: 72.31893 | AC164: 27.13293 | AD164: 16.35990868 | AE164: 0.005888223479 | AI164: -999 | AL164: 0.00986611463 | AN164: -999 | BE164: 59 | BF164: 0.1781779751 | BI164: -999 | BJ164: 24.2 | BK164: -999 | BM164: =IF(BL164="",NA(),COUNTIF(BL164:$BL$303,BL164)) ->  | BR164: =IF(BQ164="",NA(),COUNTIF(BQ164:$BQ$303,BQ164)) ->  | BW164: =IF(BV164="",NA(),COUNTIF(BV164:$BV$303,BV164)) ->  | CB164: =IF(CA164="",NA(),COUNTIF(CA164:$CA$303,CA164)) ->  | CG164: =IF(CF164="",NA(),COUNTIF($CF164:CF$303,CF164)) ->  | CI164: =IF(CH164="",NA(),COUNTIF($CH164:CH$303,CH164)) -> 
K165: 50 | L165: 39.65014102 | M165: 2.06181552 | N165: 0.9183006564 | O165: -47.93818448 | Q165: -999 | V165: -47.93818448 | X165: 1.632993162 | Y165: 0.0126017119 | AB165: 72.593 | AC165: 27.407 | AD165: 16.69208109 | AE165: 0.005122357185 | AI165: -999 | AL165: 0.0126017119 | AN165: -999 | BE165: 60 | BF165: 0.06749527901 | BI165: -999 | BJ165: 24.2 | BK165: -999 | BM165: =IF(BL165="",NA(),COUNTIF(BL165:$BL$303,BL165)) ->  | BR165: =IF(BQ165="",NA(),COUNTIF(BQ165:$BQ$303,BQ165)) ->  | BW165: =IF(BV165="",NA(),COUNTIF(BV165:$BV$303,BV165)) ->  | CB165: =IF(CA165="",NA(),COUNTIF(CA165:$CA$303,CA165)) ->  | CG165: =IF(CF165="",NA(),COUNTIF($CF165:CF$303,CF165)) ->  | CI165: =IF(CH165="",NA(),COUNTIF($CH165:CH$303,CH165)) -> 
K166: 50.5 | L166: 39.36525576 | M166: 1.798441126 | N166: 0.9264629042 | O166: -48.20155887 | Q166: -999 | V166: -48.20155887 | X166: 1.71464282 | Y166: 0.01592202471 | AB166: 72.86707 | AC166: 27.68107 | AD166: 17.02759192 | AE166: 0.004447764326 | AI166: -999 | AL166: 0.01592202471 | AN166: -999 | BE166: 61 | BF166: 0.6675797328 | BI166: -999 | BJ166: 24.2 | BK166: -999 | BM166: =IF(BL166="",NA(),COUNTIF(BL166:$BL$303,BL166)) ->  | BR166: =IF(BQ166="",NA(),COUNTIF(BQ166:$BQ$303,BQ166)) ->  | BW166: =IF(BV166="",NA(),COUNTIF(BV166:$BV$303,BV166)) ->  | CB166: =IF(CA166="",NA(),COUNTIF(CA166:$CA$303,CA166)) ->  | CG166: =IF(CF166="",NA(),COUNTIF($CF166:CF$303,CF166)) ->  | CI166: =IF(CH166="",NA(),COUNTIF($CH166:CH$303,CH166)) -> 
K167: 51 | L167: 39.07336391 | M167: 1.558286648 | N167: 0.9338059973 | O167: -48.44171335 | Q167: -999 | V167: -48.44171335 | X167: 1.796292478 | Y167: 0.01990160504 | AB167: 73.14114 | AC167: 27.95514 | AD167: 17.36644116 | AE167: 0.003854792982 | AI167: -999 | AL167: 0.01990160504 | AN167: -999 | BE167: 62 | BF167: 0.00688945502 | BI167: -999 | BJ167: 24.2 | BK167: -999 | BM167: =IF(BL167="",NA(),COUNTIF(BL167:$BL$303,BL167)) ->  | BR167: =IF(BQ167="",NA(),COUNTIF(BQ167:$BQ$303,BQ167)) ->  | BW167: =IF(BV167="",NA(),COUNTIF(BV167:$BV$303,BV167)) ->  | CB167: =IF(CA167="",NA(),COUNTIF(CA167:$CA$303,CA167)) ->  | CG167: =IF(CF167="",NA(),COUNTIF($CF167:CF$303,CF167)) ->  | CI167: =IF(CH167="",NA(),COUNTIF($CH167:CH$303,CH167)) -> 
K168: 51.5 | L168: 38.77527149 | M168: 1.341229748 | N168: 0.9404043563 | O168: -48.65877025 | Q168: -999 | V168: -48.65877025 | X168: 1.877942136 | Y168: 0.02461299366 | AB168: 73.41521 | AC168: 28.22921 | AD168: 17.70862883 | AE168: 0.003334638639 | AI168: -999 | AL168: 0.02461299366 | AN168: -999 | BE168: 63 | BF168: 0.6397671923 | BI168: -999 | BJ168: 24.2 | BK168: -999 | BM168: =IF(BL168="",NA(),COUNTIF(BL168:$BL$303,BL168)) ->  | BR168: =IF(BQ168="",NA(),COUNTIF(BQ168:$BQ$303,BQ168)) ->  | BW168: =IF(BV168="",NA(),COUNTIF(BV168:$BV$303,BV168)) ->  | CB168: =IF(CA168="",NA(),COUNTIF(CA168:$CA$303,CA168)) ->  | CG168: =IF(CF168="",NA(),COUNTIF($CF168:CF$303,CF168)) ->  | CI168: =IF(CH168="",NA(),COUNTIF($CH168:CH$303,CH168)) -> 
K169: 52 | L169: 38.47178549 | M169: 1.146736691 | N169: 0.9463279921 | O169: -48.85326331 | Q169: -999 | V169: -48.85326331 | X169: 1.959591794 | Y169: 0.03012436577 | AB169: 73.68928 | AC169: 28.50328 | AD169: 18.05415491 | AE169: 0.002879293629 | AI169: -999 | AL169: 0.03012436577 | AN169: -999 | BE169: 64 | BF169: 0.2400148436 | BI169: -999 | BJ169: 24.2 | BK169: -999 | BM169: =IF(BL169="",NA(),COUNTIF(BL169:$BL$303,BL169)) ->  | BR169: =IF(BQ169="",NA(),COUNTIF(BQ169:$BQ$303,BQ169)) ->  | BW169: =IF(BV169="",NA(),COUNTIF(BV169:$BV$303,BV169)) ->  | CB169: =IF(CA169="",NA(),COUNTIF(CA169:$CA$303,CA169)) ->  | CG169: =IF(CF169="",NA(),COUNTIF($CF169:CF$303,CF169)) ->  | CI169: =IF(CH169="",NA(),COUNTIF($CH169:CH$303,CH169)) -> 
K170: 52.5 | L170: 38.16371027 | M170: 0.9739326898 | N170: 0.9516421563 | O170: -49.02606731 | Q170: -999 | V170: -49.02606731 | X170: 2.041241452 | Y170: 0.03649722811 | AB170: 73.96335 | AC170: 28.77735 | AD170: 18.4030194 | AE170: 0.002481496226 | AI170: -999 | AL170: 0.03649722811 | AN170: -999 | BE170: 65 | BF170: 0.5566200837 | BI170: -999 | BJ170: 24.2 | BK170: -999 | BM170: =IF(BL170="",NA(),COUNTIF(BL170:$BL$303,BL170)) ->  | BR170: =IF(BQ170="",NA(),COUNTIF(BQ170:$BQ$303,BQ170)) ->  | BW170: =IF(BV170="",NA(),COUNTIF(BV170:$BV$303,BV170)) ->  | CB170: =IF(CA170="",NA(),COUNTIF(CA170:$CA$303,CA170)) ->  | CG170: =IF(CF170="",NA(),COUNTIF($CF170:CF$303,CF170)) ->  | CI170: =IF(CH170="",NA(),COUNTIF($CH170:CH$303,CH170)) -> 
K171: 53 | L171: 37.85184411 | M171: 0.8216727441 | N171: 0.9564071875 | O171: -49.17832726 | Q171: -999 | V171: -49.17832726 | X171: 2.12289111 | Y171: 0.04378429743 | AB171: 74.23742 | AC171: 29.05142 | AD171: 18.75522231 | AE171: 0.002134680005 | AI171: -999 | AL171: 0.04378429743 | AN171: -999 | BE171: 66 | BF171: 0.07355403155 | BI171: -999 | BJ171: 24.2 | BK171: -999 | BM171: =IF(BL171="",NA(),COUNTIF(BL171:$BL$303,BL171)) ->  | BR171: =IF(BQ171="",NA(),COUNTIF(BQ171:$BQ$303,BQ171)) ->  | BW171: =IF(BV171="",NA(),COUNTIF(BV171:$BV$303,BV171)) ->  | CB171: =IF(CA171="",NA(),COUNTIF(CA171:$CA$303,CA171)) ->  | CG171: =IF(CF171="",NA(),COUNTIF($CF171:CF$303,CF171)) ->  | CI171: =IF(CH171="",NA(),COUNTIF($CH171:CH$303,CH171)) -> 
K172: 53.5 | L172: 37.5369759 | M172: 0.688610313 | N172: 0.9606785092 | O172: -49.31138969 | Q172: -999 | V172: -49.31138969 | X172: 2.204540769 | Y172: 0.05202767464 | AB172: 74.51149 | AC172: 29.32549 | AD172: 19.11076364 | AE172: 0.001832923973 | AI172: -999 | AL172: 0.05202767464 | AN172: -999 | BE172: 67 | BF172: =MOD(BF171*10000013,1) -> 0.2717112526 | BG172: =IF(AND($BD$4,$BE171<=$K$14),NORMSINV(BF172),"") ->  | BH172: =IF(BG172="","",$V$9+$R$11*BG172) ->  | BI172: =IF(AND(NOT($BB$12),$BB$4,$BD$2,BH172<>"",$D$4<>""),BH172,-999) -> -999 | BJ172: =$AX$8-$BJ$105 -> 24.2 | BK172: =IF(AND($BB$12,$BD$2,BH172<>"",$D$4<>""),BH172,-999) -> -999 | BM172: =IF(BL172="",NA(),COUNTIF(BL172:$BL$303,BL172)) ->  | BR172: =IF(BQ172="",NA(),COUNTIF(BQ172:$BQ$303,BQ172)) ->  | BW172: =IF(BV172="",NA(),COUNTIF(BV172:$BV$303,BV172)) ->  | CB172: =IF(CA172="",NA(),COUNTIF(CA172:$CA$303,CA172)) ->  | CG172: =IF(CF172="",NA(),COUNTIF($CF172:CF$303,CF172)) ->  | CI172: =IF(CH172="",NA(),COUNTIF($CH172:CH$303,CH172)) -> 
K173: 54 | L173: 37.21988191 | M173: 0.5732616213 | N173: 0.9645067411 | O173: -49.42673838 | Q173: -999 | V173: -49.42673838 | X173: 2.286190427 | Y173: 0.06125740506 | AB173: 74.78556 | AC173: 29.59956 | AD173: 19.46964338 | AE173: 0.001570903917 | AI173: -999 | AL173: 0.06125740506 | AN173: -999 | BE173: 68 | BF173: 0.05854385346 | BI173: -999 | BJ173: 24.2 | BK173: -999 | BM173: =IF(BL173="",NA(),COUNTIF(BL173:$BL$303,BL173)) ->  | BR173: =IF(BQ173="",NA(),COUNTIF(BQ173:$BQ$303,BQ173)) ->  | BW173: =IF(BV173="",NA(),COUNTIF(BV173:$BV$303,BV173)) ->  | CB173: =IF(CA173="",NA(),COUNTIF(CA173:$CA$303,CA173)) ->  | CG173: =IF(CF173="",NA(),COUNTIF($CF173:CF$303,CF173)) ->  | CI173: =IF(CH173="",NA(),COUNTIF($CH173:CH$303,CH173)) -> 
K174: 54.5 | L174: 36.90132278 | M174: 0.4740639339 | N174: 0.9679378931 | O174: -49.52593607 | Q174: -999 | V174: -49.52593607 | X174: 2.367840085 | Y174: 0.07149048498 | AB174: 75.05963 | AC174: 29.87363 | AD174: 19.83186154 | AE174: 0.001343845313 | AI174: -999 | AL174: 0.07149048498 | AN174: -999 | BE174: 69 | BF174: 0.295687519 | BI174: -999 | BJ174: 24.2 | BK174: -999 | BM174: =IF(BL174="",NA(),COUNTIF(BL174:$BL$303,BL174)) ->  | BR174: =IF(BQ174="",NA(),COUNTIF(BQ174:$BQ$303,BQ174)) ->  | BW174: =IF(BV174="",NA(),COUNTIF(BV174:$BV$303,BV174)) ->  | CB174: =IF(CA174="",NA(),COUNTIF(CA174:$CA$303,CA174)) ->  | CG174: =IF(CF174="",NA(),COUNTIF($CF174:CF$303,CF174)) ->  | CI174: =IF(CH174="",NA(),COUNTIF($CH174:CH$303,CH174)) -> 
K175: 55 | L175: 36.58204069 | M175: 0.3894266494 | N175: 0.9710136132 | O175: -49.61057335 | Q175: -999 | V175: -49.61057335 | X175: 2.449489743 | Y175: 0.08273034357 | AB175: 75.3337 | AC175: 30.1477 | AD175: 20.19741812 | AE175: 0.001147478089 | AI175: -999 | AL175: 0.08273034357 | AN175: -999 | BE175: 70 | BF175: 0.03407656401 | BI175: -999 | BJ175: 24.2 | BK175: -999 | BM175: =IF(BL175="",NA(),COUNTIF(BL175:$BL$303,BL175)) ->  | BR175: =IF(BQ175="",NA(),COUNTIF(BQ175:$BQ$303,BQ175)) ->  | BW175: =IF(BV175="",NA(),COUNTIF(BV175:$BV$303,BV175)) ->  | CB175: =IF(CA175="",NA(),COUNTIF(CA175:$CA$303,CA175)) ->  | CG175: =IF(CF175="",NA(),COUNTIF($CF175:CF$303,CF175)) ->  | CI175: =IF(CH175="",NA(),COUNTIF($CH175:CH$303,CH175)) -> 
K176: 55.5 | L176: 36.26275663 | M176: 0.317774558 | N176: 0.9737714709 | O176: -49.68222544 | Q176: -999 | V176: -49.68222544 | X176: 2.531139401 | Y176: 0.09496679744 | AB176: 75.60777 | AC176: 30.42177 | AD176: 20.56631311 | AE176: 0.0009779934544 | AI176: -999 | AL176: 0.09496679744 | AN176: -999 | BE176: 71 | BF176: 0.08313491195 | BI176: -999 | BJ176: 24.2 | BK176: -999 | BM176: =IF(BL176="",NA(),COUNTIF(BL176:$BL$303,BL176)) ->  | BR176: =IF(BQ176="",NA(),COUNTIF(BQ176:$BQ$303,BQ176)) ->  | BW176: =IF(BV176="",NA(),COUNTIF(BV176:$BV$303,BV176)) ->  | CB176: =IF(CA176="",NA(),COUNTIF(CA176:$CA$303,CA176)) ->  | CG176: =IF(CF176="",NA(),COUNTIF($CF176:CF$303,CF176)) ->  | CI176: =IF(CH176="",NA(),COUNTIF($CH176:CH$303,CH176)) -> 
K177: 56 | L177: 35.94416797 | M177: 0.2575830505 | N177: 0.9762452572 | O177: -49.74241695 | Q177: -999 | V177: -49.74241695 | X177: 2.612789059 | Y177: 0.1081764488 | AB177: 75.88184 | AC177: 30.69584 | AD177: 20.93854652 | AE177: 0.0008320029644 | AI177: -999 | AL177: 0.1081764488 | AN177: -999 | BE177: 72 | BF177: 0.2002978846 | BI177: -999 | BJ177: 24.2 | BK177: -999 | BM177: =IF(BL177="",NA(),COUNTIF(BL177:$BL$303,BL177)) ->  | BR177: =IF(BQ177="",NA(),COUNTIF(BQ177:$BQ$303,BQ177)) ->  | BW177: =IF(BV177="",NA(),COUNTIF(BV177:$BV$303,BV177)) ->  | CB177: =IF(CA177="",NA(),COUNTIF(CA177:$CA$303,CA177)) ->  | CG177: =IF(CF177="",NA(),COUNTIF($CF177:CF$303,CF177)) ->  | CI177: =IF(CH177="",NA(),COUNTIF($CH177:CH$303,CH177)) -> 
K178: 56.5 | L178: 35.62694621 | M178: 0.2074054405 | N178: 0.9784652906 | O178: -49.79259456 | Q178: -999 | V178: -49.79259456 | X178: 2.694438717 | Y178: 0.1223234761 | AB178: 76.15591 | AC178: 30.96991 | AD178: 21.31411834 | AE178: 0.0007064999247 | AI178: -999 | AL178: 0.1223234761 | AN178: -999 | BE178: 73 | BF178: 0.4503032789 | BI178: -999 | BJ178: 24.2 | BK178: -999 | BM178: =IF(BL178="",NA(),COUNTIF(BL178:$BL$303,BL178)) ->  | BR178: =IF(BQ178="",NA(),COUNTIF(BQ178:$BQ$303,BQ178)) ->  | BW178: =IF(BV178="",NA(),COUNTIF(BV178:$BV$303,BV178)) ->  | CB178: =IF(CA178="",NA(),COUNTIF(CA178:$CA$303,CA178)) ->  | CG178: =IF(CF178="",NA(),COUNTIF($CF178:CF$303,CF178)) ->  | CI178: =IF(CH178="",NA(),COUNTIF($CH178:CH$303,CH178)) -> 
K179: 57 | L179: 35.31173493 | M179: 0.165892866 | N179: 0.9804587187 | O179: -49.83410713 | Q179: -999 | V179: -49.83410713 | X179: 2.776088375 | Y179: 0.1373607506 | AB179: 76.42998 | AC179: 31.24398 | AD179: 21.69302858 | AE179: 0.0005988231991 | AI179: -999 | AL179: 0.1373607506 | AN179: -999 | BE179: 74 | BF179: 0.6425769255 | BI179: -999 | BJ179: 24.2 | BK179: -999 | BM179: =IF(BL179="",NA(),COUNTIF(BL179:$BL$303,BL179)) ->  | BR179: =IF(BQ179="",NA(),COUNTIF(BQ179:$BQ$303,BQ179)) ->  | BW179: =IF(BV179="",NA(),COUNTIF(BV179:$BV$303,BV179)) ->  | CB179: =IF(CA179="",NA(),COUNTIF(CA179:$CA$303,CA179)) ->  | CG179: =IF(CF179="",NA(),COUNTIF($CF179:CF$303,CF179)) ->  | CI179: =IF(CH179="",NA(),COUNTIF($CH179:CH$303,CH179)) -> 
K180: 57.5 | L180: 34.99914795 | M180: 0.1318074564 | N180: 0.9822498094 | O180: -49.86819254 | Q180: -999 | V180: -49.86819254 | X180: 2.857738033 | Y180: 0.1532312039 | AB180: 76.70405 | AC180: 31.51805 | AD180: 22.07527724 | AE180: 0.0005066234454 | AI180: -999 | AL180: 0.1532312039 | AN180: -999 | BE180: 75 | BF180: 0.6080652699 | BI180: -999 | BJ180: 24.2 | BK180: -999 | BM180: =IF(BL180="",NA(),COUNTIF(BL180:$BL$303,BL180)) ->  | BR180: =IF(BQ180="",NA(),COUNTIF(BQ180:$BQ$303,BQ180)) ->  | BW180: =IF(BV180="",NA(),COUNTIF(BV180:$BV$303,BV180)) ->  | CB180: =IF(CA180="",NA(),COUNTIF(CA180:$CA$303,CA180)) ->  | CG180: =IF(CF180="",NA(),COUNTIF($CF180:CF$303,CF180)) ->  | CI180: =IF(CH180="",NA(),COUNTIF($CH180:CH$303,CH180)) -> 
K181: 58 | L181: 34.68976778 | M181: 0.1040296056 | N181: 0.9838602276 | O181: -49.89597039 | Q181: -999 | V181: -49.89597039 | X181: 2.939387691 | Y181: 0.1698693689 | AB181: 76.97812 | AC181: 31.79212 | AD181: 22.46086431 | AE181: 0.000427831767 | AI181: -999 | AL181: 0.1698693689 | AN181: -999 | BE181: 76 | BF181: 0.6037229821 | BI181: -999 | BJ181: 24.2 | BK181: -999 | BM181: =IF(BL181="",NA(),COUNTIF(BL181:$BL$303,BL181)) ->  | BR181: =IF(BQ181="",NA(),COUNTIF(BQ181:$BQ$303,BQ181)) ->  | BW181: =IF(BV181="",NA(),COUNTIF(BV181:$BV$303,BV181)) ->  | CB181: =IF(CA181="",NA(),COUNTIF(CA181:$CA$303,CA181)) ->  | CG181: =IF(CF181="",NA(),COUNTIF($CF181:CF$303,CF181)) ->  | CI181: =IF(CH181="",NA(),COUNTIF($CH181:CH$303,CH181)) -> 
K182: 58.5 | L182: 34.38414423 | M182: 0.08156026495 | N182: 0.9853092935 | O182: -49.91843974 | Q182: -999 | V182: -49.91843974 | X182: 3.021037349 | Y182: 0.1872030176 | AB182: 77.25219 | AC182: 32.06619 | AD182: 22.8497898 | AE182: 0.0003606307422 | AI182: -999 | AL182: 0.1872030176 | AN182: -999 | BE182: 77 | BF182: 0.6694846973 | BI182: -999 | BJ182: 24.2 | BK182: -999 | BM182: =IF(BL182="",NA(),COUNTIF(BL182:$BL$303,BL182)) ->  | BR182: =IF(BQ182="",NA(),COUNTIF(BQ182:$BQ$303,BQ182)) ->  | BW182: =IF(BV182="",NA(),COUNTIF(BV182:$BV$303,BV182)) ->  | CB182: =IF(CA182="",NA(),COUNTIF(CA182:$CA$303,CA182)) ->  | CG182: =IF(CF182="",NA(),COUNTIF($CF182:CF$303,CF182)) ->  | CI182: =IF(CH182="",NA(),COUNTIF($CH182:CH$303,CH182)) -> 
K183: 59 | L183: 34.08279329 | M183: 0.06351919821 | N183: 0.9866142229 | O183: -49.9364808 | Q183: -999 | V183: -49.9364808 | X183: 3.102687008 | Y183: 0.2051548283 | AB183: 77.52626 | AC183: 32.34026 | AD183: 23.24205371 | AE183: 0.0003034277664 | AI183: -999 | AL183: 0.2051548283 | AN183: -999 | BE183: 78 | BF183: 0.6761242077 | BI183: -999 | BJ183: 24.2 | BK183: -999 | BM183: =IF(BL183="",NA(),COUNTIF(BL183:$BL$303,BL183)) ->  | BR183: =IF(BQ183="",NA(),COUNTIF(BQ183:$BQ$303,BQ183)) ->  | BW183: =IF(BV183="",NA(),COUNTIF(BV183:$BV$303,BV183)) ->  | CB183: =IF(CA183="",NA(),COUNTIF(CA183:$CA$303,CA183)) ->  | CG183: =IF(CF183="",NA(),COUNTIF($CF183:CF$303,CF183)) ->  | CI183: =IF(CH183="",NA(),COUNTIF($CH183:CH$303,CH183)) -> 
K184: 59.5 | L184: 33.78619625 | M184: 0.04914010617 | N184: 0.9877903472 | O184: -49.95085989 | Q184: -999 | V184: -49.95085989 | X184: 3.184336666 | Y184: 0.22364402 | AB184: 77.80033 | AC184: 32.61433 | AD184: 23.63765603 | AE184: 0.000254830628 | AI184: -999 | AL184: 0.22364402 | AN184: -999 | BE184: 79 | BF184: 0.8663692698 | BI184: -999 | BJ184: 24.2 | BK184: -999 | BM184: =IF(BL184="",NA(),COUNTIF(BL184:$BL$303,BL184)) ->  | BR184: =IF(BQ184="",NA(),COUNTIF(BQ184:$BQ$303,BQ184)) ->  | BW184: =IF(BV184="",NA(),COUNTIF(BV184:$BV$303,BV184)) ->  | CB184: =IF(CA184="",NA(),COUNTIF(CA184:$CA$303,CA184)) ->  | CG184: =IF(CF184="",NA(),COUNTIF($CF184:CF$303,CF184)) ->  | CI184: =IF(CH184="",NA(),COUNTIF($CH184:CH$303,CH184)) -> 
K185: 60 | L185: 33.49479896 | M185: 0.03776346853 | N185: 0.9888513145 | O185: -49.96223653 | Q185: -999 | V185: -49.96223653 | X185: 3.265986324 | Y185: 0.2425879069 | AB185: 78.0744 | AC185: 32.8884 | AD185: 24.03659677 | AE185: 0.0002136252183 | AI185: -999 | AL185: 0.2425879069 | AN185: -999 | BE185: 80 | BF185: 0.9606831595 | BI185: -999 | BJ185: 24.2 | BK185: -999 | BM185: =IF(BL185="",NA(),COUNTIF(BL185:$BL$303,BL185)) ->  | BR185: =IF(BQ185="",NA(),COUNTIF(BQ185:$BQ$303,BQ185)) ->  | BW185: =IF(BV185="",NA(),COUNTIF(BV185:$BV$303,BV185)) ->  | CB185: =IF(CA185="",NA(),COUNTIF(CA185:$CA$303,CA185)) ->  | CG185: =IF(CF185="",NA(),COUNTIF($CF185:CF$303,CF185)) ->  | CI185: =IF(CH185="",NA(),COUNTIF($CH185:CH$303,CH185)) -> 
K186: 60.5 | L186: 33.20901145 | M186: 0.02882785751 | N186: 0.9898092714 | O186: -49.97117214 | Q186: -999 | V186: -49.97117214 | X186: 3.347635982 | Y186: 0.261903333 | AB186: 78.34847 | AC186: 33.16247 | AD186: 24.43887592 | AE186: 0.0001787552702 | AI186: -999 | AL186: 0.261903333 | AN186: -999 | BE186: 81 | BF186: 0.084182702 | BI186: -999 | BJ186: 24.2 | BK186: -999 | BM186: =IF(BL186="",NA(),COUNTIF(BL186:$BL$303,BL186)) ->  | BR186: =IF(BQ186="",NA(),COUNTIF(BQ186:$BQ$303,BQ186)) ->  | BW186: =IF(BV186="",NA(),COUNTIF(BV186:$BV$303,BV186)) ->  | CB186: =IF(CA186="",NA(),COUNTIF(CA186:$CA$303,CA186)) ->  | CG186: =IF(CF186="",NA(),COUNTIF($CF186:CF$303,CF186)) ->  | CI186: =IF(CH186="",NA(),COUNTIF($CH186:CH$303,CH186)) -> 
K187: 61 | L187: 32.92920764 | M187: 0.0218603726 | N187: 0.9906750278 | O187: -49.97813963 | Q187: -999 | V187: -49.97813963 | X187: 3.42928564 | Y187: 0.28150796 | AB187: 78.62254 | AC187: 33.43654 | AD187: 24.84449349 | AE187: 0.0001493040087 | AI187: -999 | AL187: 0.28150796 | AN187: -999 | BE187: 82 | BF187: 0.1144242212 | BI187: -999 | BJ187: 24.2 | BK187: -999 | BM187: =IF(BL187="",NA(),COUNTIF(BL187:$BL$303,BL187)) ->  | BR187: =IF(BQ187="",NA(),COUNTIF(BQ187:$BQ$303,BQ187)) ->  | BW187: =IF(BV187="",NA(),COUNTIF(BV187:$BV$303,BV187)) ->  | CB187: =IF(CA187="",NA(),COUNTIF(CA187:$CA$303,CA187)) ->  | CG187: =IF(CF187="",NA(),COUNTIF($CF187:CF$303,CF187)) ->  | CI187: =IF(CH187="",NA(),COUNTIF($CH187:CH$303,CH187)) -> 
K188: 61.5 | L188: 32.65572532 | M188: 0.0164667335 | N188: 0.9914582043 | O188: -49.98353327 | Q188: -999 | V188: -49.98353327 | X188: 3.510935298 | Y188: 0.3013213924 | AB188: 78.89661 | AC188: 33.71061 | AD188: 25.25344948 | AE188: 0.0001244775942 | AI188: -999 | AL188: 0.3013213924 | AN188: -999 | BE188: 83 | BF188: 0.6996911988 | BI188: -999 | BJ188: 24.2 | BK188: -999 | BM188: =IF(BL188="",NA(),COUNTIF(BL188:$BL$303,BL188)) ->  | BR188: =IF(BQ188="",NA(),COUNTIF(BQ188:$BQ$303,BQ188)) ->  | BW188: =IF(BV188="",NA(),COUNTIF(BV188:$BV$303,BV188)) ->  | CB188: =IF(CA188="",NA(),COUNTIF(CA188:$CA$303,CA188)) ->  | CG188: =IF(CF188="",NA(),COUNTIF($CF188:CF$303,CF188)) ->  | CI188: =IF(CH188="",NA(),COUNTIF($CH188:CH$303,CH188)) -> 
K189: 62 | L189: 32.3888663 | M189: 0.01232145676 | N189: 0.9921673649 | O189: -49.98767854 | Q189: -999 | V189: -49.98767854 | X189: 3.592584956 | Y189: 0.3212661306 | AB189: 79.17068 | AC189: 33.98468 | AD189: 25.66574388 | AE189: 0.0001035902361 | AI189: -999 | AL189: 0.3212661306 | AN189: -999 | BE189: 84 | BF189: 0.08364789933 | BI189: -999 | BJ189: 24.2 | BK189: -999 | BM189: =IF(BL189="",NA(),COUNTIF(BL189:$BL$303,BL189)) ->  | BR189: =IF(BQ189="",NA(),COUNTIF(BQ189:$BQ$303,BQ189)) ->  | BW189: =IF(BV189="",NA(),COUNTIF(BV189:$BV$303,BV189)) ->  | CB189: =IF(CA189="",NA(),COUNTIF(CA189:$CA$303,CA189)) ->  | CG189: =IF(CF189="",NA(),COUNTIF($CF189:CF$303,CF189)) ->  | CI189: =IF(CH189="",NA(),COUNTIF($CH189:CH$303,CH189)) -> 
K190: 62.5 | L190: 32.12889679 | M190: 0.009158436969 | N190: 0.9928101351 | O190: -49.99084156 | Q190: -999 | V190: -49.99084156 | X190: 3.674234614 | Y190: 0.3412683521 | AB190: 79.44475 | AC190: 34.25875 | AD190: 26.0813767 | AE190: 8.605085349e-05 | AI190: -999 | AL190: 0.3412683521 | AN190: -999 | BE190: 85 | BF190: 0.08071931452 | BI190: -999 | BJ190: 24.2 | BK190: -999 | BM190: =IF(BL190="",NA(),COUNTIF(BL190:$BL$303,BL190)) ->  | BR190: =IF(BQ190="",NA(),COUNTIF(BQ190:$BQ$303,BQ190)) ->  | BW190: =IF(BV190="",NA(),COUNTIF(BV190:$BV$303,BV190)) ->  | CB190: =IF(CA190="",NA(),COUNTIF(CA190:$CA$303,CA190)) ->  | CG190: =IF(CF190="",NA(),COUNTIF($CF190:CF$303,CF190)) ->  | CI190: =IF(CH190="",NA(),COUNTIF($CH190:CH$303,CH190)) -> 
K191: 63 | L191: 31.87604787 | M191: 0.006762158841 | N191: 0.9933933072 | O191: -49.99323784 | Q191: -999 | V191: -49.99323784 | X191: 3.755884272 | Y191: 0.3612585253 | AB191: 79.71882 | AC191: 34.53282 | AD191: 26.50034794 | AE191: 7.135116302e-05 | AI191: -999 | AL191: 0.3612585253 | AN191: -999 | BE191: 86 | BF191: 0.1945069954 | BI191: -999 | BJ191: 24.2 | BK191: -999 | BM191: =IF(BL191="",NA(),COUNTIF(BL191:$BL$303,BL191)) ->  | BR191: =IF(BQ191="",NA(),COUNTIF(BQ191:$BQ$303,BQ191)) ->  | BW191: =IF(BV191="",NA(),COUNTIF(BV191:$BV$303,BV191)) ->  | CB191: =IF(CA191="",NA(),COUNTIF(CA191:$CA$303,CA191)) ->  | CG191: =IF(CF191="",NA(),COUNTIF($CF191:CF$303,CF191)) ->  | CI191: =IF(CH191="",NA(),COUNTIF($CH191:CH$303,CH191)) -> 
K192: 63.5 | L192: 31.63051625 | M192: 0.004959684819 | N192: =IF(K192>$O$9,1-TDIST((K192-$O$9)/$BB$9,$K$14-1,1),TDIST(($O$9-K192)/$BB$9,$K$14-1,1)) -> 0.9939229344 | O192: -49.99504032 | Q192: -999 | V192: -49.99504032 | X192: 3.83753393 | Y192: =nct(X192,$AW$136,$AW$137) -> 0.381171868 | AB192: 79.99289 | AC192: 34.80689 | AD192: 26.92265759 | AE192: 5.905507514e-05 | AI192: -999 | AL192: =Y192 -> 0.381171868 | AN192: -999 | BE192: 87 | BF192: 0.4823901877 | BI192: -999 | BJ192: 24.2 | BK192: -999 | BM192: =IF(BL192="",NA(),COUNTIF(BL192:$BL$303,BL192)) ->  | BR192: =IF(BQ192="",NA(),COUNTIF(BQ192:$BQ$303,BQ192)) ->  | BW192: =IF(BV192="",NA(),COUNTIF(BV192:$BV$303,BV192)) ->  | CB192: =IF(CA192="",NA(),COUNTIF(CA192:$CA$303,CA192)) ->  | CG192: =IF(CF192="",NA(),COUNTIF($CF192:CF$303,CF192)) ->  | CI192: =IF(CH192="",NA(),COUNTIF($CH192:CH$303,CH192)) -> 
K193: 64 | L193: =IF(NOT($BB$12),$AX$6+$AX$5*$X$62*NORMDIST(K193,$O$9,$R$11,FALSE),-999) -> 31.39246505 | M193: 0.003613495287 | N193: 0.9944044135 | O193: -49.9963865 | Q193: =IF($BB$12,$AX$6+$AX$5*$X$62*NORMDIST(K193,$O$9,$R$11,FALSE),-999) -> -999 | V193: -49.9963865 | X193: =X192+$AW$140 -> 3.919183588 | Y193: 0.4009486606 | AB193: 80.26696 | AC193: 35.08096 | AD193: 27.34830566 | AE193: 4.878928593e-05 | AI193: =IF(NOT($BB$13),$AX$6+$AX$5*$X$62*NORMDIST(K193,$V$9,$R$11,FALSE),-999) -> -999 | AJ193: =IF(AND(NOT($BB$13),$BD$4,$BD$9),$AX$9+$AM$62*NORMDIST(K193,$V$9,$R$11/SQRT($K$14),FALSE),NA()) ->  | AL193: 0.4009486606 | AM193: =IF(AND(NOT($BB$13),$BD$10,$BD$4,$BD$9,$BB$25),IF($BD$12,$AX$15+$AM$62*NORMDIST(K193,$V$9,$R$11/SQRT($K$14),FALSE),$AX$15+$AM$62*(AL194-AL192)/(2*$BB$1)),NA()) ->  | AN193: =IF(AND($BB$4,$BB$13),$AX$6+$AX$5*$X$62*NORMDIST(K193,$V$9,$R$11,FALSE),-999) -> -999 | AO193: =IF(AND($BB$4,$BD$6,$BB$13,$BD$4,$BD$9),$AX$9+$AM$62*NORMDIST(K193,$V$9,$R$11/SQRT($K$14),FALSE),NA()) ->  | AP193: =IF(AND($BB$4,$BD$10,$BB$13,$BD$4,$BD$9,$BB$25),IF($BD$12,$AX$15+$AM$62*NORMDIST(K193,$V$9,$R$11/SQRT($K$14),FALSE),$AX$15+$AM$62*(AL194-AL192)/(2*$BB$1)),NA()) ->  | BE193: 88 | BF193: 0.1478796527 | BI193: -999 | BJ193: 24.2 | BK193: -999 | BM193: =IF(BL193="",NA(),COUNTIF(BL193:$BL$303,BL193)) ->  | BR193: =IF(BQ193="",NA(),COUNTIF(BQ193:$BQ$303,BQ193)) ->  | BW193: =IF(BV193="",NA(),COUNTIF(BV193:$BV$303,BV193)) ->  | CB193: =IF(CA193="",NA(),COUNTIF(CA193:$CA$303,CA193)) ->  | CG193: =IF(CF193="",NA(),COUNTIF($CF193:CF$303,CF193)) ->  | CI193: =IF(CH193="",NA(),COUNTIF($CH193:CH$303,CH193)) -> 
K194: =K193+$BB$1 -> 64.5 | L194: 31.16202484 | M194: =IF(AND(NOT($BB$12),$BB$6,$BD$3,$BD$9),$AX$9+$O$62*NORMDIST(K194,$O$9,$R$11/SQRT($K$14),FALSE),NA()) -> 0.002615204231 | N194: 0.9948425596 | O194: =IF(AND(NOT($BB$12),$BD$10,$BD$3,$BD$9),IF($BD$12,V194,$AX$15+$O$62*(N195-N193)/(2*$BB$1)),NA()) -> -49.9973848 | Q194: -999 | R194: =IF(AND($BB$12,$BB$6,$BD$3,$BD$9),$AX$9+$O$62*NORMDIST(K194,$O$9,$R$11/SQRT($K$14),FALSE),NA()) ->  | S194: =IF(AND($BB$12,$BD$10,$BD$3,$BD$9),IF($BD$12,$AX$15+$O$62*NORMDIST(K194,$O$9,$R$11/SQRT($K$14),FALSE),$AX$15+$O$62*(N195-N193)/(2*$BB$1)),NA()) ->  | V194: =IF(AND(NOT($BB$12),$BD$3,$BD$9),$AX$15+$O$62*NORMDIST(K194,$O$9,$R$11/SQRT($K$14),FALSE),NA()) -> -49.9973848 | X194: 4.000833247 | Y194: 0.4205344322 | AB194: 80.54103 | AC194: =AB194-$AA$63 -> 35.35503 | AD194: =AC194^2/$AA$66 -> 27.77729214 | AE194: =CHIDIST(AD194,$K$16) -> 4.023495516e-05 | AI194: -999 | AK194: =IF($BD$6,AJ194,NA()) ->  | AL194: 0.4205344322 | AN194: -999 | BE194: 89 | BF194: 0.44922515 | BI194: -999 | BJ194: 24.2 | BK194: -999 | BM194: =IF(BL194="",NA(),COUNTIF(BL194:$BL$303,BL194)) ->  | BR194: =IF(BQ194="",NA(),COUNTIF(BQ194:$BQ$303,BQ194)) ->  | BW194: =IF(BV194="",NA(),COUNTIF(BV194:$BV$303,BV194)) ->  | CB194: =IF(CA194="",NA(),COUNTIF(CA194:$CA$303,CA194)) ->  | CG194: =IF(CF194="",NA(),COUNTIF($CF194:CF$303,CF194)) ->  | CI194: =IF(CH194="",NA(),COUNTIF($CH194:CH$303,CH194)) -> 
K195: 65 | L195: 30.9392947 | M195: 0.001880132389 | N195: 0.995241671 | O195: -49.99811987 | Q195: -999 | V195: -49.99811987 | X195: 4.082482905 | Y195: 0.4398800337 | AB195: =AB194+$AA$65 -> 80.8151 | AC195: 35.6291 | AD195: 28.20961704 | AE195: 3.312036799e-05 | AF195: =IF(AND(IF($BB$5=1,$A$4<>"",$D$4<>""),NOT($BD$12),$BD$5,$BD$4,$BD$9),$AX$12+$AA$67*(AE194-AE196)/(2*$AA$65),NA()) ->  | AG195: =IF(AND(IF($BB$5=1,$A$4<>"",$D$4<>""),$BD$12,$BD$5,$BD$4,$BD$9),$AX$12+$AA$67*(AE194-AE196)/(2*$AA$65),NA()) ->  | AI195: -999 | AL195: 0.4398800337 | AN195: -999 | BE195: 90 | BF195: 0.3404142782 | BI195: -999 | BJ195: 24.2 | BK195: -999 | BM195: =IF(BL195="",NA(),COUNTIF(BL195:$BL$303,BL195)) ->  | BR195: =IF(BQ195="",NA(),COUNTIF(BQ195:$BQ$303,BQ195)) ->  | BW195: =IF(BV195="",NA(),COUNTIF(BV195:$BV$303,BV195)) ->  | CB195: =IF(CA195="",NA(),COUNTIF(CA195:$CA$303,CA195)) ->  | CG195: =IF(CF195="",NA(),COUNTIF($CF195:CF$303,CF195)) ->  | CI195: =IF(CH195="",NA(),COUNTIF($CH195:CH$303,CH195)) -> 
K196: 65.5 | L196: 30.72434346 | M196: 0.001342690622 | N196: 0.9956055877 | O196: -49.99865731 | Q196: -999 | V196: -49.99865731 | X196: 4.164132563 | Y196: 0.4589416159 | AB196: 81.08917 | AC196: 35.90317 | AD196: 28.64528036 | AE196: 2.721448337e-05 | AI196: -999 | AL196: 0.4589416159 | AN196: -999 | BE196: 91 | BF196: 0.2074777111 | BI196: -999 | BJ196: 24.2 | BK196: -999 | BL196: =IF(A196="","",ROUND(($O$9+$R$11*A196)/$BA$34,0)) ->  | BM196: =IF(BL196="",NA(),COUNTIF(BL196:$BL$303,BL196)) ->  | BN196: =BL196*$BA$34 ->  | BO196: =IF(AND(NOT($BB$12),$BB$6,$BD$3,$BD$8),$AX$9-$BA$33/2+BM196*$BA$33,NA()) ->  | BP196: =IF(AND($BB$12,$BB$6,$BD$3,$BD$8),$AX$9-$BA$33/2+BM196*$BA$33,NA()) ->  | BQ196: =IF(C196="","",ROUND(($O$9+C196*$BB$9)/$BA$34,0)) ->  | BR196: =IF(BQ196="",NA(),COUNTIF(BQ196:$BQ$303,BQ196)) ->  | BS196: =BQ196*$BA$34 ->  | BV196: =IF(D196="","",ROUND(($V$9+$R$11*D196)/$BA$34,0)) ->  | BW196: =IF(BV196="",NA(),COUNTIF(BV196:$BV$303,BV196)) ->  | BX196: =BV196*$BA$34 ->  | BY196: =IF(AND(NOT($BB$13),$BD$6,$BD$4,$BD$8),$AX$9-$BA$33/2+BW196*$BA$33,NA()) ->  | BZ196: =IF(AND($BB$4,$BD$6,$BB$13,$BD$4,$BD$8),$AX$9-$BA$33/2+BW196*$BA$33,NA()) ->  | CA196: =IF(F196="","",ROUND(($O$9+F196*$BB$9)/$BA$34,0)) ->  | CB196: =IF(CA196="",NA(),COUNTIF(CA196:$CA$303,CA196)) ->  | CC196: =CA196*$BA$34 ->  | CG196: =IF(CF196="",NA(),COUNTIF($CF196:CF$303,CF196)) ->  | CI196: =IF(CH196="",NA(),COUNTIF($CH196:CH$303,CH196)) -> 
C197: =IF(AND(A197<>"",$K$14>1),(($O$9+$R$11*A197)-$O$9)/IF($BD$12,$BB$9,$R$11*B197/SQRT($K$14)),"") ->  | F197: =IF(AND(D197<>"",$K$14>1),(($V$9+$R$11*D197)-$O$9)/IF($BD$12,$BB$9,$R$11*E197/SQRT($K$14)),"") ->  | K197: 66 | L197: 30.51721106 | M197: 0.0009525070164 | N197: 0.9959377424 | O197: -49.99904749 | Q197: -999 | V197: -49.99904749 | X197: 4.245782221 | Y197: 0.4776805266 | AB197: 81.36324 | AC197: 36.17724 | AD197: 29.08428209 | AE197: 2.232127873e-05 | AI197: -999 | AL197: 0.4776805266 | AN197: -999 | BE197: 92 | BF197: 0.8086213395 | BI197: -999 | BJ197: 24.2 | BK197: -999 | BM197: =IF(BL197="",NA(),COUNTIF(BL197:$BL$303,BL197)) ->  | BR197: =IF(BQ197="",NA(),COUNTIF(BQ197:$BQ$303,BQ197)) ->  | BT197: =IF(AND(NOT($BB$12),$BD$10,$BD$3,$BD$8),$AX$15-$BA$33/2+BR197*$BA$33,NA()) ->  | BU197: =IF(AND($BB$12,$BD$10,$BD$3,$BD$8),$AX$15-$BA$33/2+BR197*$BA$33,NA()) ->  | BW197: =IF(BV197="",NA(),COUNTIF(BV197:$BV$303,BV197)) ->  | CB197: =IF(CA197="",NA(),COUNTIF(CA197:$CA$303,CA197)) ->  | CD197: =IF(AND(NOT($BB$13),$BD$10,$BD$4,$BD$8),$AX$15-$BA$33/2+CB197*$BA$33,NA()) ->  | CE197: =IF(AND($BB$4,$BD$10,$BB$13,$BD$4,$BD$8),$AX$15-$BA$33/2+CB197*$BA$33,NA()) ->  | CF197: =IF(B197="","",ROUND(($R$11*B197)/$BA$37,0)) ->  | CG197: =IF(CF197="",NA(),COUNTIF($CF197:CF$303,CF197)) ->  | CH197: =IF(E197="","",ROUND(($R$11*E197)/$BA$37,0)) ->  | CI197: =IF(CH197="",NA(),COUNTIF($CH197:CH$303,CH197)) ->  | CJ197: =$AX$35+IF($BB$5=1,CF197,CH197)*$BA$37 ->  | CK197: =IF(AND(NOT($BD$12),$BD$5,$BD$4,$BD$8),$AX$12-$BA$36/2+IF($BB$5=1,CG197,CI197)*$BA$36,NA()) ->  | CL197: =IF(AND($BD$12,$BD$5,$BD$4,$BD$8),$AX$12-$BA$36/2+IF($BB$5=1,CG197,CI197)*$BA$36,NA()) -> 
K198: 66.5 | L198: 30.31790988 | M198: 0.0006712203498 | N198: 0.9962412064 | O198: -49.99932878 | Q198: -999 | V198: -49.99932878 | X198: 4.327431879 | Y198: 0.4960631444 | AB198: 81.63731 | AC198: 36.45131 | AD198: 29.52662224 | AE198: 1.827480696e-05 | AI198: -999 | AL198: 0.4960631444 | AN198: -999 | BE198: 93 | BF198: 0.9070769176 | BI198: -999 | BJ198: 24.2 | BK198: -999 | BM198: =IF(BL198="",NA(),COUNTIF(BL198:$BL$303,BL198)) ->  | BR198: =IF(BQ198="",NA(),COUNTIF(BQ198:$BQ$303,BQ198)) ->  | BW198: =IF(BV198="",NA(),COUNTIF(BV198:$BV$303,BV198)) ->  | CB198: =IF(CA198="",NA(),COUNTIF(CA198:$CA$303,CA198)) ->  | CG198: =IF(CF198="",NA(),COUNTIF($CF198:CF$303,CF198)) ->  | CI198: =IF(CH198="",NA(),COUNTIF($CH198:CH$303,CH198)) -> 
K199: 67 | L199: 30.12642627 | M199: 0.000469858134 | N199: 0.9965187295 | O199: -49.99953014 | Q199: -999 | V199: -49.99953014 | X199: 4.409081537 | Y199: 0.5140606603 | AB199: 81.91138 | AC199: 36.72538 | AD199: 29.9723008 | AE199: 1.49348884e-05 | AI199: -999 | AL199: 0.5140606603 | AN199: -999 | BE199: 94 | BF199: 0.9678870365 | BI199: -999 | BJ199: 24.2 | BK199: -999 | BM199: =IF(BL199="",NA(),COUNTIF(BL199:$BL$303,BL199)) ->  | BR199: =IF(BQ199="",NA(),COUNTIF(BQ199:$BQ$303,BQ199)) ->  | BW199: =IF(BV199="",NA(),COUNTIF(BV199:$BV$303,BV199)) ->  | CB199: =IF(CA199="",NA(),COUNTIF(CA199:$CA$303,CA199)) ->  | CG199: =IF(CF199="",NA(),COUNTIF($CF199:CF$303,CF199)) ->  | CI199: =IF(CH199="",NA(),COUNTIF($CH199:CH$303,CH199)) -> 
K200: 67.5 | L200: 29.94272208 | M200: 0.0003267180195 | N200: 0.9967727758 | O200: -49.99967328 | Q200: -999 | V200: -49.99967328 | X200: 4.490731195 | Y200: 0.5316488226 | AB200: 82.18545 | AC200: 36.99945 | AD200: 30.42131778 | AE200: 1.218336672e-05 | AI200: -999 | AL200: 0.5316488226 | AN200: -999 | BE200: 95 | BF200: 0.9475550875 | BI200: -999 | BJ200: 24.2 | BK200: -999 | BM200: =IF(BL200="",NA(),COUNTIF(BL200:$BL$303,BL200)) ->  | BR200: =IF(BQ200="",NA(),COUNTIF(BQ200:$BQ$303,BQ200)) ->  | BW200: =IF(BV200="",NA(),COUNTIF(BV200:$BV$303,BV200)) ->  | CB200: =IF(CA200="",NA(),COUNTIF(CA200:$CA$303,CA200)) ->  | CG200: =IF(CF200="",NA(),COUNTIF($CF200:CF$303,CF200)) ->  | CI200: =IF(CH200="",NA(),COUNTIF($CH200:CH$303,CH200)) -> 
... 103 more rows

Sheet Noncentral t
C1: Noncentral t | I1: =$H$1 -> 0 | J1: 0 | K1: 0 | L1: 0 | M1: 0 | N1: 0 | O1: 0 | P1: 0 | Q1: 0 | R1: 0 | S1: 0 | T1: 0 | U1: 0 | AI1: accurate t | AJ1: =IF(AND($AJ$30,$F$22>AJ9,$F$22<=AK9),0,-999) -> -999 | AK1: -999 | AL1: -999 | AM1: -999 | AN1: -999 | AO1: -999 | AP1: -999 | AQ1: -999 | AR1: -999 | AS1: -999 | AT1: -999 | AU1: -999 | AV1: -999 | AW1: -999 | AX1: -999 | AY1: -999 | AZ1: -999 | BA1: -999 | BB1: -999 | BC1: -999 | BD1: -999 | BE1: -999 | BF1: -999 | BG1: -999 | BH1: -999 | BI1: -999 | BJ1: -999 | BK1: -999 | BL1: -999 | BM1: -999 | BN1: -999 | BO1: -999 | BP1: =IF(AND($AJ$30,$F$22>BP9,$F$22<=BQ9),0,-999) -> -999 | BQ1: -999 | BR1: -999 | BS1: -999 | BT1: -999 | BU1: -999 | BV1: -999 | BW1: -999 | BX1: -999 | BY1: -999 | BZ1: -999 | CA1: -999 | CB1: -999 | CC1: -999 | CD1: -999 | CE1: -999 | CF1: -999 | CG1: -999 | CH1: -999 | CI1: -999 | CJ1: -999 | CK1: -999 | CL1: -999 | CM1: -999 | CN1: -999 | CO1: -999 | CP1: -999 | CQ1: -999 | CR1: -999 | CS1: -999 | CT1: -999 | CU1: -999 | CV1: =IF(AND($AJ$30,$F$22>CV9,$F$22<=CW9),0,-999) -> -999 | CW1: -999 | CX1: -999 | CY1: -999 | CZ1: -999 | DA1: -999 | DB1: -999 | DC1: -999 | DD1: -999 | DE1: -999 | DF1: -999 | DG1: -999 | DH1: -999 | DI1: -999 | DJ1: -999 | DK1: -999 | DL1: -999 | DM1: -999 | DN1: -999 | DO1: -999 | DP1: -999 | DQ1: -999 | DR1: -999 | DS1: -999 | DT1: -999 | DU1: -999 | DV1: -999 | DW1: -999 | DX1: -999 | DY1: -999 | DZ1: -999 | EA1: -999 | EB1: =IF(AND($AJ$30,$F$22>EB9,$F$22<=EC9),0,-999) -> -999 | EC1: -999 | ED1: -999 | EE1: -999 | EF1: -999 | EG1: -999 | EH1: -999 | EI1: -999 | EJ1: -999 | EK1: -999 | EL1: -999 | EM1: -999 | EN1: -999 | EO1: -999 | EP1: -999 | EQ1: -999 | ER1: -999 | ES1: -999 | ET1: -999 | EU1: -999 | EV1: -999 | EW1: -999 | EX1: -999 | EY1: -999 | EZ1: -999 | FA1: -999 | FB1: -999 | FC1: -999 | FD1: -999 | FE1: -999 | FF1: -999 | FG1: -999 | FH1: =IF(AND($AJ$30,$F$22>FH9,$F$22<=FI9),0,-999) -> -999 | FI1: -999 | FJ1: -999 | FK1: -999 | FL1: -999 | FM1: -999 | FN1: -999 | FO1: -999 | FP1: -999 | FQ1: -999 | FR1: -999 | FS1: -999 | FT1: 0 | FU1: -999 | FV1: -999 | FW1: -999 | FX1: -999 | FY1: -999 | FZ1: -999 | GA1: -999 | GB1: -999 | GC1: -999 | GD1: -999 | GE1: -999 | GF1: -999 | GG1: -999 | GH1: -999 | GI1: -999 | GJ1: -999 | GK1: -999 | GL1: -999 | GM1: -999 | GN1: =IF(AND($AJ$30,$F$22>GN9,$F$22<=GO9),0,-999) -> -999 | GO1: -999 | GP1: -999 | GQ1: -999 | GR1: -999 | GS1: -999 | GT1: -999 | GU1: -999 | GV1: -999 | GW1: -999 | GX1: -999 | GY1: -999 | GZ1: -999 | HA1: -999 | HB1: -999 | HC1: -999 | HD1: -999 | HE1: -999 | HF1: -999 | HG1: -999 | HH1: -999 | HI1: -999 | HJ1: -999 | HK1: -999 | HL1: -999 | HM1: -999 | HN1: -999 | HO1: -999 | HP1: -999 | HQ1: -999 | HR1: -999 | HS1: -999 | HT1: =IF(AND($AJ$30,$F$22>HT9,$F$22<=HU9),0,-999) -> -999 | HU1: -999 | HV1: -999 | HW1: -999 | HX1: -999 | HY1: -999 | HZ1: -999 | IA1: -999
C2: Explore noncentral t distributions | H2: =$H$1 -> 0 | U2: =$H$1 -> 0 | AI2: red vertical | AJ2: =IF(AND($AJ$15,AK9>$F$8,AJ9<=$F$8),0,NA()) ->  | BP2: =IF(AND($AJ$15,BQ9>$F$8,BP9<=$F$8),0,NA()) ->  | CV2: =IF(AND($AJ$15,CW9>$F$8,CV9<=$F$8),0,NA()) ->  | EB2: =IF(AND($AJ$15,EC9>$F$8,EB9<=$F$8),0,NA()) ->  | FH2: =IF(AND($AJ$15,FI9>$F$8,FH9<=$F$8),0,NA()) ->  | GN2: =IF(AND($AJ$15,GO9>$F$8,GN9<=$F$8),0,NA()) ->  | HT2: =IF(AND($AJ$15,HU9>$F$8,HT9<=$F$8),0,NA()) -> 
H3: 0 | U3: 0 | AI3: blue vertical | AJ3: =IF(AND($AJ$14,$AJ$27,AK9>0,AJ9<=0),0,NA()) ->  | BP3: =IF(AND($AJ$14,$AJ$27,BQ9>0,BP9<=0),0,NA()) ->  | CV3: =IF(AND($AJ$14,$AJ$27,CW9>0,CV9<=0),0,NA()) ->  | EB3: =IF(AND($AJ$14,$AJ$27,EC9>0,EB9<=0),0,NA()) ->  | FH3: =IF(AND($AJ$14,$AJ$27,FI9>0,FH9<=0),0,NA()) ->  | GN3: =IF(AND($AJ$14,$AJ$27,GO9>0,GN9<=0),0,NA()) ->  | HT3: =IF(AND($AJ$14,$AJ$27,HU9>0,HT9<=0),0,NA()) -> 
H4: 0 | U4: 0
A5: 1 | B5: Noncentral t distribution | H5: 0 | U5: 0 | AI5: tail in front | AJ5: =IF($AJ$16,AJ6,NA()) ->  | BP5: =IF($AJ$16,BP6,NA()) ->  | CV5: =IF($AJ$16,CV6,NA()) ->  | EB5: =IF($AJ$16,EB6,NA()) ->  | FH5: =IF($AJ$16,FH6,NA()) ->  | GN5: =IF($AJ$16,GN6,NA()) ->  | HT5: =IF($AJ$16,HT6,NA()) -> 
C6: Degrees of freedom df | F6: =AK14 -> 5 | H6: 0 | U6: 0 | AI6: t tail | AJ6: =IF($AJ$17,IF(OR(AND($AJ$18,AJ3<=$F$17),AND($AJ$19,AJ3>=(1-$F$17))),AJ2,-999999999999),IF(OR(AND($AJ$18,AJ8<=$F$17),AND($AJ$19,AJ8>=(1-$F$17))),AJ7,-999999999999)) -> -999999999999 | AK6: -999999999999 | AL6: -999999999999 | AM6: -999999999999 | AN6: -999999999999 | AO6: -999999999999 | AP6: -999999999999 | AQ6: -999999999999 | AR6: -999999999999 | AS6: -999999999999 | AT6: -999999999999 | AU6: -999999999999 | AV6: -999999999999 | AW6: -999999999999 | AX6: -999999999999 | AY6: -999999999999 | AZ6: -999999999999 | BA6: -999999999999 | BB6: -999999999999 | BC6: -999999999999 | BD6: -999999999999 | BE6: -999999999999 | BF6: -999999999999 | BG6: -999999999999 | BH6: -999999999999 | BI6: -999999999999 | BJ6: -999999999999 | BK6: -999999999999 | BL6: -999999999999 | BM6: -999999999999 | BN6: -999999999999 | BO6: -999999999999 | BP6: =IF($AJ$17,IF(OR(AND($AJ$18,BP3<=$F$17),AND($AJ$19,BP3>=(1-$F$17))),BP2,-999999999999),IF(OR(AND($AJ$18,BP8<=$F$17),AND($AJ$19,BP8>=(1-$F$17))),BP7,-999999999999)) -> -999999999999 | BQ6: -999999999999 | BR6: -999999999999 | BS6: -999999999999 | BT6: -999999999999 | BU6: -999999999999 | BV6: -999999999999 | BW6: -999999999999 | BX6: -999999999999 | BY6: -999999999999 | BZ6: -999999999999 | CA6: -999999999999 | CB6: -999999999999 | CC6: -999999999999 | CD6: -999999999999 | CE6: -999999999999 | CF6: -999999999999 | CG6: -999999999999 | CH6: -999999999999 | CI6: -999999999999 | CJ6: -999999999999 | CK6: -999999999999 | CL6: -999999999999 | CM6: -999999999999 | CN6: -999999999999 | CO6: -999999999999 | CP6: -999999999999 | CQ6: -999999999999 | CR6: -999999999999 | CS6: -999999999999 | CT6: -999999999999 | CU6: -999999999999 | CV6: =IF($AJ$17,IF(OR(AND($AJ$18,CV3<=$F$17),AND($AJ$19,CV3>=(1-$F$17))),CV2,-999999999999),IF(OR(AND($AJ$18,CV8<=$F$17),AND($AJ$19,CV8>=(1-$F$17))),CV7,-999999999999)) -> -999999999999 | CW6: -999999999999 | CX6: -999999999999 | CY6: -999999999999 | CZ6: -999999999999 | DA6: -999999999999 | DB6: -999999999999 | DC6: -999999999999 | DD6: -999999999999 | DE6: -999999999999 | DF6: -999999999999 | DG6: -999999999999 | DH6: -999999999999 | DI6: -999999999999 | DJ6: -999999999999 | DK6: -999999999999 | DL6: -999999999999 | DM6: -999999999999 | DN6: -999999999999 | DO6: -999999999999 | DP6: -999999999999 | DQ6: -999999999999 | DR6: -999999999999 | DS6: -999999999999 | DT6: -999999999999 | DU6: -999999999999 | DV6: -999999999999 | DW6: -999999999999 | DX6: -999999999999 | DY6: -999999999999 | DZ6: -999999999999 | EA6: -999999999999 | EB6: =IF($AJ$17,IF(OR(AND($AJ$18,EB3<=$F$17),AND($AJ$19,EB3>=(1-$F$17))),EB2,-999999999999),IF(OR(AND($AJ$18,EB8<=$F$17),AND($AJ$19,EB8>=(1-$F$17))),EB7,-999999999999)) -> -999999999999 | EC6: -999999999999 | ED6: -999999999999 | EE6: -999999999999 | EF6: -999999999999 | EG6: -999999999999 | EH6: -999999999999 | EI6: -999999999999 | EJ6: -999999999999 | EK6: -999999999999 | EL6: -999999999999 | EM6: -999999999999 | EN6: -999999999999 | EO6: -999999999999 | EP6: -999999999999 | EQ6: -999999999999 | ER6: -999999999999 | ES6: -999999999999 | ET6: -999999999999 | EU6: -999999999999 | EV6: -999999999999 | EW6: -999999999999 | EX6: -999999999999 | EY6: -999999999999 | EZ6: -999999999999 | FA6: -999999999999 | FB6: -999999999999 | FC6: -999999999999 | FD6: -999999999999 | FE6: -999999999999 | FF6: -999999999999 | FG6: -999999999999 | FH6: =IF($AJ$17,IF(OR(AND($AJ$18,FH3<=$F$17),AND($AJ$19,FH3>=(1-$F$17))),FH2,-999999999999),IF(OR(AND($AJ$18,FH8<=$F$17),AND($AJ$19,FH8>=(1-$F$17))),FH7,-999999999999)) -> -999999999999 | FI6: -999999999999 | FJ6: -999999999999 | FK6: -999999999999 | FL6: -999999999999 | FM6: -999999999999 | FN6: -999999999999 | FO6: -999999999999 | FP6: -999999999999 | FQ6: -999999999999 | FR6: -999999999999 | FS6: -999999999999 | FT6: -999999999999 | FU6: -999999999999 | FV6: -999999999999 | FW6: -999999999999 | FX6: -999999999999 | FY6: -999999999999 | FZ6: -999999999999 | GA6: -999999999999 | GB6: -999999999999 | GC6: -999999999999 | GD6: -999999999999 | GE6: -999999999999 | GF6: -999999999999 | GG6: -999999999999 | GH6: -999999999999 | GI6: -999999999999 | GJ6: -999999999999 | GK6: -999999999999 | GL6: -999999999999 | GM6: -999999999999 | GN6: =IF($AJ$17,IF(OR(AND($AJ$18,GN3<=$F$17),AND($AJ$19,GN3>=(1-$F$17))),GN2,-999999999999),IF(OR(AND($AJ$18,GN8<=$F$17),AND($AJ$19,GN8>=(1-$F$17))),GN7,-999999999999)) -> -999999999999 | GO6: -999999999999 | GP6: -999999999999 | GQ6: -999999999999 | GR6: -999999999999 | GS6: -999999999999 | GT6: -999999999999 | GU6: -999999999999 | GV6: -999999999999 | GW6: -999999999999 | GX6: -999999999999 | GY6: -999999999999 | GZ6: -999999999999 | HA6: -999999999999 | HB6: -999999999999 | HC6: -999999999999 | HD6: -999999999999 | HE6: -999999999999 | HF6: -999999999999 | HG6: -999999999999 | HH6: -999999999999 | HI6: -999999999999 | HJ6: -999999999999 | HK6: -999999999999 | HL6: -999999999999 | HM6: -999999999999 | HN6: -999999999999 | HO6: -999999999999 | HP6: -999999999999 | HQ6: -999999999999 | HR6: -999999999999 | HS6: -999999999999 | HT6: =IF($AJ$17,IF(OR(AND($AJ$18,HT3<=$F$17),AND($AJ$19,HT3>=(1-$F$17))),HT2,-999999999999),IF(OR(AND($AJ$18,HT8<=$F$17),AND($AJ$19,HT8>=(1-$F$17))),HT7,-999999999999)) -> -999999999999 | HU6: -999999999999 | HV6: -999999999999 | HW6: -999999999999 | HX6: -999999999999 | HY6: -999999999999 | HZ6: -999999999999 | IA6: -999999999999
C7: Noncentrality parameter | H7: 0 | U7: 0 | AI7: Central t | AJ7: =IF($AJ$27,(AK8-AJ8)/$AJ$26,NA()) -> 0.01786143466 | AK7: 0.01905312906 | AL7: 0.02033022809 | AM7: 0.02169896376 | AN7: 0.02316599084 | AO7: 0.02473840701 | AP7: 0.0264237721 | AQ7: 0.02823012618 | AR7: 0.03016600567 | AS7: 0.03224045706 | AT7: 0.03446304748 | AU7: 0.03684387105 | AV7: 0.03939355027 | AW7: 0.04212323109 | AX7: 0.04504457052 | AY7: 0.04816971519 | AZ7: 0.05151126937 | BA7: 0.05508225044 | BB7: 0.05889603016 | BC7: 0.06296625929 | BD7: 0.06730677367 | BE7: 0.07193147905 | BF7: 0.07685421269 | BG7: 0.082088579 | BH7: 0.08764775718 | BI7: 0.0935442786 | BJ7: 0.09978977235 | BK7: 0.1063946774 | BL7: 0.113367921 | BM7: 0.1207165631 | BN7: 0.1284454085 | BO7: 0.1365565884 | BP7: =IF($AJ$27,(BQ8-BP8)/$AJ$26,NA()) -> 0.1450491168 | BQ7: 0.1539184256 | BR7: 0.1631558878 | BS7: 0.1727483375 | BT7: 0.1826775997 | BU7: 0.1929200432 | BV7: 0.2034461748 | BW7: 0.2142202917 | BX7: 0.2252002133 | BY7: 0.2363371136 | BZ7: 0.2475754759 | CA7: 0.2588531897 | CB7: 0.2701018116 | CC7: 0.2812470026 | CD7: 0.2922091579 | CE7: 0.3029042327 | CF7: 0.3132447637 | CG7: 0.3231410789 | CH7: 0.3325026778 | CI7: 0.3412397541 | CJ7: 0.3492648287 | CK7: 0.3564944456 | CL7: 0.3628508848 | CM7: 0.3682638325 | CN7: 0.372671955 | CO7: 0.3760243166 | CP7: 0.3782815882 | CQ7: 0.3794170003 | CR7: 0.3794170003 | CS7: 0.3782815882 | CT7: 0.3760243166 | CU7: 0.372671955 | CV7: =IF($AJ$27,(CW8-CV8)/$AJ$26,NA()) -> 0.3682638325 | CW7: 0.3628508848 | CX7: 0.3564944456 | CY7: 0.3492648287 | CZ7: 0.3412397541 | DA7: 0.3325026778 | DB7: 0.3231410789 | DC7: 0.3132447637 | DD7: 0.3029042327 | DE7: 0.2922091579 | DF7: 0.2812470026 | DG7: 0.2701018116 | DH7: 0.2588531897 | DI7: 0.2475754759 | DJ7: 0.2363371136 | DK7: 0.2252002133 | DL7: 0.2142202917 | DM7: 0.2034461748 | DN7: 0.1929200432 | DO7: 0.1826775997 | DP7: 0.1727483375 | DQ7: 0.1631558878 | DR7: 0.1539184256 | DS7: 0.1450491168 | DT7: 0.1365565884 | DU7: 0.1284454085 | DV7: 0.1207165631 | DW7: 0.113367921 | DX7: 0.1063946774 | DY7: 0.09978977235 | DZ7: 0.0935442786 | EA7: 0.08764775718 | EB7: =IF($AJ$27,(EC8-EB8)/$AJ$26,NA()) -> 0.082088579 | EC7: 0.07685421269 | ED7: 0.07193147905 | EE7: 0.06730677367 | EF7: 0.06296625929 | EG7: 0.05889603016 | EH7: 0.05508225044 | EI7: 0.05151126937 | EJ7: 0.04816971519 | EK7: 0.04504457052 | EL7: 0.04212323109 | EM7: 0.03939355027 | EN7: 0.03684387105 | EO7: 0.03446304748 | EP7: 0.03224045706 | EQ7: 0.03016600567 | ER7: 0.02823012618 | ES7: 0.0264237721 | ET7: 0.02473840701 | EU7: 0.02316599084 | EV7: 0.02169896376 | EW7: 0.02033022809 | EX7: 0.01905312906 | EY7: 0.01786143466 | EZ7: 0.01674931508 | FA7: 0.01571132199 | FB7: 0.01474236792 | FC7: 0.01383770595 | FD7: 0.01299290991 | FE7: 0.01220385512 | FF7: 0.01146669981 | FG7: 0.01077786735 | FH7: =IF($AJ$27,(FI8-FH8)/$AJ$26,NA()) -> 0.01013402921 | FI7: 0.009532088772 | FJ7: 0.008969165935 | FK7: 0.00844258261 | FL7: 0.007949848976 | FM7: 0.007488650574 | FN7: 0.007056836165 | FO7: 0.006652406349 | FP7: 0.006273502909 | FQ7: 0.00591839884 | FR7: 0.005585489044 | FS7: 0.005273281642 | FT7: 0.004980389887 | FU7: 0.004705524626 | FV7: 0.00444748729 | FW7: 0.004205163374 | FX7: 0.003977516382 | FY7: 0.003763582203 | FZ7: 0.003562463887 | GA7: 0.003373326803 | GB7: 0.003195394142 | GC7: 0.003027942751 | GD7: 0.002870299273 | GE7: 0.002721836557 | GF7: 0.00258197035 | GG7: 0.002450156212 | GH7: 0.002325886674 | GI7: 0.002208688594 | GJ7: 0.00209812071 | GK7: 0.00199377138 | GL7: 0.001895256475 | GM7: 0.001802217437 | GN7: =IF($AJ$27,(GO8-GN8)/$AJ$26,NA()) -> 0.001714319478 | GO7: 0.001631249906 | GP7: 0.001552716579 | GQ7: 0.001478446471 | GR7: 0.001408184339 | GS7: 0.00134169149 | GT7: 0.001278744641 | GU7: 0.001219134853 | GV7: 0.001162666548 | GW7: 0.0011091566 | GX7: 0.001058433482 | GY7: 0.001010336482 | GZ7: 0.0009647149748 | HA7: 0.0009214277386 | HB7: 0.0008803423289 | HC7: 0.000841334492 | HD7: 0.0008042876206 | HE7: 0.0007690922485 | HF7: 0.0007356455799 | HG7: 0.0007038510526 | HH7: 0.0006736179303 | HI7: 0.0006448609245 | HJ7: 0.0006174998419 | HK7: 0.0005914592558 | HL7: 0.0005666682007 | HM7: 0.0005430598876 | HN7: 0.0005205714381 | HO7: 0.0004991436375 | HP7: 0.0004787207036 | HQ7: 0.000459250072 | HR7: 0.0004406821948 | HS7: 0.0004229703537 | HT7: =IF($AJ$27,(HU8-HT8)/$AJ$26,NA()) -> 0.0004060704845 | HU7: 0.0003899410144 | HV7: 0.0003745427089 | HW7: 0.0003598385294 | HX7: 0.0003457934999 | HY7: 0.0003323745826 | HZ7: 0.0003195505609 | IA7: 0.000307291931
D8: SLIDER | E8: D | F8: =(AJ28-1300)/100 -> 2.5 | H8: 0 | U8: 0 | AI8: cdf(t) | AJ8: =IF(AJ9<0,TDIST(ABS(AJ9),$F$6,1),1-TDIST(AJ9,$F$6,1)) -> 0.01504962395 | AK8: 0.01594269568 | AL8: 0.01689535213 | AM8: 0.01791186354 | AN8: 0.01899681173 | AO8: 0.02015511127 | AP8: 0.02139203162 | AQ8: 0.02271322023 | AR8: 0.02412472653 | AS8: 0.02563302682 | AT8: 0.02724504967 | AU8: 0.02896820205 | AV8: 0.0308103956 | AW8: 0.03278007311 | AX8: 0.03488623467 | AY8: 0.03713846319 | AZ8: 0.03954694895 | BA8: 0.04212251242 | BB8: 0.04487662494 | BC8: 0.04782142645 | BD8: 0.05096973941 | BE8: 0.0543350781 | BF8: 0.05793165205 | BG8: 0.06177436269 | BH8: 0.06587879164 | BI8: 0.07026117949 | BJ8: 0.07493839342 | BK8: 0.07992788204 | BL8: 0.08524761591 | BM8: 0.09091601196 | BN8: 0.09695184012 | BO8: 0.1033741105 | BP8: 0.11020194 | BQ8: 0.1174543958 | BR8: 0.1251503171 | BS8: 0.1333081115 | BT8: 0.1419455284 | BU8: 0.1510794083 | BV8: 0.1607254105 | BW8: 0.1708977192 | BX8: 0.1816087338 | BY8: 0.1928687445 | BZ8: 0.2046856002 | CA8: 0.217064374 | CB8: 0.2300070335 | CC8: 0.243512124 | CD8: 0.2575744742 | CE8: 0.2721849321 | CF8: 0.2873301437 | CG8: 0.3029923819 | CH8: 0.3191494358 | CI8: 0.3357745697 | CJ8: 0.3528365574 | CK8: 0.3702997988 | CL8: 0.3881245211 | CM8: 0.4062670654 | CN8: 0.424680257 | CO8: 0.4433138547 | CP8: 0.4621150706 | CQ8: 0.48102915 | CR8: 0.5 | CS8: 0.51897085 | CT8: 0.5378849294 | CU8: 0.5566861453 | CV8: =IF(CV9<0,TDIST(ABS(CV9),$F$6,1),1-TDIST(CV9,$F$6,1)) -> 0.575319743 | CW8: 0.5937329346 | CX8: 0.6118754789 | CY8: 0.6297002012 | CZ8: 0.6471634426 | DA8: 0.6642254303 | DB8: 0.6808505642 | DC8: 0.6970076181 | DD8: 0.7126698563 | DE8: 0.7278150679 | DF8: 0.7424255258 | DG8: 0.756487876 | DH8: 0.7699929665 | DI8: 0.782935626 | DJ8: 0.7953143998 | DK8: 0.8071312555 | DL8: 0.8183912662 | DM8: 0.8291022808 | DN8: 0.8392745895 | DO8: 0.8489205917 | DP8: 0.8580544716 | DQ8: 0.8666918885 | DR8: 0.8748496829 | DS8: 0.8825456042 | DT8: 0.88979806 | DU8: 0.8966258895 | DV8: 0.9030481599 | DW8: 0.909083988 | DX8: 0.9147523841 | DY8: 0.920072118 | DZ8: 0.9250616066 | EA8: 0.9297388205 | EB8: 0.9341212084 | EC8: 0.9382256373 | ED8: 0.9420683479 | EE8: 0.9456649219 | EF8: 0.9490302606 | EG8: 0.9521785735 | EH8: 0.9551233751 | EI8: 0.9578774876 | EJ8: 0.960453051 | EK8: 0.9628615368 | EL8: 0.9651137653 | EM8: 0.9672199269 | EN8: 0.9691896044 | EO8: 0.971031798 | EP8: 0.9727549503 | EQ8: 0.9743669732 | ER8: 0.9758752735 | ES8: 0.9772867798 | ET8: 0.9786079684 | EU8: 0.9798448887 | EV8: 0.9810031883 | EW8: 0.9820881365 | EX8: 0.9831046479 | EY8: 0.9840573043 | EZ8: 0.9849503761 | FA8: 0.9857878418 | FB8: 0.9865734079 | FC8: 0.9873105263 | FD8: 0.9880024116 | FE8: 0.9886520571 | FF8: 0.9892622499 | FG8: 0.9898355848 | FH8: =IF(FH9<0,TDIST(ABS(FH9),$F$6,1),1-TDIST(FH9,$F$6,1)) -> 0.9903744782 | FI8: 0.9908811797 | FJ8: 0.9913577841 | FK8: 0.9918062424 | FL8: 0.9922283715 | FM8: 0.992625864 | FN8: 0.9930002965 | FO8: 0.9933531383 | FP8: 0.9936857586 | FQ8: 0.9939994338 | FR8: 0.9942953537 | FS8: 0.9945746282 | FT8: 0.9948382923 | FU8: 0.9950873118 | FV8: 0.995322588 | FW8: 0.9955449623 | FX8: 0.9957552205 | FY8: 0.9959540963 | FZ8: 0.9961422754 | GA8: 0.9963203986 | GB8: 0.996489065 | GC8: 0.9966488347 | GD8: 0.9968002318 | GE8: 0.9969437468 | GF8: 0.9970798386 | GG8: 0.9972089371 | GH8: 0.9973314449 | GI8: 0.9974477393 | GJ8: 0.9975581737 | GK8: 0.9976630797 | GL8: 0.9977627683 | GM8: 0.9978575311 | GN8: 0.997947642 | GO8: 0.998033358 | GP8: 0.9981149205 | GQ8: 0.9981925563 | GR8: 0.9982664786 | GS8: 0.9983368878 | GT8: 0.9984039724 | GU8: 0.9984679097 | GV8: 0.9985288664 | GW8: 0.9985869997 | GX8: 0.9986424576 | GY8: 0.9986953792 | GZ8: 0.9987458961 | HA8: 0.9987941318 | HB8: 0.9988402032 | HC8: 0.9988842203 | HD8: 0.998926287 | HE8: 0.9989665014 | HF8: 0.999004956 | HG8: 0.9990417383 | HH8: 0.9990769309 | HI8: 0.9991106118 | HJ8: 0.9991428548 | HK8: 0.9991737298 | HL8: 0.9992033028 | HM8: 0.9992316362 | HN8: 0.9992587892 | HO8: 0.9992848177 | HP8: 0.9993097749 | HQ8: 0.9993337109 | HR8: 0.9993566734 | HS8: 0.9993787076 | HT8: =IF(HT9<0,TDIST(ABS(HT9),$F$6,1),1-TDIST(HT9,$F$6,1)) -> 0.9993998561 | HU8: 0.9994201596 | HV8: 0.9994396567 | HW8: 0.9994583838 | HX8: 0.9994763757 | HY8: 0.9994936654 | HZ8: 0.9995102841 | IA8: 0.9995262616 | IB8: 0.9995416262
H9: 0 | U9: 0 | AI9: x | AJ9: =AJ24 -> -3 | AK9: =AJ9+$AJ$26 -> -2.95 | AL9: -2.9 | AM9: -2.85 | AN9: -2.8 | AO9: -2.75 | AP9: -2.7 | AQ9: -2.65 | AR9: -2.6 | AS9: -2.55 | AT9: -2.5 | AU9: -2.45 | AV9: -2.4 | AW9: -2.35 | AX9: -2.3 | AY9: -2.25 | AZ9: -2.2 | BA9: -2.15 | BB9: -2.1 | BC9: -2.05 | BD9: -2 | BE9: -1.95 | BF9: -1.9 | BG9: -1.85 | BH9: -1.8 | BI9: -1.75 | BJ9: -1.7 | BK9: -1.65 | BL9: -1.6 | BM9: -1.55 | BN9: -1.5 | BO9: -1.45 | BP9: -1.4 | BQ9: =BP9+$AJ$26 -> -1.35 | BR9: -1.3 | BS9: -1.25 | BT9: -1.2 | BU9: -1.15 | BV9: -1.1 | BW9: -1.05 | BX9: -1 | BY9: -0.95 | BZ9: -0.9 | CA9: -0.85 | CB9: -0.8 | CC9: -0.75 | CD9: -0.7 | CE9: -0.65 | CF9: -0.6 | CG9: -0.55 | CH9: -0.5 | CI9: -0.45 | CJ9: -0.4 | CK9: -0.35 | CL9: -0.3 | CM9: -0.25 | CN9: -0.2 | CO9: -0.15 | CP9: -0.1 | CQ9: -0.05 | CR9: -2.289834988e-15 | CS9: 0.05 | CT9: 0.1 | CU9: 0.15 | CV9: 0.2 | CW9: =CV9+$AJ$26 -> 0.25 | CX9: 0.3 | CY9: 0.35 | CZ9: 0.4 | DA9: 0.45 | DB9: 0.5 | DC9: 0.55 | DD9: 0.6 | DE9: 0.65 | DF9: 0.7 | DG9: 0.75 | DH9: 0.8 | DI9: 0.85 | DJ9: 0.9 | DK9: 0.95 | DL9: 1 | DM9: 1.05 | DN9: 1.1 | DO9: 1.15 | DP9: 1.2 | DQ9: 1.25 | DR9: 1.3 | DS9: 1.35 | DT9: 1.4 | DU9: 1.45 | DV9: 1.5 | DW9: 1.55 | DX9: 1.6 | DY9: 1.65 | DZ9: 1.7 | EA9: 1.75 | EB9: 1.8 | EC9: =EB9+$AJ$26 -> 1.85 | ED9: 1.9 | EE9: 1.95 | EF9: 2 | EG9: 2.05 | EH9: 2.1 | EI9: 2.15 | EJ9: 2.2 | EK9: 2.25 | EL9: 2.3 | EM9: 2.35 | EN9: 2.4 | EO9: 2.45 | EP9: 2.5 | EQ9: 2.55 | ER9: 2.6 | ES9: 2.65 | ET9: 2.7 | EU9: 2.75 | EV9: 2.8 | EW9: 2.85 | EX9: 2.9 | EY9: 2.95 | EZ9: 3 | FA9: 3.05 | FB9: 3.1 | FC9: 3.15 | FD9: 3.2 | FE9: 3.25 | FF9: 3.3 | FG9: 3.35 | FH9: 3.4 | FI9: =FH9+$AJ$26 -> 3.45 | FJ9: 3.5 | FK9: 3.55 | FL9: 3.6 | FM9: 3.65 | FN9: 3.7 | FO9: 3.75 | FP9: 3.8 | FQ9: 3.85 | FR9: 3.9 | FS9: 3.95 | FT9: 4 | FU9: 4.05 | FV9: 4.1 | FW9: 4.15 | FX9: 4.2 | FY9: 4.25 | FZ9: 4.3 | GA9: 4.35 | GB9: 4.4 | GC9: 4.45 | GD9: 4.5 | GE9: 4.55 | GF9: 4.6 | GG9: 4.65 | GH9: 4.7 | GI9: 4.75 | GJ9: 4.8 | GK9: 4.85 | GL9: 4.9 | GM9: 4.95 | GN9: 5 | GO9: =GN9+$AJ$26 -> 5.05 | GP9: 5.1 | GQ9: 5.15 | GR9: 5.2 | GS9: 5.25 | GT9: 5.3 | GU9: 5.35 | GV9: 5.4 | GW9: 5.45 | GX9: 5.5 | GY9: 5.55 | GZ9: 5.6 | HA9: 5.65 | HB9: 5.7 | HC9: 5.75 | HD9: 5.8 | HE9: 5.85 | HF9: 5.9 | HG9: 5.95 | HH9: 6 | HI9: 6.05 | HJ9: 6.1 | HK9: 6.15 | HL9: 6.2 | HM9: 6.25 | HN9: 6.3 | HO9: 6.35 | HP9: 6.4 | HQ9: 6.45 | HR9: 6.5 | HS9: 6.55 | HT9: 6.6 | HU9: =HT9+$AJ$26 -> 6.65 | HV9: 6.7 | HW9: 6.75 | HX9: 6.8 | HY9: 6.85 | HZ9: 6.9 | IA9: 6.95 | IB9: 7
H10: 0 | U10: 0 | AI10: nct tail | AJ10: =IF(OR(AND($AJ$18,AJ12<=$F$17),AND($AJ$19,AJ12>=(1-$F$17))),AJ11,-999999999999) -> -999999999999 | AK10: -999999999999 | AL10: -999999999999 | AM10: -999999999999 | AN10: -999999999999 | AO10: -999999999999 | AP10: -999999999999 | AQ10: -999999999999 | AR10: -999999999999 | AS10: -999999999999 | AT10: -999999999999 | AU10: -999999999999 | AV10: -999999999999 | AW10: -999999999999 | AX10: -999999999999 | AY10: -999999999999 | AZ10: -999999999999 | BA10: -999999999999 | BB10: -999999999999 | BC10: -999999999999 | BD10: -999999999999 | BE10: -999999999999 | BF10: -999999999999 | BG10: -999999999999 | BH10: -999999999999 | BI10: -999999999999 | BJ10: -999999999999 | BK10: -999999999999 | BL10: -999999999999 | BM10: -999999999999 | BN10: -999999999999 | BO10: -999999999999 | BP10: =IF(OR(AND($AJ$18,BP12<=$F$17),AND($AJ$19,BP12>=(1-$F$17))),BP11,-999999999999) -> -999999999999 | BQ10: -999999999999 | BR10: -999999999999 | BS10: -999999999999 | BT10: -999999999999 | BU10: -999999999999 | BV10: -999999999999 | BW10: -999999999999 | BX10: -999999999999 | BY10: -999999999999 | BZ10: -999999999999 | CA10: -999999999999 | CB10: -999999999999 | CC10: -999999999999 | CD10: -999999999999 | CE10: -999999999999 | CF10: -999999999999 | CG10: -999999999999 | CH10: -999999999999 | CI10: -999999999999 | CJ10: -999999999999 | CK10: -999999999999 | CL10: -999999999999 | CM10: -999999999999 | CN10: -999999999999 | CO10: -999999999999 | CP10: -999999999999 | CQ10: -999999999999 | CR10: -999999999999 | CS10: -999999999999 | CT10: -999999999999 | CU10: -999999999999 | CV10: =IF(OR(AND($AJ$18,CV12<=$F$17),AND($AJ$19,CV12>=(1-$F$17))),CV11,-999999999999) -> -999999999999 | CW10: -999999999999 | CX10: -999999999999 | CY10: -999999999999 | CZ10: -999999999999 | DA10: -999999999999 | DB10: -999999999999 | DC10: -999999999999 | DD10: -999999999999 | DE10: -999999999999 | DF10: -999999999999 | DG10: -999999999999 | DH10: -999999999999 | DI10: -999999999999 | DJ10: -999999999999 | DK10: -999999999999 | DL10: -999999999999 | DM10: -999999999999 | DN10: -999999999999 | DO10: -999999999999 | DP10: -999999999999 | DQ10: -999999999999 | DR10: -999999999999 | DS10: -999999999999 | DT10: -999999999999 | DU10: -999999999999 | DV10: -999999999999 | DW10: -999999999999 | DX10: -999999999999 | DY10: -999999999999 | DZ10: -999999999999 | EA10: -999999999999 | EB10: =IF(OR(AND($AJ$18,EB12<=$F$17),AND($AJ$19,EB12>=(1-$F$17))),EB11,-999999999999) -> -999999999999 | EC10: -999999999999 | ED10: -999999999999 | EE10: -999999999999 | EF10: -999999999999 | EG10: -999999999999 | EH10: -999999999999 | EI10: -999999999999 | EJ10: -999999999999 | EK10: -999999999999 | EL10: -999999999999 | EM10: -999999999999 | EN10: -999999999999 | EO10: -999999999999 | EP10: -999999999999 | EQ10: -999999999999 | ER10: -999999999999 | ES10: -999999999999 | ET10: -999999999999 | EU10: -999999999999 | EV10: -999999999999 | EW10: -999999999999 | EX10: -999999999999 | EY10: -999999999999 | EZ10: -999999999999 | FA10: -999999999999 | FB10: -999999999999 | FC10: -999999999999 | FD10: -999999999999 | FE10: -999999999999 | FF10: -999999999999 | FG10: -999999999999 | FH10: =IF(OR(AND($AJ$18,FH12<=$F$17),AND($AJ$19,FH12>=(1-$F$17))),FH11,-999999999999) -> -999999999999 | FI10: -999999999999 | FJ10: -999999999999 | FK10: -999999999999 | FL10: -999999999999 | FM10: -999999999999 | FN10: -999999999999 | FO10: -999999999999 | FP10: -999999999999 | FQ10: -999999999999 | FR10: -999999999999 | FS10: -999999999999 | FT10: -999999999999 | FU10: -999999999999 | FV10: -999999999999 | FW10: -999999999999 | FX10: -999999999999 | FY10: -999999999999 | FZ10: -999999999999 | GA10: -999999999999 | GB10: -999999999999 | GC10: -999999999999 | GD10: -999999999999 | GE10: -999999999999 | GF10: -999999999999 | GG10: -999999999999 | GH10: -999999999999 | GI10: -999999999999 | GJ10: -999999999999 | GK10: -999999999999 | GL10: -999999999999 | GM10: -999999999999 | GN10: =IF(OR(AND($AJ$18,GN12<=$F$17),AND($AJ$19,GN12>=(1-$F$17))),GN11,-999999999999) -> -999999999999 | GO10: -999999999999 | GP10: -999999999999 | GQ10: -999999999999 | GR10: -999999999999 | GS10: -999999999999 | GT10: -999999999999 | GU10: -999999999999 | GV10: -999999999999 | GW10: -999999999999 | GX10: -999999999999 | GY10: -999999999999 | GZ10: -999999999999 | HA10: -999999999999 | HB10: -999999999999 | HC10: -999999999999 | HD10: -999999999999 | HE10: -999999999999 | HF10: -999999999999 | HG10: -999999999999 | HH10: -999999999999 | HI10: -999999999999 | HJ10: -999999999999 | HK10: -999999999999 | HL10: -999999999999 | HM10: -999999999999 | HN10: -999999999999 | HO10: -999999999999 | HP10: -999999999999 | HQ10: -999999999999 | HR10: -999999999999 | HS10: -999999999999 | HT10: =IF(OR(AND($AJ$18,HT12<=$F$17),AND($AJ$19,HT12>=(1-$F$17))),HT11,-999999999999) -> -999999999999 | HU10: -999999999999 | HV10: -999999999999 | HW10: -999999999999 | HX10: -999999999999 | HY10: -999999999999 | HZ10: -999999999999 | IA10: -999999999999
A11: 2 | B11: Central t distribution | H11: 0 | U11: 0 | AI11: NonCentral t | AJ11: =(AK12-AJ12)/$AJ$26 -> 1.628455479e-05 | AK11: 1.771533297e-05 | AL11: 1.929076601e-05 | AM11: 2.10273142e-05 | AN11: 2.294350886e-05 | AO11: 2.506023608e-05 | AP11: 2.740106233e-05 | AQ11: 2.99926084e-05 | AR11: 3.286497918e-05 | AS11: 3.605225827e-05 | AT11: 3.959307757e-05 | AU11: 4.353127398e-05 | AV11: 4.791664706e-05 | AW11: 5.280583407e-05 | AX11: 5.82633214e-05 | AY11: 6.436261448e-05 | AZ11: 7.118759221e-05 | BA11: 7.883407597e-05 | BB11: 8.741164858e-05 | BC11: 9.704576409e-05 | BD11: 0.0001078801965 | BE11: 0.0001200798826 | BF11: 0.000133834225 | BG11: 0.0001493609284 | BH11: 0.0001669104593 | BI11: 0.0001867712281 | BJ11: 0.0002092756116 | BK11: 0.0002348069506 | BL11: 0.0002638076788 | BM11: 0.0002967887583 | BN11: 0.0003343406277 | BO11: 0.0003771458916 | BP11: =(BQ12-BP12)/$AJ$26 -> 0.0004259940125 | BQ11: 0.0004817982983 | BR11: 0.000545615511 | BS11: 0.0006186684575 | BT11: 0.0007023719554 | BU11: 0.0007983625987 | BV11: 0.0009085327728 | BW11: 0.001035069386 | BX11: 0.00118049779 | BY11: 0.001347731347 | BZ11: 0.001540127064 | CA11: 0.001761547643 | CB11: 0.002016430195 | CC11: 0.002309861681 | CD11: 0.002647660948 | CE11: 0.003036466898 | CF11: 0.003483831979 | CG11: 0.003998319684 | CH11: 0.004589604183 | CI11: 0.005268569533 | CJ11: 0.006047405147 | CK11: 0.006939693343 | CL11: 0.007960483897 | CM11: 0.009126349606 | CN11: 0.010455416 | CO11: 0.01196735758 | CP11: 0.0136833524 | CQ11: 0.01562598653 | CR11: 0.0178191002 | CS11: 0.02028756788 | CT11: 0.02305700595 | CU11: 0.02615340342 | CV11: =(CW12-CV12)/$AJ$26 -> 0.02960267392 | CW11: 0.03343013007 | CX11: 0.03765988562 | CY11: 0.04231419468 | CZ11: 0.04741274189 | DA11: 0.05297190206 | DB11: 0.05900399149 | DC11: 0.06551653689 | DD11: 0.07251159008 | DE11: 0.07998511763 | DF11: 0.08792649433 | DG11: 0.09631812725 | DH11: 0.1051352335 | DI11: 0.11434579 | DJ11: 0.123910666 | DK11: 0.1337839443 | DL11: 0.1439134261 | DM11: 0.1542413103 | DN11: 0.1647050273 | DO11: 0.175238204 | DP11: 0.1857717303 | DQ11: 0.1962348932 | DR11: 0.2065565443 | DS11: 0.2166662652 | DT11: 0.2264954966 | DU11: 0.2359786011 | DV11: 0.2450538313 | DW11: 0.2536641823 | DX11: 0.2617581115 | DY11: 0.2692901144 | DZ11: 0.2762211516 | EA11: 0.2825189252 | EB11: =(EC12-EB12)/$AJ$26 -> 0.2881580117 | EC11: 0.2931198576 | ED11: 0.2973926502 | EE11: 0.3009710783 | EF11: 0.3038559983 | EG11: 0.3060540222 | EH11: 0.3075770446 | EI11: 0.3084417252 | EJ11: 0.3086689426 | EK11: 0.3082832336 | EL11: 0.3073122306 | EM11: 0.305786109 | EN11: 0.3037370533 | EO11: 0.30119875 | EP11: 0.2982059132 | EQ11: 0.2947938474 | ER11: 0.2909980497 | ES11: 0.286853855 | ET11: 0.2823961214 | EU11: 0.2776589595 | EV11: 0.2726755 | EW11: 0.2674777021 | EX11: 0.2620961969 | EY11: 0.2565601647 | EZ11: 0.250897244 | FA11: 0.2451334673 | FB11: 0.239293223 | FC11: 0.2333992385 | FD11: 0.2274725827 | FE11: 0.2215326847 | FF11: 0.2155973667 | FG11: 0.2096828881 | FH11: =(FI12-FH12)/$AJ$26 -> 0.2038039989 | FI11: 0.1979740007 | FJ11: 0.1922048125 | FK11: 0.1865070418 | FL11: 0.1808900568 | FM11: 0.1753620612 | FN11: 0.1699301689 | FO11: 0.1646004785 | FP11: 0.1593781461 | FQ11: 0.1542674575 | FR11: 0.1492718965 | FS11: 0.1443942123 | FT11: 0.1396364832 | FU11: 0.1350001769 | FV11: 0.1304862084 | FW11: 0.1260949942 | FX11: 0.1218265031 | FY11: 0.1176803043 | FZ11: 0.1136556111 | GA11: 0.1097513229 | GB11: 0.1059660632 | GC11: 0.1022982146 | GD11: 0.09874595142 | GE11: 0.09530726967 | GF11: 0.09198001391 | GG11: 0.08876190224 | GH11: 0.08565054878 | GI11: 0.08264348406 | GJ11: 0.07973817353 | GK11: 0.07693203406 | GL11: 0.0742224489 | GM11: 0.07160678091 | GN11: =(GO12-GN12)/$AJ$26 -> 0.06908238445 | GO11: 0.06664661586 | GP11: 0.06429684272 | GQ11: 0.06203045196 | GR11: 0.059844857 | GS11: 0.05773750386 | GT11: 0.05570587649 | GU11: 0.05374750126 | GV11: 0.05185995081 | GW11: 0.0500408472 | GX11: 0.04828786456 | GY11: 0.04659873114 | GZ11: 0.04497123097 | HA11: 0.04340320507 | HB11: 0.04189255235 | HC11: 0.04043723006 | HD11: 0.03903525412 | HE11: 0.03768469907 | HF11: 0.03638369784 | HG11: 0.03513044134 | HH11: 0.03392317786 | HI11: 0.03276021234 | HJ11: 0.0316399055 | HK11: 0.03056067289 | HL11: 0.02952098382 | HM11: 0.02851936026 | HN11: 0.02755437563 | HO11: 0.02662465357 | HP11: 0.0257288667 | HQ11: 0.02486573528 | HR11: 0.02403402594 | HS11: 0.02323255033 | HT11: =(HU12-HT12)/$AJ$26 -> 0.02246016381 | HU11: 0.02171576409 | HV11: 0.02099828996 | HW11: 0.02030671995 | HX11: 0.01964007103 | HY11: 0.01899739736 | HZ11: 0.01837778902 | IA11: 0.01778037077
H12: 0 | U12: 0 | AI12: nct function | AJ12: =nct(AJ9,$F$8,$F$6) -> 1.09806584e-05 | AK12: =nct(AK9,$F$8,$F$6) -> 1.179488614e-05 | AL12: 1.268065279e-05 | AM12: 1.364519109e-05 | AN12: 1.46965568e-05 | AO12: 1.584373224e-05 | AP12: 1.709674405e-05 | AQ12: 1.846679716e-05 | AR12: 1.996642758e-05 | AS12: 2.160967654e-05 | AT12: 2.341228946e-05 | AU12: 2.539194334e-05 | AV12: 2.756850703e-05 | AW12: 2.996433939e-05 | AX12: 3.260463109e-05 | AY12: 3.551779716e-05 | AZ12: 3.873592788e-05 | BA12: 4.229530749e-05 | BB12: 4.623701129e-05 | BC12: 5.060759372e-05 | BD12: 5.545988193e-05 | BE12: 6.085389175e-05 | BF12: 6.685788588e-05 | BG12: 7.354959713e-05 | BH12: 8.101764355e-05 | BI12: 8.936316652e-05 | BJ12: 9.870172792e-05 | BK12: 0.0001091655085 | BL12: 0.000120905856 | BM12: 0.00013409624 | BN12: 0.0001489356779 | BO12: 0.0001656527093 | BP12: 0.0001845100039 | BQ12: 0.0002058097045 | BR12: 0.0002298996194 | BS12: 0.0002571803949 | BT12: 0.0002881138178 | BU12: 0.0003232324156 | BV12: 0.0003631505455 | BW12: 0.0004085771842 | BX12: 0.0004603306535 | BY12: 0.000519355543 | BZ12: 0.0005867421103 | CA12: 0.0006637484635 | CB12: 0.0007518258457 | CC12: 0.0008526473554 | CD12: 0.0009681404395 | CE12: 0.001100523487 | CF12: 0.001252346832 | CG12: 0.001426538431 | CH12: 0.001626454415 | CI12: 0.001855934624 | CJ12: 0.002119363101 | CK12: 0.002421733358 | CL12: 0.002768718025 | CM12: 0.00316674222 | CN12: 0.0036230597 | CO12: 0.0041458305 | CP12: 0.00474419838 | CQ12: 0.005428366 | CR12: 0.006209665326 | CS12: 0.007100620336 | CT12: 0.00811499873 | CU12: 0.009267849027 | CV12: 0.0105755192 | CW12: =nct(CW9,$F$8,$F$6) -> 0.01205565289 | CX12: 0.0137271594 | CY12: 0.01561015368 | CZ12: 0.01772586341 | DA12: 0.02009650051 | DB12: 0.02274509561 | DC12: 0.02569529519 | DD12: 0.02897112203 | DE12: 0.03259670153 | DF12: 0.03659595742 | DG12: 0.04099228213 | DH12: 0.04580818849 | DI12: 0.05106495017 | DJ12: 0.05678223967 | DK12: 0.06297777297 | DL12: 0.06966697019 | DM12: 0.07686264149 | DN12: 0.08457470701 | DO12: 0.09280995837 | DP12: 0.1015718686 | DQ12: 0.1108604551 | DR12: 0.1206721997 | DS12: 0.131000027 | DT12: 0.1418333402 | DU12: 0.1531581151 | DV12: 0.1649570451 | DW12: 0.1772097367 | DX12: 0.1898929458 | DY12: 0.2029808514 | DZ12: 0.2164453571 | EA12: 0.2302564147 | EB12: 0.2443823609 | EC12: 0.2587902615 | ED12: 0.2734462544 | EE12: 0.2883158869 | EF12: 0.3033644408 | EG12: 0.3185572407 | EH12: 0.3338599418 | EI12: 0.3492387941 | EJ12: 0.3646608803 | EK12: 0.3800943275 | EL12: 0.3955084891 | EM12: 0.4108741007 | EN12: 0.4261634061 | EO12: 0.4413502588 | EP12: 0.4564101963 | EQ12: 0.4713204919 | ER12: 0.4860601843 | ES12: 0.5006100868 | ET12: 0.5149527795 | EU12: 0.5290725856 | EV12: 0.5429555336 | EW12: 0.5565893086 | EX12: 0.5699631937 | EY12: 0.5830680035 | EZ12: 0.5958960118 | FA12: 0.608440874 | FB12: 0.6206975473 | FC12: 0.6326622085 | FD12: 0.6443321704 | FE12: 0.6557057995 | FF12: 0.6667824338 | FG12: 0.6775623021 | FH12: 0.6880464465 | FI12: =nct(FI9,$F$8,$F$6) -> 0.6982366465 | FJ12: 0.7081353465 | FK12: 0.7177455871 | FL12: 0.7270709392 | FM12: 0.7361154421 | FN12: 0.7448835451 | FO12: 0.7533800536 | FP12: 0.7616100775 | FQ12: 0.7695789848 | FR12: 0.7772923577 | FS12: 0.7847559525 | FT12: 0.7919756631 | FU12: 0.7989574873 | FV12: 0.8057074961 | FW12: 0.8122318065 | FX12: 0.8185365562 | FY12: 0.8246278814 | FZ12: 0.8305118966 | GA12: 0.8361946772 | GB12: 0.8416822433 | GC12: 0.8469805465 | GD12: 0.8520954572 | GE12: 0.8570327548 | GF12: 0.8617981182 | GG12: 0.8663971189 | GH12: 0.8708352141 | GI12: 0.8751177415 | GJ12: 0.8792499157 | GK12: 0.8832368244 | GL12: 0.8870834261 | GM12: 0.8907945485 | GN12: 0.8943748876 | GO12: 0.8978290068 | GP12: 0.9011613376 | GQ12: 0.9043761797 | GR12: 0.9074777023 | GS12: 0.9104699452 | GT12: 0.9133568204 | GU12: 0.9161421142 | GV12: 0.9188294892 | GW12: 0.9214224868 | GX12: 0.9239245291 | GY12: 0.9263389224 | GZ12: 0.9286688589 | HA12: 0.9309174205 | HB12: 0.9330875807 | HC12: 0.9351822084 | HD12: 0.9372040699 | HE12: 0.9391558326 | HF12: 0.9410400675 | HG12: 0.9428592524 | HH12: 0.9446157745 | HI12: 0.9463119334 | HJ12: 0.947949944 | HK12: 0.9495319393 | HL12: 0.9510599729 | HM12: 0.9525360221 | HN12: 0.9539619901 | HO12: 0.9553397089 | HP12: 0.9566709416 | HQ12: 0.9579573849 | HR12: 0.9592006717 | HS12: 0.960402373 | HT12: 0.9615640005 | HU12: =nct(HU9,$F$8,$F$6) -> 0.9626870087 | HV12: 0.9637727969 | HW12: 0.9648227114 | HX12: 0.9658380474 | HY12: 0.9668200509 | HZ12: 0.9677699208 | IA12: 0.9686888102 | IB12: 0.9695778288
H13: 0 | U13: 0 | AI13: for t | AJ13: 1700 | AK13: df
H14: 0 | U14: 0 | AI14: Show blue vertical | AJ14: FALSE | AK14: 5
A15: 3 | H15: 0 | U15: 0 | AI15: Show red vertical | AJ15: FALSE
E16: Size of tail | H16: 0 | U16: 0 | AI16: Central t tail in front | AJ16: FALSE
C17: SLIDER | E17: p | F17: =AJ29/100 -> 0.08 | H17: 0 | U17: =$H$1 -> 0 | AI17: Show displaced t | AJ17: FALSE
H18: 0 | U18: 0 | AI18: Show L tail | AJ18: FALSE
H19: 0 | U19: 0 | AI19: Show R tail | AJ19: FALSE
A20: 5 | H20: 0 | U20: 0 | AI20: for Centre of X axis | AJ20: 70
H21: 0 | U21: 0 | AI21: for Length of X axis | AJ21: 20
C22: SLIDER | E22: =IF(AJ30,"t","") -> t | F22: =IF(AJ30,(AJ13-1300)/100,"") -> 4 | H22: 0 | U22: 0 | AI22: Centre of X axis | AJ22: =(AJ20-50)/10 -> 2
H23: 0 | U23: 0 | AI23: Length of X axis | AJ23: =AJ21/2 -> 10
D24: =IF(AJ30,"Left","") -> Left | F24: =IF(AJ30,"Right","") -> Right | H24: 0 | U24: 0 | AI24: LH end | AJ24: =AJ22-AJ23/2 -> -3
C25: =IF(AJ30,"NonCentral t probabilities","") -> NonCentral t probabilities | D25: =IF(AJ30,nct(F22,F8,F6),"") -> 0.7919756631 | F25: =IF(AJ30,1-D25,"") -> 0.2080243369 | H25: 0 | U25: 0 | AI25: N(t steps) | AJ25: 200
H26: 0 | U26: 0 | AI26: t step size | AJ26: =AJ23/AJ25 -> 0.05
A27: 4 | B27: << Shift t axis >> | D27: In Zoom t axis Out | H27: 0 | U27: 0 | AI27: Show cent t | AJ27: TRUE
B28: SLIDER | E28: SLIDER | H28: 0 | U28: 0 | AI28: for NCP | AJ28: 1550
H29: 0 | U29: 0 | AI29: forTailSize | AJ29: 8
H30: 0 | U30: 0 | AI30: AccCalc | AJ30: TRUE
H31: 0 | U31: 0

Sheet d picture
C1: d picture | H1: =($F$6+$F$8+$F$11+$F$13+$F$27+dlend+drend)/1000000000 ->  | I1: =$H$1 ->  | AD1: For cursor | AE1: =F27 ->  | AF1: =IF(AE8,0,NA()) -> 
C2: See population distributions for a chosen d | H2: =$H$1 ->  | U2: =$H$1 -> 
AD4: For d label | AE4: TRUE
A5: 1 | B5: Means | AD5: Disp shade? | AE5: FALSE | AF5: X axis L end | AG5: =MIN(H32,U32) -> 50 | AH5: =F6 -> 100 | AI5: 0
A6: C | C6: 1000 | E6: MC | F6: =C6/10 -> 100 | AD6: High E shade? | AE6: TRUE | AF6: X axis R end | AG6: =MAX(H32,U32) -> 150 | AH6: =F8 -> 107.5 | AI6: 0
AD7: Low C shade? | AE7: FALSE | AF7: x inc | AG7: =(AG6-AG5)/300 -> 0.3333333333 | AH7: =AVERAGE(AH5:AH6) -> 103.75 | AI7: =MAX(AF10:AG310)*1.1 -> 0.02925576723 | AJ7: =IF(AE4,AH7,NA()) -> 103.75 | AK7: =AI7 -> 0.02925576723
A8: E | C8: 1075 | E8: ME | F8: =C8/10 -> 107.5 | AD8: Disp cursor? | AE8: FALSE | AF8: y max + | AG8: =MAX(AF10:AG310)*1.07 -> 0.02845788267 | AJ8: =IF(NOT(AE4),AH7,NA()) ->  | AK8: =AI7 -> 0.02925576723
AD9: index | AE9: x | AF9: y Control | AG9: y Experimental | AH9: o'lap shading | AI9: low C shade | AJ9: high E shade
A10: 2 | B10: Standard deviations | AD10: 1 | AE10: =AG5 -> 50 | AF10: =NORMDIST(AE10,$F$6,$F$11,FALSE) -> 0.0001028185998 | AG10: =NORMDIST(AE10,$F$8,$F$13,FALSE) -> 1.713802367e-05 | AH10: =IF($AE$5,MIN(AF10:AG10),NA()) ->  | AI10: =IF(AND($AE$7,$F$8>AE10),AF10,NA()) ->  | AJ10: =IF(AND($AE$6,$F$6<AE10),AG10,NA()) -> 
A11: C | C11: 150 | E11: sC | F11: =C11/10 -> 15 | AD11: 2 | AE11: =AE10+$AG$7 -> 50.33333333 | AF11: 0.0001106966335 | AG11: 1.865730714e-05
AD12: 3 | AE12: 50.66666667 | AF12: 0.0001191194489 | AG12: 2.03012471e-05
A13: E | C13: 150 | E13: sE | F13: =C13/10 -> 15 | AD13: 4 | AE13: 51 | AF13: 0.0001281198646 | AG13: 2.207913257e-05
AD14: 5 | AE14: 51.33333333 | AF14: 0.0001377323001 | AG14: 2.400086148e-05
A15: 3 | B15: Cohen's d | AD15: 6 | AE15: 51.66666667 | AF15: 0.0001479928259 | AG15: 2.607697361e-05
E16: d | F16: =(F8-F6)/F11 -> 0.5 | AD16: 7 | AE16: 52 | AF16: 0.0001589392134 | AG16: 2.83186847e-05
D17: Label as d in figure | U17: =$H$1 ->  | AD17: 8 | AE17: 52.33333333 | AF17: 0.0001706109846 | AG17: 3.073792187e-05
G18: Shade? | AD18: 9 | AE18: 52.66666667 | AF18: 0.0001830494604 | AG18: 3.334736017e-05
E19: % of E above mean of C | F19: =100*(1-NORMSDIST((F6-F8)/F13)) -> 69.14624613 | AD19: 10 | AE19: 53 | AF19: 0.000196297808 | AG19: 3.616046041e-05
AD20: 11 | AE20: 53.33333333 | AF20: 0.0002104010878 | AG20: 3.919150818e-05
E21: % of C below mean of E | F21: =100*(NORMSDIST((F8-F6)/F11)) -> 69.14624613 | AD21: 12 | AE21: 53.66666667 | AF21: 0.0002254062973 | AG21: 4.245565397e-05
AD22: 13 | AE22: 54 | AF22: 0.0002413624152 | AG22: 4.596895458e-05
E23: Probability that E > C | F23: =NORMSDIST((F8-F6)/SQRT(F13^2+F11^2)) -> 0.6381631951 | H23: =$H$1 ->  | AD23: 14 | AE23: 54.33333333 | AF23: 0.0002583204416 | AG23: 4.97484155e-05
H24: =$H$1 ->  | AD24: 15 | AE24: 54.66666667 | AF24: 0.0002763334375 | AG24: 5.381203453e-05
A25: 4 | B25: Cursor | AD25: 16 | AE25: 55 | AF25: 0.0002954565608 | AG25: 5.817884634e-05
AD26: 17 | AE26: 55.33333333 | AF26: 0.0003157471 | AG26: 6.286896803e-05
C27: 1290 | E27: X | F27: =IF(AE8,C27/10,"") ->  | AD27: 18 | AE27: 55.66666667 | AF27: 0.0003372645046 | AG27: 6.790364567e-05
F28: Area to right | AD28: 19 | AE28: 56 | AF28: 0.0003600704121 | AG28: 7.330530168e-05
E29: Under C | F29: =IF(AE8,1-NORMSDIST((F27-F6)/F11),"") ->  | AD29: 20 | AE29: 56.33333333 | AF29: 0.0003842286711 | AG29: 7.909758296e-05
E30: Under E | F30: =IF(AE8,1-NORMSDIST((F27-F8)/F13),"") ->  | AD30: 21 | AE30: 56.66666667 | AF30: 0.0004098053609 | AG30: 8.530540977e-05
AD31: 22 | AE31: 57 | AF31: 0.0004368688059 | AG31: 9.195502524e-05
G32: 5 | H32: 50 | T32: 6 | U32: 150 | AD32: 23 | AE32: 57.33333333 | AF32: 0.000465489586 | AG32: 9.907404528e-05
AD33: 24 | AE33: 57.66666667 | AF33: 0.0004957405414 | AG33: 0.000106691509
AD34: 25 | AE34: 58 | AF34: 0.0005276967722 | AG34: 0.0001148379293
AD35: 26 | AE35: 58.33333333 | AF35: 0.0005614356323 | AG35: 0.0001235453436
AD36: 27 | AE36: 58.66666667 | AF36: 0.0005970367169 | AG36: 0.0001328473648
AD37: 28 | AE37: 59 | AF37: 0.0006345818437 | AG37: 0.0001427792315
AD38: 29 | AE38: 59.33333333 | AF38: 0.0006741550273 | AG38: 0.0001533778584
AD39: 30 | AE39: 59.66666667 | AF39: 0.000715842446 | AG39: 0.0001646818862
AD40: 31 | AE40: 60 | AF40: 0.0007597324016 | AG40: 0.0001767317303
AD41: 32 | AE41: 60.33333333 | AF41: 0.0008059152707 | AG41: 0.0001895696288
AD42: 33 | AE42: 60.66666667 | AF42: 0.0008544834483 | AG42: 0.00020323969
AD43: 34 | AE43: 61 | AF43: 0.0009055312822 | AG43: 0.0002177879371
AD44: 35 | AE44: 61.33333333 | AF44: 0.0009591549994 | AG44: 0.0002332623531
AD45: 36 | AE45: 61.66666667 | AF45: 0.001015452622 | AG45: 0.0002497129223
AD46: 37 | AE46: 62 | AF46: 0.001074523874 | AG46: 0.0002671916706
AD47: 38 | AE47: 62.33333333 | AF47: 0.001136470081 | AG47: 0.000285752703
AD48: 39 | AE48: 62.66666667 | AF48: 0.001201394054 | AG48: 0.0003054522388
AD49: 40 | AE49: 63 | AF49: 0.001269399968 | AG49: 0.0003263486434
AD50: 41 | AE50: 63.33333333 | AF50: 0.001340593228 | AG50: 0.000348502457
AD51: 42 | AE51: 63.66666667 | AF51: 0.001415080327 | AG51: 0.0003719764202
AD52: 43 | AE52: 64 | AF52: 0.001492968686 | AG52: 0.0003968354947
AD53: 44 | AE53: 64.33333333 | AF53: 0.001574366493 | AG53: 0.0004231468807
AD54: 45 | AE54: 64.66666667 | AF54: 0.00165938252 | AG54: 0.0004509800296
AD55: 46 | AE55: 65 | AF55: 0.00174812594 | AG55: 0.000480406651
AD56: 47 | AE56: 65.33333333 | AF56: 0.001840706123 | AG56: 0.0005115007155
AD57: 48 | AE57: 65.66666667 | AF57: 0.00193723243 | AG57: 0.0005443384512
AD58: 49 | AE58: 66 | AF58: 0.002037813982 | AG58: 0.0005789983347
AD59: 50 | AE59: 66.33333333 | AF59: 0.002142559436 | AG59: 0.0006155610752
AD60: 51 | AE60: 66.66666667 | AF60: 0.002251576736 | AG60: 0.0006541095925
AD61: 52 | AE61: 67 | AF61: 0.002364972856 | AG61: 0.0006947289876
AD62: 53 | AE62: 67.33333333 | AF62: 0.002482853541 | AG62: 0.0007375065062
AD63: 54 | AE63: 67.66666667 | AF63: 0.002605323022 | AG63: 0.0007825314939
AD64: 55 | AE64: 68 | AF64: 0.002732483736 | AG64: 0.0008298953441
AD65: 56 | AE65: 68.33333333 | AF65: 0.002864436031 | AG65: 0.0008796914371
AD66: 57 | AE66: 68.66666667 | AF66: 0.003001277855 | AG66: 0.0009320150701
AD67: 58 | AE67: 69 | AF67: 0.003143104448 | AG67: 0.0009869633784
AD68: 59 | AE68: 69.33333333 | AF68: 0.003290008017 | AG68: 0.001044635248
AD69: 60 | AE69: 69.66666667 | AF69: 0.003442077408 | AG69: 0.001105131216
AD70: 61 | AE70: 70 | AF70: 0.003599397768 | AG70: 0.001168553366
AD71: 62 | AE71: 70.33333333 | AF71: 0.003762050203 | AG71: 0.001235005207
AD72: 63 | AE72: 70.66666667 | AF72: 0.00393011143 | AG72: 0.001304591548
AD73: 64 | AE73: 71 | AF73: 0.004103653423 | AG73: 0.001377418354
AD74: 65 | AE74: 71.33333333 | AF74: =NORMDIST(AE74,$F$6,$F$11,FALSE) -> 0.004282743056 | AG74: =NORMDIST(AE74,$F$8,$F$13,FALSE) -> 0.001453592603 | AH74: =IF($AE$5,MIN(AF74:AG74),NA()) ->  | AI74: =IF(AND($AE$7,$F$8>AE74),AF74,NA()) ->  | AJ74: =IF(AND($AE$6,$F$6<AE74),AG74,NA()) -> 
AD75: 66 | AE75: =AE74+$AG$7 -> 71.66666667 | AF75: 0.004467441741 | AG75: 0.001533222122
AD76: 67 | AE76: 72 | AF76: 0.004657805071 | AG76: 0.001616415412
AD77: 68 | AE77: 72.33333333 | AF77: 0.004853882452 | AG77: 0.001703281472
AD78: 69 | AE78: 72.66666667 | AF78: 0.005055716742 | AG78: 0.001793929598
AD79: 70 | AE79: 73 | AF79: 0.005263343887 | AG79: 0.001888469183
AD80: 71 | AE80: 73.33333333 | AF80: 0.005476792564 | AG80: 0.001987009495
AD81: 72 | AE81: 73.66666667 | AF81: 0.005696083824 | AG81: 0.002089659455
AD82: 73 | AE82: 74 | AF82: 0.005921230739 | AG82: 0.002196527393
AD83: 74 | AE83: 74.33333333 | AF83: 0.006152238057 | AG83: 0.002307720802
AD84: 75 | AE84: 74.66666667 | AF84: 0.006389101864 | AG84: 0.002423346075
AD85: 76 | AE85: 75 | AF85: 0.006631809253 | AG85: 0.002543508234
AD86: 77 | AE86: 75.33333333 | AF86: 0.006880338004 | AG86: 0.002668310651
AD87: 78 | AE87: 75.66666667 | AF87: 0.007134656277 | AG87: 0.002797854755
AD88: 79 | AE88: 76 | AF88: 0.007394722312 | AG88: 0.002932239732
AD89: 80 | AE89: 76.33333333 | AF89: 0.007660484149 | AG89: 0.003071562217
AD90: 81 | AE90: 76.66666667 | AF90: 0.007931879362 | AG90: 0.003215915975
AD91: 82 | AE91: 77 | AF91: 0.008208834802 | AG91: 0.003365391572
AD92: 83 | AE92: 77.33333333 | AF92: 0.008491266372 | AG92: 0.003520076048
AD93: 84 | AE93: 77.66666667 | AF93: 0.008779078809 | AG93: 0.003680052574
AD94: 85 | AE94: 78 | AF94: 0.009072165494 | AG94: 0.003845400104
AD95: 86 | AE95: 78.33333333 | AF95: 0.009370408277 | AG95: 0.004016193028
AD96: 87 | AE96: 78.66666667 | AF96: 0.009673677335 | AG96: 0.004192500814
AD97: 88 | AE97: 79 | AF97: 0.009981831042 | AG97: 0.004374387652
AD98: 89 | AE98: 79.33333333 | AF98: 0.01029471588 | AG98: 0.004561912089
AD99: 90 | AE99: 79.66666667 | AF99: 0.01061216636 | AG99: 0.004755126669
AD100: 91 | AE100: 80 | AF100: 0.01093400498 | AG100: 0.004954077571
AD101: 92 | AE101: 80.33333333 | AF101: 0.01126004222 | AG101: 0.00515880424
AD102: 93 | AE102: 80.66666667 | AF102: 0.01159007653 | AG102: 0.005369339035
AD103: 94 | AE103: 81 | AF103: 0.01192389443 | AG103: 0.005585706863
AD104: 95 | AE104: 81.33333333 | AF104: 0.01226127053 | AG104: 0.005807924829
AD105: 96 | AE105: 81.66666667 | AF105: 0.01260196765 | AG105: 0.006036001886
AD106: 97 | AE106: 82 | AF106: 0.012945737 | AG106: 0.006269938492
AD107: 98 | AE107: 82.33333333 | AF107: 0.01329231831 | AG107: 0.006509726278
AD108: 99 | AE108: 82.66666667 | AF108: 0.01364144007 | AG108: 0.006755347719
AD109: 100 | AE109: 83 | AF109: 0.01399281974 | AG109: 0.007006775824
AD110: 101 | AE110: 83.33333333 | AF110: 0.01434616407 | AG110: 0.007263973829
AD111: 102 | AE111: 83.66666667 | AF111: 0.01470116935 | AG111: 0.007526894909
AD112: 103 | AE112: 84 | AF112: 0.01505752183 | AG112: 0.007795481901
AD113: 104 | AE113: 84.33333333 | AF113: 0.01541489802 | AG113: 0.00806966705
AD114: 105 | AE114: 84.66666667 | AF114: 0.01577296516 | AG114: 0.00834937176
AD115: 106 | AE115: 85 | AF115: 0.01613138163 | AG115: 0.008634506378
AD116: 107 | AE116: 85.33333333 | AF116: 0.01648979745 | AG116: 0.008924969983
AD117: 108 | AE117: 85.66666667 | AF117: 0.01684785476 | AG117: 0.009220650212
AD118: 109 | AE118: 86 | AF118: 0.01720518839 | AG118: 0.009521423096
AD119: 110 | AE119: 86.33333333 | AF119: 0.01756142642 | AG119: 0.009827152923
AD120: 111 | AE120: 86.66666667 | AF120: 0.01791619077 | AG120: 0.01013769213
AD121: 112 | AE121: 87 | AF121: 0.01826909783 | AG121: 0.01045288123
AD122: 113 | AE122: 87.33333333 | AF122: 0.01861975911 | AG122: 0.01077254871
AD123: 114 | AE123: 87.66666667 | AF123: 0.01896778196 | AG123: 0.01109651108
AD124: 115 | AE124: 88 | AF124: 0.01931277018 | AG124: 0.0114245728
AD125: 116 | AE125: 88.33333333 | AF125: 0.01965432486 | AG125: 0.01175652634
AD126: 117 | AE126: 88.66666667 | AF126: 0.01999204503 | AG126: 0.01209215225
AD127: 118 | AE127: 89 | AF127: 0.02032552846 | AG127: 0.01243121924
AD128: 119 | AE128: 89.33333333 | AF128: 0.02065437246 | AG128: 0.0127734843
AD129: 120 | AE129: 89.66666667 | AF129: 0.02097817463 | AG129: 0.01311869287
AD130: 121 | AE130: 90 | AF130: 0.0212965337 | AG130: 0.01346657904
AD131: 122 | AE131: 90.33333333 | AF131: 0.02160905033 | AG131: 0.01381686575
AD132: 123 | AE132: 90.66666667 | AF132: 0.02191532794 | AG132: 0.01416926506
AD133: 124 | AE133: 91 | AF133: 0.02221497353 | AG133: 0.01452347847
AD134: 125 | AE134: 91.33333333 | AF134: 0.02250759853 | AG134: 0.01487919719
AD135: 126 | AE135: 91.66666667 | AF135: 0.02279281961 | AG135: 0.01523610255
AD136: 127 | AE136: 92 | AF136: 0.02307025955 | AG136: 0.01559386637
AD137: 128 | AE137: 92.33333333 | AF137: 0.023339548 | AG137: 0.01595215142
AD138: 129 | AE138: 92.66666667 | AF138: =NORMDIST(AE138,$F$6,$F$11,FALSE) -> 0.02360032237 | AG138: =NORMDIST(AE138,$F$8,$F$13,FALSE) -> 0.01631061181 | AH138: =IF($AE$5,MIN(AF138:AG138),NA()) ->  | AI138: =IF(AND($AE$7,$F$8>AE138),AF138,NA()) ->  | AJ138: =IF(AND($AE$6,$F$6<AE138),AG138,NA()) -> 
AD139: 130 | AE139: =AE138+$AG$7 -> 93 | AF139: 0.02385222861 | AG139: 0.01666889358
AD140: 131 | AE140: 93.33333333 | AF140: 0.02409492199 | AG140: 0.01702663513
AD141: 132 | AE141: 93.66666667 | AF141: 0.02432806792 | AG141: 0.01738346785
AD142: 133 | AE142: 94 | AF142: 0.02455134269 | AG142: 0.01773901666
AD143: 134 | AE143: 94.33333333 | AF143: 0.02476443422 | AG143: 0.01809290063
AD144: 135 | AE144: 94.66666667 | AF144: 0.02496704282 | AG144: 0.01844473364
AD145: 136 | AE145: 95 | AF145: 0.02515888185 | AG145: 0.01879412503
AD146: 137 | AE146: 95.33333333 | AF146: 0.02533967839 | AG146: 0.01914068027
AD147: 138 | AE147: 95.66666667 | AF147: 0.02550917393 | AG147: 0.01948400174
AD148: 139 | AE148: 96 | AF148: 0.02566712497 | AG148: 0.01982368938
AD149: 140 | AE149: 96.33333333 | AF149: 0.02581330357 | AG149: 0.02015934151
AD150: 141 | AE150: 96.66666667 | AF150: 0.02594749794 | AG150: 0.02049055556
AD151: 142 | AE151: 97 | AF151: 0.02606951293 | AG151: 0.02081692889
AD152: 143 | AE152: 97.33333333 | AF152: 0.0261791705 | AG152: 0.02113805957
AD153: 144 | AE153: 97.66666667 | AF153: 0.02627631017 | AG153: 0.02145354718
AD154: 145 | AE154: 98 | AF154: 0.02636078939 | AG154: 0.02176299367
AD155: 146 | AE155: 98.33333333 | AF155: 0.02643248392 | AG155: 0.02206600413
AD156: 147 | AE156: 98.66666667 | AF156: 0.02649128808 | AG156: 0.02236218769
AD157: 148 | AE157: 99 | AF157: 0.02653711509 | AG157: 0.02265115829
AD158: 149 | AE158: 99.33333333 | AF158: 0.02656989719 | AG158: 0.02293253554
AD159: 150 | AE159: 99.66666667 | AF159: 0.02658958589 | AG159: 0.02320594556
AD160: 151 | AE160: 100 | AF160: 0.02659615203 | AG160: 0.02347102178
AD161: 152 | AE161: 100.3333333 | AF161: 0.02658958589 | AG161: 0.02372740578 | AJ161: 0.02372740578
AD162: 153 | AE162: 100.6666667 | AF162: 0.02656989719 | AG162: 0.02397474807 | AJ162: 0.02397474807
AD163: 154 | AE163: 101 | AF163: 0.02653711509 | AG163: 0.02421270888 | AJ163: 0.02421270888
AD164: 155 | AE164: 101.3333333 | AF164: 0.02649128808 | AG164: 0.02444095898 | AJ164: 0.02444095898
AD165: 156 | AE165: 101.6666667 | AF165: 0.02643248392 | AG165: 0.02465918039 | AJ165: 0.02465918039
AD166: 157 | AE166: 102 | AF166: 0.02636078939 | AG166: 0.02486706712 | AJ166: 0.02486706712
AD167: 158 | AE167: 102.3333333 | AF167: 0.02627631017 | AG167: 0.02506432592 | AJ167: 0.02506432592
AD168: 159 | AE168: 102.6666667 | AF168: 0.0261791705 | AG168: 0.02525067693 | AJ168: 0.02525067693
AD169: 160 | AE169: 103 | AF169: 0.02606951293 | AG169: 0.02542585436 | AJ169: 0.02542585436
AD170: 161 | AE170: 103.3333333 | AF170: 0.02594749794 | AG170: 0.02558960713 | AJ170: 0.02558960713
AD171: 162 | AE171: 103.6666667 | AF171: 0.02581330357 | AG171: 0.02574169945 | AJ171: 0.02574169945
AD172: 163 | AE172: 104 | AF172: 0.02566712497 | AG172: 0.02588191138 | AJ172: 0.02588191138
AD173: 164 | AE173: 104.3333333 | AF173: 0.02550917393 | AG173: 0.02601003939 | AJ173: 0.02601003939
AD174: 165 | AE174: 104.6666667 | AF174: 0.02533967839 | AG174: 0.02612589684 | AJ174: 0.02612589684
AD175: 166 | AE175: 105 | AF175: 0.02515888185 | AG175: 0.02622931441 | AJ175: 0.02622931441
AD176: 167 | AE176: 105.3333333 | AF176: 0.02496704282 | AG176: 0.02632014053 | AJ176: 0.02632014053
AD177: 168 | AE177: 105.6666667 | AF177: 0.02476443422 | AG177: 0.02639824178 | AJ177: 0.02639824178
AD178: 169 | AE178: 106 | AF178: 0.02455134269 | AG178: 0.02646350317 | AJ178: 0.02646350317
AD179: 170 | AE179: 106.3333333 | AF179: 0.02432806792 | AG179: 0.02651582841 | AJ179: 0.02651582841
AD180: 171 | AE180: 106.6666667 | AF180: 0.02409492199 | AG180: 0.02655514024 | AJ180: 0.02655514024
AD181: 172 | AE181: 107 | AF181: 0.02385222861 | AG181: 0.02658138049 | AJ181: 0.02658138049
AD182: 173 | AE182: 107.3333333 | AF182: 0.02360032237 | AG182: 0.02659451034 | AJ182: 0.02659451034
AD183: 174 | AE183: 107.6666667 | AF183: 0.023339548 | AG183: 0.02659451034 | AJ183: 0.02659451034
AD184: 175 | AE184: 108 | AF184: 0.02307025955 | AG184: 0.02658138049 | AJ184: 0.02658138049
AD185: 176 | AE185: 108.3333333 | AF185: 0.02279281961 | AG185: 0.02655514024 | AJ185: 0.02655514024
AD186: 177 | AE186: 108.6666667 | AF186: 0.02250759853 | AG186: 0.02651582841 | AJ186: 0.02651582841
AD187: 178 | AE187: 109 | AF187: 0.02221497353 | AG187: 0.02646350317 | AJ187: 0.02646350317
AD188: 179 | AE188: 109.3333333 | AF188: 0.02191532794 | AG188: 0.02639824178 | AJ188: 0.02639824178
AD189: 180 | AE189: 109.6666667 | AF189: 0.02160905033 | AG189: 0.02632014053 | AJ189: 0.02632014053
AD190: 181 | AE190: 110 | AF190: 0.0212965337 | AG190: 0.02622931441 | AJ190: 0.02622931441
AD191: 182 | AE191: 110.3333333 | AF191: 0.02097817463 | AG191: 0.02612589684 | AJ191: 0.02612589684
AD192: 183 | AE192: 110.6666667 | AF192: 0.02065437246 | AG192: 0.02601003939 | AJ192: 0.02601003939
AD193: 184 | AE193: 111 | AF193: 0.02032552846 | AG193: 0.02588191138 | AJ193: 0.02588191138
AD194: 185 | AE194: 111.3333333 | AF194: 0.01999204503 | AG194: 0.02574169945 | AJ194: 0.02574169945
AD195: 186 | AE195: 111.6666667 | AF195: 0.01965432486 | AG195: 0.02558960713 | AJ195: 0.02558960713
AD196: 187 | AE196: 112 | AF196: 0.01931277018 | AG196: 0.02542585436 | AJ196: 0.02542585436
AD197: 188 | AE197: 112.3333333 | AF197: 0.01896778196 | AG197: 0.02525067693 | AJ197: 0.02525067693
AD198: 189 | AE198: 112.6666667 | AF198: 0.01861975911 | AG198: 0.02506432592 | AJ198: 0.02506432592
AD199: 190 | AE199: 113 | AF199: 0.01826909783 | AG199: 0.02486706712 | AJ199: 0.02486706712
AD200: 191 | AE200: 113.3333333 | AF200: 0.01791619077 | AG200: 0.02465918039 | AJ200: 0.02465918039
AD201: 192 | AE201: 113.6666667 | AF201: 0.01756142642 | AG201: 0.02444095898 | AJ201: 0.02444095898
... 109 more rows

Sheet d heap
I1: Distribution of d | S1: =$R$1 -> 0 | T1: 0 | U1: 0 | V1: 0 | W1: 0 | X1: 0 | Y1: 0 | Z1: 0 | AA1: 0 | AB1: 0 | AC1: 0 | AD1: 0 | AE1: 0 | AY1: low | AZ1: high | BA1: majXunit | BD1: DispRubberRuler | BE1: TRUE | BG1: H1 sample | BV1: =BV4 -> 139.735 | BW1: =IF(AND($BE$5,$BE$4),$AY$12-$BD$27/2+BU4*$BD$27,NA()) -> -16.49575
A2: means | B2: SDs | C2: d or dz | D2: calcswitch | E2: FALSE | I2: Take samples, see distribution of means, and of d | R2: =$R$1 -> 0 | AE2: =$R$1 -> 0 | AX2: Y axis | AY2: =AY15-AY16 -> -52 | AZ2: =AY6+AY5+AY4 -> 45 | BB2: Max no samps | BC2: 300 | BD2: Show data pts | BE2: TRUE | BF2: 1 | BG2: rand no. | BH2: data point z | BI2: data point | BK2: New Sample, for display | BL2: Display mean heap 1 | BN2: =BN4 -> 125.599 | BO2: =IF(AND(NOT($BC$13),$BE$6,$BE$4,$BE$2),$AY$9-$BD$23/2+BM4*$BD$23,NA()) -> 10.21725 | BP2: Display t-z heap 1 | BR2: =BR4 -> 126.4835 | BS2: =IF(AND(NOT($BC$13),$BE$7,$BE$4,$BE$2,$BE$10),$AY$15-$BD$23/2+BQ4*$BD$23,NA()) -> -43.00925 | BT2: Display s pile | BV2: =BV4 -> 139.735 | BW2: =IF(AND(NOT($BE$12),$BE$5,$BE$4,$BE$2),$AY$12-$BD$27/2+BU4*$BD$27,NA()) -> -16.49575
A3: =BC38 -> -0.3169006292 | B3: =BD38 -> 0.9473239665 | I3: See the s pile, the distribution of sample standard deviations | R3: 0 | AE3: 0 | AX3: X axis | AY3: 70 | AZ3: 170 | BA3: 10 | BB3: d=1, s=2 | BC3: 1 | BD3: Don'tClearDisp | BE3: =($D$11=$E$11) -> TRUE | BF3: 2 | BG3: =$D$12 -> 0.5566874788 | BH3: =IF(AND($BE$4,$BF2<=$H$15),NORMSINV(BG3),"") -> 0.1425760135 | BI3: =IF(BH3="","",$O$10+$O$12*BH3) -> 132.1386402 | BJ3: =AY8 -> 25 | BK3: =IF(AND($BC$12,$BE$2,BI3<>"",$A$4<>""),BI3,-999) -> 132.1386402 | BL3: xticks | BM3: yticks | BN3: x for display | BO3: y for display | BP3: xticks | BQ3: yticks | BR3: x for display | BS3: y for display | BT3: xticks | BU3: yticks | BV3: x for display | BW3: y for display | BX3: y grey
A4: -0.3169006292 | B4: 0.9473239665 | C4: =IF(AND(A4<>"",$H$15>1),(($O$10+$O$12*A4)-$L$8)/IF($BE$12,$BC$9,$O$12*B4),"") -> 1.776688261 | I4: See the rubber ruler, and calculate d using s or s | R4: 0 | AE4: 0 | AX4: top gap | AY4: 0 | BA4: minXunit | BB4: Show m1 | BC4: TRUE | BD4: Don'tClearDisp1 | BE4: =($D$11=$E$11) -> TRUE | BF4: 3 | BG4: =MOD(BG3*10000013,1) -> 0.02508950979 | BH4: -1.958434758 | BI4: 100.6234786 | BJ4: =BJ3 -> 25 | BK4: 100.6234786 | BL4: =IF(A4="","",ROUND(($O$10+$O$12*A4)/$BD$24,0)) -> 142 | BM4: =IF(BL4="",NA(),COUNTIF(BL4:$BL$303,BL4)) -> 10 | BN4: =BL4*$BD$24 -> 125.599 | BO4: =IF(AND(NOT($BC$13),$BE$6,$BE$4,$BE$8),$AY$9-$BD$23/2+BM4*$BD$23,NA()) -> 10.21725 | BP4: =IF(C4="","",ROUND(($L$8+C4*$BC$9)/$BD$24,0)) -> 143 | BQ4: =IF(BP4="",NA(),COUNTIF(BP4:$BP$303,BP4)) -> 7 | BR4: =BP4*$BD$24 -> 126.4835 | BS4: =IF(AND(NOT($BC$13),$BE$7,$BE$4,$BE$8,$BE$10),$AY$15-$BD$23/2+BQ4*$BD$23,NA()) -> -43.00925 | BT4: =IF(B4="","",ROUND(($O$12*B4)/$BD$28,0)) -> 24 | BU4: =IF(BT4="",NA(),COUNTIF(BT4:$BT$303,BT4)) -> 4 | BV4: =$AY$35+BT4*$BD$28 -> 139.735 | BW4: =IF(AND(NOT($BE$12),$BE$5,$BE$4,$BE$8),$AY$12-$BD$27/2+BU4*$BD$27,NA()) -> -16.49575 | BX4: =IF(AND($BE$12,$BE$5,$BE$4,$BE$8),$AY$12-$BD$27/2+BU4*$BD$27,NA()) -> 
A5: -0.08795646997 | B5: 1.136267668 | C5: 1.682740417 | R5: =$R$1 -> 0 | AE5: 0 | AX5: panel 1 height | AY5: 18 | BA5: 2 | BB5: m1 true | BC5: 2 | BD5: Disp s pile | BE5: TRUE | BF5: 4 | BG5: 0.4240153804 | BH5: -0.1916316346 | BI5: 127.1255255 | BJ5: =BJ4 -> 25 | BK5: 127.1255255 | BL5: 145 | BM5: =IF(BL5="",NA(),COUNTIF(BL5:$BL$303,BL5)) -> 2 | BN5: 128.2525 | BO5: 1.61325 | BP5: 142 | BQ5: =IF(BP5="",NA(),COUNTIF(BP5:$BP$303,BP5)) -> 8 | BR5: 125.599 | BS5: -41.93375 | BT5: =IF(B5="","",ROUND(($O$12*B5)/$BD$28,0)) -> 29 | BU5: =IF(BT5="",NA(),COUNTIF(BT5:$BT$303,BT5)) -> 6 | BV5: =$AY$35+BT5*$BD$28 -> 142.68 | BW5: -15.06475
A6: 0.1563010369 | B6: 1.196605344 | C6: 1.802015216 | D6: Copy here | E6: Copy from | G6: 1 | H6: Set up sampling | R6: 0 | AE6: 0 | AX6: panel 1 bottom | AY6: =AY9+AY8+AY7 -> 27 | BA6: stepXsize | BB6: Disp H0 Middle | BC6: TRUE | BD6: Disp H1 Middle | BE6: TRUE | BF6: 5 | BG6: 0.3166213706 | BH6: -0.4771676554 | BI6: 122.8424852 | BJ6: 25 | BK6: 122.8424852 | BL6: 150 | BM6: =IF(BL6="",NA(),COUNTIF(BL6:$BL$303,BL6)) -> 8 | BN6: 132.675 | BO6: 8.06625 | BP6: 144 | BQ6: =IF(BP6="",NA(),COUNTIF(BP6:$BP$303,BP6)) -> 3 | BR6: 127.368 | BS6: -47.31125 | BT6: 30 | BU6: =IF(BT6="",NA(),COUNTIF(BT6:$BT$303,BT6)) -> 4 | BV6: 143.269 | BW6: -16.49575
A7: 0.01589299483 | B7: 1.012937215 | C7: 1.990146047 | D7: from right | E7: red 2, 3 | L7: Reference value | R7: 0 | AE7: 0 | AX7: 1 to 2 gap | AY7: 2 | BA7: 0.5 | BB7: Disp H0 Lower | BC7: TRUE | BD7: Disp H1 Lower | BE7: TRUE | BF7: 6 | BG7: 0.8222135678 | BH7: 0.9238337806 | BI7: 143.8575067 | BJ7: 25 | BK7: 143.8575067 | BL7: 147 | BM7: =IF(BL7="",NA(),COUNTIF(BL7:$BL$303,BL7)) -> 7 | BN7: 130.0215 | BO7: 6.99075 | BP7: 147 | BQ7: =IF(BP7="",NA(),COUNTIF(BP7:$BP$303,BP7)) -> 7 | BR7: 130.0215 | BS7: -43.00925 | BT7: 26 | BU7: =IF(BT7="",NA(),COUNTIF(BT7:$BT$303,BT7)) -> 12 | BV7: 140.913 | BW7: -10.77175
A8: -0.1655248128 | B8: 0.8156633675 | C8: 2.249059183 | D8: 40 | E8: =L8 -> 100 | J8: SLIDER | K8: m0 | L8: =AW19 -> 100 | R8: 0 | AE8: 0 | AX8: panel 2 height | AY8: 25 | BD8: DispMeanHeap | BE8: TRUE | BF8: 7 | BG8: 0.3667100742 | BH8: -0.3405795211 | BI8: 124.8913072 | BJ8: 25 | BK8: 124.8913072 | BL8: 144 | BM8: =IF(BL8="",NA(),COUNTIF(BL8:$BL$303,BL8)) -> 12 | BN8: 127.368 | BO8: 12.36825 | BP8: 151 | BQ8: =IF(BP8="",NA(),COUNTIF(BP8:$BP$303,BP8)) -> 7 | BR8: 133.5595 | BS8: -43.00925 | BT8: 21 | BU8: =IF(BT8="",NA(),COUNTIF(BT8:$BT$303,BT8)) -> 7 | BV8: 137.968 | BW8: -14.34925
A9: -0.2662926748 | B9: 0.9709898909 | C9: 1.785505021 | D9: 0.2489759819 | E9: =RAND() -> 0.656466523 | R9: 0 | AE9: 0 | AO9: Mean heap & d heap | AX9: panel 2 bottom | AY9: 0 | BB9: Population SD | BC9: =$O$12 -> 15 | BD9: DispSampDist | BE9: TRUE | BF9: 8 | BG9: 0.5096902624 | BJ9: 25 | BK9: -999 | BL9: 142 | BM9: =IF(BL9="",NA(),COUNTIF(BL9:$BL$303,BL9)) -> 9 | BN9: 125.599 | BO9: 9.14175 | BP9: 143 | BQ9: =IF(BP9="",NA(),COUNTIF(BP9:$BP$303,BP9)) -> 6 | BR9: 126.4835 | BS9: -44.08475 | BT9: 25 | BU9: =IF(BT9="",NA(),COUNTIF(BT9:$BT$303,BT9)) -> 6 | BV9: 140.324 | BW9: -15.06475
A10: 0.07619177522 | B10: 0.840541205 | C10: 2.470065433 | D10: 15 | E10: =O12 -> 15 | I10: Population mean | M10: SLIDER | N10: m | O10: =AW21 -> 130 | R10: 0 | AE10: 0 | AO10: appearance | AX10: 2 to 3 gap | AY10: 2 | BB10: SD of t distribution | BC10: =BC9*SQRT(H15/(H15-2)) -> 18.37117307 | BD10: Disp d panel | BE10: TRUE | BF10: 9 | BG10: 0.2497460321 | BJ10: 25 | BK10: -999 | BL10: 148 | BM10: =IF(BL10="",NA(),COUNTIF(BL10:$BL$303,BL10)) -> 11 | BN10: 130.906 | BO10: 11.29275 | BP10: 155 | BQ10: =IF(BP10="",NA(),COUNTIF(BP10:$BP$303,BP10)) -> 4 | BR10: 137.0975 | BS10: -46.23575 | BT10: 21 | BU10: =IF(BT10="",NA(),COUNTIF(BT10:$BT$303,BT10)) -> 6 | BV10: 137.968 | BW10: -15.06475
A11: -0.7207979641 | B11: 1.517946032 | C11: 0.8427190486 | D11: 6 | E11: =H15 -> 6 | Q11: Effect size | R11: 0 | AE11: 0 | AO11: y | AX11: panel 3 height | AY11: 17 | BB11: SD of nct dist | BC11: =SQRT(($H$15-1)*(1+$T$63*$T$63)/(($H$15-1)-2)-BE11*BE11) -> 2.77733904 | BD11: mean of nct dist | BE11: =SQRT(($H$15-1)/2)*(EXP(GAMMALN(($H$15-1)/2-0.5))/EXP(GAMMALN(($H$15-1)/2)))*$T$63 -> 5.826924963 | BF11: 10 | BG11: 0.5672903433 | BJ11: 25 | BK11: -999 | BL11: 135 | BM11: =IF(BL11="",NA(),COUNTIF(BL11:$BL$303,BL11)) -> 3 | BN11: 119.4075 | BO11: 2.68875 | BP11: 127 | BQ11: =IF(BP11="",NA(),COUNTIF(BP11:$BP$303,BP11)) -> 3 | BR11: 112.3315 | BS11: -47.31125 | BT11: 39 | BU11: =IF(BT11="",NA(),COUNTIF(BT11:$BT$303,BT11)) -> 1 | BV11: 148.57 | BW11: -18.64225
A12: 0.2139176786 | B12: 0.9034568049 | C12: 2.450496434 | D12: 0.5566874788 | E12: =RAND() -> 0.2602351977 | I12: Population SD | M12: SLIDER | N12: s | O12: =AW23 -> 15 | P12: d | Q12: =(O10-L8)/O12 -> 2 | R12: 0 | AE12: 0 | AO12: 2151 | AX12: panel 3 bottom | AY12: =AY9-AY10-AY11 -> -19 | BB12: m0 grey | BC12: =AND(BC5=2) -> TRUE | BD12: Assume s known | BE12: =(BC3=2) -> FALSE | BF12: 11 | BG12: 0.8082165793 | BJ12: 25 | BK12: -999 | BL12: 151 | BM12: =IF(BL12="",NA(),COUNTIF(BL12:$BL$303,BL12)) -> 3 | BN12: 133.5595 | BO12: 2.68875 | BP12: 155 | BQ12: =IF(BP12="",NA(),COUNTIF(BP12:$BP$303,BP12)) -> 3 | BR12: 137.0975 | BS12: -47.31125 | BT12: 23 | BU12: =IF(BT12="",NA(),COUNTIF(BT12:$BT$303,BT12)) -> 9 | BV12: 139.146 | BW12: -12.91825
A13: -0.8017013454 | B13: 0.7964451396 | C13: 1.504558939 | D13: 130 | E13: =O10 -> 130 | R13: 0 | AE13: 0 | AX13: 3 to 4 gap | AY13: 7 | BB13: m1 grey | BC13: =AND(BC5=1) -> FALSE | BF13: 12 | BG13: 0.2993999496 | BJ13: 25 | BK13: -999 | BL13: 133 | BM13: =IF(BL13="",NA(),COUNTIF(BL13:$BL$303,BL13)) -> 5 | BN13: 117.6385 | BO13: 4.83975 | BP13: 139 | BQ13: =IF(BP13="",NA(),COUNTIF(BP13:$BP$303,BP13)) -> 4 | BR13: 122.9455 | BS13: -46.23575 | BT13: 20 | BU13: =IF(BT13="",NA(),COUNTIF(BT13:$BT$303,BT13)) -> 6 | BV13: 137.379 | BW13: -15.06475
A14: 0.3781799702 | B14: 0.3614810056 | C14: 6.578990137 | E14: In order | G14: 2 | J14: 3 | R14: 0 | AE14: 0 | AO14: x | AX14: panel 4 height | AY14: 24 | BB14: For top m0 line | BC14: =IF(NOT(BC12),L8,NA()) ->  | BD14: 0 | BE14: =IF($BC$12,L8,NA()) -> 100 | BF14: 13 | BG14: 0.388301678 | BJ14: 25 | BK14: -999 | BL14: 153 | BM14: =IF(BL14="",NA(),COUNTIF(BL14:$BL$303,BL14)) -> 5 | BN14: 135.3285 | BO14: 4.83975 | BP14: 225 | BQ14: =IF(BP14="",NA(),COUNTIF(BP14:$BP$303,BP14)) -> 1 | BR14: 199.0125 | BS14: -49.46225 | BT14: 9 | BU14: =IF(BT14="",NA(),COUNTIF(BT14:$BT$303,BT14)) -> 1 | BV14: 130.9 | BW14: -18.64225
A15: -0.1610792276 | B15: 1.591126224 | C15: 1.155735318 | E15: from top | G15: N | H15: =AW25 -> 6 | R15: 0 | AE15: 0 | AO15: 1769 | AX15: panel 4 bottom | AY15: =AY12-AY13-AY14 -> -50 | BB15: Middle m0 line | BC15: 26 | BD15: =IF(AND($BC$6,NOT($BC$12)),$L$8,NA()) ->  | BE15: =IF(AND($BC$6,$BC$12),$L$8,NA()) -> 100 | BF15: 14 | BG15: 0.8279406205 | BJ15: 25 | BK15: -999 | BL15: 144 | BM15: =IF(BL15="",NA(),COUNTIF(BL15:$BL$303,BL15)) -> 11 | BN15: 127.368 | BO15: 11.29275 | BP15: 133 | BQ15: =IF(BP15="",NA(),COUNTIF(BP15:$BP$303,BP15)) -> 2 | BR15: 117.6385 | BS15: -48.38675 | BT15: 41 | BU15: =IF(BT15="",NA(),COUNTIF(BT15:$BT$303,BT15)) -> 2 | BV15: 149.748 | BW15: -17.92675
A16: 0.4442287054 | B16: 1.092595464 | C16: 2.2370848 | E16: H0 m0 | R16: 0 | AE16: 0 | AX16: bottom gap | AY16: 2 | BB16: Lower m0 line | BC16: 26 | BD16: =IF(AND($BC$7,NOT($BC$12)),$L$8,NA()) ->  | BE16: =IF(AND($BC$7,$BC$12),$L$8,NA()) -> 100 | BF16: 15 | BG16: 0.9680477455 | BJ16: 25 | BK16: -999 | BL16: 155 | BM16: =IF(BL16="",NA(),COUNTIF(BL16:$BL$303,BL16)) -> 6 | BN16: 137.0975 | BO16: 5.91525 | BP16: 151 | BQ16: =IF(BP16="",NA(),COUNTIF(BP16:$BP$303,BP16)) -> 6 | BR16: 133.5595 | BS16: -44.08475 | BT16: 28 | BU16: =IF(BT16="",NA(),COUNTIF(BT16:$BT$303,BT16)) -> 10 | BV16: 142.091 | BW16: -12.20275
A17: 0.09401759808 | B17: 1.107693289 | C17: 1.890430879 | E17: rand H0 | G17: df | H17: =H15-1 -> 5 | R17: 0 | AE17: 0 | AW17: Panel 1 | AX17: X axis label | AY17: =AY3+5 -> 75 | AZ17: =AY6-2 -> 25 | BB17: m0, m1 line bar | BE17: 30 | BF17: 16 | BG17: 0.03987906128 | BJ17: 25 | BK17: -999 | BL17: 149 | BM17: =IF(BL17="",NA(),COUNTIF(BL17:$BL$303,BL17)) -> 6 | BN17: 131.7905 | BO17: 5.91525 | BP17: 145 | BQ17: =IF(BP17="",NA(),COUNTIF(BP17:$BP$303,BP17)) -> 6 | BR17: 128.2525 | BS17: -44.08475 | BT17: 28 | BU17: =IF(BT17="",NA(),COUNTIF(BT17:$BT$303,BT17)) -> 9 | BV17: 142.091 | BW17: -12.91825
A18: -0.1833481826 | B18: 0.7545901483 | C18: 2.407468241 | E18: sigma | M18: Number of samples | N18: =IF($BE$4,COUNT(A4:A303),0) -> 137 | R18: 0 | AE18: 0 | AO18: s pile | AW18: mu0 | AX18: Label population | AY18: =AY3 -> 70 | AZ18: =AY6+AY5-5 -> 40 | BB18: For top m1 line | BC18: =IF(NOT(BC13),O10,NA()) -> 130 | BD18: 0 | BE18: =IF(AND($BC$4,$BC$13),O10,NA()) ->  | BF18: 17 | BG18: 0.1312446073 | BJ18: 25 | BK18: -999 | BL18: 144 | BM18: =IF(BL18="",NA(),COUNTIF(BL18:$BL$303,BL18)) -> 10 | BN18: 127.368 | BO18: 10.21725 | BP18: 154 | BQ18: =IF(BP18="",NA(),COUNTIF(BP18:$BP$303,BP18)) -> 2 | BR18: 136.213 | BS18: -48.38675 | BT18: 19 | BU18: =IF(BT18="",NA(),COUNTIF(BT18:$BT$303,BT18)) -> 10 | BV18: 136.79 | BW18: -12.20275
A19: -0.04711010073 | B19: 0.7888494634 | C19: 2.47561796 | E19: N | R19: 0 | AE19: 0 | AO19: appearance | AW19: 100 | AX19: L end X axis | AY19: =AY3 -> 70 | AZ19: =AY6 -> 27 | BE19: =IF(AND($BE$6,$BC$4,$BC$13),$O$10,NA()) ->  | BF19: 18 | BG19: 0.778877534 | BJ19: 25 | BK19: -999 | BL19: 146 | BM19: =IF(BL19="",NA(),COUNTIF(BL19:$BL$303,BL19)) -> 8 | BN19: 129.137 | BO19: 8.06625 | BP19: 155 | BQ19: =IF(BP19="",NA(),COUNTIF(BP19:$BP$303,BP19)) -> 2 | BR19: 137.0975 | BS19: -48.38675 | BT19: 20 | BU19: =IF(BT19="",NA(),COUNTIF(BT19:$BT$303,BT19)) -> 5 | BV19: 137.379 | BW19: -15.78025
A20: -0.3126042414 | B20: 0.2642112171 | C20: 6.386540954 | E20: rand H1 | G20: 4 | H20: Latest sample | R20: 0 | AE20: 0 | AO20: y | AW20: mu | AX20: for Y axis line | AY20: =AY3 -> 70 | AZ20: =AY6 -> 27 | BB20: Lower m1 line | BC20: 26 | BD20: =IF(AND($BE$7,NOT($BC$13)),$O$10,NA()) -> 130 | BE20: =IF(AND($BE$7,$BC$4,$BC$13),$O$10,NA()) ->  | BF20: 19 | BG20: 0.465130575 | BJ20: 25 | BK20: -999 | BL20: 142 | BM20: =IF(BL20="",NA(),COUNTIF(BL20:$BL$303,BL20)) -> 8 | BN20: 125.599 | BO20: 8.06625 | BP20: 221 | BQ20: =IF(BP20="",NA(),COUNTIF(BP20:$BP$303,BP20)) -> 1 | BR20: 195.4745 | BS20: -49.46225 | BT20: 7 | BU20: =IF(BT20="",NA(),COUNTIF(BT20:$BT$303,BT20)) -> 1 | BV20: 129.722 | BW20: -18.64225
A21: 0.2772884283 | B21: 1.168918217 | C21: 1.948201675 | E21: H1 m1 | N21: Display data points | R21: 0 | AE21: 0 | AO21: 1431 | AW21: 130 | AX21: label val mu0 | AY21: =L8 -> 100 | AZ21: =AY6+8 -> 35 | BB21: Disp nct curve? | BC21: =OR(AND(H17>5,T63<=20),AND(H17>2,T63<=14),T63<=10) -> TRUE | BF21: 20 | BG21: 0.7967098728 | BJ21: 25 | BK21: -999 | BL21: 152 | BM21: =IF(BL21="",NA(),COUNTIF(BL21:$BL$303,BL21)) -> 11 | BN21: 134.444 | BO21: 11.29275 | BP21: 146 | BQ21: =IF(BP21="",NA(),COUNTIF(BP21:$BP$303,BP21)) -> 5 | BR21: 129.137 | BS21: -45.16025 | BT21: 30 | BU21: =IF(BT21="",NA(),COUNTIF(BT21:$BT$303,BT21)) -> 3 | BV21: 143.269 | BW21: -17.21125
A22: -0.2028109768 | B22: 0.42044998 | C22: 4.274441928 | J22: Mean, M | K22: =IF(AND(BE4,BC5=2,nsampso>0),O10+O12*BC38,"") -> 125.2464906 | O22: Display heaps | R22: 0 | AE22: 0 | AW22: sigma | AX22: mu0 line | AY22: =L8 -> 100 | AZ22: =AY6 -> 27 | BA22: =AY5 -> 18 | BB22: X axis | BD22: increments, means & d | BF22: 21 | BG22: 0.08505064994 | BJ22: 25 | BK22: -999 | BL22: 144 | BM22: =IF(BL22="",NA(),COUNTIF(BL22:$BL$303,BL22)) -> 9 | BN22: 127.368 | BO22: 9.14175 | BP22: 186 | BQ22: =IF(BP22="",NA(),COUNTIF(BP22:$BP$303,BP22)) -> 1 | BR22: 164.517 | BS22: -49.46225 | BT22: 11 | BU22: =IF(BT22="",NA(),COUNTIF(BT22:$BT$303,BT22)) -> 2 | BV22: 132.078 | BW22: -17.92675
A23: -0.2496097626 | B23: 1.228523713 | C23: 1.424791576 | J23: SD, s | K23: =IF(AND(BE4,BC5=2,$H$15>1,nsampso>0),O12*BD38,"") -> 14.2098595 | N23: Display distributions | R23: 0 | AE23: 0 | AO23: x | AW23: 15 | AX23: label val mu1 | AY23: =O10-1.4 -> 128.6 | AZ23: =AY6+12 -> 39 | BB23: L end | BC23: 70 | BD23: =AO12/2000 -> 1.0755 | BE23: y | BF23: 22 | BG23: 0.6050681248 | BJ23: 25 | BK23: -999 | BL23: 143 | BM23: =IF(BL23="",NA(),COUNTIF(BL23:$BL$303,BL23)) -> 9 | BN23: 126.4835 | BO23: 9.14175 | BP23: 137 | BQ23: =IF(BP23="",NA(),COUNTIF(BP23:$BP$303,BP23)) -> 2 | BR23: 121.1765 | BS23: -48.38675 | BT23: 31 | BU23: =IF(BT23="",NA(),COUNTIF(BT23:$BT$303,BT23)) -> 5 | BV23: 143.858 | BW23: -15.78025
A24: -0.177790535 | B24: 0.8042075304 | C24: 2.265844818 | R24: =$R$1 -> 0 | AE24: 0 | AO24: 1178 | AW24: N | AX24: mu1 line | AY24: =O10 -> 130 | AZ24: =AY6 -> 27 | BA24: 6 | BB24: R end | BC24: =BC23+100 -> 170 | BD24: =AO15/2000 -> 0.8845 | BE24: x | BF24: 23 | BG24: 0.1141928509 | BJ24: 25 | BK24: -999 | BL24: 144 | BM24: =IF(BL24="",NA(),COUNTIF(BL24:$BL$303,BL24)) -> 8 | BN24: 127.368 | BO24: 8.06625 | BP24: 151 | BQ24: =IF(BP24="",NA(),COUNTIF(BP24:$BP$303,BP24)) -> 5 | BR24: 133.5595 | BS24: -45.16025 | BT24: 20 | BU24: =IF(BT24="",NA(),COUNTIF(BT24:$BT$303,BT24)) -> 4 | BV24: 137.379 | BW24: -16.49575
A25: 0.4415768442 | B25: 1.669111935 | C25: 1.462799943 | O25: Display s pile | R25: =$R$1 -> 0 | AE25: 0 | AW25: 6 | AX25: Panel 2 | BF25: 24 | BG25: 0.9933848158 | BJ25: 25 | BK25: -999 | BL25: 154 | BM25: =IF(BL25="",NA(),COUNTIF(BL25:$BL$303,BL25)) -> 2 | BN25: 136.213 | BO25: 1.61325 | BP25: 138 | BQ25: =IF(BP25="",NA(),COUNTIF(BP25:$BP$303,BP25)) -> 4 | BR25: 122.061 | BS25: -46.23575 | BT25: 43 | BU25: =IF(BT25="",NA(),COUNTIF(BT25:$BT$303,BT25)) -> 1 | BV25: 150.926 | BW25: -18.64225
A26: -0.2050707498 | B26: 0.1345887707 | C26: 13.33639679 | R26: =$R$1 -> 0 | AE26: 0 | AX26: Lbl Samp Means | AY26: =AY3 -> 70 | AZ26: 15 | BA26: =AY5 -> 18 | BD26: increments, s pile | BF26: 25 | BG26: 0.07152766734 | BJ26: 25 | BK26: -999 | BL26: 143 | BM26: =IF(BL26="",NA(),COUNTIF(BL26:$BL$303,BL26)) -> 8 | BN26: 126.4835 | BO26: 8.06625 | BP26: 339 | BQ26: =IF(BP26="",NA(),COUNTIF(BP26:$BP$303,BP26)) -> 1 | BR26: 299.8455 | BS26: -49.46225 | BT26: 3 | BU26: =IF(BT26="",NA(),COUNTIF(BT26:$BT$303,BT26)) -> 1 | BV26: 127.366 | BW26: -18.64225
A27: -0.6683776778 | B27: 0.7997726371 | C27: 1.665001102 | G27: 5 | H27: Calculation of d | R27: 0 | AE27: 0 | AX27: for Y axis line | AY27: =AY3 -> 70 | AZ27: =AY9 -> 0 | BD27: =AO21/2000 -> 0.7155 | BE27: y | BF27: 26 | BG27: 0.6032958403 | BJ27: 25 | BK27: -999 | BL27: 136 | BM27: =IF(BL27="",NA(),COUNTIF(BL27:$BL$303,BL27)) -> 2 | BN27: 120.292 | BO27: 1.61325 | BP27: 141 | BQ27: =IF(BP27="",NA(),COUNTIF(BP27:$BP$303,BP27)) -> 10 | BR27: 124.7145 | BS27: -39.78275 | BT27: 20 | BU27: =IF(BT27="",NA(),COUNTIF(BT27:$BT$303,BT27)) -> 3 | BV27: 137.379 | BW27: -17.21125
A28: -0.6117245262 | B28: 0.661995518 | C28: 2.097107059 | I28: Display rubber ruler | O28: Noncentrality parameter D. | P28: =IF(AND(BE10,NOT(BE12)),T63,"") -> 4.898979486 | R28: 0 | AE28: 0 | AX28: label val mu0 | AY28: =L8 -> 100 | AZ28: 10 | BA28: =AY8 -> 25 | BD28: =AO24/2000 -> 0.589 | BE28: x | BF28: 27 | BG28: 0.2460756376 | BJ28: 25 | BK28: -999 | BL28: 137 | BM28: =IF(BL28="",NA(),COUNTIF(BL28:$BL$303,BL28)) -> 4 | BN28: 121.1765 | BO28: 3.76425 | BP28: 149 | BQ28: =IF(BP28="",NA(),COUNTIF(BP28:$BP$303,BP28)) -> 5 | BR28: 131.7905 | BS28: -45.16025 | BT28: 17 | BU28: =IF(BT28="",NA(),COUNTIF(BT28:$BT$303,BT28)) -> 5 | BV28: 135.612 | BW28: -15.78025
A29: 0.1847875634 | B29: 1.040897108 | C29: 2.098946713 | J29: Display d heap | P29: Display noncentral t curve? | Q29: =IF(BE10,IF(OR(NOT(BE7),BE12),"",IF(BC21,"Yes","No")),"") -> Yes | R29: 0 | AE29: 0 | AX29: mu0 line | AY29: =L8 -> 100 | AZ29: =AY9 -> 0 | BF29: 28 | BG29: 0.5753689781 | BJ29: 25 | BK29: -999 | BL29: 150 | BM29: =IF(BL29="",NA(),COUNTIF(BL29:$BL$303,BL29)) -> 7 | BN29: 132.675 | BO29: 6.99075 | BP29: 149 | BQ29: =IF(BP29="",NA(),COUNTIF(BP29:$BP$303,BP29)) -> 4 | BR29: 131.7905 | BS29: -46.23575 | BT29: 27 | BU29: =IF(BT29="",NA(),COUNTIF(BT29:$BT$303,BT29)) -> 5 | BV29: 141.502 | BW29: -15.78025
A30: 0.4644057227 | B30: 0.8361313877 | C30: 2.947390517 | R30: 0 | AE30: 0 | AX30: mu1 line | AY30: =O10 -> 130 | AZ30: =AY9 -> 0 | BA30: 8 | BF30: 29 | BG30: 0.2606280521 | BJ30: 25 | BK30: -999 | BL30: 155 | BM30: =IF(BL30="",NA(),COUNTIF(BL30:$BL$303,BL30)) -> 5 | BN30: 137.0975 | BO30: 4.83975 | BP30: 163 | BQ30: =IF(BP30="",NA(),COUNTIF(BP30:$BP$303,BP30)) -> 1 | BR30: 144.1735 | BS30: -49.46225 | BT30: 21 | BU30: =IF(BT30="",NA(),COUNTIF(BT30:$BT$303,BT30)) -> 5 | BV30: 137.968 | BW30: -15.78025
A31: 0.2192901452 | B31: 0.7973125762 | C31: 2.783463113 | K31: Use s | O31: Mean of d | P31: =IF(AND(BE10,BE9),IF(BE12,Q12,IF(H15>2,BE11/SQRT(H15),"")),"") -> 2.378832155 | R31: =$R$1 -> 0 | AE31: 0 | AX31: highlighted point | AY31: =AY62 -> 125.599 | AZ31: =AY9-BD23/2 -> -0.53775 | BA31: =AY8-1 -> 24 | BF31: 30 | BG31: 0.908723034 | BJ31: 25 | BK31: -999 | BL31: 151 | BM31: =IF(BL31="",NA(),COUNTIF(BL31:$BL$303,BL31)) -> 2 | BN31: 133.5595 | BO31: 1.61325 | BP31: 160 | BQ31: =IF(BP31="",NA(),COUNTIF(BP31:$BP$303,BP31)) -> 2 | BR31: 141.52 | BS31: -48.38675 | BT31: 20 | BU31: =IF(BT31="",NA(),COUNTIF(BT31:$BT$303,BT31)) -> 2 | BV31: 137.379 | BW31: -17.92675
A32: 0.2949109976 | B32: 0.6659975461 | C32: 3.445825005 | H32: Choose for d | L32: d | M32: =IF(nsampso>0,(K22-L8)/IF(BE12,O12,K23),"") -> 1.776688261 | O32: SD of d | P32: =IF(AND(BE10,BE9),IF(BE12,1/SQRT(H15),IF(H15>3,BC11/SQRT(H15),"")),"") -> 1.133843915 | R32: =$R$1 -> 0 | AE32: 0 | AX32: X axis label | AY32: =AY3+17 -> 87 | AZ32: -4 | BF32: 31 | BG32: 0.153045781 | BJ32: 25 | BK32: -999 | BL32: 152 | BM32: =IF(BL32="",NA(),COUNTIF(BL32:$BL$303,BL32)) -> 10 | BN32: 134.444 | BO32: 10.21725 | BP32: 171 | BQ32: =IF(BP32="",NA(),COUNTIF(BP32:$BP$303,BP32)) -> 2 | BR32: 151.2495 | BS32: -48.38675 | BT32: 17 | BU32: =IF(BT32="",NA(),COUNTIF(BT32:$BT$303,BT32)) -> 4 | BV32: 135.612 | BW32: -16.49575
A33: -0.1917959951 | B33: 0.9685119521 | C33: 1.866991936 | K33: Use s | R33: =$R$1 -> 0 | AE33: 0 | AX33: Panel 3 | BF33: 32 | BG33: 0.7991626039 | BJ33: 25 | BK33: -999 | BL33: 144 | BM33: =IF(BL33="",NA(),COUNTIF(BL33:$BL$303,BL33)) -> 7 | BN33: 127.368 | BO33: 6.99075 | BP33: 145 | BQ33: =IF(BP33="",NA(),COUNTIF(BP33:$BP$303,BP33)) -> 5 | BR33: 128.2525 | BS33: -45.16025 | BT33: 25 | BU33: =IF(BT33="",NA(),COUNTIF(BT33:$BT$303,BT33)) -> 5 | BV33: 140.324 | BW33: -15.78025
A34: 0.3607851795 | B34: 0.6047561757 | C34: 3.903697514 | R34: 0 | AE34: 0 | AX34: Lbl Samp SDs | AY34: =IF(BE5,AY3,NA()) -> 70 | AZ34: =AY12+8 -> -11 | BC34: format | BD34: popSE | BE34: sampSE | BF34: 33 | BG34: 0.4282612279 | BJ34: 25 | BK34: -999 | BL34: 153 | BM34: =IF(BL34="",NA(),COUNTIF(BL34:$BL$303,BL34)) -> 4 | BN34: 135.3285 | BO34: 3.76425 | BP34: 179 | BQ34: =IF(BP34="",NA(),COUNTIF(BP34:$BP$303,BP34)) -> 1 | BR34: 158.3255 | BS34: -49.46225 | BT34: 15 | BU34: =IF(BT34="",NA(),COUNTIF(BT34:$BT$303,BT34)) -> 2 | BV34: 134.434 | BW34: -17.92675
A35: 0.1400266651 | B35: 1.105912911 | C35: 1.935077025 | G35: 6 | H35: Unbiased d | R35: 0 | AE35: =$R$1 -> 0 | AX35: L end X axis | AY35: =IF(OR(NOT(BE5),A4=""),NA(),ROUND(($O$10+$O$12*A4)/$BD$24,0)*$BD$24) -> 125.599 | AZ35: =AY12 -> -19 | BA35: =AY11-3 -> 14 | BC35: red | BD35: =IF(AND(nsampso>0,BE12),-1,99) -> 99 | BE35: =IF(AND(NOT(BE12)),99,-1) -> 99 | BF35: 34 | BG35: 0.8464534655 | BH35: =IF(AND($BE$4,$BF34<=$H$15),NORMSINV(BG35),"") ->  | BI35: =IF(BH35="","",$O$10+$O$12*BH35) ->  | BJ35: 25 | BK35: =IF(AND($BC$12,$BE$2,BI35<>"",$A$4<>""),BI35,-999) -> -999 | BL35: 149 | BM35: =IF(BL35="",NA(),COUNTIF(BL35:$BL$303,BL35)) -> 5 | BN35: 131.7905 | BO35: 4.83975 | BP35: 146 | BQ35: =IF(BP35="",NA(),COUNTIF(BP35:$BP$303,BP35)) -> 4 | BR35: 129.137 | BS35: -46.23575 | BT35: 28 | BU35: =IF(BT35="",NA(),COUNTIF(BT35:$BT$303,BT35)) -> 8 | BV35: 142.091 | BW35: -13.63375
A36: 0.01273864773 | B36: 0.4307273348 | C36: 4.672883481 | L36: dunb | M36: =IF(AND(NOT(BE12),H17>1,M32<>""),M32*W62,"") -> 1.493748315 | R36: 0 | AE36: =$R$1 -> 0 | AX36: L end X axis | AY36: =IF(BE5,AY35,NA()) -> 125.599 | AZ36: =AZ35 -> -19 | BA36: 101 | BC36: Samp means | BD36: SD | BE36: SE | BF36: 35 | BG36: =MOD(BG35*10000013,1) -> 0.6591084078 | BJ36: 25 | BK36: -999 | BL36: 147 | BM36: =IF(BL36="",NA(),COUNTIF(BL36:$BL$303,BL36)) -> 6 | BN36: 130.0215 | BO36: 5.91525 | BP36: 192 | BQ36: =IF(BP36="",NA(),COUNTIF(BP36:$BP$303,BP36)) -> 1 | BR36: 169.824 | BS36: -49.46225 | BT36: 11 | BU36: =IF(BT36="",NA(),COUNTIF(BT36:$BT$303,BT36)) -> 1 | BV36: 132.078 | BW36: -18.64225
A37: 0.2043952309 | B37: 1.251247105 | C37: 1.761758506 | R37: 0 | AE37: =$R$1 -> 0 | AX37: for Y axis line | AY37: =IF(BE10,AY3,NA()) -> 70 | AZ37: =AY12-5 -> -24 | BA37: 18 | BF37: 36 | BG37: 0.6463635936 | BJ37: 25 | BK37: -999 | BL37: 150 | BM37: =IF(BL37="",NA(),COUNTIF(BL37:$BL$303,BL37)) -> 6 | BN37: 132.675 | BO37: 5.91525 | BP37: 143 | BQ37: =IF(BP37="",NA(),COUNTIF(BP37:$BP$303,BP37)) -> 5 | BR37: 126.4835 | BS37: -45.16025 | BT37: 32 | BU37: =IF(BT37="",NA(),COUNTIF(BT37:$BT$303,BT37)) -> 3 | BV37: 144.447 | BW37: -17.21125
A38: 0.02444191076 | B38: 1.291921849 | C38: 1.567000289 | R38: 0 | AE38: =$R$1 -> 0 | AX38: X axis values | AY38: =AY35 -> 125.599 | AZ38: =AZ35+0.5 -> -18.5 | BC38: =IF($BE$4,AVERAGE(BH3:BH102),-999) -> -0.3169006292 | BD38: =IF(AND($BE$4,$H$15>1),STDEV(BH3:BH102),-999) -> 0.9473239665 | BE38: =IF(AND($BE$4,$H$15>1,BD38>-999),BD38/SQRT($H$15),"") -> 0.3867433898 | BF38: 37 | BG38: 0.33910615 | BJ38: 25 | BK38: -999 | BL38: 147 | BM38: =IF(BL38="",NA(),COUNTIF(BL38:$BL$303,BL38)) -> 5 | BN38: 130.0215 | BO38: 4.83975 | BP38: 140 | BQ38: =IF(BP38="",NA(),COUNTIF(BP38:$BP$303,BP38)) -> 4 | BR38: 123.83 | BS38: -46.23575 | BT38: 33 | BU38: =IF(BT38="",NA(),COUNTIF(BT38:$BT$303,BT38)) -> 7 | BV38: 145.036 | BW38: -14.34925
A39: -0.497950826 | B39: 0.6741928246 | C39: 2.227922219 | AX39: X axis values | AY39: =AY35+O12 -> 140.599 | AZ39: =AZ38+1 -> -17.5 | BA39: 1.3 | BF39: 38 | BG39: 0.908094801 | BJ39: 25 | BK39: -999 | BL39: 139 | BM39: =IF(BL39="",NA(),COUNTIF(BL39:$BL$303,BL39)) -> 7 | BN39: 122.9455 | BO39: 6.99075 | BP39: 151 | BQ39: =IF(BP39="",NA(),COUNTIF(BP39:$BP$303,BP39)) -> 4 | BR39: 133.5595 | BS39: -46.23575 | BT39: 17 | BU39: =IF(BT39="",NA(),COUNTIF(BT39:$BT$303,BT39)) -> 3 | BV39: 135.612 | BW39: -17.21125
A40: 0.6798880201 | B40: 0.4884308082 | C40: 5.486730107 | AX40: X axis values | AY40: =AY39 -> 140.599 | AZ40: =AZ35 -> -19 | BA40: =AY11-2 -> 15 | BF40: 39 | BG40: 0.8153194264 | BJ40: 25 | BK40: -999 | BL40: 159 | BM40: =IF(BL40="",NA(),COUNTIF(BL40:$BL$303,BL40)) -> 3 | BN40: 140.6355 | BO40: 2.68875 | BP40: 206 | BQ40: =IF(BP40="",NA(),COUNTIF(BP40:$BP$303,BP40)) -> 1 | BR40: 182.207 | BS40: -49.46225 | BT40: 12 | BU40: =IF(BT40="",NA(),COUNTIF(BT40:$BT$303,BT40)) -> 2 | BV40: 132.667 | BW40: -17.92675
A41: -0.8465732349 | B41: 1.305449344 | C41: 0.8835476999 | AY41: =BV1 -> 139.735 | AZ41: =BW1 -> -16.49575 | BF41: 40 | BG41: 0.8627300039 | BJ41: 25 | BK41: -999 | BL41: 133 | BM41: =IF(BL41="",NA(),COUNTIF(BL41:$BL$303,BL41)) -> 4 | BN41: 117.6385 | BO41: 3.76425 | BP41: 128 | BQ41: =IF(BP41="",NA(),COUNTIF(BP41:$BP$303,BP41)) -> 2 | BR41: 113.216 | BS41: -48.38675 | BT41: 33 | BU41: =IF(BT41="",NA(),COUNTIF(BT41:$BT$303,BT41)) -> 6 | BV41: 145.036 | BW41: -15.06475
A42: 0.4935394479 | B42: 1.628202219 | C42: 1.531467909 | AX42: grey highlight point | AY42: =IF(ISNA(AY41),NA(),IF(AND(BE2,$BE$12),AY41,NA())) ->  | AZ42: =IF(ISNA(AZ41),NA(),IF($BE$12,AZ41,NA())) ->  | BF42: 41 | BG42: 0.2544238046 | BJ42: 25 | BK42: -999 | BL42: 155 | BM42: =IF(BL42="",NA(),COUNTIF(BL42:$BL$303,BL42)) -> 4 | BN42: 137.0975 | BO42: 3.76425 | BP42: 139 | BQ42: =IF(BP42="",NA(),COUNTIF(BP42:$BP$303,BP42)) -> 3 | BR42: 122.9455 | BS42: -47.31125 | BT42: 41 | BU42: =IF(BT42="",NA(),COUNTIF(BT42:$BT$303,BT42)) -> 1 | BV42: 149.748 | BW42: -18.64225
A43: 0.1585784468 | B43: 0.8869728832 | C43: 2.433646493 | AX43: s extent line | AY43: =IF(BE12,NA(),AY35) -> 125.599 | AZ43: =IF(ISNA(AZ41),NA(),IF(BE12,NA(),AZ41+BA43)) -> -14.99575 | BA43: 1.5 | BF43: 42 | BG43: 0.3533211127 | BJ43: 25 | BK43: -999 | BL43: 150 | BM43: =IF(BL43="",NA(),COUNTIF(BL43:$BL$303,BL43)) -> 5 | BN43: 132.675 | BO43: 4.83975 | BP43: 154 | BQ43: =IF(BP43="",NA(),COUNTIF(BP43:$BP$303,BP43)) -> 1 | BR43: 136.213 | BS43: -49.46225 | BT43: 23 | BU43: =IF(BT43="",NA(),COUNTIF(BT43:$BT$303,BT43)) -> 8 | BV43: 139.146 | BW43: -13.63375
A44: -0.282367999 | B44: 0.8645169343 | C44: 1.986811285 | AY44: =BV2 -> 139.735 | AZ44: =BW2+BA43 -> -14.99575 | BA44: 1 | BF44: 43 | BG44: 0.7200980261 | BJ44: 25 | BK44: -999 | BL44: 142 | BM44: =IF(BL44="",NA(),COUNTIF(BL44:$BL$303,BL44)) -> 7 | BN44: 125.599 | BO44: 6.99075 | BP44: 147 | BQ44: =IF(BP44="",NA(),COUNTIF(BP44:$BP$303,BP44)) -> 6 | BR44: 130.0215 | BS44: -44.08475 | BT44: 22 | BU44: =IF(BT44="",NA(),COUNTIF(BT44:$BT$303,BT44)) -> 3 | BV44: 138.557 | BW44: -17.21125
A45: -0.4465908774 | B45: 0.9057705876 | C45: 1.715013872 | AX45: s label | AY45: =IF(OR(NOT(BE2),BE12),NA(),AY35+3) -> 128.599 | AZ45: =IF(BE12,NA(),AZ41+1.6+BA43) -> -13.39575 | BF45: 44 | BG45: 0.6222425476 | BJ45: 25 | BK45: -999 | BL45: 139 | BM45: =IF(BL45="",NA(),COUNTIF(BL45:$BL$303,BL45)) -> 6 | BN45: 122.9455 | BO45: 5.91525 | BP45: 142 | BQ45: =IF(BP45="",NA(),COUNTIF(BP45:$BP$303,BP45)) -> 7 | BR45: 125.599 | BS45: -43.00925 | BT45: 23 | BU45: =IF(BT45="",NA(),COUNTIF(BT45:$BT$303,BT45)) -> 7 | BV45: 139.146 | BW45: -14.34925
A46: 0.09867074173 | B46: 1.140824128 | C46: 1.839609358 | AX46: s extent line | AY46: =IF(BE12,AY35,NA()) ->  | AZ46: =IF(ISNA(AZ35),NA(),IF(BE12,AZ35-0.7,NA())) ->  | BF46: 45 | BG46: 0.5648697093 | BJ46: 25 | BK46: -999 | BL46: 149 | BM46: =IF(BL46="",NA(),COUNTIF(BL46:$BL$303,BL46)) -> 4 | BN46: 131.7905 | BO46: 3.76425 | BP46: 144 | BQ46: =IF(BP46="",NA(),COUNTIF(BP46:$BP$303,BP46)) -> 2 | BR46: 127.368 | BS46: -48.38675 | BT46: 29 | BU46: =IF(BT46="",NA(),COUNTIF(BT46:$BT$303,BT46)) -> 5 | BV46: 142.68 | BW46: -15.78025
A47: -0.4994673831 | B47: 1.416426155 | C47: 1.059379348 | AY47: =IF(ISNA(AY46),NA(),AY46+O12) ->  | AZ47: =AZ46 ->  | BF47: 46 | BG47: 0.4364353791 | BJ47: 25 | BK47: -999 | BL47: 139 | BM47: =IF(BL47="",NA(),COUNTIF(BL47:$BL$303,BL47)) -> 5 | BN47: 122.9455 | BO47: 4.83975 | BP47: 131 | BQ47: =IF(BP47="",NA(),COUNTIF(BP47:$BP$303,BP47)) -> 1 | BR47: 115.8695 | BS47: -49.46225 | BT47: 36 | BU47: =IF(BT47="",NA(),COUNTIF(BT47:$BT$303,BT47)) -> 3 | BV47: 146.803 | BW47: -17.21125
A48: 0.09700898819 | B48: 0.6161544196 | C48: 3.403382207 | AY48: =IF(BE12,AY40,NA()) ->  | AZ48: =IF(BE12,AZ39,NA()) ->  | BF48: 47 | BG48: 0.4645391777 | BJ48: 25 | BK48: -999 | BL48: 149 | BM48: =IF(BL48="",NA(),COUNTIF(BL48:$BL$303,BL48)) -> 3 | BN48: 131.7905 | BO48: 2.68875 | BP48: 171 | BQ48: =IF(BP48="",NA(),COUNTIF(BP48:$BP$303,BP48)) -> 1 | BR48: 151.2495 | BS48: -49.46225 | BT48: 16 | BU48: =IF(BT48="",NA(),COUNTIF(BT48:$BT$303,BT48)) -> 2 | BV48: 135.023 | BW48: -17.92675
A49: 0.09615170093 | B49: 1.018762752 | C49: 2.057546467 | AX49: s label | AY49: =AY35+3 -> 128.599 | AZ49: =IF(BE12,AZ39+0.2,NA()) ->  | BF49: 48 | BG49: 0.8161670938 | BJ49: 25 | BK49: -999 | BL49: 149 | BM49: =IF(BL49="",NA(),COUNTIF(BL49:$BL$303,BL49)) -> 2 | BN49: 131.7905 | BO49: 1.61325 | BP49: 148 | BQ49: =IF(BP49="",NA(),COUNTIF(BP49:$BP$303,BP49)) -> 3 | BR49: 130.906 | BS49: -47.31125 | BT49: 26 | BU49: =IF(BT49="",NA(),COUNTIF(BT49:$BT$303,BT49)) -> 11 | BV49: 140.913 | BW49: -11.48725
A50: -0.4778833694 | B50: 1.332478779 | C50: 1.142319603 | AX50: dotted vertical | AY50: =AY35 -> 125.599 | AZ50: =BO2 -> 10.21725 | BF50: 49 | BG50: 0.548306413 | BJ50: 25 | BK50: -999 | BL50: 139 | BM50: =IF(BL50="",NA(),COUNTIF(BL50:$BL$303,BL50)) -> 4 | BN50: 122.9455 | BO50: 3.76425 | BP50: 132 | BQ50: =IF(BP50="",NA(),COUNTIF(BP50:$BP$303,BP50)) -> 2 | BR50: 116.754 | BS50: -48.38675 | BT50: 34 | BU50: =IF(BT50="",NA(),COUNTIF(BT50:$BT$303,BT50)) -> 4 | BV50: 145.625 | BW50: -16.49575
A51: 0.2791675667 | B51: 0.9613250788 | C51: 2.370860406 | AX51: to latest mean | AY51: =AY50 -> 125.599 | AZ51: =AZ35 -> -19 | BF51: 50 | BG51: 0.257931985 | BJ51: 25 | BK51: -999 | BL51: 152 | BM51: =IF(BL51="",NA(),COUNTIF(BL51:$BL$303,BL51)) -> 9 | BN51: 134.444 | BO51: 9.14175 | BP51: 153 | BQ51: =IF(BP51="",NA(),COUNTIF(BP51:$BP$303,BP51)) -> 3 | BR51: 135.3285 | BS51: -47.31125 | BT51: 24 | BU51: =IF(BT51="",NA(),COUNTIF(BT51:$BT$303,BT51)) -> 3 | BV51: 139.735 | BW51: -17.21125
A52: -0.3954381951 | B52: 0.7360905143 | C52: 2.179843068 | AX52: Panel 4 | BF52: 51 | BG52: 0.2027261332 | BJ52: 25 | BK52: -999 | BL52: 140 | BM52: =IF(BL52="",NA(),COUNTIF(BL52:$BL$303,BL52)) -> 3 | BN52: 123.83 | BO52: 2.68875 | BP52: 150 | BQ52: =IF(BP52="",NA(),COUNTIF(BP52:$BP$303,BP52)) -> 7 | BR52: 132.675 | BS52: -43.00925 | BT52: 19 | BU52: =IF(BT52="",NA(),COUNTIF(BT52:$BT$303,BT52)) -> 9 | BV52: 136.79 | BW52: -12.91825
A53: -0.3549176312 | B53: 0.7536593805 | C53: 2.182792932 | AX53: Label d | AY53: =IF(BE10,AY3,NA()) -> 70 | AZ53: =AY15+14 -> -36 | BF53: 52 | BG53: 0.967117168 | BJ53: 25 | BK53: -999 | BL53: 141 | BM53: =IF(BL53="",NA(),COUNTIF(BL53:$BL$303,BL53)) -> 1 | BN53: 124.7145 | BO53: 0.53775 | BP53: 150 | BQ53: =IF(BP53="",NA(),COUNTIF(BP53:$BP$303,BP53)) -> 6 | BR53: 132.675 | BS53: -44.08475 | BT53: 19 | BU53: =IF(BT53="",NA(),COUNTIF(BT53:$BT$303,BT53)) -> 8 | BV53: 136.79 | BW53: -13.63375
A54: -0.2111556257 | B54: 0.538732821 | C54: 3.320466667 | AX54: Label values | AY54: =IF(BE10,AY3,NA()) -> 70 | AZ54: =AZ53+BA54 -> -35.9 | BA54: 0.1 | BF54: 53 | BG54: 0.2526159957 | BJ54: 25 | BK54: -999 | BL54: 143 | BM54: =IF(BL54="",NA(),COUNTIF(BL54:$BL$303,BL54)) -> 7 | BN54: 126.4835 | BO54: 6.99075 | BP54: 169 | BQ54: =IF(BP54="",NA(),COUNTIF(BP54:$BP$303,BP54)) -> 1 | BR54: 149.4805 | BS54: -49.46225 | BT54: 14 | BU54: =IF(BT54="",NA(),COUNTIF(BT54:$BT$303,BT54)) -> 3 | BV54: 133.845 | BW54: -17.21125
A55: -0.2530776096 | B55: 0.9840191067 | C55: 1.775293161 | AX55: for Y axis line | AY55: =IF(BE10,AY3,NA()) -> 70 | AZ55: =AY15 -> -50 | BA55: =AY14-2 -> 22 | BF55: 54 | BG55: 0.2410592213 | BJ55: 25 | BK55: -999 | BL55: 143 | BM55: =IF(BL55="",NA(),COUNTIF(BL55:$BL$303,BL55)) -> 6 | BN55: 126.4835 | BO55: 5.91525 | BP55: 143 | BQ55: =IF(BP55="",NA(),COUNTIF(BP55:$BP$303,BP55)) -> 4 | BR55: 126.4835 | BS55: -46.23575 | BT55: 25 | BU55: =IF(BT55="",NA(),COUNTIF(BT55:$BT$303,BT55)) -> 4 | BV55: 140.324 | BW55: -16.49575
A56: 0.258155831 | B56: 0.9097929379 | C56: 2.482054693 | AX56: for d axis line | AY56: =IF(BE10,AY3,NA()) -> 70 | AZ56: =AY15 -> -50 | BA56: 100 | BF56: 55 | BG56: 0.3470429257 | BJ56: 25 | BK56: -999 | BL56: 151 | BM56: =IF(BL56="",NA(),COUNTIF(BL56:$BL$303,BL56)) -> 1 | BN56: 133.5595 | BO56: 0.53775 | BP56: 155 | BQ56: =IF(BP56="",NA(),COUNTIF(BP56:$BP$303,BP56)) -> 1 | BR56: 137.0975 | BS56: -49.46225 | BT56: 23 | BU56: =IF(BT56="",NA(),COUNTIF(BT56:$BT$303,BT56)) -> 6 | BV56: 139.146 | BW56: -15.06475
A57: -0.06441662282 | B57: 0.8192331688 | C57: 2.362677014 | AX57: label val mu0 | AY57: =IF(BE10,L8,NA()) -> 100 | AZ57: =AY15+10 -> -40 | BF57: 56 | BG57: 0.7681164518 | BJ57: 25 | BK57: -999 | BL57: 146 | BM57: =IF(BL57="",NA(),COUNTIF(BL57:$BL$303,BL57)) -> 7 | BN57: 129.137 | BO57: 6.99075 | BP57: 153 | BQ57: =IF(BP57="",NA(),COUNTIF(BP57:$BP$303,BP57)) -> 2 | BR57: 135.3285 | BS57: -48.38675 | BT57: 21 | BU57: =IF(BT57="",NA(),COUNTIF(BT57:$BT$303,BT57)) -> 4 | BV57: 137.968 | BW57: -16.49575
A58: 0.07060324375 | B58: 1.289828788 | C58: 1.605331857 | AX58: mu0 line | AY58: =IF(BE10,L8,NA()) -> 100 | AZ58: =AY15 -> -50 | BA58: 8 | BF58: 57 | BG58: 0.5035125688 | BJ58: 25 | BK58: -999 | BL58: 148 | BM58: =IF(BL58="",NA(),COUNTIF(BL58:$BL$303,BL58)) -> 10 | BN58: 130.906 | BO58: 10.21725 | BP58: 140 | BQ58: =IF(BP58="",NA(),COUNTIF(BP58:$BP$303,BP58)) -> 3 | BR58: 123.83 | BS58: -47.31125 | BT58: 33 | BU58: =IF(BT58="",NA(),COUNTIF(BT58:$BT$303,BT58)) -> 5 | BV58: 145.036 | BW58: -15.78025
A59: -0.2311284315 | B59: 1.230005182 | C59: 1.438100907 | AX59: mu1 line | AY59: =IF(BE10,O10,NA()) -> 130 | AZ59: =AY15 -> -50 | BA59: =AY14-1 -> 23 | BF59: 58 | BG59: 0.2333817855 | BJ59: 25 | BK59: -999 | BL59: 143 | BM59: =IF(BL59="",NA(),COUNTIF(BL59:$BL$303,BL59)) -> 5 | BN59: 126.4835 | BO59: 4.83975 | BP59: 137 | BQ59: =IF(BP59="",NA(),COUNTIF(BP59:$BP$303,BP59)) -> 1 | BR59: 121.1765 | BS59: -49.46225 | BT59: 31 | BU59: =IF(BT59="",NA(),COUNTIF(BT59:$BT$303,BT59)) -> 4 | BV59: 143.858 | BW59: -16.49575
A60: 0.500564218 | B60: 0.7248934712 | C60: 3.44956096 | AX60: d axis label | AY60: =IF(BE10,AY3+18,NA()) -> 88 | AZ60: =AY15-AY16 -> -52 | BF60: 59 | BG60: 0.8884868696 | BJ60: 25 | BK60: -999 | BL60: 155 | BM60: =IF(BL60="",NA(),COUNTIF(BL60:$BL$303,BL60)) -> 3 | BN60: 137.0975 | BO60: 2.68875 | BP60: 172 | BQ60: =IF(BP60="",NA(),COUNTIF(BP60:$BP$303,BP60)) -> 2 | BR60: 152.134 | BS60: -48.38675 | BT60: 18 | BU60: =IF(BT60="",NA(),COUNTIF(BT60:$BT$303,BT60)) -> 2 | BV60: 136.201 | BW60: -17.92675
A61: -0.4624515259 | B61: 1.027900883 | C61: 1.495813944 | AX61: highlighted point | AY61: =IF(AND(NOT($BC$13),$BE$4,$BE$2,AK72,BE10),BR2,NA()) -> 126.4835 | AZ61: =AY15-BD23/2 -> -50.53775 | BF61: 60 | BG61: 0.2466612831 | BJ61: 25 | BK61: -999 | BL61: 139 | BM61: =IF(BL61="",NA(),COUNTIF(BL61:$BL$303,BL61)) -> 3 | BN61: 122.9455 | BO61: 2.68875 | BP61: 138 | BQ61: =IF(BP61="",NA(),COUNTIF(BP61:$BP$303,BP61)) -> 3 | BR61: 122.061 | BS61: -47.31125 | BT61: 26 | BU61: =IF(BT61="",NA(),COUNTIF(BT61:$BT$303,BT61)) -> 10 | BV61: 140.913 | BW61: -12.20275
A62: 0.5041242393 | B62: 0.9971002902 | C62: 2.511406589 | K62: For s pile curve | V62: To debias | W62: =EXP(GAMMALN(H17/2))/(SQRT(H17/2)*EXP(GAMMALN(H17/2-0.5))) -> 0.8407486825 | Z62: Panel 1 scale | AA62: 33 | AC62: SampDistMult | AD62: =COUNT(A4:A303)*$BD$23*$BD$24 -> 130.3253257 | AI62: 1.4 | AJ62: Label rubber ruler | AL62: 0.2 | AO62: For slants | AX62: mean on r ruler | AY62: =IF(AND(NOT($BC$13),$BE$4,$BE$2,AK72),BN2,NA()) -> 125.599 | AZ62: =AY15+AY14+1 -> -25 | BF62: 61 | BG62: 0.03735477477 | BJ62: 25 | BK62: -999 | BL62: 156 | BM62: =IF(BL62="",NA(),COUNTIF(BL62:$BL$303,BL62)) -> 5 | BN62: 137.982 | BO62: 4.83975 | BP62: 156 | BQ62: =IF(BP62="",NA(),COUNTIF(BP62:$BP$303,BP62)) -> 4 | BR62: 137.982 | BS62: -46.23575 | BT62: 25 | BU62: =IF(BT62="",NA(),COUNTIF(BT62:$BT$303,BT62)) -> 3 | BV62: 140.324 | BW62: -17.21125
A63: -0.1619821636 | B63: 0.8428065305 | C63: 2.180830084 | H63: L end | I63: =ROUND(($O$10+$O$12*A4)/$BD$24,0)*$BD$24 -> 125.599 | K63: X | L63: s | M63: s2/( ) | N63: Rcum | O63: ord | P63: grey | S63: NCP | T63: =(O10-L8)/(BC9/SQRT(H15)) -> 4.898979486 | V63: x | W63: t | X63: nct | Z63: H1Pop | AA63: SampDist | AB63: SampDist | AC63: cum t | AD63: t or z | AF63: Label s pile X axis | AJ63: Unit | AK63: =IF(AND(AK72),AY3+AM63,NA()) -> 75.5 | AL63: =AY15+AY14-$AM$64 -> -26.7 | AM63: 5.5 | AO63: 12 | AP63: =AL74 ->  | AQ63: =$AM$74 -> -26 | AX63: for vert dotted line | AY63: =BN2 -> 125.599 | AZ63: =BO2 -> 10.21725 | BF63: 62 | BG63: 0.2333432809 | BJ63: 25 | BK63: -999 | BL63: 144 | BM63: =IF(BL63="",NA(),COUNTIF(BL63:$BL$303,BL63)) -> 6 | BN63: 127.368 | BO63: 5.91525 | BP63: 150 | BQ63: =IF(BP63="",NA(),COUNTIF(BP63:$BP$303,BP63)) -> 5 | BR63: 132.675 | BS63: -45.16025 | BT63: 21 | BU63: =IF(BT63="",NA(),COUNTIF(BT63:$BT$303,BT63)) -> 3 | BV63: 137.968 | BW63: -17.21125
A64: 0.476118853 | B64: 1.130575387 | C64: 2.190140419 | H64: R end | I64: =AZ3 -> 170 | K64: =I63 -> 125.599 | L64: =K64-$I$63 -> 0 | M64: =L64^2/$I$66 -> 0 | N64: =CHIDIST(M64,$H$17) -> 1 | S64: Degrees of freedom | T64: =$H$15-1 -> 5 | V64: =V65-$BA$7 -> 69.5 | W64: =T65-$T$67 -> -4.980629144 | X64: =nct(W64,$T$63,$T$64) -> 9.518413662e-12 | AC64: =X64 -> 9.518413662e-12 | AF64: 0 | AG64: =$AY$35+AF64*$BA$3 -> 125.599 | AH64: =$AZ$35 -> -19 | AI64: =AH64+$AI$62 -> -17.6 | AJ64: s | AK64: =IF(AND(AK72,BE12),AY3+AM63,NA()) ->  | AL64: =AY15+AY14+AL62-$AM$64+0.1 -> -26.4 | AM64: 0.7 | AP64: =AY67 ->  | AQ64: =$AZ$67 -> -50 | AX64: vert line | AY64: =IF(AK72,L8,NA()) -> 100 | AZ64: =AY9-AY10-3 -> -5 | BF64: 63 | BG64: 0.8419810608 | BJ64: 25 | BK64: -999 | BL64: 155 | BM64: =IF(BL64="",NA(),COUNTIF(BL64:$BL$303,BL64)) -> 2 | BN64: 137.0975 | BO64: 1.61325 | BP64: 150 | BQ64: =IF(BP64="",NA(),COUNTIF(BP64:$BP$303,BP64)) -> 4 | BR64: 132.675 | BS64: -46.23575 | BT64: 29 | BU64: =IF(BT64="",NA(),COUNTIF(BT64:$BT$303,BT64)) -> 4 | BV64: 142.68 | BW64: -16.49575
A65: 0.04059178935 | B65: 0.5290887754 | C65: 3.856804159 | H65: inc | I65: =(I64-I63)/200 -> 0.222005 | K65: =K64+$I$65 -> 125.821005 | L65: =K65-$I$63 -> 0.222005 | M65: =L65^2/$I$66 -> 0.001095249334 | N65: =CHIDIST(M65,$H$17) -> 0.9999999979 | O65: =IF(AND($B$4<>"",$BE$3,$BE$5,$BE$9,NOT($BE$12)),$AY$12+$I$67*(N64-N66)/(2*$I$65),NA()) -> -18.99999123 | P65: =IF(AND($B$4<>"",$BE$3,$BE$5,$BE$9,$BE$12),$AY$12+$I$67*(N64-N66)/(2*$I$65),NA()) ->  | S65: LH end t axis | T65: =(BC23-L8)/(BC9/SQRT(H15)) -> -4.898979486 | V65: =AY3 -> 70 | W65: =W64+$T$67 -> -4.898979486 | X65: 1.031429953e-11 | Z65: =IF(NOT($BC$13),$AY$6+$AA$62*$AY$5*NORMDIST(V65,$O$10,$O$12,FALSE),-999) -> 27.00529968 | AA65: =IF(AND(NOT($BC$13),$BE$4,$BE$9),$AY$9+$AD$62*NORMDIST(V65,$O$10,$O$12/SQRT($H$15),FALSE),NA()) -> 1.21000766e-20 | AB65: =IF($BE$6,AA65,NA()) -> 1.21000766e-20 | AC65: 1.031429953e-11 | AD65: =IF(AND(NOT($BC$13),$BE$7,$BE$4,$BE$9,$BC$21,$BE$10),IF($BE$12,$AY$15+AA65,$AY$15+$AD$62*(AC66-AC64)/(2*$BA$7)),NA()) -> -50 | AE65: =AF65*$BA$3 -> 10 | AF65: 1 | AG65: 135.599 | AH65: -19 | AI65: =AH65+$AI$62 -> -17.6 | AJ65: s | AK65: =IF(AND(AK72,NOT(BE12)),AY3+AM63,NA()) -> 75.5 | AL65: =AY15+AY14+AL62-$AM$64+0.1 -> -26.4 | AO65: 11 | AP65: =AL75 ->  | AQ65: =$AM$74 -> -26 | AX65: down to 0 | AY65: =AY64 -> 100 | AZ65: =AY12-3 -> -22 | BF65: 64 | BG65: 0.553783156 | BJ65: 25 | BK65: -999 | BL65: 148 | BM65: =IF(BL65="",NA(),COUNTIF(BL65:$BL$303,BL65)) -> 9 | BN65: 130.906 | BO65: 9.14175 | BP65: 178 | BQ65: =IF(BP65="",NA(),COUNTIF(BP65:$BP$303,BP65)) -> 1 | BR65: 157.441 | BS65: -49.46225 | BT65: 13 | BU65: =IF(BT65="",NA(),COUNTIF(BT65:$BT$303,BT65)) -> 3 | BV65: 133.256 | BW65: -17.21125
